Workbook

Sheet Control
A1: Sheets | B1: Text File Names | C1: Description | E1: Notes: 50 sheets maximum
A2: P_N_Prop | B2: Project_North_Property.txt | C2: Groundwater concentrations in the north flow path at the property boundary from the project. | E2: Referenced text files must be in same root folder as this spreadsheet
A3: P_NW_Prop | B3: Project_NorthWest_Property.txt | C3: Groundwater concentrations in the northwest flow path at the property boundary from the project.
A4: P_W_Prop | B4: Project_West_Property.txt | C4: Groundwater concentrations in the west flow path at the property boundary from the project.
A5: NA_N_Prop | B5: Ex_North_Property.txt | C5: Groundwater concentrations in the north flow path at the property boundary without the project.
A6: NA_NW_Prop | B6: Ex_NorthWest_Property.txt | C6: Groundwater concentrations in the northwest flow path at the property boundary without the project.
A7: NA_W_Prop | B7: Ex_West_Property.txt | C7: Groundwater concentrations in the west flow path at the property boundary without the project.
A8: P_N_Out | B8: Project_North_beforeMLC2.txt | C8: Groundwater concentrations in the north flow path at the discharge from the project.
A9: P_NW_Out | B9: Project_NorthWest_beforePM19.txt | C9: Groundwater concentrations in the northwest flow path at the discharge from the project.
A10: P_W_Out | B10: Project_West_beforeEmbarrass.txt | C10: Groundwater concentrations in the west flow path at the discharge from the project.
A12: NA_N_Out | B12: Ex_North_beforeMLC2.txt | C12: Groundwater concentrations in the north flow path at the discharge without the project.
A13: NA_NW_Out | B13: Ex_NorthWest_beforePM19.txt | C13: Groundwater concentrations in the northwest flow path at the discharge without the project.
A14: NA_W_Out | B14: Ex_West_beforeEmbarrass.txt | C14: Groundwater concentrations in the west flow path at the discharge without the project.

Sheet PlotControl
A2: Model Name: | B2: Plant Site Version 6.0 | C2: =B2 & " Model Annual Maximum of Concentration Statistics " & B4 & " in the " & B6 & " Flow Path at the " & B8 -> Plant Site Version 6.0 Model Annual Maximum of Concentration Statistics B in the North Flow Path at the Discharge
A4: Constituent to Plot (dropdown): | B4: B | C4: =MATCH(B4,$A$23:$A$49,0) -> 5 | V4: Directory to save PDFs to: | W4: C:\Users\jem4\Desktop\temp
V5: Starting figure caption | W5: Figure A-1-0001
A6: Flowpath to Plot (dropdown): | B6: North | C6: =MATCH(B6,$A$13:$A$20,0) -> 1 | D6: =FIND("surficial",B6) -> 
A8: Evaluation Location (dropdown): | B8: Discharge | C8: =MATCH(B8,$B$13:$B$14,0) -> 2
A10: Standard | B10: =VLOOKUP($B$4,$A$23:$B$49,2,FALSE) -> 1000
A12: Flowpaths | B12: Locations
A13: North | B13: Property Boundary
A14: Northwest | B14: Discharge
A15: West
G21: Annual Project Results | J21: Annual No-Action Results
A22: Constituent | B22: Primary Standard (ug/L) | C22: Secondary Standard (ug/L) | F22: Time | G22: P10 | H22: P50 | I22: P90 | J22: P10 | K22: P50 | L22: P90 | M22: =IF(OR($B$4="Be", $B$4="Mn"), "Site Specific Evaluation Criteria","Primary Standard") -> Primary Standard | N22: Secondary Standard
A23: Ag | B23: 30 | C23: 100 | F23: 0 | G23: =IF($B$8="Property Boundary", VLOOKUP($F23,P_All!$A$5:$J$505,3*($C$6-1)+2), VLOOKUP($F23,P_All!$L$5:$U$505,3*($C$6-1)+2)) -> 99.429 | H23: =IF($B$8="Property Boundary", VLOOKUP($F23,P_All!$A$5:$J$505,3*($C$6-1)+3), VLOOKUP($F23,P_All!$L$5:$U$505,3*($C$6-1)+3)) -> 143.44 | I23: =IF($B$8="Property Boundary", VLOOKUP($F23,P_All!$A$5:$J$505,3*($C$6-1)+4), VLOOKUP($F23,P_All!$L$5:$U$505,3*($C$6-1)+4)) -> 188.23 | J23: =IF($B$8="Property Boundary", VLOOKUP($F23,NA_All!$A$5:$J$505,3*($C$6-1)+2), VLOOKUP($F23,NA_All!$L$5:$U$505,3*($C$6-1)+2)) -> 0 | K23: =IF($B$8="Property Boundary", VLOOKUP($F23,NA_All!$A$5:$J$505,3*($C$6-1)+3), VLOOKUP($F23,NA_All!$L$5:$U$505,3*($C$6-1)+3)) -> 0 | L23: =IF($B$8="Property Boundary", VLOOKUP($F23,NA_All!$A$5:$J$505,3*($C$6-1)+4), VLOOKUP($F23,NA_All!$L$5:$U$505,3*($C$6-1)+4)) -> 0 | M23: =VLOOKUP($B$4,$A$23:$C$49,2) -> 1000 | N23: =VLOOKUP($B$4,$A$23:$C$49,3) -> 
A24: Al | F24: 2 | G24: =IF($B$8="Property Boundary", VLOOKUP($F24,P_All!$A$5:$J$505,3*($C$6-1)+2), VLOOKUP($F24,P_All!$L$5:$U$505,3*($C$6-1)+2)) -> 98.977 | H24: =IF($B$8="Property Boundary", VLOOKUP($F24,P_All!$A$5:$J$505,3*($C$6-1)+3), VLOOKUP($F24,P_All!$L$5:$U$505,3*($C$6-1)+3)) -> 142.71 | I24: =IF($B$8="Property Boundary", VLOOKUP($F24,P_All!$A$5:$J$505,3*($C$6-1)+4), VLOOKUP($F24,P_All!$L$5:$U$505,3*($C$6-1)+4)) -> 186.93 | J24: =IF($B$8="Property Boundary", VLOOKUP($F24,NA_All!$A$5:$J$505,3*($C$6-1)+2), VLOOKUP($F24,NA_All!$L$5:$U$505,3*($C$6-1)+2)) -> 0 | K24: =IF($B$8="Property Boundary", VLOOKUP($F24,NA_All!$A$5:$J$505,3*($C$6-1)+3), VLOOKUP($F24,NA_All!$L$5:$U$505,3*($C$6-1)+3)) -> 0 | L24: =IF($B$8="Property Boundary", VLOOKUP($F24,NA_All!$A$5:$J$505,3*($C$6-1)+4), VLOOKUP($F24,NA_All!$L$5:$U$505,3*($C$6-1)+4)) -> 0 | M24: =VLOOKUP($B$4,$A$23:$C$49,2) -> 1000 | N24: =VLOOKUP($B$4,$A$23:$C$49,3) -> 
A25: Alkalinity | F25: 4 | G25: =IF($B$8="Property Boundary", VLOOKUP($F25,P_All!$A$5:$J$505,3*($C$6-1)+2), VLOOKUP($F25,P_All!$L$5:$U$505,3*($C$6-1)+2)) -> 98.519 | H25: =IF($B$8="Property Boundary", VLOOKUP($F25,P_All!$A$5:$J$505,3*($C$6-1)+3), VLOOKUP($F25,P_All!$L$5:$U$505,3*($C$6-1)+3)) -> 141.9 | I25: =IF($B$8="Property Boundary", VLOOKUP($F25,P_All!$A$5:$J$505,3*($C$6-1)+4), VLOOKUP($F25,P_All!$L$5:$U$505,3*($C$6-1)+4)) -> 185.94 | J25: =IF($B$8="Property Boundary", VLOOKUP($F25,NA_All!$A$5:$J$505,3*($C$6-1)+2), VLOOKUP($F25,NA_All!$L$5:$U$505,3*($C$6-1)+2)) -> 0 | K25: =IF($B$8="Property Boundary", VLOOKUP($F25,NA_All!$A$5:$J$505,3*($C$6-1)+3), VLOOKUP($F25,NA_All!$L$5:$U$505,3*($C$6-1)+3)) -> 0 | L25: =IF($B$8="Property Boundary", VLOOKUP($F25,NA_All!$A$5:$J$505,3*($C$6-1)+4), VLOOKUP($F25,NA_All!$L$5:$U$505,3*($C$6-1)+4)) -> 0 | M25: 1000
A26: As | B26: 10 | F26: 6 | G26: =IF($B$8="Property Boundary", VLOOKUP($F26,P_All!$A$5:$J$505,3*($C$6-1)+2), VLOOKUP($F26,P_All!$L$5:$U$505,3*($C$6-1)+2)) -> 98.055 | H26: =IF($B$8="Property Boundary", VLOOKUP($F26,P_All!$A$5:$J$505,3*($C$6-1)+3), VLOOKUP($F26,P_All!$L$5:$U$505,3*($C$6-1)+3)) -> 140.97 | I26: =IF($B$8="Property Boundary", VLOOKUP($F26,P_All!$A$5:$J$505,3*($C$6-1)+4), VLOOKUP($F26,P_All!$L$5:$U$505,3*($C$6-1)+4)) -> 184.94 | J26: =IF($B$8="Property Boundary", VLOOKUP($F26,NA_All!$A$5:$J$505,3*($C$6-1)+2), VLOOKUP($F26,NA_All!$L$5:$U$505,3*($C$6-1)+2)) -> 0 | K26: =IF($B$8="Property Boundary", VLOOKUP($F26,NA_All!$A$5:$J$505,3*($C$6-1)+3), VLOOKUP($F26,NA_All!$L$5:$U$505,3*($C$6-1)+3)) -> 0 | L26: =IF($B$8="Property Boundary", VLOOKUP($F26,NA_All!$A$5:$J$505,3*($C$6-1)+4), VLOOKUP($F26,NA_All!$L$5:$U$505,3*($C$6-1)+4)) -> 0 | M26: 1000
A27: B | B27: 1000 | F27: 8 | G27: =IF($B$8="Property Boundary", VLOOKUP($F27,P_All!$A$5:$J$505,3*($C$6-1)+2), VLOOKUP($F27,P_All!$L$5:$U$505,3*($C$6-1)+2)) -> 97.586 | H27: =IF($B$8="Property Boundary", VLOOKUP($F27,P_All!$A$5:$J$505,3*($C$6-1)+3), VLOOKUP($F27,P_All!$L$5:$U$505,3*($C$6-1)+3)) -> 140.04 | I27: =IF($B$8="Property Boundary", VLOOKUP($F27,P_All!$A$5:$J$505,3*($C$6-1)+4), VLOOKUP($F27,P_All!$L$5:$U$505,3*($C$6-1)+4)) -> 183.86 | J27: =IF($B$8="Property Boundary", VLOOKUP($F27,NA_All!$A$5:$J$505,3*($C$6-1)+2), VLOOKUP($F27,NA_All!$L$5:$U$505,3*($C$6-1)+2)) -> 0 | K27: =IF($B$8="Property Boundary", VLOOKUP($F27,NA_All!$A$5:$J$505,3*($C$6-1)+3), VLOOKUP($F27,NA_All!$L$5:$U$505,3*($C$6-1)+3)) -> 0 | L27: =IF($B$8="Property Boundary", VLOOKUP($F27,NA_All!$A$5:$J$505,3*($C$6-1)+4), VLOOKUP($F27,NA_All!$L$5:$U$505,3*($C$6-1)+4)) -> 0 | M27: 1000
A28: Ba | B28: 2000 | F28: 10 | G28: =IF($B$8="Property Boundary", VLOOKUP($F28,P_All!$A$5:$J$505,3*($C$6-1)+2), VLOOKUP($F28,P_All!$L$5:$U$505,3*($C$6-1)+2)) -> 97.111 | H28: =IF($B$8="Property Boundary", VLOOKUP($F28,P_All!$A$5:$J$505,3*($C$6-1)+3), VLOOKUP($F28,P_All!$L$5:$U$505,3*($C$6-1)+3)) -> 139.09 | I28: =IF($B$8="Property Boundary", VLOOKUP($F28,P_All!$A$5:$J$505,3*($C$6-1)+4), VLOOKUP($F28,P_All!$L$5:$U$505,3*($C$6-1)+4)) -> 182.78 | J28: =IF($B$8="Property Boundary", VLOOKUP($F28,NA_All!$A$5:$J$505,3*($C$6-1)+2), VLOOKUP($F28,NA_All!$L$5:$U$505,3*($C$6-1)+2)) -> 0 | K28: =IF($B$8="Property Boundary", VLOOKUP($F28,NA_All!$A$5:$J$505,3*($C$6-1)+3), VLOOKUP($F28,NA_All!$L$5:$U$505,3*($C$6-1)+3)) -> 0 | L28: =IF($B$8="Property Boundary", VLOOKUP($F28,NA_All!$A$5:$J$505,3*($C$6-1)+4), VLOOKUP($F28,NA_All!$L$5:$U$505,3*($C$6-1)+4)) -> 0 | M28: 1000
A29: Be | B29: 0.49 | F29: 12 | G29: =IF($B$8="Property Boundary", VLOOKUP($F29,P_All!$A$5:$J$505,3*($C$6-1)+2), VLOOKUP($F29,P_All!$L$5:$U$505,3*($C$6-1)+2)) -> 96.63 | H29: =IF($B$8="Property Boundary", VLOOKUP($F29,P_All!$A$5:$J$505,3*($C$6-1)+3), VLOOKUP($F29,P_All!$L$5:$U$505,3*($C$6-1)+3)) -> 138.16 | I29: =IF($B$8="Property Boundary", VLOOKUP($F29,P_All!$A$5:$J$505,3*($C$6-1)+4), VLOOKUP($F29,P_All!$L$5:$U$505,3*($C$6-1)+4)) -> 181.71 | J29: =IF($B$8="Property Boundary", VLOOKUP($F29,NA_All!$A$5:$J$505,3*($C$6-1)+2), VLOOKUP($F29,NA_All!$L$5:$U$505,3*($C$6-1)+2)) -> 0 | K29: =IF($B$8="Property Boundary", VLOOKUP($F29,NA_All!$A$5:$J$505,3*($C$6-1)+3), VLOOKUP($F29,NA_All!$L$5:$U$505,3*($C$6-1)+3)) -> 0 | L29: =IF($B$8="Property Boundary", VLOOKUP($F29,NA_All!$A$5:$J$505,3*($C$6-1)+4), VLOOKUP($F29,NA_All!$L$5:$U$505,3*($C$6-1)+4)) -> 0 | M29: 1000
A30: Ca | F30: 14 | G30: =IF($B$8="Property Boundary", VLOOKUP($F30,P_All!$A$5:$J$505,3*($C$6-1)+2), VLOOKUP($F30,P_All!$L$5:$U$505,3*($C$6-1)+2)) -> 96.207 | H30: =IF($B$8="Property Boundary", VLOOKUP($F30,P_All!$A$5:$J$505,3*($C$6-1)+3), VLOOKUP($F30,P_All!$L$5:$U$505,3*($C$6-1)+3)) -> 137.33 | I30: =IF($B$8="Property Boundary", VLOOKUP($F30,P_All!$A$5:$J$505,3*($C$6-1)+4), VLOOKUP($F30,P_All!$L$5:$U$505,3*($C$6-1)+4)) -> 180.38 | J30: =IF($B$8="Property Boundary", VLOOKUP($F30,NA_All!$A$5:$J$505,3*($C$6-1)+2), VLOOKUP($F30,NA_All!$L$5:$U$505,3*($C$6-1)+2)) -> 0 | K30: =IF($B$8="Property Boundary", VLOOKUP($F30,NA_All!$A$5:$J$505,3*($C$6-1)+3), VLOOKUP($F30,NA_All!$L$5:$U$505,3*($C$6-1)+3)) -> 0 | L30: =IF($B$8="Property Boundary", VLOOKUP($F30,NA_All!$A$5:$J$505,3*($C$6-1)+4), VLOOKUP($F30,NA_All!$L$5:$U$505,3*($C$6-1)+4)) -> 0 | M30: 1000
A31: Cd | B31: 4 | F31: 16 | G31: =IF($B$8="Property Boundary", VLOOKUP($F31,P_All!$A$5:$J$505,3*($C$6-1)+2), VLOOKUP($F31,P_All!$L$5:$U$505,3*($C$6-1)+2)) -> 95.801 | H31: =IF($B$8="Property Boundary", VLOOKUP($F31,P_All!$A$5:$J$505,3*($C$6-1)+3), VLOOKUP($F31,P_All!$L$5:$U$505,3*($C$6-1)+3)) -> 136.48 | I31: =IF($B$8="Property Boundary", VLOOKUP($F31,P_All!$A$5:$J$505,3*($C$6-1)+4), VLOOKUP($F31,P_All!$L$5:$U$505,3*($C$6-1)+4)) -> 178.93 | J31: =IF($B$8="Property Boundary", VLOOKUP($F31,NA_All!$A$5:$J$505,3*($C$6-1)+2), VLOOKUP($F31,NA_All!$L$5:$U$505,3*($C$6-1)+2)) -> 0 | K31: =IF($B$8="Property Boundary", VLOOKUP($F31,NA_All!$A$5:$J$505,3*($C$6-1)+3), VLOOKUP($F31,NA_All!$L$5:$U$505,3*($C$6-1)+3)) -> 0 | L31: =IF($B$8="Property Boundary", VLOOKUP($F31,NA_All!$A$5:$J$505,3*($C$6-1)+4), VLOOKUP($F31,NA_All!$L$5:$U$505,3*($C$6-1)+4)) -> 0 | M31: 1000
A32: Cl | C32: 250000 | F32: 18 | G32: =IF($B$8="Property Boundary", VLOOKUP($F32,P_All!$A$5:$J$505,3*($C$6-1)+2), VLOOKUP($F32,P_All!$L$5:$U$505,3*($C$6-1)+2)) -> 95.326 | H32: =IF($B$8="Property Boundary", VLOOKUP($F32,P_All!$A$5:$J$505,3*($C$6-1)+3), VLOOKUP($F32,P_All!$L$5:$U$505,3*($C$6-1)+3)) -> 135.74 | I32: =IF($B$8="Property Boundary", VLOOKUP($F32,P_All!$A$5:$J$505,3*($C$6-1)+4), VLOOKUP($F32,P_All!$L$5:$U$505,3*($C$6-1)+4)) -> 177.75 | J32: =IF($B$8="Property Boundary", VLOOKUP($F32,NA_All!$A$5:$J$505,3*($C$6-1)+2), VLOOKUP($F32,NA_All!$L$5:$U$505,3*($C$6-1)+2)) -> 0 | K32: =IF($B$8="Property Boundary", VLOOKUP($F32,NA_All!$A$5:$J$505,3*($C$6-1)+3), VLOOKUP($F32,NA_All!$L$5:$U$505,3*($C$6-1)+3)) -> 0 | L32: =IF($B$8="Property Boundary", VLOOKUP($F32,NA_All!$A$5:$J$505,3*($C$6-1)+4), VLOOKUP($F32,NA_All!$L$5:$U$505,3*($C$6-1)+4)) -> 0 | M32: 1000
A33: Co | F33: 20 | G33: =IF($B$8="Property Boundary", VLOOKUP($F33,P_All!$A$5:$J$505,3*($C$6-1)+2), VLOOKUP($F33,P_All!$L$5:$U$505,3*($C$6-1)+2)) -> 94.775 | H33: =IF($B$8="Property Boundary", VLOOKUP($F33,P_All!$A$5:$J$505,3*($C$6-1)+3), VLOOKUP($F33,P_All!$L$5:$U$505,3*($C$6-1)+3)) -> 134.91 | I33: =IF($B$8="Property Boundary", VLOOKUP($F33,P_All!$A$5:$J$505,3*($C$6-1)+4), VLOOKUP($F33,P_All!$L$5:$U$505,3*($C$6-1)+4)) -> 176.76 | J33: =IF($B$8="Property Boundary", VLOOKUP($F33,NA_All!$A$5:$J$505,3*($C$6-1)+2), VLOOKUP($F33,NA_All!$L$5:$U$505,3*($C$6-1)+2)) -> 0 | K33: =IF($B$8="Property Boundary", VLOOKUP($F33,NA_All!$A$5:$J$505,3*($C$6-1)+3), VLOOKUP($F33,NA_All!$L$5:$U$505,3*($C$6-1)+3)) -> 0 | L33: =IF($B$8="Property Boundary", VLOOKUP($F33,NA_All!$A$5:$J$505,3*($C$6-1)+4), VLOOKUP($F33,NA_All!$L$5:$U$505,3*($C$6-1)+4)) -> 0 | M33: 1000
A34: Cr | B34: 100 | F34: 22 | G34: =IF($B$8="Property Boundary", VLOOKUP($F34,P_All!$A$5:$J$505,3*($C$6-1)+2), VLOOKUP($F34,P_All!$L$5:$U$505,3*($C$6-1)+2)) -> 94.217 | H34: =IF($B$8="Property Boundary", VLOOKUP($F34,P_All!$A$5:$J$505,3*($C$6-1)+3), VLOOKUP($F34,P_All!$L$5:$U$505,3*($C$6-1)+3)) -> 133.86 | I34: =IF($B$8="Property Boundary", VLOOKUP($F34,P_All!$A$5:$J$505,3*($C$6-1)+4), VLOOKUP($F34,P_All!$L$5:$U$505,3*($C$6-1)+4)) -> 175.49 | J34: =IF($B$8="Property Boundary", VLOOKUP($F34,NA_All!$A$5:$J$505,3*($C$6-1)+2), VLOOKUP($F34,NA_All!$L$5:$U$505,3*($C$6-1)+2)) -> 0 | K34: =IF($B$8="Property Boundary", VLOOKUP($F34,NA_All!$A$5:$J$505,3*($C$6-1)+3), VLOOKUP($F34,NA_All!$L$5:$U$505,3*($C$6-1)+3)) -> 0 | L34: =IF($B$8="Property Boundary", VLOOKUP($F34,NA_All!$A$5:$J$505,3*($C$6-1)+4), VLOOKUP($F34,NA_All!$L$5:$U$505,3*($C$6-1)+4)) -> 0 | M34: 1000
A35: Cu | F35: 24 | G35: =IF($B$8="Property Boundary", VLOOKUP($F35,P_All!$A$5:$J$505,3*($C$6-1)+2), VLOOKUP($F35,P_All!$L$5:$U$505,3*($C$6-1)+2)) -> 93.697 | H35: =IF($B$8="Property Boundary", VLOOKUP($F35,P_All!$A$5:$J$505,3*($C$6-1)+3), VLOOKUP($F35,P_All!$L$5:$U$505,3*($C$6-1)+3)) -> 132.84 | I35: =IF($B$8="Property Boundary", VLOOKUP($F35,P_All!$A$5:$J$505,3*($C$6-1)+4), VLOOKUP($F35,P_All!$L$5:$U$505,3*($C$6-1)+4)) -> 174.65 | J35: =IF($B$8="Property Boundary", VLOOKUP($F35,NA_All!$A$5:$J$505,3*($C$6-1)+2), VLOOKUP($F35,NA_All!$L$5:$U$505,3*($C$6-1)+2)) -> 0 | K35: =IF($B$8="Property Boundary", VLOOKUP($F35,NA_All!$A$5:$J$505,3*($C$6-1)+3), VLOOKUP($F35,NA_All!$L$5:$U$505,3*($C$6-1)+3)) -> 0 | L35: =IF($B$8="Property Boundary", VLOOKUP($F35,NA_All!$A$5:$J$505,3*($C$6-1)+4), VLOOKUP($F35,NA_All!$L$5:$U$505,3*($C$6-1)+4)) -> 0 | M35: 1000
A36: F | B36: 4000 | C36: 2000 | F36: 26 | G36: =IF($B$8="Property Boundary", VLOOKUP($F36,P_All!$A$5:$J$505,3*($C$6-1)+2), VLOOKUP($F36,P_All!$L$5:$U$505,3*($C$6-1)+2)) -> 93.324 | H36: =IF($B$8="Property Boundary", VLOOKUP($F36,P_All!$A$5:$J$505,3*($C$6-1)+3), VLOOKUP($F36,P_All!$L$5:$U$505,3*($C$6-1)+3)) -> 131.73 | I36: =IF($B$8="Property Boundary", VLOOKUP($F36,P_All!$A$5:$J$505,3*($C$6-1)+4), VLOOKUP($F36,P_All!$L$5:$U$505,3*($C$6-1)+4)) -> 173.96 | J36: =IF($B$8="Property Boundary", VLOOKUP($F36,NA_All!$A$5:$J$505,3*($C$6-1)+2), VLOOKUP($F36,NA_All!$L$5:$U$505,3*($C$6-1)+2)) -> 0 | K36: =IF($B$8="Property Boundary", VLOOKUP($F36,NA_All!$A$5:$J$505,3*($C$6-1)+3), VLOOKUP($F36,NA_All!$L$5:$U$505,3*($C$6-1)+3)) -> 0 | L36: =IF($B$8="Property Boundary", VLOOKUP($F36,NA_All!$A$5:$J$505,3*($C$6-1)+4), VLOOKUP($F36,NA_All!$L$5:$U$505,3*($C$6-1)+4)) -> 0 | M36: 1000
A37: Fe | F37: 28 | G37: =IF($B$8="Property Boundary", VLOOKUP($F37,P_All!$A$5:$J$505,3*($C$6-1)+2), VLOOKUP($F37,P_All!$L$5:$U$505,3*($C$6-1)+2)) -> 92.806 | H37: =IF($B$8="Property Boundary", VLOOKUP($F37,P_All!$A$5:$J$505,3*($C$6-1)+3), VLOOKUP($F37,P_All!$L$5:$U$505,3*($C$6-1)+3)) -> 130.94 | I37: =IF($B$8="Property Boundary", VLOOKUP($F37,P_All!$A$5:$J$505,3*($C$6-1)+4), VLOOKUP($F37,P_All!$L$5:$U$505,3*($C$6-1)+4)) -> 173.06 | J37: =IF($B$8="Property Boundary", VLOOKUP($F37,NA_All!$A$5:$J$505,3*($C$6-1)+2), VLOOKUP($F37,NA_All!$L$5:$U$505,3*($C$6-1)+2)) -> 0 | K37: =IF($B$8="Property Boundary", VLOOKUP($F37,NA_All!$A$5:$J$505,3*($C$6-1)+3), VLOOKUP($F37,NA_All!$L$5:$U$505,3*($C$6-1)+3)) -> 0 | L37: =IF($B$8="Property Boundary", VLOOKUP($F37,NA_All!$A$5:$J$505,3*($C$6-1)+4), VLOOKUP($F37,NA_All!$L$5:$U$505,3*($C$6-1)+4)) -> 0 | M37: 1000
A38: K | F38: 30 | G38: =IF($B$8="Property Boundary", VLOOKUP($F38,P_All!$A$5:$J$505,3*($C$6-1)+2), VLOOKUP($F38,P_All!$L$5:$U$505,3*($C$6-1)+2)) -> 92.348 | H38: =IF($B$8="Property Boundary", VLOOKUP($F38,P_All!$A$5:$J$505,3*($C$6-1)+3), VLOOKUP($F38,P_All!$L$5:$U$505,3*($C$6-1)+3)) -> 129.73 | I38: =IF($B$8="Property Boundary", VLOOKUP($F38,P_All!$A$5:$J$505,3*($C$6-1)+4), VLOOKUP($F38,P_All!$L$5:$U$505,3*($C$6-1)+4)) -> 171.81 | J38: =IF($B$8="Property Boundary", VLOOKUP($F38,NA_All!$A$5:$J$505,3*($C$6-1)+2), VLOOKUP($F38,NA_All!$L$5:$U$505,3*($C$6-1)+2)) -> 0 | K38: =IF($B$8="Property Boundary", VLOOKUP($F38,NA_All!$A$5:$J$505,3*($C$6-1)+3), VLOOKUP($F38,NA_All!$L$5:$U$505,3*($C$6-1)+3)) -> 0 | L38: =IF($B$8="Property Boundary", VLOOKUP($F38,NA_All!$A$5:$J$505,3*($C$6-1)+4), VLOOKUP($F38,NA_All!$L$5:$U$505,3*($C$6-1)+4)) -> 0 | M38: 1000
A39: Mg | F39: 32 | G39: =IF($B$8="Property Boundary", VLOOKUP($F39,P_All!$A$5:$J$505,3*($C$6-1)+2), VLOOKUP($F39,P_All!$L$5:$U$505,3*($C$6-1)+2)) -> 91.961 | H39: =IF($B$8="Property Boundary", VLOOKUP($F39,P_All!$A$5:$J$505,3*($C$6-1)+3), VLOOKUP($F39,P_All!$L$5:$U$505,3*($C$6-1)+3)) -> 128.6 | I39: =IF($B$8="Property Boundary", VLOOKUP($F39,P_All!$A$5:$J$505,3*($C$6-1)+4), VLOOKUP($F39,P_All!$L$5:$U$505,3*($C$6-1)+4)) -> 170.81 | J39: =IF($B$8="Property Boundary", VLOOKUP($F39,NA_All!$A$5:$J$505,3*($C$6-1)+2), VLOOKUP($F39,NA_All!$L$5:$U$505,3*($C$6-1)+2)) -> 0 | K39: =IF($B$8="Property Boundary", VLOOKUP($F39,NA_All!$A$5:$J$505,3*($C$6-1)+3), VLOOKUP($F39,NA_All!$L$5:$U$505,3*($C$6-1)+3)) -> 0 | L39: =IF($B$8="Property Boundary", VLOOKUP($F39,NA_All!$A$5:$J$505,3*($C$6-1)+4), VLOOKUP($F39,NA_All!$L$5:$U$505,3*($C$6-1)+4)) -> 0 | M39: 1000
A40: Mn | B40: 1506 | F40: 34 | G40: =IF($B$8="Property Boundary", VLOOKUP($F40,P_All!$A$5:$J$505,3*($C$6-1)+2), VLOOKUP($F40,P_All!$L$5:$U$505,3*($C$6-1)+2)) -> 91.571 | H40: =IF($B$8="Property Boundary", VLOOKUP($F40,P_All!$A$5:$J$505,3*($C$6-1)+3), VLOOKUP($F40,P_All!$L$5:$U$505,3*($C$6-1)+3)) -> 127.74 | I40: =IF($B$8="Property Boundary", VLOOKUP($F40,P_All!$A$5:$J$505,3*($C$6-1)+4), VLOOKUP($F40,P_All!$L$5:$U$505,3*($C$6-1)+4)) -> 169.96 | J40: =IF($B$8="Property Boundary", VLOOKUP($F40,NA_All!$A$5:$J$505,3*($C$6-1)+2), VLOOKUP($F40,NA_All!$L$5:$U$505,3*($C$6-1)+2)) -> 0 | K40: =IF($B$8="Property Boundary", VLOOKUP($F40,NA_All!$A$5:$J$505,3*($C$6-1)+3), VLOOKUP($F40,NA_All!$L$5:$U$505,3*($C$6-1)+3)) -> 0 | L40: =IF($B$8="Property Boundary", VLOOKUP($F40,NA_All!$A$5:$J$505,3*($C$6-1)+4), VLOOKUP($F40,NA_All!$L$5:$U$505,3*($C$6-1)+4)) -> 0 | M40: 1000
A41: Na | F41: 36 | G41: =IF($B$8="Property Boundary", VLOOKUP($F41,P_All!$A$5:$J$505,3*($C$6-1)+2), VLOOKUP($F41,P_All!$L$5:$U$505,3*($C$6-1)+2)) -> 91.177 | H41: =IF($B$8="Property Boundary", VLOOKUP($F41,P_All!$A$5:$J$505,3*($C$6-1)+3), VLOOKUP($F41,P_All!$L$5:$U$505,3*($C$6-1)+3)) -> 126.81 | I41: =IF($B$8="Property Boundary", VLOOKUP($F41,P_All!$A$5:$J$505,3*($C$6-1)+4), VLOOKUP($F41,P_All!$L$5:$U$505,3*($C$6-1)+4)) -> 169.1 | J41: =IF($B$8="Property Boundary", VLOOKUP($F41,NA_All!$A$5:$J$505,3*($C$6-1)+2), VLOOKUP($F41,NA_All!$L$5:$U$505,3*($C$6-1)+2)) -> 0 | K41: =IF($B$8="Property Boundary", VLOOKUP($F41,NA_All!$A$5:$J$505,3*($C$6-1)+3), VLOOKUP($F41,NA_All!$L$5:$U$505,3*($C$6-1)+3)) -> 0 | L41: =IF($B$8="Property Boundary", VLOOKUP($F41,NA_All!$A$5:$J$505,3*($C$6-1)+4), VLOOKUP($F41,NA_All!$L$5:$U$505,3*($C$6-1)+4)) -> 0 | M41: 1000
A42: Ni | B42: 100 | F42: 38 | G42: =IF($B$8="Property Boundary", VLOOKUP($F42,P_All!$A$5:$J$505,3*($C$6-1)+2), VLOOKUP($F42,P_All!$L$5:$U$505,3*($C$6-1)+2)) -> 90.705 | H42: =IF($B$8="Property Boundary", VLOOKUP($F42,P_All!$A$5:$J$505,3*($C$6-1)+3), VLOOKUP($F42,P_All!$L$5:$U$505,3*($C$6-1)+3)) -> 125.93 | I42: =IF($B$8="Property Boundary", VLOOKUP($F42,P_All!$A$5:$J$505,3*($C$6-1)+4), VLOOKUP($F42,P_All!$L$5:$U$505,3*($C$6-1)+4)) -> 167.75 | J42: =IF($B$8="Property Boundary", VLOOKUP($F42,NA_All!$A$5:$J$505,3*($C$6-1)+2), VLOOKUP($F42,NA_All!$L$5:$U$505,3*($C$6-1)+2)) -> 0 | K42: =IF($B$8="Property Boundary", VLOOKUP($F42,NA_All!$A$5:$J$505,3*($C$6-1)+3), VLOOKUP($F42,NA_All!$L$5:$U$505,3*($C$6-1)+3)) -> 0 | L42: =IF($B$8="Property Boundary", VLOOKUP($F42,NA_All!$A$5:$J$505,3*($C$6-1)+4), VLOOKUP($F42,NA_All!$L$5:$U$505,3*($C$6-1)+4)) -> 0 | M42: 1000
A43: Pb | F43: 40 | G43: =IF($B$8="Property Boundary", VLOOKUP($F43,P_All!$A$5:$J$505,3*($C$6-1)+2), VLOOKUP($F43,P_All!$L$5:$U$505,3*($C$6-1)+2)) -> 90.199 | H43: =IF($B$8="Property Boundary", VLOOKUP($F43,P_All!$A$5:$J$505,3*($C$6-1)+3), VLOOKUP($F43,P_All!$L$5:$U$505,3*($C$6-1)+3)) -> 124.87 | I43: =IF($B$8="Property Boundary", VLOOKUP($F43,P_All!$A$5:$J$505,3*($C$6-1)+4), VLOOKUP($F43,P_All!$L$5:$U$505,3*($C$6-1)+4)) -> 166.46 | J43: =IF($B$8="Property Boundary", VLOOKUP($F43,NA_All!$A$5:$J$505,3*($C$6-1)+2), VLOOKUP($F43,NA_All!$L$5:$U$505,3*($C$6-1)+2)) -> 0 | K43: =IF($B$8="Property Boundary", VLOOKUP($F43,NA_All!$A$5:$J$505,3*($C$6-1)+3), VLOOKUP($F43,NA_All!$L$5:$U$505,3*($C$6-1)+3)) -> 0 | L43: =IF($B$8="Property Boundary", VLOOKUP($F43,NA_All!$A$5:$J$505,3*($C$6-1)+4), VLOOKUP($F43,NA_All!$L$5:$U$505,3*($C$6-1)+4)) -> 0 | M43: 1000
A44: Sb | B44: 6 | F44: 42 | G44: =IF($B$8="Property Boundary", VLOOKUP($F44,P_All!$A$5:$J$505,3*($C$6-1)+2), VLOOKUP($F44,P_All!$L$5:$U$505,3*($C$6-1)+2)) -> 89.731 | H44: =IF($B$8="Property Boundary", VLOOKUP($F44,P_All!$A$5:$J$505,3*($C$6-1)+3), VLOOKUP($F44,P_All!$L$5:$U$505,3*($C$6-1)+3)) -> 123.98 | I44: =IF($B$8="Property Boundary", VLOOKUP($F44,P_All!$A$5:$J$505,3*($C$6-1)+4), VLOOKUP($F44,P_All!$L$5:$U$505,3*($C$6-1)+4)) -> 165.41 | J44: =IF($B$8="Property Boundary", VLOOKUP($F44,NA_All!$A$5:$J$505,3*($C$6-1)+2), VLOOKUP($F44,NA_All!$L$5:$U$505,3*($C$6-1)+2)) -> 0 | K44: =IF($B$8="Property Boundary", VLOOKUP($F44,NA_All!$A$5:$J$505,3*($C$6-1)+3), VLOOKUP($F44,NA_All!$L$5:$U$505,3*($C$6-1)+3)) -> 0 | L44: =IF($B$8="Property Boundary", VLOOKUP($F44,NA_All!$A$5:$J$505,3*($C$6-1)+4), VLOOKUP($F44,NA_All!$L$5:$U$505,3*($C$6-1)+4)) -> 0 | M44: 1000
A45: Se | B45: 30 | F45: 44 | G45: =IF($B$8="Property Boundary", VLOOKUP($F45,P_All!$A$5:$J$505,3*($C$6-1)+2), VLOOKUP($F45,P_All!$L$5:$U$505,3*($C$6-1)+2)) -> 89.244 | H45: =IF($B$8="Property Boundary", VLOOKUP($F45,P_All!$A$5:$J$505,3*($C$6-1)+3), VLOOKUP($F45,P_All!$L$5:$U$505,3*($C$6-1)+3)) -> 123.41 | I45: =IF($B$8="Property Boundary", VLOOKUP($F45,P_All!$A$5:$J$505,3*($C$6-1)+4), VLOOKUP($F45,P_All!$L$5:$U$505,3*($C$6-1)+4)) -> 164.19 | J45: =IF($B$8="Property Boundary", VLOOKUP($F45,NA_All!$A$5:$J$505,3*($C$6-1)+2), VLOOKUP($F45,NA_All!$L$5:$U$505,3*($C$6-1)+2)) -> 0 | K45: =IF($B$8="Property Boundary", VLOOKUP($F45,NA_All!$A$5:$J$505,3*($C$6-1)+3), VLOOKUP($F45,NA_All!$L$5:$U$505,3*($C$6-1)+3)) -> 0 | L45: =IF($B$8="Property Boundary", VLOOKUP($F45,NA_All!$A$5:$J$505,3*($C$6-1)+4), VLOOKUP($F45,NA_All!$L$5:$U$505,3*($C$6-1)+4)) -> 0 | M45: 1000
A46: SO4 | C46: 250000 | F46: 46 | G46: =IF($B$8="Property Boundary", VLOOKUP($F46,P_All!$A$5:$J$505,3*($C$6-1)+2), VLOOKUP($F46,P_All!$L$5:$U$505,3*($C$6-1)+2)) -> 88.682 | H46: =IF($B$8="Property Boundary", VLOOKUP($F46,P_All!$A$5:$J$505,3*($C$6-1)+3), VLOOKUP($F46,P_All!$L$5:$U$505,3*($C$6-1)+3)) -> 122.34 | I46: =IF($B$8="Property Boundary", VLOOKUP($F46,P_All!$A$5:$J$505,3*($C$6-1)+4), VLOOKUP($F46,P_All!$L$5:$U$505,3*($C$6-1)+4)) -> 162.77 | J46: =IF($B$8="Property Boundary", VLOOKUP($F46,NA_All!$A$5:$J$505,3*($C$6-1)+2), VLOOKUP($F46,NA_All!$L$5:$U$505,3*($C$6-1)+2)) -> 0 | K46: =IF($B$8="Property Boundary", VLOOKUP($F46,NA_All!$A$5:$J$505,3*($C$6-1)+3), VLOOKUP($F46,NA_All!$L$5:$U$505,3*($C$6-1)+3)) -> 0 | L46: =IF($B$8="Property Boundary", VLOOKUP($F46,NA_All!$A$5:$J$505,3*($C$6-1)+4), VLOOKUP($F46,NA_All!$L$5:$U$505,3*($C$6-1)+4)) -> 0 | M46: 1000
A47: Tl | B47: 0.6 | F47: 48 | G47: =IF($B$8="Property Boundary", VLOOKUP($F47,P_All!$A$5:$J$505,3*($C$6-1)+2), VLOOKUP($F47,P_All!$L$5:$U$505,3*($C$6-1)+2)) -> 88.112 | H47: =IF($B$8="Property Boundary", VLOOKUP($F47,P_All!$A$5:$J$505,3*($C$6-1)+3), VLOOKUP($F47,P_All!$L$5:$U$505,3*($C$6-1)+3)) -> 121.5 | I47: =IF($B$8="Property Boundary", VLOOKUP($F47,P_All!$A$5:$J$505,3*($C$6-1)+4), VLOOKUP($F47,P_All!$L$5:$U$505,3*($C$6-1)+4)) -> 161.38 | J47: =IF($B$8="Property Boundary", VLOOKUP($F47,NA_All!$A$5:$J$505,3*($C$6-1)+2), VLOOKUP($F47,NA_All!$L$5:$U$505,3*($C$6-1)+2)) -> 0 | K47: =IF($B$8="Property Boundary", VLOOKUP($F47,NA_All!$A$5:$J$505,3*($C$6-1)+3), VLOOKUP($F47,NA_All!$L$5:$U$505,3*($C$6-1)+3)) -> 0 | L47: =IF($B$8="Property Boundary", VLOOKUP($F47,NA_All!$A$5:$J$505,3*($C$6-1)+4), VLOOKUP($F47,NA_All!$L$5:$U$505,3*($C$6-1)+4)) -> 0 | M47: 1000
A48: V | B48: 50 | F48: 50 | G48: =IF($B$8="Property Boundary", VLOOKUP($F48,P_All!$A$5:$J$505,3*($C$6-1)+2), VLOOKUP($F48,P_All!$L$5:$U$505,3*($C$6-1)+2)) -> 87.428 | H48: =IF($B$8="Property Boundary", VLOOKUP($F48,P_All!$A$5:$J$505,3*($C$6-1)+3), VLOOKUP($F48,P_All!$L$5:$U$505,3*($C$6-1)+3)) -> 120.71 | I48: =IF($B$8="Property Boundary", VLOOKUP($F48,P_All!$A$5:$J$505,3*($C$6-1)+4), VLOOKUP($F48,P_All!$L$5:$U$505,3*($C$6-1)+4)) -> 160.38 | J48: =IF($B$8="Property Boundary", VLOOKUP($F48,NA_All!$A$5:$J$505,3*($C$6-1)+2), VLOOKUP($F48,NA_All!$L$5:$U$505,3*($C$6-1)+2)) -> 0 | K48: =IF($B$8="Property Boundary", VLOOKUP($F48,NA_All!$A$5:$J$505,3*($C$6-1)+3), VLOOKUP($F48,NA_All!$L$5:$U$505,3*($C$6-1)+3)) -> 0 | L48: =IF($B$8="Property Boundary", VLOOKUP($F48,NA_All!$A$5:$J$505,3*($C$6-1)+4), VLOOKUP($F48,NA_All!$L$5:$U$505,3*($C$6-1)+4)) -> 0 | M48: 1000
A49: Zn | B49: 2000 | C49: 5000 | F49: 52 | G49: =IF($B$8="Property Boundary", VLOOKUP($F49,P_All!$A$5:$J$505,3*($C$6-1)+2), VLOOKUP($F49,P_All!$L$5:$U$505,3*($C$6-1)+2)) -> 86.65 | H49: =IF($B$8="Property Boundary", VLOOKUP($F49,P_All!$A$5:$J$505,3*($C$6-1)+3), VLOOKUP($F49,P_All!$L$5:$U$505,3*($C$6-1)+3)) -> 120.01 | I49: =IF($B$8="Property Boundary", VLOOKUP($F49,P_All!$A$5:$J$505,3*($C$6-1)+4), VLOOKUP($F49,P_All!$L$5:$U$505,3*($C$6-1)+4)) -> 159.47 | J49: =IF($B$8="Property Boundary", VLOOKUP($F49,NA_All!$A$5:$J$505,3*($C$6-1)+2), VLOOKUP($F49,NA_All!$L$5:$U$505,3*($C$6-1)+2)) -> 0 | K49: =IF($B$8="Property Boundary", VLOOKUP($F49,NA_All!$A$5:$J$505,3*($C$6-1)+3), VLOOKUP($F49,NA_All!$L$5:$U$505,3*($C$6-1)+3)) -> 0 | L49: =IF($B$8="Property Boundary", VLOOKUP($F49,NA_All!$A$5:$J$505,3*($C$6-1)+4), VLOOKUP($F49,NA_All!$L$5:$U$505,3*($C$6-1)+4)) -> 0 | M49: 1000
F50: 54 | G50: =IF($B$8="Property Boundary", VLOOKUP($F50,P_All!$A$5:$J$505,3*($C$6-1)+2), VLOOKUP($F50,P_All!$L$5:$U$505,3*($C$6-1)+2)) -> 85.883 | H50: =IF($B$8="Property Boundary", VLOOKUP($F50,P_All!$A$5:$J$505,3*($C$6-1)+3), VLOOKUP($F50,P_All!$L$5:$U$505,3*($C$6-1)+3)) -> 119.29 | I50: =IF($B$8="Property Boundary", VLOOKUP($F50,P_All!$A$5:$J$505,3*($C$6-1)+4), VLOOKUP($F50,P_All!$L$5:$U$505,3*($C$6-1)+4)) -> 158.55 | J50: =IF($B$8="Property Boundary", VLOOKUP($F50,NA_All!$A$5:$J$505,3*($C$6-1)+2), VLOOKUP($F50,NA_All!$L$5:$U$505,3*($C$6-1)+2)) -> 0 | K50: =IF($B$8="Property Boundary", VLOOKUP($F50,NA_All!$A$5:$J$505,3*($C$6-1)+3), VLOOKUP($F50,NA_All!$L$5:$U$505,3*($C$6-1)+3)) -> 0 | L50: =IF($B$8="Property Boundary", VLOOKUP($F50,NA_All!$A$5:$J$505,3*($C$6-1)+4), VLOOKUP($F50,NA_All!$L$5:$U$505,3*($C$6-1)+4)) -> 0 | M50: 1000
F51: 56 | G51: =IF($B$8="Property Boundary", VLOOKUP($F51,P_All!$A$5:$J$505,3*($C$6-1)+2), VLOOKUP($F51,P_All!$L$5:$U$505,3*($C$6-1)+2)) -> 85.322 | H51: =IF($B$8="Property Boundary", VLOOKUP($F51,P_All!$A$5:$J$505,3*($C$6-1)+3), VLOOKUP($F51,P_All!$L$5:$U$505,3*($C$6-1)+3)) -> 118.38 | I51: =IF($B$8="Property Boundary", VLOOKUP($F51,P_All!$A$5:$J$505,3*($C$6-1)+4), VLOOKUP($F51,P_All!$L$5:$U$505,3*($C$6-1)+4)) -> 157.5 | J51: =IF($B$8="Property Boundary", VLOOKUP($F51,NA_All!$A$5:$J$505,3*($C$6-1)+2), VLOOKUP($F51,NA_All!$L$5:$U$505,3*($C$6-1)+2)) -> 0 | K51: =IF($B$8="Property Boundary", VLOOKUP($F51,NA_All!$A$5:$J$505,3*($C$6-1)+3), VLOOKUP($F51,NA_All!$L$5:$U$505,3*($C$6-1)+3)) -> 0 | L51: =IF($B$8="Property Boundary", VLOOKUP($F51,NA_All!$A$5:$J$505,3*($C$6-1)+4), VLOOKUP($F51,NA_All!$L$5:$U$505,3*($C$6-1)+4)) -> 0 | M51: 1000
F52: 58 | G52: =IF($B$8="Property Boundary", VLOOKUP($F52,P_All!$A$5:$J$505,3*($C$6-1)+2), VLOOKUP($F52,P_All!$L$5:$U$505,3*($C$6-1)+2)) -> 84.862 | H52: =IF($B$8="Property Boundary", VLOOKUP($F52,P_All!$A$5:$J$505,3*($C$6-1)+3), VLOOKUP($F52,P_All!$L$5:$U$505,3*($C$6-1)+3)) -> 117.52 | I52: =IF($B$8="Property Boundary", VLOOKUP($F52,P_All!$A$5:$J$505,3*($C$6-1)+4), VLOOKUP($F52,P_All!$L$5:$U$505,3*($C$6-1)+4)) -> 156.29 | J52: =IF($B$8="Property Boundary", VLOOKUP($F52,NA_All!$A$5:$J$505,3*($C$6-1)+2), VLOOKUP($F52,NA_All!$L$5:$U$505,3*($C$6-1)+2)) -> 0 | K52: =IF($B$8="Property Boundary", VLOOKUP($F52,NA_All!$A$5:$J$505,3*($C$6-1)+3), VLOOKUP($F52,NA_All!$L$5:$U$505,3*($C$6-1)+3)) -> 0 | L52: =IF($B$8="Property Boundary", VLOOKUP($F52,NA_All!$A$5:$J$505,3*($C$6-1)+4), VLOOKUP($F52,NA_All!$L$5:$U$505,3*($C$6-1)+4)) -> 0 | M52: 1000
F53: 60 | G53: =IF($B$8="Property Boundary", VLOOKUP($F53,P_All!$A$5:$J$505,3*($C$6-1)+2), VLOOKUP($F53,P_All!$L$5:$U$505,3*($C$6-1)+2)) -> 84.248 | H53: =IF($B$8="Property Boundary", VLOOKUP($F53,P_All!$A$5:$J$505,3*($C$6-1)+3), VLOOKUP($F53,P_All!$L$5:$U$505,3*($C$6-1)+3)) -> 116.77 | I53: =IF($B$8="Property Boundary", VLOOKUP($F53,P_All!$A$5:$J$505,3*($C$6-1)+4), VLOOKUP($F53,P_All!$L$5:$U$505,3*($C$6-1)+4)) -> 155.36 | J53: =IF($B$8="Property Boundary", VLOOKUP($F53,NA_All!$A$5:$J$505,3*($C$6-1)+2), VLOOKUP($F53,NA_All!$L$5:$U$505,3*($C$6-1)+2)) -> 0 | K53: =IF($B$8="Property Boundary", VLOOKUP($F53,NA_All!$A$5:$J$505,3*($C$6-1)+3), VLOOKUP($F53,NA_All!$L$5:$U$505,3*($C$6-1)+3)) -> 0 | L53: =IF($B$8="Property Boundary", VLOOKUP($F53,NA_All!$A$5:$J$505,3*($C$6-1)+4), VLOOKUP($F53,NA_All!$L$5:$U$505,3*($C$6-1)+4)) -> 0 | M53: 1000
F54: 62 | G54: =IF($B$8="Property Boundary", VLOOKUP($F54,P_All!$A$5:$J$505,3*($C$6-1)+2), VLOOKUP($F54,P_All!$L$5:$U$505,3*($C$6-1)+2)) -> 83.56 | H54: =IF($B$8="Property Boundary", VLOOKUP($F54,P_All!$A$5:$J$505,3*($C$6-1)+3), VLOOKUP($F54,P_All!$L$5:$U$505,3*($C$6-1)+3)) -> 116 | I54: =IF($B$8="Property Boundary", VLOOKUP($F54,P_All!$A$5:$J$505,3*($C$6-1)+4), VLOOKUP($F54,P_All!$L$5:$U$505,3*($C$6-1)+4)) -> 154.24 | J54: =IF($B$8="Property Boundary", VLOOKUP($F54,NA_All!$A$5:$J$505,3*($C$6-1)+2), VLOOKUP($F54,NA_All!$L$5:$U$505,3*($C$6-1)+2)) -> 0 | K54: =IF($B$8="Property Boundary", VLOOKUP($F54,NA_All!$A$5:$J$505,3*($C$6-1)+3), VLOOKUP($F54,NA_All!$L$5:$U$505,3*($C$6-1)+3)) -> 0 | L54: =IF($B$8="Property Boundary", VLOOKUP($F54,NA_All!$A$5:$J$505,3*($C$6-1)+4), VLOOKUP($F54,NA_All!$L$5:$U$505,3*($C$6-1)+4)) -> 0 | M54: 1000
F55: 64 | G55: =IF($B$8="Property Boundary", VLOOKUP($F55,P_All!$A$5:$J$505,3*($C$6-1)+2), VLOOKUP($F55,P_All!$L$5:$U$505,3*($C$6-1)+2)) -> 82.977 | H55: =IF($B$8="Property Boundary", VLOOKUP($F55,P_All!$A$5:$J$505,3*($C$6-1)+3), VLOOKUP($F55,P_All!$L$5:$U$505,3*($C$6-1)+3)) -> 115.18 | I55: =IF($B$8="Property Boundary", VLOOKUP($F55,P_All!$A$5:$J$505,3*($C$6-1)+4), VLOOKUP($F55,P_All!$L$5:$U$505,3*($C$6-1)+4)) -> 153.33 | J55: =IF($B$8="Property Boundary", VLOOKUP($F55,NA_All!$A$5:$J$505,3*($C$6-1)+2), VLOOKUP($F55,NA_All!$L$5:$U$505,3*($C$6-1)+2)) -> 0 | K55: =IF($B$8="Property Boundary", VLOOKUP($F55,NA_All!$A$5:$J$505,3*($C$6-1)+3), VLOOKUP($F55,NA_All!$L$5:$U$505,3*($C$6-1)+3)) -> 0 | L55: =IF($B$8="Property Boundary", VLOOKUP($F55,NA_All!$A$5:$J$505,3*($C$6-1)+4), VLOOKUP($F55,NA_All!$L$5:$U$505,3*($C$6-1)+4)) -> 0 | M55: 1000
F56: 66 | G56: =IF($B$8="Property Boundary", VLOOKUP($F56,P_All!$A$5:$J$505,3*($C$6-1)+2), VLOOKUP($F56,P_All!$L$5:$U$505,3*($C$6-1)+2)) -> 82.566 | H56: =IF($B$8="Property Boundary", VLOOKUP($F56,P_All!$A$5:$J$505,3*($C$6-1)+3), VLOOKUP($F56,P_All!$L$5:$U$505,3*($C$6-1)+3)) -> 114.21 | I56: =IF($B$8="Property Boundary", VLOOKUP($F56,P_All!$A$5:$J$505,3*($C$6-1)+4), VLOOKUP($F56,P_All!$L$5:$U$505,3*($C$6-1)+4)) -> 152.52 | J56: =IF($B$8="Property Boundary", VLOOKUP($F56,NA_All!$A$5:$J$505,3*($C$6-1)+2), VLOOKUP($F56,NA_All!$L$5:$U$505,3*($C$6-1)+2)) -> 0 | K56: =IF($B$8="Property Boundary", VLOOKUP($F56,NA_All!$A$5:$J$505,3*($C$6-1)+3), VLOOKUP($F56,NA_All!$L$5:$U$505,3*($C$6-1)+3)) -> 0 | L56: =IF($B$8="Property Boundary", VLOOKUP($F56,NA_All!$A$5:$J$505,3*($C$6-1)+4), VLOOKUP($F56,NA_All!$L$5:$U$505,3*($C$6-1)+4)) -> 0 | M56: 1000
F57: 68 | G57: =IF($B$8="Property Boundary", VLOOKUP($F57,P_All!$A$5:$J$505,3*($C$6-1)+2), VLOOKUP($F57,P_All!$L$5:$U$505,3*($C$6-1)+2)) -> 82.126 | H57: =IF($B$8="Property Boundary", VLOOKUP($F57,P_All!$A$5:$J$505,3*($C$6-1)+3), VLOOKUP($F57,P_All!$L$5:$U$505,3*($C$6-1)+3)) -> 113.34 | I57: =IF($B$8="Property Boundary", VLOOKUP($F57,P_All!$A$5:$J$505,3*($C$6-1)+4), VLOOKUP($F57,P_All!$L$5:$U$505,3*($C$6-1)+4)) -> 151.72 | J57: =IF($B$8="Property Boundary", VLOOKUP($F57,NA_All!$A$5:$J$505,3*($C$6-1)+2), VLOOKUP($F57,NA_All!$L$5:$U$505,3*($C$6-1)+2)) -> 0 | K57: =IF($B$8="Property Boundary", VLOOKUP($F57,NA_All!$A$5:$J$505,3*($C$6-1)+3), VLOOKUP($F57,NA_All!$L$5:$U$505,3*($C$6-1)+3)) -> 0 | L57: =IF($B$8="Property Boundary", VLOOKUP($F57,NA_All!$A$5:$J$505,3*($C$6-1)+4), VLOOKUP($F57,NA_All!$L$5:$U$505,3*($C$6-1)+4)) -> 0 | M57: 1000
F58: 70 | G58: =IF($B$8="Property Boundary", VLOOKUP($F58,P_All!$A$5:$J$505,3*($C$6-1)+2), VLOOKUP($F58,P_All!$L$5:$U$505,3*($C$6-1)+2)) -> 81.473 | H58: =IF($B$8="Property Boundary", VLOOKUP($F58,P_All!$A$5:$J$505,3*($C$6-1)+3), VLOOKUP($F58,P_All!$L$5:$U$505,3*($C$6-1)+3)) -> 112.52 | I58: =IF($B$8="Property Boundary", VLOOKUP($F58,P_All!$A$5:$J$505,3*($C$6-1)+4), VLOOKUP($F58,P_All!$L$5:$U$505,3*($C$6-1)+4)) -> 150.74 | J58: =IF($B$8="Property Boundary", VLOOKUP($F58,NA_All!$A$5:$J$505,3*($C$6-1)+2), VLOOKUP($F58,NA_All!$L$5:$U$505,3*($C$6-1)+2)) -> 0 | K58: =IF($B$8="Property Boundary", VLOOKUP($F58,NA_All!$A$5:$J$505,3*($C$6-1)+3), VLOOKUP($F58,NA_All!$L$5:$U$505,3*($C$6-1)+3)) -> 0 | L58: =IF($B$8="Property Boundary", VLOOKUP($F58,NA_All!$A$5:$J$505,3*($C$6-1)+4), VLOOKUP($F58,NA_All!$L$5:$U$505,3*($C$6-1)+4)) -> 0 | M58: 1000
F59: 72 | G59: =IF($B$8="Property Boundary", VLOOKUP($F59,P_All!$A$5:$J$505,3*($C$6-1)+2), VLOOKUP($F59,P_All!$L$5:$U$505,3*($C$6-1)+2)) -> 80.744 | H59: =IF($B$8="Property Boundary", VLOOKUP($F59,P_All!$A$5:$J$505,3*($C$6-1)+3), VLOOKUP($F59,P_All!$L$5:$U$505,3*($C$6-1)+3)) -> 111.78 | I59: =IF($B$8="Property Boundary", VLOOKUP($F59,P_All!$A$5:$J$505,3*($C$6-1)+4), VLOOKUP($F59,P_All!$L$5:$U$505,3*($C$6-1)+4)) -> 149.78 | J59: =IF($B$8="Property Boundary", VLOOKUP($F59,NA_All!$A$5:$J$505,3*($C$6-1)+2), VLOOKUP($F59,NA_All!$L$5:$U$505,3*($C$6-1)+2)) -> 0 | K59: =IF($B$8="Property Boundary", VLOOKUP($F59,NA_All!$A$5:$J$505,3*($C$6-1)+3), VLOOKUP($F59,NA_All!$L$5:$U$505,3*($C$6-1)+3)) -> 0 | L59: =IF($B$8="Property Boundary", VLOOKUP($F59,NA_All!$A$5:$J$505,3*($C$6-1)+4), VLOOKUP($F59,NA_All!$L$5:$U$505,3*($C$6-1)+4)) -> 0 | M59: 1000
F60: 74 | G60: =IF($B$8="Property Boundary", VLOOKUP($F60,P_All!$A$5:$J$505,3*($C$6-1)+2), VLOOKUP($F60,P_All!$L$5:$U$505,3*($C$6-1)+2)) -> 80.015 | H60: =IF($B$8="Property Boundary", VLOOKUP($F60,P_All!$A$5:$J$505,3*($C$6-1)+3), VLOOKUP($F60,P_All!$L$5:$U$505,3*($C$6-1)+3)) -> 110.98 | I60: =IF($B$8="Property Boundary", VLOOKUP($F60,P_All!$A$5:$J$505,3*($C$6-1)+4), VLOOKUP($F60,P_All!$L$5:$U$505,3*($C$6-1)+4)) -> 148.92 | J60: =IF($B$8="Property Boundary", VLOOKUP($F60,NA_All!$A$5:$J$505,3*($C$6-1)+2), VLOOKUP($F60,NA_All!$L$5:$U$505,3*($C$6-1)+2)) -> 0 | K60: =IF($B$8="Property Boundary", VLOOKUP($F60,NA_All!$A$5:$J$505,3*($C$6-1)+3), VLOOKUP($F60,NA_All!$L$5:$U$505,3*($C$6-1)+3)) -> 0 | L60: =IF($B$8="Property Boundary", VLOOKUP($F60,NA_All!$A$5:$J$505,3*($C$6-1)+4), VLOOKUP($F60,NA_All!$L$5:$U$505,3*($C$6-1)+4)) -> 0 | M60: 1000
F61: 76 | G61: =IF($B$8="Property Boundary", VLOOKUP($F61,P_All!$A$5:$J$505,3*($C$6-1)+2), VLOOKUP($F61,P_All!$L$5:$U$505,3*($C$6-1)+2)) -> 79.286 | H61: =IF($B$8="Property Boundary", VLOOKUP($F61,P_All!$A$5:$J$505,3*($C$6-1)+3), VLOOKUP($F61,P_All!$L$5:$U$505,3*($C$6-1)+3)) -> 110.06 | I61: =IF($B$8="Property Boundary", VLOOKUP($F61,P_All!$A$5:$J$505,3*($C$6-1)+4), VLOOKUP($F61,P_All!$L$5:$U$505,3*($C$6-1)+4)) -> 148.09 | J61: =IF($B$8="Property Boundary", VLOOKUP($F61,NA_All!$A$5:$J$505,3*($C$6-1)+2), VLOOKUP($F61,NA_All!$L$5:$U$505,3*($C$6-1)+2)) -> 0 | K61: =IF($B$8="Property Boundary", VLOOKUP($F61,NA_All!$A$5:$J$505,3*($C$6-1)+3), VLOOKUP($F61,NA_All!$L$5:$U$505,3*($C$6-1)+3)) -> 0 | L61: =IF($B$8="Property Boundary", VLOOKUP($F61,NA_All!$A$5:$J$505,3*($C$6-1)+4), VLOOKUP($F61,NA_All!$L$5:$U$505,3*($C$6-1)+4)) -> 0 | M61: 1000
F62: 78 | G62: =IF($B$8="Property Boundary", VLOOKUP($F62,P_All!$A$5:$J$505,3*($C$6-1)+2), VLOOKUP($F62,P_All!$L$5:$U$505,3*($C$6-1)+2)) -> 78.63 | H62: =IF($B$8="Property Boundary", VLOOKUP($F62,P_All!$A$5:$J$505,3*($C$6-1)+3), VLOOKUP($F62,P_All!$L$5:$U$505,3*($C$6-1)+3)) -> 109.23 | I62: =IF($B$8="Property Boundary", VLOOKUP($F62,P_All!$A$5:$J$505,3*($C$6-1)+4), VLOOKUP($F62,P_All!$L$5:$U$505,3*($C$6-1)+4)) -> 147.25 | J62: =IF($B$8="Property Boundary", VLOOKUP($F62,NA_All!$A$5:$J$505,3*($C$6-1)+2), VLOOKUP($F62,NA_All!$L$5:$U$505,3*($C$6-1)+2)) -> 0 | K62: =IF($B$8="Property Boundary", VLOOKUP($F62,NA_All!$A$5:$J$505,3*($C$6-1)+3), VLOOKUP($F62,NA_All!$L$5:$U$505,3*($C$6-1)+3)) -> 0 | L62: =IF($B$8="Property Boundary", VLOOKUP($F62,NA_All!$A$5:$J$505,3*($C$6-1)+4), VLOOKUP($F62,NA_All!$L$5:$U$505,3*($C$6-1)+4)) -> 0 | M62: 1000
F63: 80 | G63: =IF($B$8="Property Boundary", VLOOKUP($F63,P_All!$A$5:$J$505,3*($C$6-1)+2), VLOOKUP($F63,P_All!$L$5:$U$505,3*($C$6-1)+2)) -> 78.058 | H63: =IF($B$8="Property Boundary", VLOOKUP($F63,P_All!$A$5:$J$505,3*($C$6-1)+3), VLOOKUP($F63,P_All!$L$5:$U$505,3*($C$6-1)+3)) -> 108.11 | I63: =IF($B$8="Property Boundary", VLOOKUP($F63,P_All!$A$5:$J$505,3*($C$6-1)+4), VLOOKUP($F63,P_All!$L$5:$U$505,3*($C$6-1)+4)) -> 146.35 | J63: =IF($B$8="Property Boundary", VLOOKUP($F63,NA_All!$A$5:$J$505,3*($C$6-1)+2), VLOOKUP($F63,NA_All!$L$5:$U$505,3*($C$6-1)+2)) -> 0 | K63: =IF($B$8="Property Boundary", VLOOKUP($F63,NA_All!$A$5:$J$505,3*($C$6-1)+3), VLOOKUP($F63,NA_All!$L$5:$U$505,3*($C$6-1)+3)) -> 0 | L63: =IF($B$8="Property Boundary", VLOOKUP($F63,NA_All!$A$5:$J$505,3*($C$6-1)+4), VLOOKUP($F63,NA_All!$L$5:$U$505,3*($C$6-1)+4)) -> 0 | M63: 1000
F64: 82 | G64: =IF($B$8="Property Boundary", VLOOKUP($F64,P_All!$A$5:$J$505,3*($C$6-1)+2), VLOOKUP($F64,P_All!$L$5:$U$505,3*($C$6-1)+2)) -> 77.287 | H64: =IF($B$8="Property Boundary", VLOOKUP($F64,P_All!$A$5:$J$505,3*($C$6-1)+3), VLOOKUP($F64,P_All!$L$5:$U$505,3*($C$6-1)+3)) -> 107.07 | I64: =IF($B$8="Property Boundary", VLOOKUP($F64,P_All!$A$5:$J$505,3*($C$6-1)+4), VLOOKUP($F64,P_All!$L$5:$U$505,3*($C$6-1)+4)) -> 145.33 | J64: =IF($B$8="Property Boundary", VLOOKUP($F64,NA_All!$A$5:$J$505,3*($C$6-1)+2), VLOOKUP($F64,NA_All!$L$5:$U$505,3*($C$6-1)+2)) -> 0 | K64: =IF($B$8="Property Boundary", VLOOKUP($F64,NA_All!$A$5:$J$505,3*($C$6-1)+3), VLOOKUP($F64,NA_All!$L$5:$U$505,3*($C$6-1)+3)) -> 0 | L64: =IF($B$8="Property Boundary", VLOOKUP($F64,NA_All!$A$5:$J$505,3*($C$6-1)+4), VLOOKUP($F64,NA_All!$L$5:$U$505,3*($C$6-1)+4)) -> 0 | M64: 1000
F65: 84 | G65: =IF($B$8="Property Boundary", VLOOKUP($F65,P_All!$A$5:$J$505,3*($C$6-1)+2), VLOOKUP($F65,P_All!$L$5:$U$505,3*($C$6-1)+2)) -> 76.649 | H65: =IF($B$8="Property Boundary", VLOOKUP($F65,P_All!$A$5:$J$505,3*($C$6-1)+3), VLOOKUP($F65,P_All!$L$5:$U$505,3*($C$6-1)+3)) -> 106.05 | I65: =IF($B$8="Property Boundary", VLOOKUP($F65,P_All!$A$5:$J$505,3*($C$6-1)+4), VLOOKUP($F65,P_All!$L$5:$U$505,3*($C$6-1)+4)) -> 144.32 | J65: =IF($B$8="Property Boundary", VLOOKUP($F65,NA_All!$A$5:$J$505,3*($C$6-1)+2), VLOOKUP($F65,NA_All!$L$5:$U$505,3*($C$6-1)+2)) -> 0 | K65: =IF($B$8="Property Boundary", VLOOKUP($F65,NA_All!$A$5:$J$505,3*($C$6-1)+3), VLOOKUP($F65,NA_All!$L$5:$U$505,3*($C$6-1)+3)) -> 0 | L65: =IF($B$8="Property Boundary", VLOOKUP($F65,NA_All!$A$5:$J$505,3*($C$6-1)+4), VLOOKUP($F65,NA_All!$L$5:$U$505,3*($C$6-1)+4)) -> 0 | M65: 1000
F66: 86 | G66: =IF($B$8="Property Boundary", VLOOKUP($F66,P_All!$A$5:$J$505,3*($C$6-1)+2), VLOOKUP($F66,P_All!$L$5:$U$505,3*($C$6-1)+2)) -> 75.95 | H66: =IF($B$8="Property Boundary", VLOOKUP($F66,P_All!$A$5:$J$505,3*($C$6-1)+3), VLOOKUP($F66,P_All!$L$5:$U$505,3*($C$6-1)+3)) -> 105.15 | I66: =IF($B$8="Property Boundary", VLOOKUP($F66,P_All!$A$5:$J$505,3*($C$6-1)+4), VLOOKUP($F66,P_All!$L$5:$U$505,3*($C$6-1)+4)) -> 143.4 | J66: =IF($B$8="Property Boundary", VLOOKUP($F66,NA_All!$A$5:$J$505,3*($C$6-1)+2), VLOOKUP($F66,NA_All!$L$5:$U$505,3*($C$6-1)+2)) -> 0 | K66: =IF($B$8="Property Boundary", VLOOKUP($F66,NA_All!$A$5:$J$505,3*($C$6-1)+3), VLOOKUP($F66,NA_All!$L$5:$U$505,3*($C$6-1)+3)) -> 0 | L66: =IF($B$8="Property Boundary", VLOOKUP($F66,NA_All!$A$5:$J$505,3*($C$6-1)+4), VLOOKUP($F66,NA_All!$L$5:$U$505,3*($C$6-1)+4)) -> 0 | M66: 1000
F67: 88 | G67: =IF($B$8="Property Boundary", VLOOKUP($F67,P_All!$A$5:$J$505,3*($C$6-1)+2), VLOOKUP($F67,P_All!$L$5:$U$505,3*($C$6-1)+2)) -> 75.371 | H67: =IF($B$8="Property Boundary", VLOOKUP($F67,P_All!$A$5:$J$505,3*($C$6-1)+3), VLOOKUP($F67,P_All!$L$5:$U$505,3*($C$6-1)+3)) -> 104.28 | I67: =IF($B$8="Property Boundary", VLOOKUP($F67,P_All!$A$5:$J$505,3*($C$6-1)+4), VLOOKUP($F67,P_All!$L$5:$U$505,3*($C$6-1)+4)) -> 142.61 | J67: =IF($B$8="Property Boundary", VLOOKUP($F67,NA_All!$A$5:$J$505,3*($C$6-1)+2), VLOOKUP($F67,NA_All!$L$5:$U$505,3*($C$6-1)+2)) -> 0 | K67: =IF($B$8="Property Boundary", VLOOKUP($F67,NA_All!$A$5:$J$505,3*($C$6-1)+3), VLOOKUP($F67,NA_All!$L$5:$U$505,3*($C$6-1)+3)) -> 0 | L67: =IF($B$8="Property Boundary", VLOOKUP($F67,NA_All!$A$5:$J$505,3*($C$6-1)+4), VLOOKUP($F67,NA_All!$L$5:$U$505,3*($C$6-1)+4)) -> 0 | M67: 1000
F68: 90 | G68: =IF($B$8="Property Boundary", VLOOKUP($F68,P_All!$A$5:$J$505,3*($C$6-1)+2), VLOOKUP($F68,P_All!$L$5:$U$505,3*($C$6-1)+2)) -> 74.667 | H68: =IF($B$8="Property Boundary", VLOOKUP($F68,P_All!$A$5:$J$505,3*($C$6-1)+3), VLOOKUP($F68,P_All!$L$5:$U$505,3*($C$6-1)+3)) -> 103.33 | I68: =IF($B$8="Property Boundary", VLOOKUP($F68,P_All!$A$5:$J$505,3*($C$6-1)+4), VLOOKUP($F68,P_All!$L$5:$U$505,3*($C$6-1)+4)) -> 141.82 | J68: =IF($B$8="Property Boundary", VLOOKUP($F68,NA_All!$A$5:$J$505,3*($C$6-1)+2), VLOOKUP($F68,NA_All!$L$5:$U$505,3*($C$6-1)+2)) -> 0 | K68: =IF($B$8="Property Boundary", VLOOKUP($F68,NA_All!$A$5:$J$505,3*($C$6-1)+3), VLOOKUP($F68,NA_All!$L$5:$U$505,3*($C$6-1)+3)) -> 0 | L68: =IF($B$8="Property Boundary", VLOOKUP($F68,NA_All!$A$5:$J$505,3*($C$6-1)+4), VLOOKUP($F68,NA_All!$L$5:$U$505,3*($C$6-1)+4)) -> 0 | M68: 1000
F69: 92 | G69: =IF($B$8="Property Boundary", VLOOKUP($F69,P_All!$A$5:$J$505,3*($C$6-1)+2), VLOOKUP($F69,P_All!$L$5:$U$505,3*($C$6-1)+2)) -> 73.867 | H69: =IF($B$8="Property Boundary", VLOOKUP($F69,P_All!$A$5:$J$505,3*($C$6-1)+3), VLOOKUP($F69,P_All!$L$5:$U$505,3*($C$6-1)+3)) -> 102.52 | I69: =IF($B$8="Property Boundary", VLOOKUP($F69,P_All!$A$5:$J$505,3*($C$6-1)+4), VLOOKUP($F69,P_All!$L$5:$U$505,3*($C$6-1)+4)) -> 141.04 | J69: =IF($B$8="Property Boundary", VLOOKUP($F69,NA_All!$A$5:$J$505,3*($C$6-1)+2), VLOOKUP($F69,NA_All!$L$5:$U$505,3*($C$6-1)+2)) -> 0 | K69: =IF($B$8="Property Boundary", VLOOKUP($F69,NA_All!$A$5:$J$505,3*($C$6-1)+3), VLOOKUP($F69,NA_All!$L$5:$U$505,3*($C$6-1)+3)) -> 0 | L69: =IF($B$8="Property Boundary", VLOOKUP($F69,NA_All!$A$5:$J$505,3*($C$6-1)+4), VLOOKUP($F69,NA_All!$L$5:$U$505,3*($C$6-1)+4)) -> 0 | M69: 1000
F70: 94 | G70: =IF($B$8="Property Boundary", VLOOKUP($F70,P_All!$A$5:$J$505,3*($C$6-1)+2), VLOOKUP($F70,P_All!$L$5:$U$505,3*($C$6-1)+2)) -> 73.259 | H70: =IF($B$8="Property Boundary", VLOOKUP($F70,P_All!$A$5:$J$505,3*($C$6-1)+3), VLOOKUP($F70,P_All!$L$5:$U$505,3*($C$6-1)+3)) -> 101.72 | I70: =IF($B$8="Property Boundary", VLOOKUP($F70,P_All!$A$5:$J$505,3*($C$6-1)+4), VLOOKUP($F70,P_All!$L$5:$U$505,3*($C$6-1)+4)) -> 140.26 | J70: =IF($B$8="Property Boundary", VLOOKUP($F70,NA_All!$A$5:$J$505,3*($C$6-1)+2), VLOOKUP($F70,NA_All!$L$5:$U$505,3*($C$6-1)+2)) -> 0 | K70: =IF($B$8="Property Boundary", VLOOKUP($F70,NA_All!$A$5:$J$505,3*($C$6-1)+3), VLOOKUP($F70,NA_All!$L$5:$U$505,3*($C$6-1)+3)) -> 0 | L70: =IF($B$8="Property Boundary", VLOOKUP($F70,NA_All!$A$5:$J$505,3*($C$6-1)+4), VLOOKUP($F70,NA_All!$L$5:$U$505,3*($C$6-1)+4)) -> 0 | M70: 1000
F71: 96 | G71: =IF($B$8="Property Boundary", VLOOKUP($F71,P_All!$A$5:$J$505,3*($C$6-1)+2), VLOOKUP($F71,P_All!$L$5:$U$505,3*($C$6-1)+2)) -> 72.455 | H71: =IF($B$8="Property Boundary", VLOOKUP($F71,P_All!$A$5:$J$505,3*($C$6-1)+3), VLOOKUP($F71,P_All!$L$5:$U$505,3*($C$6-1)+3)) -> 100.83 | I71: =IF($B$8="Property Boundary", VLOOKUP($F71,P_All!$A$5:$J$505,3*($C$6-1)+4), VLOOKUP($F71,P_All!$L$5:$U$505,3*($C$6-1)+4)) -> 139.57 | J71: =IF($B$8="Property Boundary", VLOOKUP($F71,NA_All!$A$5:$J$505,3*($C$6-1)+2), VLOOKUP($F71,NA_All!$L$5:$U$505,3*($C$6-1)+2)) -> 0 | K71: =IF($B$8="Property Boundary", VLOOKUP($F71,NA_All!$A$5:$J$505,3*($C$6-1)+3), VLOOKUP($F71,NA_All!$L$5:$U$505,3*($C$6-1)+3)) -> 0 | L71: =IF($B$8="Property Boundary", VLOOKUP($F71,NA_All!$A$5:$J$505,3*($C$6-1)+4), VLOOKUP($F71,NA_All!$L$5:$U$505,3*($C$6-1)+4)) -> 0 | M71: 1000
F72: 98 | G72: =IF($B$8="Property Boundary", VLOOKUP($F72,P_All!$A$5:$J$505,3*($C$6-1)+2), VLOOKUP($F72,P_All!$L$5:$U$505,3*($C$6-1)+2)) -> 71.846 | H72: =IF($B$8="Property Boundary", VLOOKUP($F72,P_All!$A$5:$J$505,3*($C$6-1)+3), VLOOKUP($F72,P_All!$L$5:$U$505,3*($C$6-1)+3)) -> 100.14 | I72: =IF($B$8="Property Boundary", VLOOKUP($F72,P_All!$A$5:$J$505,3*($C$6-1)+4), VLOOKUP($F72,P_All!$L$5:$U$505,3*($C$6-1)+4)) -> 138.77 | J72: =IF($B$8="Property Boundary", VLOOKUP($F72,NA_All!$A$5:$J$505,3*($C$6-1)+2), VLOOKUP($F72,NA_All!$L$5:$U$505,3*($C$6-1)+2)) -> 0 | K72: =IF($B$8="Property Boundary", VLOOKUP($F72,NA_All!$A$5:$J$505,3*($C$6-1)+3), VLOOKUP($F72,NA_All!$L$5:$U$505,3*($C$6-1)+3)) -> 0 | L72: =IF($B$8="Property Boundary", VLOOKUP($F72,NA_All!$A$5:$J$505,3*($C$6-1)+4), VLOOKUP($F72,NA_All!$L$5:$U$505,3*($C$6-1)+4)) -> 0 | M72: 1000
F73: 100 | G73: =IF($B$8="Property Boundary", VLOOKUP($F73,P_All!$A$5:$J$505,3*($C$6-1)+2), VLOOKUP($F73,P_All!$L$5:$U$505,3*($C$6-1)+2)) -> 71.197 | H73: =IF($B$8="Property Boundary", VLOOKUP($F73,P_All!$A$5:$J$505,3*($C$6-1)+3), VLOOKUP($F73,P_All!$L$5:$U$505,3*($C$6-1)+3)) -> 99.425 | I73: =IF($B$8="Property Boundary", VLOOKUP($F73,P_All!$A$5:$J$505,3*($C$6-1)+4), VLOOKUP($F73,P_All!$L$5:$U$505,3*($C$6-1)+4)) -> 137.87 | J73: =IF($B$8="Property Boundary", VLOOKUP($F73,NA_All!$A$5:$J$505,3*($C$6-1)+2), VLOOKUP($F73,NA_All!$L$5:$U$505,3*($C$6-1)+2)) -> 0 | K73: =IF($B$8="Property Boundary", VLOOKUP($F73,NA_All!$A$5:$J$505,3*($C$6-1)+3), VLOOKUP($F73,NA_All!$L$5:$U$505,3*($C$6-1)+3)) -> 0 | L73: =IF($B$8="Property Boundary", VLOOKUP($F73,NA_All!$A$5:$J$505,3*($C$6-1)+4), VLOOKUP($F73,NA_All!$L$5:$U$505,3*($C$6-1)+4)) -> 0 | M73: 1000
F74: 102 | G74: =IF($B$8="Property Boundary", VLOOKUP($F74,P_All!$A$5:$J$505,3*($C$6-1)+2), VLOOKUP($F74,P_All!$L$5:$U$505,3*($C$6-1)+2)) -> 70.526 | H74: =IF($B$8="Property Boundary", VLOOKUP($F74,P_All!$A$5:$J$505,3*($C$6-1)+3), VLOOKUP($F74,P_All!$L$5:$U$505,3*($C$6-1)+3)) -> 98.745 | I74: =IF($B$8="Property Boundary", VLOOKUP($F74,P_All!$A$5:$J$505,3*($C$6-1)+4), VLOOKUP($F74,P_All!$L$5:$U$505,3*($C$6-1)+4)) -> 137.01 | J74: =IF($B$8="Property Boundary", VLOOKUP($F74,NA_All!$A$5:$J$505,3*($C$6-1)+2), VLOOKUP($F74,NA_All!$L$5:$U$505,3*($C$6-1)+2)) -> 0 | K74: =IF($B$8="Property Boundary", VLOOKUP($F74,NA_All!$A$5:$J$505,3*($C$6-1)+3), VLOOKUP($F74,NA_All!$L$5:$U$505,3*($C$6-1)+3)) -> 0 | L74: =IF($B$8="Property Boundary", VLOOKUP($F74,NA_All!$A$5:$J$505,3*($C$6-1)+4), VLOOKUP($F74,NA_All!$L$5:$U$505,3*($C$6-1)+4)) -> 0 | M74: 1000
F75: 104 | G75: =IF($B$8="Property Boundary", VLOOKUP($F75,P_All!$A$5:$J$505,3*($C$6-1)+2), VLOOKUP($F75,P_All!$L$5:$U$505,3*($C$6-1)+2)) -> 69.881 | H75: =IF($B$8="Property Boundary", VLOOKUP($F75,P_All!$A$5:$J$505,3*($C$6-1)+3), VLOOKUP($F75,P_All!$L$5:$U$505,3*($C$6-1)+3)) -> 97.878 | I75: =IF($B$8="Property Boundary", VLOOKUP($F75,P_All!$A$5:$J$505,3*($C$6-1)+4), VLOOKUP($F75,P_All!$L$5:$U$505,3*($C$6-1)+4)) -> 136.15 | J75: =IF($B$8="Property Boundary", VLOOKUP($F75,NA_All!$A$5:$J$505,3*($C$6-1)+2), VLOOKUP($F75,NA_All!$L$5:$U$505,3*($C$6-1)+2)) -> 0 | K75: =IF($B$8="Property Boundary", VLOOKUP($F75,NA_All!$A$5:$J$505,3*($C$6-1)+3), VLOOKUP($F75,NA_All!$L$5:$U$505,3*($C$6-1)+3)) -> 0 | L75: =IF($B$8="Property Boundary", VLOOKUP($F75,NA_All!$A$5:$J$505,3*($C$6-1)+4), VLOOKUP($F75,NA_All!$L$5:$U$505,3*($C$6-1)+4)) -> 0 | M75: 1000
F76: 106 | G76: =IF($B$8="Property Boundary", VLOOKUP($F76,P_All!$A$5:$J$505,3*($C$6-1)+2), VLOOKUP($F76,P_All!$L$5:$U$505,3*($C$6-1)+2)) -> 69.277 | H76: =IF($B$8="Property Boundary", VLOOKUP($F76,P_All!$A$5:$J$505,3*($C$6-1)+3), VLOOKUP($F76,P_All!$L$5:$U$505,3*($C$6-1)+3)) -> 96.961 | I76: =IF($B$8="Property Boundary", VLOOKUP($F76,P_All!$A$5:$J$505,3*($C$6-1)+4), VLOOKUP($F76,P_All!$L$5:$U$505,3*($C$6-1)+4)) -> 135.27 | J76: =IF($B$8="Property Boundary", VLOOKUP($F76,NA_All!$A$5:$J$505,3*($C$6-1)+2), VLOOKUP($F76,NA_All!$L$5:$U$505,3*($C$6-1)+2)) -> 0 | K76: =IF($B$8="Property Boundary", VLOOKUP($F76,NA_All!$A$5:$J$505,3*($C$6-1)+3), VLOOKUP($F76,NA_All!$L$5:$U$505,3*($C$6-1)+3)) -> 0 | L76: =IF($B$8="Property Boundary", VLOOKUP($F76,NA_All!$A$5:$J$505,3*($C$6-1)+4), VLOOKUP($F76,NA_All!$L$5:$U$505,3*($C$6-1)+4)) -> 0 | M76: 1000
F77: 108 | G77: =IF($B$8="Property Boundary", VLOOKUP($F77,P_All!$A$5:$J$505,3*($C$6-1)+2), VLOOKUP($F77,P_All!$L$5:$U$505,3*($C$6-1)+2)) -> 68.69 | H77: =IF($B$8="Property Boundary", VLOOKUP($F77,P_All!$A$5:$J$505,3*($C$6-1)+3), VLOOKUP($F77,P_All!$L$5:$U$505,3*($C$6-1)+3)) -> 96.237 | I77: =IF($B$8="Property Boundary", VLOOKUP($F77,P_All!$A$5:$J$505,3*($C$6-1)+4), VLOOKUP($F77,P_All!$L$5:$U$505,3*($C$6-1)+4)) -> 134.34 | J77: =IF($B$8="Property Boundary", VLOOKUP($F77,NA_All!$A$5:$J$505,3*($C$6-1)+2), VLOOKUP($F77,NA_All!$L$5:$U$505,3*($C$6-1)+2)) -> 0 | K77: =IF($B$8="Property Boundary", VLOOKUP($F77,NA_All!$A$5:$J$505,3*($C$6-1)+3), VLOOKUP($F77,NA_All!$L$5:$U$505,3*($C$6-1)+3)) -> 0 | L77: =IF($B$8="Property Boundary", VLOOKUP($F77,NA_All!$A$5:$J$505,3*($C$6-1)+4), VLOOKUP($F77,NA_All!$L$5:$U$505,3*($C$6-1)+4)) -> 0 | M77: 1000
F78: 110 | G78: =IF($B$8="Property Boundary", VLOOKUP($F78,P_All!$A$5:$J$505,3*($C$6-1)+2), VLOOKUP($F78,P_All!$L$5:$U$505,3*($C$6-1)+2)) -> 68.042 | H78: =IF($B$8="Property Boundary", VLOOKUP($F78,P_All!$A$5:$J$505,3*($C$6-1)+3), VLOOKUP($F78,P_All!$L$5:$U$505,3*($C$6-1)+3)) -> 95.419 | I78: =IF($B$8="Property Boundary", VLOOKUP($F78,P_All!$A$5:$J$505,3*($C$6-1)+4), VLOOKUP($F78,P_All!$L$5:$U$505,3*($C$6-1)+4)) -> 133.42 | J78: =IF($B$8="Property Boundary", VLOOKUP($F78,NA_All!$A$5:$J$505,3*($C$6-1)+2), VLOOKUP($F78,NA_All!$L$5:$U$505,3*($C$6-1)+2)) -> 0 | K78: =IF($B$8="Property Boundary", VLOOKUP($F78,NA_All!$A$5:$J$505,3*($C$6-1)+3), VLOOKUP($F78,NA_All!$L$5:$U$505,3*($C$6-1)+3)) -> 0 | L78: =IF($B$8="Property Boundary", VLOOKUP($F78,NA_All!$A$5:$J$505,3*($C$6-1)+4), VLOOKUP($F78,NA_All!$L$5:$U$505,3*($C$6-1)+4)) -> 0 | M78: 1000
F79: 112 | G79: =IF($B$8="Property Boundary", VLOOKUP($F79,P_All!$A$5:$J$505,3*($C$6-1)+2), VLOOKUP($F79,P_All!$L$5:$U$505,3*($C$6-1)+2)) -> 67.376 | H79: =IF($B$8="Property Boundary", VLOOKUP($F79,P_All!$A$5:$J$505,3*($C$6-1)+3), VLOOKUP($F79,P_All!$L$5:$U$505,3*($C$6-1)+3)) -> 94.568 | I79: =IF($B$8="Property Boundary", VLOOKUP($F79,P_All!$A$5:$J$505,3*($C$6-1)+4), VLOOKUP($F79,P_All!$L$5:$U$505,3*($C$6-1)+4)) -> 132.46 | J79: =IF($B$8="Property Boundary", VLOOKUP($F79,NA_All!$A$5:$J$505,3*($C$6-1)+2), VLOOKUP($F79,NA_All!$L$5:$U$505,3*($C$6-1)+2)) -> 0 | K79: =IF($B$8="Property Boundary", VLOOKUP($F79,NA_All!$A$5:$J$505,3*($C$6-1)+3), VLOOKUP($F79,NA_All!$L$5:$U$505,3*($C$6-1)+3)) -> 0 | L79: =IF($B$8="Property Boundary", VLOOKUP($F79,NA_All!$A$5:$J$505,3*($C$6-1)+4), VLOOKUP($F79,NA_All!$L$5:$U$505,3*($C$6-1)+4)) -> 0 | M79: 1000
F80: 114 | G80: =IF($B$8="Property Boundary", VLOOKUP($F80,P_All!$A$5:$J$505,3*($C$6-1)+2), VLOOKUP($F80,P_All!$L$5:$U$505,3*($C$6-1)+2)) -> 66.674 | H80: =IF($B$8="Property Boundary", VLOOKUP($F80,P_All!$A$5:$J$505,3*($C$6-1)+3), VLOOKUP($F80,P_All!$L$5:$U$505,3*($C$6-1)+3)) -> 93.768 | I80: =IF($B$8="Property Boundary", VLOOKUP($F80,P_All!$A$5:$J$505,3*($C$6-1)+4), VLOOKUP($F80,P_All!$L$5:$U$505,3*($C$6-1)+4)) -> 131.41 | J80: =IF($B$8="Property Boundary", VLOOKUP($F80,NA_All!$A$5:$J$505,3*($C$6-1)+2), VLOOKUP($F80,NA_All!$L$5:$U$505,3*($C$6-1)+2)) -> 0 | K80: =IF($B$8="Property Boundary", VLOOKUP($F80,NA_All!$A$5:$J$505,3*($C$6-1)+3), VLOOKUP($F80,NA_All!$L$5:$U$505,3*($C$6-1)+3)) -> 0 | L80: =IF($B$8="Property Boundary", VLOOKUP($F80,NA_All!$A$5:$J$505,3*($C$6-1)+4), VLOOKUP($F80,NA_All!$L$5:$U$505,3*($C$6-1)+4)) -> 0 | M80: 1000
F81: 116 | G81: =IF($B$8="Property Boundary", VLOOKUP($F81,P_All!$A$5:$J$505,3*($C$6-1)+2), VLOOKUP($F81,P_All!$L$5:$U$505,3*($C$6-1)+2)) -> 65.885 | H81: =IF($B$8="Property Boundary", VLOOKUP($F81,P_All!$A$5:$J$505,3*($C$6-1)+3), VLOOKUP($F81,P_All!$L$5:$U$505,3*($C$6-1)+3)) -> 93.042 | I81: =IF($B$8="Property Boundary", VLOOKUP($F81,P_All!$A$5:$J$505,3*($C$6-1)+4), VLOOKUP($F81,P_All!$L$5:$U$505,3*($C$6-1)+4)) -> 130.4 | J81: =IF($B$8="Property Boundary", VLOOKUP($F81,NA_All!$A$5:$J$505,3*($C$6-1)+2), VLOOKUP($F81,NA_All!$L$5:$U$505,3*($C$6-1)+2)) -> 0 | K81: =IF($B$8="Property Boundary", VLOOKUP($F81,NA_All!$A$5:$J$505,3*($C$6-1)+3), VLOOKUP($F81,NA_All!$L$5:$U$505,3*($C$6-1)+3)) -> 0 | L81: =IF($B$8="Property Boundary", VLOOKUP($F81,NA_All!$A$5:$J$505,3*($C$6-1)+4), VLOOKUP($F81,NA_All!$L$5:$U$505,3*($C$6-1)+4)) -> 0 | M81: 1000
F82: 118 | G82: =IF($B$8="Property Boundary", VLOOKUP($F82,P_All!$A$5:$J$505,3*($C$6-1)+2), VLOOKUP($F82,P_All!$L$5:$U$505,3*($C$6-1)+2)) -> 65.13 | H82: =IF($B$8="Property Boundary", VLOOKUP($F82,P_All!$A$5:$J$505,3*($C$6-1)+3), VLOOKUP($F82,P_All!$L$5:$U$505,3*($C$6-1)+3)) -> 92.109 | I82: =IF($B$8="Property Boundary", VLOOKUP($F82,P_All!$A$5:$J$505,3*($C$6-1)+4), VLOOKUP($F82,P_All!$L$5:$U$505,3*($C$6-1)+4)) -> 129.54 | J82: =IF($B$8="Property Boundary", VLOOKUP($F82,NA_All!$A$5:$J$505,3*($C$6-1)+2), VLOOKUP($F82,NA_All!$L$5:$U$505,3*($C$6-1)+2)) -> 0 | K82: =IF($B$8="Property Boundary", VLOOKUP($F82,NA_All!$A$5:$J$505,3*($C$6-1)+3), VLOOKUP($F82,NA_All!$L$5:$U$505,3*($C$6-1)+3)) -> 0 | L82: =IF($B$8="Property Boundary", VLOOKUP($F82,NA_All!$A$5:$J$505,3*($C$6-1)+4), VLOOKUP($F82,NA_All!$L$5:$U$505,3*($C$6-1)+4)) -> 0 | M82: 1000
F83: 120 | G83: =IF($B$8="Property Boundary", VLOOKUP($F83,P_All!$A$5:$J$505,3*($C$6-1)+2), VLOOKUP($F83,P_All!$L$5:$U$505,3*($C$6-1)+2)) -> 64.591 | H83: =IF($B$8="Property Boundary", VLOOKUP($F83,P_All!$A$5:$J$505,3*($C$6-1)+3), VLOOKUP($F83,P_All!$L$5:$U$505,3*($C$6-1)+3)) -> 91.266 | I83: =IF($B$8="Property Boundary", VLOOKUP($F83,P_All!$A$5:$J$505,3*($C$6-1)+4), VLOOKUP($F83,P_All!$L$5:$U$505,3*($C$6-1)+4)) -> 128.44 | J83: =IF($B$8="Property Boundary", VLOOKUP($F83,NA_All!$A$5:$J$505,3*($C$6-1)+2), VLOOKUP($F83,NA_All!$L$5:$U$505,3*($C$6-1)+2)) -> 0 | K83: =IF($B$8="Property Boundary", VLOOKUP($F83,NA_All!$A$5:$J$505,3*($C$6-1)+3), VLOOKUP($F83,NA_All!$L$5:$U$505,3*($C$6-1)+3)) -> 0 | L83: =IF($B$8="Property Boundary", VLOOKUP($F83,NA_All!$A$5:$J$505,3*($C$6-1)+4), VLOOKUP($F83,NA_All!$L$5:$U$505,3*($C$6-1)+4)) -> 0 | M83: 1000
F84: 122 | G84: =IF($B$8="Property Boundary", VLOOKUP($F84,P_All!$A$5:$J$505,3*($C$6-1)+2), VLOOKUP($F84,P_All!$L$5:$U$505,3*($C$6-1)+2)) -> 64.056 | H84: =IF($B$8="Property Boundary", VLOOKUP($F84,P_All!$A$5:$J$505,3*($C$6-1)+3), VLOOKUP($F84,P_All!$L$5:$U$505,3*($C$6-1)+3)) -> 90.402 | I84: =IF($B$8="Property Boundary", VLOOKUP($F84,P_All!$A$5:$J$505,3*($C$6-1)+4), VLOOKUP($F84,P_All!$L$5:$U$505,3*($C$6-1)+4)) -> 127.34 | J84: =IF($B$8="Property Boundary", VLOOKUP($F84,NA_All!$A$5:$J$505,3*($C$6-1)+2), VLOOKUP($F84,NA_All!$L$5:$U$505,3*($C$6-1)+2)) -> 0 | K84: =IF($B$8="Property Boundary", VLOOKUP($F84,NA_All!$A$5:$J$505,3*($C$6-1)+3), VLOOKUP($F84,NA_All!$L$5:$U$505,3*($C$6-1)+3)) -> 0 | L84: =IF($B$8="Property Boundary", VLOOKUP($F84,NA_All!$A$5:$J$505,3*($C$6-1)+4), VLOOKUP($F84,NA_All!$L$5:$U$505,3*($C$6-1)+4)) -> 0 | M84: 1000
F85: 124 | G85: =IF($B$8="Property Boundary", VLOOKUP($F85,P_All!$A$5:$J$505,3*($C$6-1)+2), VLOOKUP($F85,P_All!$L$5:$U$505,3*($C$6-1)+2)) -> 63.361 | H85: =IF($B$8="Property Boundary", VLOOKUP($F85,P_All!$A$5:$J$505,3*($C$6-1)+3), VLOOKUP($F85,P_All!$L$5:$U$505,3*($C$6-1)+3)) -> 89.546 | I85: =IF($B$8="Property Boundary", VLOOKUP($F85,P_All!$A$5:$J$505,3*($C$6-1)+4), VLOOKUP($F85,P_All!$L$5:$U$505,3*($C$6-1)+4)) -> 126.26 | J85: =IF($B$8="Property Boundary", VLOOKUP($F85,NA_All!$A$5:$J$505,3*($C$6-1)+2), VLOOKUP($F85,NA_All!$L$5:$U$505,3*($C$6-1)+2)) -> 0 | K85: =IF($B$8="Property Boundary", VLOOKUP($F85,NA_All!$A$5:$J$505,3*($C$6-1)+3), VLOOKUP($F85,NA_All!$L$5:$U$505,3*($C$6-1)+3)) -> 0 | L85: =IF($B$8="Property Boundary", VLOOKUP($F85,NA_All!$A$5:$J$505,3*($C$6-1)+4), VLOOKUP($F85,NA_All!$L$5:$U$505,3*($C$6-1)+4)) -> 0 | M85: 1000
F86: 126 | G86: =IF($B$8="Property Boundary", VLOOKUP($F86,P_All!$A$5:$J$505,3*($C$6-1)+2), VLOOKUP($F86,P_All!$L$5:$U$505,3*($C$6-1)+2)) -> 62.665 | H86: =IF($B$8="Property Boundary", VLOOKUP($F86,P_All!$A$5:$J$505,3*($C$6-1)+3), VLOOKUP($F86,P_All!$L$5:$U$505,3*($C$6-1)+3)) -> 88.89 | I86: =IF($B$8="Property Boundary", VLOOKUP($F86,P_All!$A$5:$J$505,3*($C$6-1)+4), VLOOKUP($F86,P_All!$L$5:$U$505,3*($C$6-1)+4)) -> 125.41 | J86: =IF($B$8="Property Boundary", VLOOKUP($F86,NA_All!$A$5:$J$505,3*($C$6-1)+2), VLOOKUP($F86,NA_All!$L$5:$U$505,3*($C$6-1)+2)) -> 0 | K86: =IF($B$8="Property Boundary", VLOOKUP($F86,NA_All!$A$5:$J$505,3*($C$6-1)+3), VLOOKUP($F86,NA_All!$L$5:$U$505,3*($C$6-1)+3)) -> 0 | L86: =IF($B$8="Property Boundary", VLOOKUP($F86,NA_All!$A$5:$J$505,3*($C$6-1)+4), VLOOKUP($F86,NA_All!$L$5:$U$505,3*($C$6-1)+4)) -> 0 | M86: 1000
F87: 128 | G87: =IF($B$8="Property Boundary", VLOOKUP($F87,P_All!$A$5:$J$505,3*($C$6-1)+2), VLOOKUP($F87,P_All!$L$5:$U$505,3*($C$6-1)+2)) -> 61.978 | H87: =IF($B$8="Property Boundary", VLOOKUP($F87,P_All!$A$5:$J$505,3*($C$6-1)+3), VLOOKUP($F87,P_All!$L$5:$U$505,3*($C$6-1)+3)) -> 88.233 | I87: =IF($B$8="Property Boundary", VLOOKUP($F87,P_All!$A$5:$J$505,3*($C$6-1)+4), VLOOKUP($F87,P_All!$L$5:$U$505,3*($C$6-1)+4)) -> 124.57 | J87: =IF($B$8="Property Boundary", VLOOKUP($F87,NA_All!$A$5:$J$505,3*($C$6-1)+2), VLOOKUP($F87,NA_All!$L$5:$U$505,3*($C$6-1)+2)) -> 0 | K87: =IF($B$8="Property Boundary", VLOOKUP($F87,NA_All!$A$5:$J$505,3*($C$6-1)+3), VLOOKUP($F87,NA_All!$L$5:$U$505,3*($C$6-1)+3)) -> 0 | L87: =IF($B$8="Property Boundary", VLOOKUP($F87,NA_All!$A$5:$J$505,3*($C$6-1)+4), VLOOKUP($F87,NA_All!$L$5:$U$505,3*($C$6-1)+4)) -> 0 | M87: 1000
F88: 130 | G88: =IF($B$8="Property Boundary", VLOOKUP($F88,P_All!$A$5:$J$505,3*($C$6-1)+2), VLOOKUP($F88,P_All!$L$5:$U$505,3*($C$6-1)+2)) -> 61.334 | H88: =IF($B$8="Property Boundary", VLOOKUP($F88,P_All!$A$5:$J$505,3*($C$6-1)+3), VLOOKUP($F88,P_All!$L$5:$U$505,3*($C$6-1)+3)) -> 87.614 | I88: =IF($B$8="Property Boundary", VLOOKUP($F88,P_All!$A$5:$J$505,3*($C$6-1)+4), VLOOKUP($F88,P_All!$L$5:$U$505,3*($C$6-1)+4)) -> 123.73 | J88: =IF($B$8="Property Boundary", VLOOKUP($F88,NA_All!$A$5:$J$505,3*($C$6-1)+2), VLOOKUP($F88,NA_All!$L$5:$U$505,3*($C$6-1)+2)) -> 0 | K88: =IF($B$8="Property Boundary", VLOOKUP($F88,NA_All!$A$5:$J$505,3*($C$6-1)+3), VLOOKUP($F88,NA_All!$L$5:$U$505,3*($C$6-1)+3)) -> 0 | L88: =IF($B$8="Property Boundary", VLOOKUP($F88,NA_All!$A$5:$J$505,3*($C$6-1)+4), VLOOKUP($F88,NA_All!$L$5:$U$505,3*($C$6-1)+4)) -> 0 | M88: =VLOOKUP($B$4,$A$23:$C$49,2) -> 1000 | N88: =VLOOKUP($B$4,$A$23:$C$49,3) -> 
F89: 132 | G89: =IF($B$8="Property Boundary", VLOOKUP($F89,P_All!$A$5:$J$505,3*($C$6-1)+2), VLOOKUP($F89,P_All!$L$5:$U$505,3*($C$6-1)+2)) -> 60.64 | H89: =IF($B$8="Property Boundary", VLOOKUP($F89,P_All!$A$5:$J$505,3*($C$6-1)+3), VLOOKUP($F89,P_All!$L$5:$U$505,3*($C$6-1)+3)) -> 87.015 | I89: =IF($B$8="Property Boundary", VLOOKUP($F89,P_All!$A$5:$J$505,3*($C$6-1)+4), VLOOKUP($F89,P_All!$L$5:$U$505,3*($C$6-1)+4)) -> 122.9 | J89: =IF($B$8="Property Boundary", VLOOKUP($F89,NA_All!$A$5:$J$505,3*($C$6-1)+2), VLOOKUP($F89,NA_All!$L$5:$U$505,3*($C$6-1)+2)) -> 0 | K89: =IF($B$8="Property Boundary", VLOOKUP($F89,NA_All!$A$5:$J$505,3*($C$6-1)+3), VLOOKUP($F89,NA_All!$L$5:$U$505,3*($C$6-1)+3)) -> 0 | L89: =IF($B$8="Property Boundary", VLOOKUP($F89,NA_All!$A$5:$J$505,3*($C$6-1)+4), VLOOKUP($F89,NA_All!$L$5:$U$505,3*($C$6-1)+4)) -> 0 | M89: 1000
F90: 134 | G90: =IF($B$8="Property Boundary", VLOOKUP($F90,P_All!$A$5:$J$505,3*($C$6-1)+2), VLOOKUP($F90,P_All!$L$5:$U$505,3*($C$6-1)+2)) -> 59.921 | H90: =IF($B$8="Property Boundary", VLOOKUP($F90,P_All!$A$5:$J$505,3*($C$6-1)+3), VLOOKUP($F90,P_All!$L$5:$U$505,3*($C$6-1)+3)) -> 86.247 | I90: =IF($B$8="Property Boundary", VLOOKUP($F90,P_All!$A$5:$J$505,3*($C$6-1)+4), VLOOKUP($F90,P_All!$L$5:$U$505,3*($C$6-1)+4)) -> 122.07 | J90: =IF($B$8="Property Boundary", VLOOKUP($F90,NA_All!$A$5:$J$505,3*($C$6-1)+2), VLOOKUP($F90,NA_All!$L$5:$U$505,3*($C$6-1)+2)) -> 0 | K90: =IF($B$8="Property Boundary", VLOOKUP($F90,NA_All!$A$5:$J$505,3*($C$6-1)+3), VLOOKUP($F90,NA_All!$L$5:$U$505,3*($C$6-1)+3)) -> 0 | L90: =IF($B$8="Property Boundary", VLOOKUP($F90,NA_All!$A$5:$J$505,3*($C$6-1)+4), VLOOKUP($F90,NA_All!$L$5:$U$505,3*($C$6-1)+4)) -> 0 | M90: 1000
F91: 136 | G91: =IF($B$8="Property Boundary", VLOOKUP($F91,P_All!$A$5:$J$505,3*($C$6-1)+2), VLOOKUP($F91,P_All!$L$5:$U$505,3*($C$6-1)+2)) -> 59.368 | H91: =IF($B$8="Property Boundary", VLOOKUP($F91,P_All!$A$5:$J$505,3*($C$6-1)+3), VLOOKUP($F91,P_All!$L$5:$U$505,3*($C$6-1)+3)) -> 85.562 | I91: =IF($B$8="Property Boundary", VLOOKUP($F91,P_All!$A$5:$J$505,3*($C$6-1)+4), VLOOKUP($F91,P_All!$L$5:$U$505,3*($C$6-1)+4)) -> 121.25 | J91: =IF($B$8="Property Boundary", VLOOKUP($F91,NA_All!$A$5:$J$505,3*($C$6-1)+2), VLOOKUP($F91,NA_All!$L$5:$U$505,3*($C$6-1)+2)) -> 0 | K91: =IF($B$8="Property Boundary", VLOOKUP($F91,NA_All!$A$5:$J$505,3*($C$6-1)+3), VLOOKUP($F91,NA_All!$L$5:$U$505,3*($C$6-1)+3)) -> 0 | L91: =IF($B$8="Property Boundary", VLOOKUP($F91,NA_All!$A$5:$J$505,3*($C$6-1)+4), VLOOKUP($F91,NA_All!$L$5:$U$505,3*($C$6-1)+4)) -> 0 | M91: 1000
F92: 138 | G92: =IF($B$8="Property Boundary", VLOOKUP($F92,P_All!$A$5:$J$505,3*($C$6-1)+2), VLOOKUP($F92,P_All!$L$5:$U$505,3*($C$6-1)+2)) -> 58.791 | H92: =IF($B$8="Property Boundary", VLOOKUP($F92,P_All!$A$5:$J$505,3*($C$6-1)+3), VLOOKUP($F92,P_All!$L$5:$U$505,3*($C$6-1)+3)) -> 84.815 | I92: =IF($B$8="Property Boundary", VLOOKUP($F92,P_All!$A$5:$J$505,3*($C$6-1)+4), VLOOKUP($F92,P_All!$L$5:$U$505,3*($C$6-1)+4)) -> 120.48 | J92: =IF($B$8="Property Boundary", VLOOKUP($F92,NA_All!$A$5:$J$505,3*($C$6-1)+2), VLOOKUP($F92,NA_All!$L$5:$U$505,3*($C$6-1)+2)) -> 0 | K92: =IF($B$8="Property Boundary", VLOOKUP($F92,NA_All!$A$5:$J$505,3*($C$6-1)+3), VLOOKUP($F92,NA_All!$L$5:$U$505,3*($C$6-1)+3)) -> 0 | L92: =IF($B$8="Property Boundary", VLOOKUP($F92,NA_All!$A$5:$J$505,3*($C$6-1)+4), VLOOKUP($F92,NA_All!$L$5:$U$505,3*($C$6-1)+4)) -> 0 | M92: 1000
F93: 140 | G93: =IF($B$8="Property Boundary", VLOOKUP($F93,P_All!$A$5:$J$505,3*($C$6-1)+2), VLOOKUP($F93,P_All!$L$5:$U$505,3*($C$6-1)+2)) -> 58.175 | H93: =IF($B$8="Property Boundary", VLOOKUP($F93,P_All!$A$5:$J$505,3*($C$6-1)+3), VLOOKUP($F93,P_All!$L$5:$U$505,3*($C$6-1)+3)) -> 84.02 | I93: =IF($B$8="Property Boundary", VLOOKUP($F93,P_All!$A$5:$J$505,3*($C$6-1)+4), VLOOKUP($F93,P_All!$L$5:$U$505,3*($C$6-1)+4)) -> 119.82 | J93: =IF($B$8="Property Boundary", VLOOKUP($F93,NA_All!$A$5:$J$505,3*($C$6-1)+2), VLOOKUP($F93,NA_All!$L$5:$U$505,3*($C$6-1)+2)) -> 0 | K93: =IF($B$8="Property Boundary", VLOOKUP($F93,NA_All!$A$5:$J$505,3*($C$6-1)+3), VLOOKUP($F93,NA_All!$L$5:$U$505,3*($C$6-1)+3)) -> 0 | L93: =IF($B$8="Property Boundary", VLOOKUP($F93,NA_All!$A$5:$J$505,3*($C$6-1)+4), VLOOKUP($F93,NA_All!$L$5:$U$505,3*($C$6-1)+4)) -> 0 | M93: 1000
F94: 142 | G94: =IF($B$8="Property Boundary", VLOOKUP($F94,P_All!$A$5:$J$505,3*($C$6-1)+2), VLOOKUP($F94,P_All!$L$5:$U$505,3*($C$6-1)+2)) -> 57.568 | H94: =IF($B$8="Property Boundary", VLOOKUP($F94,P_All!$A$5:$J$505,3*($C$6-1)+3), VLOOKUP($F94,P_All!$L$5:$U$505,3*($C$6-1)+3)) -> 83.472 | I94: =IF($B$8="Property Boundary", VLOOKUP($F94,P_All!$A$5:$J$505,3*($C$6-1)+4), VLOOKUP($F94,P_All!$L$5:$U$505,3*($C$6-1)+4)) -> 119.21 | J94: =IF($B$8="Property Boundary", VLOOKUP($F94,NA_All!$A$5:$J$505,3*($C$6-1)+2), VLOOKUP($F94,NA_All!$L$5:$U$505,3*($C$6-1)+2)) -> 0 | K94: =IF($B$8="Property Boundary", VLOOKUP($F94,NA_All!$A$5:$J$505,3*($C$6-1)+3), VLOOKUP($F94,NA_All!$L$5:$U$505,3*($C$6-1)+3)) -> 0 | L94: =IF($B$8="Property Boundary", VLOOKUP($F94,NA_All!$A$5:$J$505,3*($C$6-1)+4), VLOOKUP($F94,NA_All!$L$5:$U$505,3*($C$6-1)+4)) -> 0 | M94: 1000
F95: 144 | G95: =IF($B$8="Property Boundary", VLOOKUP($F95,P_All!$A$5:$J$505,3*($C$6-1)+2), VLOOKUP($F95,P_All!$L$5:$U$505,3*($C$6-1)+2)) -> 56.959 | H95: =IF($B$8="Property Boundary", VLOOKUP($F95,P_All!$A$5:$J$505,3*($C$6-1)+3), VLOOKUP($F95,P_All!$L$5:$U$505,3*($C$6-1)+3)) -> 82.761 | I95: =IF($B$8="Property Boundary", VLOOKUP($F95,P_All!$A$5:$J$505,3*($C$6-1)+4), VLOOKUP($F95,P_All!$L$5:$U$505,3*($C$6-1)+4)) -> 118.59 | J95: =IF($B$8="Property Boundary", VLOOKUP($F95,NA_All!$A$5:$J$505,3*($C$6-1)+2), VLOOKUP($F95,NA_All!$L$5:$U$505,3*($C$6-1)+2)) -> 0 | K95: =IF($B$8="Property Boundary", VLOOKUP($F95,NA_All!$A$5:$J$505,3*($C$6-1)+3), VLOOKUP($F95,NA_All!$L$5:$U$505,3*($C$6-1)+3)) -> 0 | L95: =IF($B$8="Property Boundary", VLOOKUP($F95,NA_All!$A$5:$J$505,3*($C$6-1)+4), VLOOKUP($F95,NA_All!$L$5:$U$505,3*($C$6-1)+4)) -> 0 | M95: 1000
F96: 146 | G96: =IF($B$8="Property Boundary", VLOOKUP($F96,P_All!$A$5:$J$505,3*($C$6-1)+2), VLOOKUP($F96,P_All!$L$5:$U$505,3*($C$6-1)+2)) -> 56.345 | H96: =IF($B$8="Property Boundary", VLOOKUP($F96,P_All!$A$5:$J$505,3*($C$6-1)+3), VLOOKUP($F96,P_All!$L$5:$U$505,3*($C$6-1)+3)) -> 82.091 | I96: =IF($B$8="Property Boundary", VLOOKUP($F96,P_All!$A$5:$J$505,3*($C$6-1)+4), VLOOKUP($F96,P_All!$L$5:$U$505,3*($C$6-1)+4)) -> 117.95 | J96: =IF($B$8="Property Boundary", VLOOKUP($F96,NA_All!$A$5:$J$505,3*($C$6-1)+2), VLOOKUP($F96,NA_All!$L$5:$U$505,3*($C$6-1)+2)) -> 0 | K96: =IF($B$8="Property Boundary", VLOOKUP($F96,NA_All!$A$5:$J$505,3*($C$6-1)+3), VLOOKUP($F96,NA_All!$L$5:$U$505,3*($C$6-1)+3)) -> 0 | L96: =IF($B$8="Property Boundary", VLOOKUP($F96,NA_All!$A$5:$J$505,3*($C$6-1)+4), VLOOKUP($F96,NA_All!$L$5:$U$505,3*($C$6-1)+4)) -> 0 | M96: 1000
F97: 148 | G97: =IF($B$8="Property Boundary", VLOOKUP($F97,P_All!$A$5:$J$505,3*($C$6-1)+2), VLOOKUP($F97,P_All!$L$5:$U$505,3*($C$6-1)+2)) -> 55.74 | H97: =IF($B$8="Property Boundary", VLOOKUP($F97,P_All!$A$5:$J$505,3*($C$6-1)+3), VLOOKUP($F97,P_All!$L$5:$U$505,3*($C$6-1)+3)) -> 81.352 | I97: =IF($B$8="Property Boundary", VLOOKUP($F97,P_All!$A$5:$J$505,3*($C$6-1)+4), VLOOKUP($F97,P_All!$L$5:$U$505,3*($C$6-1)+4)) -> 117.12 | J97: =IF($B$8="Property Boundary", VLOOKUP($F97,NA_All!$A$5:$J$505,3*($C$6-1)+2), VLOOKUP($F97,NA_All!$L$5:$U$505,3*($C$6-1)+2)) -> 0 | K97: =IF($B$8="Property Boundary", VLOOKUP($F97,NA_All!$A$5:$J$505,3*($C$6-1)+3), VLOOKUP($F97,NA_All!$L$5:$U$505,3*($C$6-1)+3)) -> 0 | L97: =IF($B$8="Property Boundary", VLOOKUP($F97,NA_All!$A$5:$J$505,3*($C$6-1)+4), VLOOKUP($F97,NA_All!$L$5:$U$505,3*($C$6-1)+4)) -> 0 | M97: 1000
F98: 150 | G98: =IF($B$8="Property Boundary", VLOOKUP($F98,P_All!$A$5:$J$505,3*($C$6-1)+2), VLOOKUP($F98,P_All!$L$5:$U$505,3*($C$6-1)+2)) -> 54.973 | H98: =IF($B$8="Property Boundary", VLOOKUP($F98,P_All!$A$5:$J$505,3*($C$6-1)+3), VLOOKUP($F98,P_All!$L$5:$U$505,3*($C$6-1)+3)) -> 80.624 | I98: =IF($B$8="Property Boundary", VLOOKUP($F98,P_All!$A$5:$J$505,3*($C$6-1)+4), VLOOKUP($F98,P_All!$L$5:$U$505,3*($C$6-1)+4)) -> 116.3 | J98: =IF($B$8="Property Boundary", VLOOKUP($F98,NA_All!$A$5:$J$505,3*($C$6-1)+2), VLOOKUP($F98,NA_All!$L$5:$U$505,3*($C$6-1)+2)) -> 0 | K98: =IF($B$8="Property Boundary", VLOOKUP($F98,NA_All!$A$5:$J$505,3*($C$6-1)+3), VLOOKUP($F98,NA_All!$L$5:$U$505,3*($C$6-1)+3)) -> 0 | L98: =IF($B$8="Property Boundary", VLOOKUP($F98,NA_All!$A$5:$J$505,3*($C$6-1)+4), VLOOKUP($F98,NA_All!$L$5:$U$505,3*($C$6-1)+4)) -> 0 | M98: 1000
F99: 152 | G99: =IF($B$8="Property Boundary", VLOOKUP($F99,P_All!$A$5:$J$505,3*($C$6-1)+2), VLOOKUP($F99,P_All!$L$5:$U$505,3*($C$6-1)+2)) -> 54.274 | H99: =IF($B$8="Property Boundary", VLOOKUP($F99,P_All!$A$5:$J$505,3*($C$6-1)+3), VLOOKUP($F99,P_All!$L$5:$U$505,3*($C$6-1)+3)) -> 79.924 | I99: =IF($B$8="Property Boundary", VLOOKUP($F99,P_All!$A$5:$J$505,3*($C$6-1)+4), VLOOKUP($F99,P_All!$L$5:$U$505,3*($C$6-1)+4)) -> 115.49 | J99: =IF($B$8="Property Boundary", VLOOKUP($F99,NA_All!$A$5:$J$505,3*($C$6-1)+2), VLOOKUP($F99,NA_All!$L$5:$U$505,3*($C$6-1)+2)) -> 0 | K99: =IF($B$8="Property Boundary", VLOOKUP($F99,NA_All!$A$5:$J$505,3*($C$6-1)+3), VLOOKUP($F99,NA_All!$L$5:$U$505,3*($C$6-1)+3)) -> 0 | L99: =IF($B$8="Property Boundary", VLOOKUP($F99,NA_All!$A$5:$J$505,3*($C$6-1)+4), VLOOKUP($F99,NA_All!$L$5:$U$505,3*($C$6-1)+4)) -> 0 | M99: 1000
F100: 154 | G100: =IF($B$8="Property Boundary", VLOOKUP($F100,P_All!$A$5:$J$505,3*($C$6-1)+2), VLOOKUP($F100,P_All!$L$5:$U$505,3*($C$6-1)+2)) -> 53.691 | H100: =IF($B$8="Property Boundary", VLOOKUP($F100,P_All!$A$5:$J$505,3*($C$6-1)+3), VLOOKUP($F100,P_All!$L$5:$U$505,3*($C$6-1)+3)) -> 79.159 | I100: =IF($B$8="Property Boundary", VLOOKUP($F100,P_All!$A$5:$J$505,3*($C$6-1)+4), VLOOKUP($F100,P_All!$L$5:$U$505,3*($C$6-1)+4)) -> 114.64 | J100: =IF($B$8="Property Boundary", VLOOKUP($F100,NA_All!$A$5:$J$505,3*($C$6-1)+2), VLOOKUP($F100,NA_All!$L$5:$U$505,3*($C$6-1)+2)) -> 0 | K100: =IF($B$8="Property Boundary", VLOOKUP($F100,NA_All!$A$5:$J$505,3*($C$6-1)+3), VLOOKUP($F100,NA_All!$L$5:$U$505,3*($C$6-1)+3)) -> 0 | L100: =IF($B$8="Property Boundary", VLOOKUP($F100,NA_All!$A$5:$J$505,3*($C$6-1)+4), VLOOKUP($F100,NA_All!$L$5:$U$505,3*($C$6-1)+4)) -> 0 | M100: 1000
F101: 156 | G101: =IF($B$8="Property Boundary", VLOOKUP($F101,P_All!$A$5:$J$505,3*($C$6-1)+2), VLOOKUP($F101,P_All!$L$5:$U$505,3*($C$6-1)+2)) -> 53.164 | H101: =IF($B$8="Property Boundary", VLOOKUP($F101,P_All!$A$5:$J$505,3*($C$6-1)+3), VLOOKUP($F101,P_All!$L$5:$U$505,3*($C$6-1)+3)) -> 78.403 | I101: =IF($B$8="Property Boundary", VLOOKUP($F101,P_All!$A$5:$J$505,3*($C$6-1)+4), VLOOKUP($F101,P_All!$L$5:$U$505,3*($C$6-1)+4)) -> 113.72 | J101: =IF($B$8="Property Boundary", VLOOKUP($F101,NA_All!$A$5:$J$505,3*($C$6-1)+2), VLOOKUP($F101,NA_All!$L$5:$U$505,3*($C$6-1)+2)) -> 0 | K101: =IF($B$8="Property Boundary", VLOOKUP($F101,NA_All!$A$5:$J$505,3*($C$6-1)+3), VLOOKUP($F101,NA_All!$L$5:$U$505,3*($C$6-1)+3)) -> 0 | L101: =IF($B$8="Property Boundary", VLOOKUP($F101,NA_All!$A$5:$J$505,3*($C$6-1)+4), VLOOKUP($F101,NA_All!$L$5:$U$505,3*($C$6-1)+4)) -> 0 | M101: 1000
F102: 158 | G102: =IF($B$8="Property Boundary", VLOOKUP($F102,P_All!$A$5:$J$505,3*($C$6-1)+2), VLOOKUP($F102,P_All!$L$5:$U$505,3*($C$6-1)+2)) -> 52.651 | H102: =IF($B$8="Property Boundary", VLOOKUP($F102,P_All!$A$5:$J$505,3*($C$6-1)+3), VLOOKUP($F102,P_All!$L$5:$U$505,3*($C$6-1)+3)) -> 77.785 | I102: =IF($B$8="Property Boundary", VLOOKUP($F102,P_All!$A$5:$J$505,3*($C$6-1)+4), VLOOKUP($F102,P_All!$L$5:$U$505,3*($C$6-1)+4)) -> 112.98 | J102: =IF($B$8="Property Boundary", VLOOKUP($F102,NA_All!$A$5:$J$505,3*($C$6-1)+2), VLOOKUP($F102,NA_All!$L$5:$U$505,3*($C$6-1)+2)) -> 0 | K102: =IF($B$8="Property Boundary", VLOOKUP($F102,NA_All!$A$5:$J$505,3*($C$6-1)+3), VLOOKUP($F102,NA_All!$L$5:$U$505,3*($C$6-1)+3)) -> 0 | L102: =IF($B$8="Property Boundary", VLOOKUP($F102,NA_All!$A$5:$J$505,3*($C$6-1)+4), VLOOKUP($F102,NA_All!$L$5:$U$505,3*($C$6-1)+4)) -> 0 | M102: 1000
F103: 160 | G103: =IF($B$8="Property Boundary", VLOOKUP($F103,P_All!$A$5:$J$505,3*($C$6-1)+2), VLOOKUP($F103,P_All!$L$5:$U$505,3*($C$6-1)+2)) -> 51.992 | H103: =IF($B$8="Property Boundary", VLOOKUP($F103,P_All!$A$5:$J$505,3*($C$6-1)+3), VLOOKUP($F103,P_All!$L$5:$U$505,3*($C$6-1)+3)) -> 77.093 | I103: =IF($B$8="Property Boundary", VLOOKUP($F103,P_All!$A$5:$J$505,3*($C$6-1)+4), VLOOKUP($F103,P_All!$L$5:$U$505,3*($C$6-1)+4)) -> 112.23 | J103: =IF($B$8="Property Boundary", VLOOKUP($F103,NA_All!$A$5:$J$505,3*($C$6-1)+2), VLOOKUP($F103,NA_All!$L$5:$U$505,3*($C$6-1)+2)) -> 0 | K103: =IF($B$8="Property Boundary", VLOOKUP($F103,NA_All!$A$5:$J$505,3*($C$6-1)+3), VLOOKUP($F103,NA_All!$L$5:$U$505,3*($C$6-1)+3)) -> 0 | L103: =IF($B$8="Property Boundary", VLOOKUP($F103,NA_All!$A$5:$J$505,3*($C$6-1)+4), VLOOKUP($F103,NA_All!$L$5:$U$505,3*($C$6-1)+4)) -> 0 | M103: 1000
F104: 162 | G104: =IF($B$8="Property Boundary", VLOOKUP($F104,P_All!$A$5:$J$505,3*($C$6-1)+2), VLOOKUP($F104,P_All!$L$5:$U$505,3*($C$6-1)+2)) -> 51.571 | H104: =IF($B$8="Property Boundary", VLOOKUP($F104,P_All!$A$5:$J$505,3*($C$6-1)+3), VLOOKUP($F104,P_All!$L$5:$U$505,3*($C$6-1)+3)) -> 76.514 | I104: =IF($B$8="Property Boundary", VLOOKUP($F104,P_All!$A$5:$J$505,3*($C$6-1)+4), VLOOKUP($F104,P_All!$L$5:$U$505,3*($C$6-1)+4)) -> 111.49 | J104: =IF($B$8="Property Boundary", VLOOKUP($F104,NA_All!$A$5:$J$505,3*($C$6-1)+2), VLOOKUP($F104,NA_All!$L$5:$U$505,3*($C$6-1)+2)) -> 0 | K104: =IF($B$8="Property Boundary", VLOOKUP($F104,NA_All!$A$5:$J$505,3*($C$6-1)+3), VLOOKUP($F104,NA_All!$L$5:$U$505,3*($C$6-1)+3)) -> 0 | L104: =IF($B$8="Property Boundary", VLOOKUP($F104,NA_All!$A$5:$J$505,3*($C$6-1)+4), VLOOKUP($F104,NA_All!$L$5:$U$505,3*($C$6-1)+4)) -> 0 | M104: 1000
F105: 164 | G105: =IF($B$8="Property Boundary", VLOOKUP($F105,P_All!$A$5:$J$505,3*($C$6-1)+2), VLOOKUP($F105,P_All!$L$5:$U$505,3*($C$6-1)+2)) -> 51.15 | H105: =IF($B$8="Property Boundary", VLOOKUP($F105,P_All!$A$5:$J$505,3*($C$6-1)+3), VLOOKUP($F105,P_All!$L$5:$U$505,3*($C$6-1)+3)) -> 75.892 | I105: =IF($B$8="Property Boundary", VLOOKUP($F105,P_All!$A$5:$J$505,3*($C$6-1)+4), VLOOKUP($F105,P_All!$L$5:$U$505,3*($C$6-1)+4)) -> 110.71 | J105: =IF($B$8="Property Boundary", VLOOKUP($F105,NA_All!$A$5:$J$505,3*($C$6-1)+2), VLOOKUP($F105,NA_All!$L$5:$U$505,3*($C$6-1)+2)) -> 0 | K105: =IF($B$8="Property Boundary", VLOOKUP($F105,NA_All!$A$5:$J$505,3*($C$6-1)+3), VLOOKUP($F105,NA_All!$L$5:$U$505,3*($C$6-1)+3)) -> 0 | L105: =IF($B$8="Property Boundary", VLOOKUP($F105,NA_All!$A$5:$J$505,3*($C$6-1)+4), VLOOKUP($F105,NA_All!$L$5:$U$505,3*($C$6-1)+4)) -> 0 | M105: 1000
F106: 166 | G106: =IF($B$8="Property Boundary", VLOOKUP($F106,P_All!$A$5:$J$505,3*($C$6-1)+2), VLOOKUP($F106,P_All!$L$5:$U$505,3*($C$6-1)+2)) -> 50.66 | H106: =IF($B$8="Property Boundary", VLOOKUP($F106,P_All!$A$5:$J$505,3*($C$6-1)+3), VLOOKUP($F106,P_All!$L$5:$U$505,3*($C$6-1)+3)) -> 75.254 | I106: =IF($B$8="Property Boundary", VLOOKUP($F106,P_All!$A$5:$J$505,3*($C$6-1)+4), VLOOKUP($F106,P_All!$L$5:$U$505,3*($C$6-1)+4)) -> 109.89 | J106: =IF($B$8="Property Boundary", VLOOKUP($F106,NA_All!$A$5:$J$505,3*($C$6-1)+2), VLOOKUP($F106,NA_All!$L$5:$U$505,3*($C$6-1)+2)) -> 0 | K106: =IF($B$8="Property Boundary", VLOOKUP($F106,NA_All!$A$5:$J$505,3*($C$6-1)+3), VLOOKUP($F106,NA_All!$L$5:$U$505,3*($C$6-1)+3)) -> 0 | L106: =IF($B$8="Property Boundary", VLOOKUP($F106,NA_All!$A$5:$J$505,3*($C$6-1)+4), VLOOKUP($F106,NA_All!$L$5:$U$505,3*($C$6-1)+4)) -> 0 | M106: 1000
F107: 168 | G107: =IF($B$8="Property Boundary", VLOOKUP($F107,P_All!$A$5:$J$505,3*($C$6-1)+2), VLOOKUP($F107,P_All!$L$5:$U$505,3*($C$6-1)+2)) -> 50.111 | H107: =IF($B$8="Property Boundary", VLOOKUP($F107,P_All!$A$5:$J$505,3*($C$6-1)+3), VLOOKUP($F107,P_All!$L$5:$U$505,3*($C$6-1)+3)) -> 74.539 | I107: =IF($B$8="Property Boundary", VLOOKUP($F107,P_All!$A$5:$J$505,3*($C$6-1)+4), VLOOKUP($F107,P_All!$L$5:$U$505,3*($C$6-1)+4)) -> 109.13 | J107: =IF($B$8="Property Boundary", VLOOKUP($F107,NA_All!$A$5:$J$505,3*($C$6-1)+2), VLOOKUP($F107,NA_All!$L$5:$U$505,3*($C$6-1)+2)) -> 0 | K107: =IF($B$8="Property Boundary", VLOOKUP($F107,NA_All!$A$5:$J$505,3*($C$6-1)+3), VLOOKUP($F107,NA_All!$L$5:$U$505,3*($C$6-1)+3)) -> 0 | L107: =IF($B$8="Property Boundary", VLOOKUP($F107,NA_All!$A$5:$J$505,3*($C$6-1)+4), VLOOKUP($F107,NA_All!$L$5:$U$505,3*($C$6-1)+4)) -> 0 | M107: 1000
F108: 170 | G108: =IF($B$8="Property Boundary", VLOOKUP($F108,P_All!$A$5:$J$505,3*($C$6-1)+2), VLOOKUP($F108,P_All!$L$5:$U$505,3*($C$6-1)+2)) -> 49.597 | H108: =IF($B$8="Property Boundary", VLOOKUP($F108,P_All!$A$5:$J$505,3*($C$6-1)+3), VLOOKUP($F108,P_All!$L$5:$U$505,3*($C$6-1)+3)) -> 73.831 | I108: =IF($B$8="Property Boundary", VLOOKUP($F108,P_All!$A$5:$J$505,3*($C$6-1)+4), VLOOKUP($F108,P_All!$L$5:$U$505,3*($C$6-1)+4)) -> 108.43 | J108: =IF($B$8="Property Boundary", VLOOKUP($F108,NA_All!$A$5:$J$505,3*($C$6-1)+2), VLOOKUP($F108,NA_All!$L$5:$U$505,3*($C$6-1)+2)) -> 0 | K108: =IF($B$8="Property Boundary", VLOOKUP($F108,NA_All!$A$5:$J$505,3*($C$6-1)+3), VLOOKUP($F108,NA_All!$L$5:$U$505,3*($C$6-1)+3)) -> 0 | L108: =IF($B$8="Property Boundary", VLOOKUP($F108,NA_All!$A$5:$J$505,3*($C$6-1)+4), VLOOKUP($F108,NA_All!$L$5:$U$505,3*($C$6-1)+4)) -> 0 | M108: 1000
F109: 172 | G109: =IF($B$8="Property Boundary", VLOOKUP($F109,P_All!$A$5:$J$505,3*($C$6-1)+2), VLOOKUP($F109,P_All!$L$5:$U$505,3*($C$6-1)+2)) -> 49.006 | H109: =IF($B$8="Property Boundary", VLOOKUP($F109,P_All!$A$5:$J$505,3*($C$6-1)+3), VLOOKUP($F109,P_All!$L$5:$U$505,3*($C$6-1)+3)) -> 73.076 | I109: =IF($B$8="Property Boundary", VLOOKUP($F109,P_All!$A$5:$J$505,3*($C$6-1)+4), VLOOKUP($F109,P_All!$L$5:$U$505,3*($C$6-1)+4)) -> 107.74 | J109: =IF($B$8="Property Boundary", VLOOKUP($F109,NA_All!$A$5:$J$505,3*($C$6-1)+2), VLOOKUP($F109,NA_All!$L$5:$U$505,3*($C$6-1)+2)) -> 0 | K109: =IF($B$8="Property Boundary", VLOOKUP($F109,NA_All!$A$5:$J$505,3*($C$6-1)+3), VLOOKUP($F109,NA_All!$L$5:$U$505,3*($C$6-1)+3)) -> 0 | L109: =IF($B$8="Property Boundary", VLOOKUP($F109,NA_All!$A$5:$J$505,3*($C$6-1)+4), VLOOKUP($F109,NA_All!$L$5:$U$505,3*($C$6-1)+4)) -> 0 | M109: 1000
F110: 174 | G110: =IF($B$8="Property Boundary", VLOOKUP($F110,P_All!$A$5:$J$505,3*($C$6-1)+2), VLOOKUP($F110,P_All!$L$5:$U$505,3*($C$6-1)+2)) -> 48.47 | H110: =IF($B$8="Property Boundary", VLOOKUP($F110,P_All!$A$5:$J$505,3*($C$6-1)+3), VLOOKUP($F110,P_All!$L$5:$U$505,3*($C$6-1)+3)) -> 72.432 | I110: =IF($B$8="Property Boundary", VLOOKUP($F110,P_All!$A$5:$J$505,3*($C$6-1)+4), VLOOKUP($F110,P_All!$L$5:$U$505,3*($C$6-1)+4)) -> 107.04 | J110: =IF($B$8="Property Boundary", VLOOKUP($F110,NA_All!$A$5:$J$505,3*($C$6-1)+2), VLOOKUP($F110,NA_All!$L$5:$U$505,3*($C$6-1)+2)) -> 0 | K110: =IF($B$8="Property Boundary", VLOOKUP($F110,NA_All!$A$5:$J$505,3*($C$6-1)+3), VLOOKUP($F110,NA_All!$L$5:$U$505,3*($C$6-1)+3)) -> 0 | L110: =IF($B$8="Property Boundary", VLOOKUP($F110,NA_All!$A$5:$J$505,3*($C$6-1)+4), VLOOKUP($F110,NA_All!$L$5:$U$505,3*($C$6-1)+4)) -> 0 | M110: 1000
F111: 176 | G111: =IF($B$8="Property Boundary", VLOOKUP($F111,P_All!$A$5:$J$505,3*($C$6-1)+2), VLOOKUP($F111,P_All!$L$5:$U$505,3*($C$6-1)+2)) -> 47.937 | H111: =IF($B$8="Property Boundary", VLOOKUP($F111,P_All!$A$5:$J$505,3*($C$6-1)+3), VLOOKUP($F111,P_All!$L$5:$U$505,3*($C$6-1)+3)) -> 71.911 | I111: =IF($B$8="Property Boundary", VLOOKUP($F111,P_All!$A$5:$J$505,3*($C$6-1)+4), VLOOKUP($F111,P_All!$L$5:$U$505,3*($C$6-1)+4)) -> 106.26 | J111: =IF($B$8="Property Boundary", VLOOKUP($F111,NA_All!$A$5:$J$505,3*($C$6-1)+2), VLOOKUP($F111,NA_All!$L$5:$U$505,3*($C$6-1)+2)) -> 0 | K111: =IF($B$8="Property Boundary", VLOOKUP($F111,NA_All!$A$5:$J$505,3*($C$6-1)+3), VLOOKUP($F111,NA_All!$L$5:$U$505,3*($C$6-1)+3)) -> 0 | L111: =IF($B$8="Property Boundary", VLOOKUP($F111,NA_All!$A$5:$J$505,3*($C$6-1)+4), VLOOKUP($F111,NA_All!$L$5:$U$505,3*($C$6-1)+4)) -> 0 | M111: 1000
F112: 178 | G112: =IF($B$8="Property Boundary", VLOOKUP($F112,P_All!$A$5:$J$505,3*($C$6-1)+2), VLOOKUP($F112,P_All!$L$5:$U$505,3*($C$6-1)+2)) -> 47.302 | H112: =IF($B$8="Property Boundary", VLOOKUP($F112,P_All!$A$5:$J$505,3*($C$6-1)+3), VLOOKUP($F112,P_All!$L$5:$U$505,3*($C$6-1)+3)) -> 71.21 | I112: =IF($B$8="Property Boundary", VLOOKUP($F112,P_All!$A$5:$J$505,3*($C$6-1)+4), VLOOKUP($F112,P_All!$L$5:$U$505,3*($C$6-1)+4)) -> 105.48 | J112: =IF($B$8="Property Boundary", VLOOKUP($F112,NA_All!$A$5:$J$505,3*($C$6-1)+2), VLOOKUP($F112,NA_All!$L$5:$U$505,3*($C$6-1)+2)) -> 0 | K112: =IF($B$8="Property Boundary", VLOOKUP($F112,NA_All!$A$5:$J$505,3*($C$6-1)+3), VLOOKUP($F112,NA_All!$L$5:$U$505,3*($C$6-1)+3)) -> 0 | L112: =IF($B$8="Property Boundary", VLOOKUP($F112,NA_All!$A$5:$J$505,3*($C$6-1)+4), VLOOKUP($F112,NA_All!$L$5:$U$505,3*($C$6-1)+4)) -> 0 | M112: 1000
F113: 180 | G113: =IF($B$8="Property Boundary", VLOOKUP($F113,P_All!$A$5:$J$505,3*($C$6-1)+2), VLOOKUP($F113,P_All!$L$5:$U$505,3*($C$6-1)+2)) -> 46.806 | H113: =IF($B$8="Property Boundary", VLOOKUP($F113,P_All!$A$5:$J$505,3*($C$6-1)+3), VLOOKUP($F113,P_All!$L$5:$U$505,3*($C$6-1)+3)) -> 70.518 | I113: =IF($B$8="Property Boundary", VLOOKUP($F113,P_All!$A$5:$J$505,3*($C$6-1)+4), VLOOKUP($F113,P_All!$L$5:$U$505,3*($C$6-1)+4)) -> 104.7 | J113: =IF($B$8="Property Boundary", VLOOKUP($F113,NA_All!$A$5:$J$505,3*($C$6-1)+2), VLOOKUP($F113,NA_All!$L$5:$U$505,3*($C$6-1)+2)) -> 0 | K113: =IF($B$8="Property Boundary", VLOOKUP($F113,NA_All!$A$5:$J$505,3*($C$6-1)+3), VLOOKUP($F113,NA_All!$L$5:$U$505,3*($C$6-1)+3)) -> 0 | L113: =IF($B$8="Property Boundary", VLOOKUP($F113,NA_All!$A$5:$J$505,3*($C$6-1)+4), VLOOKUP($F113,NA_All!$L$5:$U$505,3*($C$6-1)+4)) -> 0 | M113: 1000
F114: 182 | G114: =IF($B$8="Property Boundary", VLOOKUP($F114,P_All!$A$5:$J$505,3*($C$6-1)+2), VLOOKUP($F114,P_All!$L$5:$U$505,3*($C$6-1)+2)) -> 46.198 | H114: =IF($B$8="Property Boundary", VLOOKUP($F114,P_All!$A$5:$J$505,3*($C$6-1)+3), VLOOKUP($F114,P_All!$L$5:$U$505,3*($C$6-1)+3)) -> 69.877 | I114: =IF($B$8="Property Boundary", VLOOKUP($F114,P_All!$A$5:$J$505,3*($C$6-1)+4), VLOOKUP($F114,P_All!$L$5:$U$505,3*($C$6-1)+4)) -> 103.94 | J114: =IF($B$8="Property Boundary", VLOOKUP($F114,NA_All!$A$5:$J$505,3*($C$6-1)+2), VLOOKUP($F114,NA_All!$L$5:$U$505,3*($C$6-1)+2)) -> 0 | K114: =IF($B$8="Property Boundary", VLOOKUP($F114,NA_All!$A$5:$J$505,3*($C$6-1)+3), VLOOKUP($F114,NA_All!$L$5:$U$505,3*($C$6-1)+3)) -> 0 | L114: =IF($B$8="Property Boundary", VLOOKUP($F114,NA_All!$A$5:$J$505,3*($C$6-1)+4), VLOOKUP($F114,NA_All!$L$5:$U$505,3*($C$6-1)+4)) -> 0 | M114: 1000
F115: 184 | G115: =IF($B$8="Property Boundary", VLOOKUP($F115,P_All!$A$5:$J$505,3*($C$6-1)+2), VLOOKUP($F115,P_All!$L$5:$U$505,3*($C$6-1)+2)) -> 45.641 | H115: =IF($B$8="Property Boundary", VLOOKUP($F115,P_All!$A$5:$J$505,3*($C$6-1)+3), VLOOKUP($F115,P_All!$L$5:$U$505,3*($C$6-1)+3)) -> 69.252 | I115: =IF($B$8="Property Boundary", VLOOKUP($F115,P_All!$A$5:$J$505,3*($C$6-1)+4), VLOOKUP($F115,P_All!$L$5:$U$505,3*($C$6-1)+4)) -> 103.22 | J115: =IF($B$8="Property Boundary", VLOOKUP($F115,NA_All!$A$5:$J$505,3*($C$6-1)+2), VLOOKUP($F115,NA_All!$L$5:$U$505,3*($C$6-1)+2)) -> 0 | K115: =IF($B$8="Property Boundary", VLOOKUP($F115,NA_All!$A$5:$J$505,3*($C$6-1)+3), VLOOKUP($F115,NA_All!$L$5:$U$505,3*($C$6-1)+3)) -> 0 | L115: =IF($B$8="Property Boundary", VLOOKUP($F115,NA_All!$A$5:$J$505,3*($C$6-1)+4), VLOOKUP($F115,NA_All!$L$5:$U$505,3*($C$6-1)+4)) -> 0 | M115: 1000
F116: 186 | G116: =IF($B$8="Property Boundary", VLOOKUP($F116,P_All!$A$5:$J$505,3*($C$6-1)+2), VLOOKUP($F116,P_All!$L$5:$U$505,3*($C$6-1)+2)) -> 45.127 | H116: =IF($B$8="Property Boundary", VLOOKUP($F116,P_All!$A$5:$J$505,3*($C$6-1)+3), VLOOKUP($F116,P_All!$L$5:$U$505,3*($C$6-1)+3)) -> 68.649 | I116: =IF($B$8="Property Boundary", VLOOKUP($F116,P_All!$A$5:$J$505,3*($C$6-1)+4), VLOOKUP($F116,P_All!$L$5:$U$505,3*($C$6-1)+4)) -> 102.5 | J116: =IF($B$8="Property Boundary", VLOOKUP($F116,NA_All!$A$5:$J$505,3*($C$6-1)+2), VLOOKUP($F116,NA_All!$L$5:$U$505,3*($C$6-1)+2)) -> 0 | K116: =IF($B$8="Property Boundary", VLOOKUP($F116,NA_All!$A$5:$J$505,3*($C$6-1)+3), VLOOKUP($F116,NA_All!$L$5:$U$505,3*($C$6-1)+3)) -> 0 | L116: =IF($B$8="Property Boundary", VLOOKUP($F116,NA_All!$A$5:$J$505,3*($C$6-1)+4), VLOOKUP($F116,NA_All!$L$5:$U$505,3*($C$6-1)+4)) -> 0 | M116: 1000
F117: 188 | G117: =IF($B$8="Property Boundary", VLOOKUP($F117,P_All!$A$5:$J$505,3*($C$6-1)+2), VLOOKUP($F117,P_All!$L$5:$U$505,3*($C$6-1)+2)) -> 44.712 | H117: =IF($B$8="Property Boundary", VLOOKUP($F117,P_All!$A$5:$J$505,3*($C$6-1)+3), VLOOKUP($F117,P_All!$L$5:$U$505,3*($C$6-1)+3)) -> 68.049 | I117: =IF($B$8="Property Boundary", VLOOKUP($F117,P_All!$A$5:$J$505,3*($C$6-1)+4), VLOOKUP($F117,P_All!$L$5:$U$505,3*($C$6-1)+4)) -> 101.79 | J117: =IF($B$8="Property Boundary", VLOOKUP($F117,NA_All!$A$5:$J$505,3*($C$6-1)+2), VLOOKUP($F117,NA_All!$L$5:$U$505,3*($C$6-1)+2)) -> 0 | K117: =IF($B$8="Property Boundary", VLOOKUP($F117,NA_All!$A$5:$J$505,3*($C$6-1)+3), VLOOKUP($F117,NA_All!$L$5:$U$505,3*($C$6-1)+3)) -> 0 | L117: =IF($B$8="Property Boundary", VLOOKUP($F117,NA_All!$A$5:$J$505,3*($C$6-1)+4), VLOOKUP($F117,NA_All!$L$5:$U$505,3*($C$6-1)+4)) -> 0 | M117: 1000
F118: 190 | G118: =IF($B$8="Property Boundary", VLOOKUP($F118,P_All!$A$5:$J$505,3*($C$6-1)+2), VLOOKUP($F118,P_All!$L$5:$U$505,3*($C$6-1)+2)) -> 44.279 | H118: =IF($B$8="Property Boundary", VLOOKUP($F118,P_All!$A$5:$J$505,3*($C$6-1)+3), VLOOKUP($F118,P_All!$L$5:$U$505,3*($C$6-1)+3)) -> 67.38 | I118: =IF($B$8="Property Boundary", VLOOKUP($F118,P_All!$A$5:$J$505,3*($C$6-1)+4), VLOOKUP($F118,P_All!$L$5:$U$505,3*($C$6-1)+4)) -> 101.08 | J118: =IF($B$8="Property Boundary", VLOOKUP($F118,NA_All!$A$5:$J$505,3*($C$6-1)+2), VLOOKUP($F118,NA_All!$L$5:$U$505,3*($C$6-1)+2)) -> 0 | K118: =IF($B$8="Property Boundary", VLOOKUP($F118,NA_All!$A$5:$J$505,3*($C$6-1)+3), VLOOKUP($F118,NA_All!$L$5:$U$505,3*($C$6-1)+3)) -> 0 | L118: =IF($B$8="Property Boundary", VLOOKUP($F118,NA_All!$A$5:$J$505,3*($C$6-1)+4), VLOOKUP($F118,NA_All!$L$5:$U$505,3*($C$6-1)+4)) -> 0 | M118: 1000
F119: 192 | G119: =IF($B$8="Property Boundary", VLOOKUP($F119,P_All!$A$5:$J$505,3*($C$6-1)+2), VLOOKUP($F119,P_All!$L$5:$U$505,3*($C$6-1)+2)) -> 43.854 | H119: =IF($B$8="Property Boundary", VLOOKUP($F119,P_All!$A$5:$J$505,3*($C$6-1)+3), VLOOKUP($F119,P_All!$L$5:$U$505,3*($C$6-1)+3)) -> 66.903 | I119: =IF($B$8="Property Boundary", VLOOKUP($F119,P_All!$A$5:$J$505,3*($C$6-1)+4), VLOOKUP($F119,P_All!$L$5:$U$505,3*($C$6-1)+4)) -> 100.38 | J119: =IF($B$8="Property Boundary", VLOOKUP($F119,NA_All!$A$5:$J$505,3*($C$6-1)+2), VLOOKUP($F119,NA_All!$L$5:$U$505,3*($C$6-1)+2)) -> 0 | K119: =IF($B$8="Property Boundary", VLOOKUP($F119,NA_All!$A$5:$J$505,3*($C$6-1)+3), VLOOKUP($F119,NA_All!$L$5:$U$505,3*($C$6-1)+3)) -> 0 | L119: =IF($B$8="Property Boundary", VLOOKUP($F119,NA_All!$A$5:$J$505,3*($C$6-1)+4), VLOOKUP($F119,NA_All!$L$5:$U$505,3*($C$6-1)+4)) -> 0 | M119: 1000
F120: 194 | G120: =IF($B$8="Property Boundary", VLOOKUP($F120,P_All!$A$5:$J$505,3*($C$6-1)+2), VLOOKUP($F120,P_All!$L$5:$U$505,3*($C$6-1)+2)) -> 43.436 | H120: =IF($B$8="Property Boundary", VLOOKUP($F120,P_All!$A$5:$J$505,3*($C$6-1)+3), VLOOKUP($F120,P_All!$L$5:$U$505,3*($C$6-1)+3)) -> 66.357 | I120: =IF($B$8="Property Boundary", VLOOKUP($F120,P_All!$A$5:$J$505,3*($C$6-1)+4), VLOOKUP($F120,P_All!$L$5:$U$505,3*($C$6-1)+4)) -> 99.68 | J120: =IF($B$8="Property Boundary", VLOOKUP($F120,NA_All!$A$5:$J$505,3*($C$6-1)+2), VLOOKUP($F120,NA_All!$L$5:$U$505,3*($C$6-1)+2)) -> 0 | K120: =IF($B$8="Property Boundary", VLOOKUP($F120,NA_All!$A$5:$J$505,3*($C$6-1)+3), VLOOKUP($F120,NA_All!$L$5:$U$505,3*($C$6-1)+3)) -> 0 | L120: =IF($B$8="Property Boundary", VLOOKUP($F120,NA_All!$A$5:$J$505,3*($C$6-1)+4), VLOOKUP($F120,NA_All!$L$5:$U$505,3*($C$6-1)+4)) -> 0 | M120: 1000
F121: 196 | G121: =IF($B$8="Property Boundary", VLOOKUP($F121,P_All!$A$5:$J$505,3*($C$6-1)+2), VLOOKUP($F121,P_All!$L$5:$U$505,3*($C$6-1)+2)) -> 43.015 | H121: =IF($B$8="Property Boundary", VLOOKUP($F121,P_All!$A$5:$J$505,3*($C$6-1)+3), VLOOKUP($F121,P_All!$L$5:$U$505,3*($C$6-1)+3)) -> 65.643 | I121: =IF($B$8="Property Boundary", VLOOKUP($F121,P_All!$A$5:$J$505,3*($C$6-1)+4), VLOOKUP($F121,P_All!$L$5:$U$505,3*($C$6-1)+4)) -> 98.986 | J121: =IF($B$8="Property Boundary", VLOOKUP($F121,NA_All!$A$5:$J$505,3*($C$6-1)+2), VLOOKUP($F121,NA_All!$L$5:$U$505,3*($C$6-1)+2)) -> 0 | K121: =IF($B$8="Property Boundary", VLOOKUP($F121,NA_All!$A$5:$J$505,3*($C$6-1)+3), VLOOKUP($F121,NA_All!$L$5:$U$505,3*($C$6-1)+3)) -> 0 | L121: =IF($B$8="Property Boundary", VLOOKUP($F121,NA_All!$A$5:$J$505,3*($C$6-1)+4), VLOOKUP($F121,NA_All!$L$5:$U$505,3*($C$6-1)+4)) -> 0 | M121: 1000
F122: 198 | G122: =IF($B$8="Property Boundary", VLOOKUP($F122,P_All!$A$5:$J$505,3*($C$6-1)+2), VLOOKUP($F122,P_All!$L$5:$U$505,3*($C$6-1)+2)) -> 42.651 | H122: =IF($B$8="Property Boundary", VLOOKUP($F122,P_All!$A$5:$J$505,3*($C$6-1)+3), VLOOKUP($F122,P_All!$L$5:$U$505,3*($C$6-1)+3)) -> 64.954 | I122: =IF($B$8="Property Boundary", VLOOKUP($F122,P_All!$A$5:$J$505,3*($C$6-1)+4), VLOOKUP($F122,P_All!$L$5:$U$505,3*($C$6-1)+4)) -> 98.297 | J122: =IF($B$8="Property Boundary", VLOOKUP($F122,NA_All!$A$5:$J$505,3*($C$6-1)+2), VLOOKUP($F122,NA_All!$L$5:$U$505,3*($C$6-1)+2)) -> 0 | K122: =IF($B$8="Property Boundary", VLOOKUP($F122,NA_All!$A$5:$J$505,3*($C$6-1)+3), VLOOKUP($F122,NA_All!$L$5:$U$505,3*($C$6-1)+3)) -> 0 | L122: =IF($B$8="Property Boundary", VLOOKUP($F122,NA_All!$A$5:$J$505,3*($C$6-1)+4), VLOOKUP($F122,NA_All!$L$5:$U$505,3*($C$6-1)+4)) -> 0 | M122: 1000
F123: 200 | G123: =IF($B$8="Property Boundary", VLOOKUP($F123,P_All!$A$5:$J$505,3*($C$6-1)+2), VLOOKUP($F123,P_All!$L$5:$U$505,3*($C$6-1)+2)) -> 42.271 | H123: =IF($B$8="Property Boundary", VLOOKUP($F123,P_All!$A$5:$J$505,3*($C$6-1)+3), VLOOKUP($F123,P_All!$L$5:$U$505,3*($C$6-1)+3)) -> 64.386 | I123: =IF($B$8="Property Boundary", VLOOKUP($F123,P_All!$A$5:$J$505,3*($C$6-1)+4), VLOOKUP($F123,P_All!$L$5:$U$505,3*($C$6-1)+4)) -> 97.613 | J123: =IF($B$8="Property Boundary", VLOOKUP($F123,NA_All!$A$5:$J$505,3*($C$6-1)+2), VLOOKUP($F123,NA_All!$L$5:$U$505,3*($C$6-1)+2)) -> 0 | K123: =IF($B$8="Property Boundary", VLOOKUP($F123,NA_All!$A$5:$J$505,3*($C$6-1)+3), VLOOKUP($F123,NA_All!$L$5:$U$505,3*($C$6-1)+3)) -> 0 | L123: =IF($B$8="Property Boundary", VLOOKUP($F123,NA_All!$A$5:$J$505,3*($C$6-1)+4), VLOOKUP($F123,NA_All!$L$5:$U$505,3*($C$6-1)+4)) -> 0 | M123: 1000
F124: 202 | G124: =IF($B$8="Property Boundary", VLOOKUP($F124,P_All!$A$5:$J$505,3*($C$6-1)+2), VLOOKUP($F124,P_All!$L$5:$U$505,3*($C$6-1)+2)) -> 41.904 | H124: =IF($B$8="Property Boundary", VLOOKUP($F124,P_All!$A$5:$J$505,3*($C$6-1)+3), VLOOKUP($F124,P_All!$L$5:$U$505,3*($C$6-1)+3)) -> 63.873 | I124: =IF($B$8="Property Boundary", VLOOKUP($F124,P_All!$A$5:$J$505,3*($C$6-1)+4), VLOOKUP($F124,P_All!$L$5:$U$505,3*($C$6-1)+4)) -> 96.934 | J124: =IF($B$8="Property Boundary", VLOOKUP($F124,NA_All!$A$5:$J$505,3*($C$6-1)+2), VLOOKUP($F124,NA_All!$L$5:$U$505,3*($C$6-1)+2)) -> 0 | K124: =IF($B$8="Property Boundary", VLOOKUP($F124,NA_All!$A$5:$J$505,3*($C$6-1)+3), VLOOKUP($F124,NA_All!$L$5:$U$505,3*($C$6-1)+3)) -> 0 | L124: =IF($B$8="Property Boundary", VLOOKUP($F124,NA_All!$A$5:$J$505,3*($C$6-1)+4), VLOOKUP($F124,NA_All!$L$5:$U$505,3*($C$6-1)+4)) -> 0 | M124: 1000
F125: 204 | G125: =IF($B$8="Property Boundary", VLOOKUP($F125,P_All!$A$5:$J$505,3*($C$6-1)+2), VLOOKUP($F125,P_All!$L$5:$U$505,3*($C$6-1)+2)) -> 41.577 | H125: =IF($B$8="Property Boundary", VLOOKUP($F125,P_All!$A$5:$J$505,3*($C$6-1)+3), VLOOKUP($F125,P_All!$L$5:$U$505,3*($C$6-1)+3)) -> 63.199 | I125: =IF($B$8="Property Boundary", VLOOKUP($F125,P_All!$A$5:$J$505,3*($C$6-1)+4), VLOOKUP($F125,P_All!$L$5:$U$505,3*($C$6-1)+4)) -> 96.259 | J125: =IF($B$8="Property Boundary", VLOOKUP($F125,NA_All!$A$5:$J$505,3*($C$6-1)+2), VLOOKUP($F125,NA_All!$L$5:$U$505,3*($C$6-1)+2)) -> 0 | K125: =IF($B$8="Property Boundary", VLOOKUP($F125,NA_All!$A$5:$J$505,3*($C$6-1)+3), VLOOKUP($F125,NA_All!$L$5:$U$505,3*($C$6-1)+3)) -> 0 | L125: =IF($B$8="Property Boundary", VLOOKUP($F125,NA_All!$A$5:$J$505,3*($C$6-1)+4), VLOOKUP($F125,NA_All!$L$5:$U$505,3*($C$6-1)+4)) -> 0 | M125: 1000
F126: 206 | G126: =IF($B$8="Property Boundary", VLOOKUP($F126,P_All!$A$5:$J$505,3*($C$6-1)+2), VLOOKUP($F126,P_All!$L$5:$U$505,3*($C$6-1)+2)) -> 41.277 | H126: =IF($B$8="Property Boundary", VLOOKUP($F126,P_All!$A$5:$J$505,3*($C$6-1)+3), VLOOKUP($F126,P_All!$L$5:$U$505,3*($C$6-1)+3)) -> 62.707 | I126: =IF($B$8="Property Boundary", VLOOKUP($F126,P_All!$A$5:$J$505,3*($C$6-1)+4), VLOOKUP($F126,P_All!$L$5:$U$505,3*($C$6-1)+4)) -> 95.643 | J126: =IF($B$8="Property Boundary", VLOOKUP($F126,NA_All!$A$5:$J$505,3*($C$6-1)+2), VLOOKUP($F126,NA_All!$L$5:$U$505,3*($C$6-1)+2)) -> 0 | K126: =IF($B$8="Property Boundary", VLOOKUP($F126,NA_All!$A$5:$J$505,3*($C$6-1)+3), VLOOKUP($F126,NA_All!$L$5:$U$505,3*($C$6-1)+3)) -> 0 | L126: =IF($B$8="Property Boundary", VLOOKUP($F126,NA_All!$A$5:$J$505,3*($C$6-1)+4), VLOOKUP($F126,NA_All!$L$5:$U$505,3*($C$6-1)+4)) -> 0 | M126: 1000
F127: 208 | G127: =IF($B$8="Property Boundary", VLOOKUP($F127,P_All!$A$5:$J$505,3*($C$6-1)+2), VLOOKUP($F127,P_All!$L$5:$U$505,3*($C$6-1)+2)) -> 40.928 | H127: =IF($B$8="Property Boundary", VLOOKUP($F127,P_All!$A$5:$J$505,3*($C$6-1)+3), VLOOKUP($F127,P_All!$L$5:$U$505,3*($C$6-1)+3)) -> 62.219 | I127: =IF($B$8="Property Boundary", VLOOKUP($F127,P_All!$A$5:$J$505,3*($C$6-1)+4), VLOOKUP($F127,P_All!$L$5:$U$505,3*($C$6-1)+4)) -> 95.058 | J127: =IF($B$8="Property Boundary", VLOOKUP($F127,NA_All!$A$5:$J$505,3*($C$6-1)+2), VLOOKUP($F127,NA_All!$L$5:$U$505,3*($C$6-1)+2)) -> 0 | K127: =IF($B$8="Property Boundary", VLOOKUP($F127,NA_All!$A$5:$J$505,3*($C$6-1)+3), VLOOKUP($F127,NA_All!$L$5:$U$505,3*($C$6-1)+3)) -> 0 | L127: =IF($B$8="Property Boundary", VLOOKUP($F127,NA_All!$A$5:$J$505,3*($C$6-1)+4), VLOOKUP($F127,NA_All!$L$5:$U$505,3*($C$6-1)+4)) -> 0 | M127: 1000
F128: 210 | G128: =IF($B$8="Property Boundary", VLOOKUP($F128,P_All!$A$5:$J$505,3*($C$6-1)+2), VLOOKUP($F128,P_All!$L$5:$U$505,3*($C$6-1)+2)) -> 40.618 | H128: =IF($B$8="Property Boundary", VLOOKUP($F128,P_All!$A$5:$J$505,3*($C$6-1)+3), VLOOKUP($F128,P_All!$L$5:$U$505,3*($C$6-1)+3)) -> 61.736 | I128: =IF($B$8="Property Boundary", VLOOKUP($F128,P_All!$A$5:$J$505,3*($C$6-1)+4), VLOOKUP($F128,P_All!$L$5:$U$505,3*($C$6-1)+4)) -> 94.477 | J128: =IF($B$8="Property Boundary", VLOOKUP($F128,NA_All!$A$5:$J$505,3*($C$6-1)+2), VLOOKUP($F128,NA_All!$L$5:$U$505,3*($C$6-1)+2)) -> 0 | K128: =IF($B$8="Property Boundary", VLOOKUP($F128,NA_All!$A$5:$J$505,3*($C$6-1)+3), VLOOKUP($F128,NA_All!$L$5:$U$505,3*($C$6-1)+3)) -> 0 | L128: =IF($B$8="Property Boundary", VLOOKUP($F128,NA_All!$A$5:$J$505,3*($C$6-1)+4), VLOOKUP($F128,NA_All!$L$5:$U$505,3*($C$6-1)+4)) -> 0 | M128: 1000
F129: 212 | G129: =IF($B$8="Property Boundary", VLOOKUP($F129,P_All!$A$5:$J$505,3*($C$6-1)+2), VLOOKUP($F129,P_All!$L$5:$U$505,3*($C$6-1)+2)) -> 40.377 | H129: =IF($B$8="Property Boundary", VLOOKUP($F129,P_All!$A$5:$J$505,3*($C$6-1)+3), VLOOKUP($F129,P_All!$L$5:$U$505,3*($C$6-1)+3)) -> 61.299 | I129: =IF($B$8="Property Boundary", VLOOKUP($F129,P_All!$A$5:$J$505,3*($C$6-1)+4), VLOOKUP($F129,P_All!$L$5:$U$505,3*($C$6-1)+4)) -> 93.899 | J129: =IF($B$8="Property Boundary", VLOOKUP($F129,NA_All!$A$5:$J$505,3*($C$6-1)+2), VLOOKUP($F129,NA_All!$L$5:$U$505,3*($C$6-1)+2)) -> 0 | K129: =IF($B$8="Property Boundary", VLOOKUP($F129,NA_All!$A$5:$J$505,3*($C$6-1)+3), VLOOKUP($F129,NA_All!$L$5:$U$505,3*($C$6-1)+3)) -> 0 | L129: =IF($B$8="Property Boundary", VLOOKUP($F129,NA_All!$A$5:$J$505,3*($C$6-1)+4), VLOOKUP($F129,NA_All!$L$5:$U$505,3*($C$6-1)+4)) -> 0 | M129: 1000
F130: 214 | G130: =IF($B$8="Property Boundary", VLOOKUP($F130,P_All!$A$5:$J$505,3*($C$6-1)+2), VLOOKUP($F130,P_All!$L$5:$U$505,3*($C$6-1)+2)) -> 40.09 | H130: =IF($B$8="Property Boundary", VLOOKUP($F130,P_All!$A$5:$J$505,3*($C$6-1)+3), VLOOKUP($F130,P_All!$L$5:$U$505,3*($C$6-1)+3)) -> 60.869 | I130: =IF($B$8="Property Boundary", VLOOKUP($F130,P_All!$A$5:$J$505,3*($C$6-1)+4), VLOOKUP($F130,P_All!$L$5:$U$505,3*($C$6-1)+4)) -> 93.325 | J130: =IF($B$8="Property Boundary", VLOOKUP($F130,NA_All!$A$5:$J$505,3*($C$6-1)+2), VLOOKUP($F130,NA_All!$L$5:$U$505,3*($C$6-1)+2)) -> 0 | K130: =IF($B$8="Property Boundary", VLOOKUP($F130,NA_All!$A$5:$J$505,3*($C$6-1)+3), VLOOKUP($F130,NA_All!$L$5:$U$505,3*($C$6-1)+3)) -> 0 | L130: =IF($B$8="Property Boundary", VLOOKUP($F130,NA_All!$A$5:$J$505,3*($C$6-1)+4), VLOOKUP($F130,NA_All!$L$5:$U$505,3*($C$6-1)+4)) -> 0 | M130: 1000
F131: 216 | G131: =IF($B$8="Property Boundary", VLOOKUP($F131,P_All!$A$5:$J$505,3*($C$6-1)+2), VLOOKUP($F131,P_All!$L$5:$U$505,3*($C$6-1)+2)) -> 39.923 | H131: =IF($B$8="Property Boundary", VLOOKUP($F131,P_All!$A$5:$J$505,3*($C$6-1)+3), VLOOKUP($F131,P_All!$L$5:$U$505,3*($C$6-1)+3)) -> 60.442 | I131: =IF($B$8="Property Boundary", VLOOKUP($F131,P_All!$A$5:$J$505,3*($C$6-1)+4), VLOOKUP($F131,P_All!$L$5:$U$505,3*($C$6-1)+4)) -> 92.754 | J131: =IF($B$8="Property Boundary", VLOOKUP($F131,NA_All!$A$5:$J$505,3*($C$6-1)+2), VLOOKUP($F131,NA_All!$L$5:$U$505,3*($C$6-1)+2)) -> 0 | K131: =IF($B$8="Property Boundary", VLOOKUP($F131,NA_All!$A$5:$J$505,3*($C$6-1)+3), VLOOKUP($F131,NA_All!$L$5:$U$505,3*($C$6-1)+3)) -> 0 | L131: =IF($B$8="Property Boundary", VLOOKUP($F131,NA_All!$A$5:$J$505,3*($C$6-1)+4), VLOOKUP($F131,NA_All!$L$5:$U$505,3*($C$6-1)+4)) -> 0 | M131: 1000
F132: 218 | G132: =IF($B$8="Property Boundary", VLOOKUP($F132,P_All!$A$5:$J$505,3*($C$6-1)+2), VLOOKUP($F132,P_All!$L$5:$U$505,3*($C$6-1)+2)) -> 39.703 | H132: =IF($B$8="Property Boundary", VLOOKUP($F132,P_All!$A$5:$J$505,3*($C$6-1)+3), VLOOKUP($F132,P_All!$L$5:$U$505,3*($C$6-1)+3)) -> 59.998 | I132: =IF($B$8="Property Boundary", VLOOKUP($F132,P_All!$A$5:$J$505,3*($C$6-1)+4), VLOOKUP($F132,P_All!$L$5:$U$505,3*($C$6-1)+4)) -> 92.205 | J132: =IF($B$8="Property Boundary", VLOOKUP($F132,NA_All!$A$5:$J$505,3*($C$6-1)+2), VLOOKUP($F132,NA_All!$L$5:$U$505,3*($C$6-1)+2)) -> 0 | K132: =IF($B$8="Property Boundary", VLOOKUP($F132,NA_All!$A$5:$J$505,3*($C$6-1)+3), VLOOKUP($F132,NA_All!$L$5:$U$505,3*($C$6-1)+3)) -> 0 | L132: =IF($B$8="Property Boundary", VLOOKUP($F132,NA_All!$A$5:$J$505,3*($C$6-1)+4), VLOOKUP($F132,NA_All!$L$5:$U$505,3*($C$6-1)+4)) -> 0 | M132: 1000
F133: 220 | G133: =IF($B$8="Property Boundary", VLOOKUP($F133,P_All!$A$5:$J$505,3*($C$6-1)+2), VLOOKUP($F133,P_All!$L$5:$U$505,3*($C$6-1)+2)) -> 39.341 | H133: =IF($B$8="Property Boundary", VLOOKUP($F133,P_All!$A$5:$J$505,3*($C$6-1)+3), VLOOKUP($F133,P_All!$L$5:$U$505,3*($C$6-1)+3)) -> 59.417 | I133: =IF($B$8="Property Boundary", VLOOKUP($F133,P_All!$A$5:$J$505,3*($C$6-1)+4), VLOOKUP($F133,P_All!$L$5:$U$505,3*($C$6-1)+4)) -> 91.702 | J133: =IF($B$8="Property Boundary", VLOOKUP($F133,NA_All!$A$5:$J$505,3*($C$6-1)+2), VLOOKUP($F133,NA_All!$L$5:$U$505,3*($C$6-1)+2)) -> 0 | K133: =IF($B$8="Property Boundary", VLOOKUP($F133,NA_All!$A$5:$J$505,3*($C$6-1)+3), VLOOKUP($F133,NA_All!$L$5:$U$505,3*($C$6-1)+3)) -> 0 | L133: =IF($B$8="Property Boundary", VLOOKUP($F133,NA_All!$A$5:$J$505,3*($C$6-1)+4), VLOOKUP($F133,NA_All!$L$5:$U$505,3*($C$6-1)+4)) -> 0 | M133: 1000
F134: 222 | G134: =IF($B$8="Property Boundary", VLOOKUP($F134,P_All!$A$5:$J$505,3*($C$6-1)+2), VLOOKUP($F134,P_All!$L$5:$U$505,3*($C$6-1)+2)) -> 38.989 | H134: =IF($B$8="Property Boundary", VLOOKUP($F134,P_All!$A$5:$J$505,3*($C$6-1)+3), VLOOKUP($F134,P_All!$L$5:$U$505,3*($C$6-1)+3)) -> 58.9 | I134: =IF($B$8="Property Boundary", VLOOKUP($F134,P_All!$A$5:$J$505,3*($C$6-1)+4), VLOOKUP($F134,P_All!$L$5:$U$505,3*($C$6-1)+4)) -> 91.201 | J134: =IF($B$8="Property Boundary", VLOOKUP($F134,NA_All!$A$5:$J$505,3*($C$6-1)+2), VLOOKUP($F134,NA_All!$L$5:$U$505,3*($C$6-1)+2)) -> 0 | K134: =IF($B$8="Property Boundary", VLOOKUP($F134,NA_All!$A$5:$J$505,3*($C$6-1)+3), VLOOKUP($F134,NA_All!$L$5:$U$505,3*($C$6-1)+3)) -> 0 | L134: =IF($B$8="Property Boundary", VLOOKUP($F134,NA_All!$A$5:$J$505,3*($C$6-1)+4), VLOOKUP($F134,NA_All!$L$5:$U$505,3*($C$6-1)+4)) -> 0 | M134: 1000
F135: 224 | G135: =IF($B$8="Property Boundary", VLOOKUP($F135,P_All!$A$5:$J$505,3*($C$6-1)+2), VLOOKUP($F135,P_All!$L$5:$U$505,3*($C$6-1)+2)) -> 38.67 | H135: =IF($B$8="Property Boundary", VLOOKUP($F135,P_All!$A$5:$J$505,3*($C$6-1)+3), VLOOKUP($F135,P_All!$L$5:$U$505,3*($C$6-1)+3)) -> 58.519 | I135: =IF($B$8="Property Boundary", VLOOKUP($F135,P_All!$A$5:$J$505,3*($C$6-1)+4), VLOOKUP($F135,P_All!$L$5:$U$505,3*($C$6-1)+4)) -> 90.702 | J135: =IF($B$8="Property Boundary", VLOOKUP($F135,NA_All!$A$5:$J$505,3*($C$6-1)+2), VLOOKUP($F135,NA_All!$L$5:$U$505,3*($C$6-1)+2)) -> 0 | K135: =IF($B$8="Property Boundary", VLOOKUP($F135,NA_All!$A$5:$J$505,3*($C$6-1)+3), VLOOKUP($F135,NA_All!$L$5:$U$505,3*($C$6-1)+3)) -> 0 | L135: =IF($B$8="Property Boundary", VLOOKUP($F135,NA_All!$A$5:$J$505,3*($C$6-1)+4), VLOOKUP($F135,NA_All!$L$5:$U$505,3*($C$6-1)+4)) -> 0 | M135: 1000
F136: 226 | G136: =IF($B$8="Property Boundary", VLOOKUP($F136,P_All!$A$5:$J$505,3*($C$6-1)+2), VLOOKUP($F136,P_All!$L$5:$U$505,3*($C$6-1)+2)) -> 38.409 | H136: =IF($B$8="Property Boundary", VLOOKUP($F136,P_All!$A$5:$J$505,3*($C$6-1)+3), VLOOKUP($F136,P_All!$L$5:$U$505,3*($C$6-1)+3)) -> 58.141 | I136: =IF($B$8="Property Boundary", VLOOKUP($F136,P_All!$A$5:$J$505,3*($C$6-1)+4), VLOOKUP($F136,P_All!$L$5:$U$505,3*($C$6-1)+4)) -> 90.206 | J136: =IF($B$8="Property Boundary", VLOOKUP($F136,NA_All!$A$5:$J$505,3*($C$6-1)+2), VLOOKUP($F136,NA_All!$L$5:$U$505,3*($C$6-1)+2)) -> 0 | K136: =IF($B$8="Property Boundary", VLOOKUP($F136,NA_All!$A$5:$J$505,3*($C$6-1)+3), VLOOKUP($F136,NA_All!$L$5:$U$505,3*($C$6-1)+3)) -> 0 | L136: =IF($B$8="Property Boundary", VLOOKUP($F136,NA_All!$A$5:$J$505,3*($C$6-1)+4), VLOOKUP($F136,NA_All!$L$5:$U$505,3*($C$6-1)+4)) -> 0 | M136: 1000
F137: 228 | G137: =IF($B$8="Property Boundary", VLOOKUP($F137,P_All!$A$5:$J$505,3*($C$6-1)+2), VLOOKUP($F137,P_All!$L$5:$U$505,3*($C$6-1)+2)) -> 38.135 | H137: =IF($B$8="Property Boundary", VLOOKUP($F137,P_All!$A$5:$J$505,3*($C$6-1)+3), VLOOKUP($F137,P_All!$L$5:$U$505,3*($C$6-1)+3)) -> 57.741 | I137: =IF($B$8="Property Boundary", VLOOKUP($F137,P_All!$A$5:$J$505,3*($C$6-1)+4), VLOOKUP($F137,P_All!$L$5:$U$505,3*($C$6-1)+4)) -> 89.712 | J137: =IF($B$8="Property Boundary", VLOOKUP($F137,NA_All!$A$5:$J$505,3*($C$6-1)+2), VLOOKUP($F137,NA_All!$L$5:$U$505,3*($C$6-1)+2)) -> 0 | K137: =IF($B$8="Property Boundary", VLOOKUP($F137,NA_All!$A$5:$J$505,3*($C$6-1)+3), VLOOKUP($F137,NA_All!$L$5:$U$505,3*($C$6-1)+3)) -> 0 | L137: =IF($B$8="Property Boundary", VLOOKUP($F137,NA_All!$A$5:$J$505,3*($C$6-1)+4), VLOOKUP($F137,NA_All!$L$5:$U$505,3*($C$6-1)+4)) -> 0 | M137: 1000
F138: 230 | G138: =IF($B$8="Property Boundary", VLOOKUP($F138,P_All!$A$5:$J$505,3*($C$6-1)+2), VLOOKUP($F138,P_All!$L$5:$U$505,3*($C$6-1)+2)) -> 37.872 | H138: =IF($B$8="Property Boundary", VLOOKUP($F138,P_All!$A$5:$J$505,3*($C$6-1)+3), VLOOKUP($F138,P_All!$L$5:$U$505,3*($C$6-1)+3)) -> 57.32 | I138: =IF($B$8="Property Boundary", VLOOKUP($F138,P_All!$A$5:$J$505,3*($C$6-1)+4), VLOOKUP($F138,P_All!$L$5:$U$505,3*($C$6-1)+4)) -> 89.21 | J138: =IF($B$8="Property Boundary", VLOOKUP($F138,NA_All!$A$5:$J$505,3*($C$6-1)+2), VLOOKUP($F138,NA_All!$L$5:$U$505,3*($C$6-1)+2)) -> 0 | K138: =IF($B$8="Property Boundary", VLOOKUP($F138,NA_All!$A$5:$J$505,3*($C$6-1)+3), VLOOKUP($F138,NA_All!$L$5:$U$505,3*($C$6-1)+3)) -> 0 | L138: =IF($B$8="Property Boundary", VLOOKUP($F138,NA_All!$A$5:$J$505,3*($C$6-1)+4), VLOOKUP($F138,NA_All!$L$5:$U$505,3*($C$6-1)+4)) -> 0 | M138: 1000
F139: 232 | G139: =IF($B$8="Property Boundary", VLOOKUP($F139,P_All!$A$5:$J$505,3*($C$6-1)+2), VLOOKUP($F139,P_All!$L$5:$U$505,3*($C$6-1)+2)) -> 37.61 | H139: =IF($B$8="Property Boundary", VLOOKUP($F139,P_All!$A$5:$J$505,3*($C$6-1)+3), VLOOKUP($F139,P_All!$L$5:$U$505,3*($C$6-1)+3)) -> 56.975 | I139: =IF($B$8="Property Boundary", VLOOKUP($F139,P_All!$A$5:$J$505,3*($C$6-1)+4), VLOOKUP($F139,P_All!$L$5:$U$505,3*($C$6-1)+4)) -> 88.659 | J139: =IF($B$8="Property Boundary", VLOOKUP($F139,NA_All!$A$5:$J$505,3*($C$6-1)+2), VLOOKUP($F139,NA_All!$L$5:$U$505,3*($C$6-1)+2)) -> 0 | K139: =IF($B$8="Property Boundary", VLOOKUP($F139,NA_All!$A$5:$J$505,3*($C$6-1)+3), VLOOKUP($F139,NA_All!$L$5:$U$505,3*($C$6-1)+3)) -> 0 | L139: =IF($B$8="Property Boundary", VLOOKUP($F139,NA_All!$A$5:$J$505,3*($C$6-1)+4), VLOOKUP($F139,NA_All!$L$5:$U$505,3*($C$6-1)+4)) -> 0 | M139: 1000
F140: 234 | G140: =IF($B$8="Property Boundary", VLOOKUP($F140,P_All!$A$5:$J$505,3*($C$6-1)+2), VLOOKUP($F140,P_All!$L$5:$U$505,3*($C$6-1)+2)) -> 37.461 | H140: =IF($B$8="Property Boundary", VLOOKUP($F140,P_All!$A$5:$J$505,3*($C$6-1)+3), VLOOKUP($F140,P_All!$L$5:$U$505,3*($C$6-1)+3)) -> 56.496 | I140: =IF($B$8="Property Boundary", VLOOKUP($F140,P_All!$A$5:$J$505,3*($C$6-1)+4), VLOOKUP($F140,P_All!$L$5:$U$505,3*($C$6-1)+4)) -> 88.109 | J140: =IF($B$8="Property Boundary", VLOOKUP($F140,NA_All!$A$5:$J$505,3*($C$6-1)+2), VLOOKUP($F140,NA_All!$L$5:$U$505,3*($C$6-1)+2)) -> 0 | K140: =IF($B$8="Property Boundary", VLOOKUP($F140,NA_All!$A$5:$J$505,3*($C$6-1)+3), VLOOKUP($F140,NA_All!$L$5:$U$505,3*($C$6-1)+3)) -> 0 | L140: =IF($B$8="Property Boundary", VLOOKUP($F140,NA_All!$A$5:$J$505,3*($C$6-1)+4), VLOOKUP($F140,NA_All!$L$5:$U$505,3*($C$6-1)+4)) -> 0 | M140: 1000
F141: 236 | G141: =IF($B$8="Property Boundary", VLOOKUP($F141,P_All!$A$5:$J$505,3*($C$6-1)+2), VLOOKUP($F141,P_All!$L$5:$U$505,3*($C$6-1)+2)) -> 37.284 | H141: =IF($B$8="Property Boundary", VLOOKUP($F141,P_All!$A$5:$J$505,3*($C$6-1)+3), VLOOKUP($F141,P_All!$L$5:$U$505,3*($C$6-1)+3)) -> 56.023 | I141: =IF($B$8="Property Boundary", VLOOKUP($F141,P_All!$A$5:$J$505,3*($C$6-1)+4), VLOOKUP($F141,P_All!$L$5:$U$505,3*($C$6-1)+4)) -> 87.557 | J141: =IF($B$8="Property Boundary", VLOOKUP($F141,NA_All!$A$5:$J$505,3*($C$6-1)+2), VLOOKUP($F141,NA_All!$L$5:$U$505,3*($C$6-1)+2)) -> 0 | K141: =IF($B$8="Property Boundary", VLOOKUP($F141,NA_All!$A$5:$J$505,3*($C$6-1)+3), VLOOKUP($F141,NA_All!$L$5:$U$505,3*($C$6-1)+3)) -> 0 | L141: =IF($B$8="Property Boundary", VLOOKUP($F141,NA_All!$A$5:$J$505,3*($C$6-1)+4), VLOOKUP($F141,NA_All!$L$5:$U$505,3*($C$6-1)+4)) -> 0 | M141: 1000
F142: 238 | G142: =IF($B$8="Property Boundary", VLOOKUP($F142,P_All!$A$5:$J$505,3*($C$6-1)+2), VLOOKUP($F142,P_All!$L$5:$U$505,3*($C$6-1)+2)) -> 37.087 | H142: =IF($B$8="Property Boundary", VLOOKUP($F142,P_All!$A$5:$J$505,3*($C$6-1)+3), VLOOKUP($F142,P_All!$L$5:$U$505,3*($C$6-1)+3)) -> 55.537 | I142: =IF($B$8="Property Boundary", VLOOKUP($F142,P_All!$A$5:$J$505,3*($C$6-1)+4), VLOOKUP($F142,P_All!$L$5:$U$505,3*($C$6-1)+4)) -> 87.009 | J142: =IF($B$8="Property Boundary", VLOOKUP($F142,NA_All!$A$5:$J$505,3*($C$6-1)+2), VLOOKUP($F142,NA_All!$L$5:$U$505,3*($C$6-1)+2)) -> 0 | K142: =IF($B$8="Property Boundary", VLOOKUP($F142,NA_All!$A$5:$J$505,3*($C$6-1)+3), VLOOKUP($F142,NA_All!$L$5:$U$505,3*($C$6-1)+3)) -> 0 | L142: =IF($B$8="Property Boundary", VLOOKUP($F142,NA_All!$A$5:$J$505,3*($C$6-1)+4), VLOOKUP($F142,NA_All!$L$5:$U$505,3*($C$6-1)+4)) -> 0 | M142: 1000
F143: 240 | G143: =IF($B$8="Property Boundary", VLOOKUP($F143,P_All!$A$5:$J$505,3*($C$6-1)+2), VLOOKUP($F143,P_All!$L$5:$U$505,3*($C$6-1)+2)) -> 36.901 | H143: =IF($B$8="Property Boundary", VLOOKUP($F143,P_All!$A$5:$J$505,3*($C$6-1)+3), VLOOKUP($F143,P_All!$L$5:$U$505,3*($C$6-1)+3)) -> 54.962 | I143: =IF($B$8="Property Boundary", VLOOKUP($F143,P_All!$A$5:$J$505,3*($C$6-1)+4), VLOOKUP($F143,P_All!$L$5:$U$505,3*($C$6-1)+4)) -> 86.463 | J143: =IF($B$8="Property Boundary", VLOOKUP($F143,NA_All!$A$5:$J$505,3*($C$6-1)+2), VLOOKUP($F143,NA_All!$L$5:$U$505,3*($C$6-1)+2)) -> 0 | K143: =IF($B$8="Property Boundary", VLOOKUP($F143,NA_All!$A$5:$J$505,3*($C$6-1)+3), VLOOKUP($F143,NA_All!$L$5:$U$505,3*($C$6-1)+3)) -> 0 | L143: =IF($B$8="Property Boundary", VLOOKUP($F143,NA_All!$A$5:$J$505,3*($C$6-1)+4), VLOOKUP($F143,NA_All!$L$5:$U$505,3*($C$6-1)+4)) -> 0 | M143: 1000
F144: 242 | G144: =IF($B$8="Property Boundary", VLOOKUP($F144,P_All!$A$5:$J$505,3*($C$6-1)+2), VLOOKUP($F144,P_All!$L$5:$U$505,3*($C$6-1)+2)) -> 36.801 | H144: =IF($B$8="Property Boundary", VLOOKUP($F144,P_All!$A$5:$J$505,3*($C$6-1)+3), VLOOKUP($F144,P_All!$L$5:$U$505,3*($C$6-1)+3)) -> 54.479 | I144: =IF($B$8="Property Boundary", VLOOKUP($F144,P_All!$A$5:$J$505,3*($C$6-1)+4), VLOOKUP($F144,P_All!$L$5:$U$505,3*($C$6-1)+4)) -> 85.899 | J144: =IF($B$8="Property Boundary", VLOOKUP($F144,NA_All!$A$5:$J$505,3*($C$6-1)+2), VLOOKUP($F144,NA_All!$L$5:$U$505,3*($C$6-1)+2)) -> 0 | K144: =IF($B$8="Property Boundary", VLOOKUP($F144,NA_All!$A$5:$J$505,3*($C$6-1)+3), VLOOKUP($F144,NA_All!$L$5:$U$505,3*($C$6-1)+3)) -> 0 | L144: =IF($B$8="Property Boundary", VLOOKUP($F144,NA_All!$A$5:$J$505,3*($C$6-1)+4), VLOOKUP($F144,NA_All!$L$5:$U$505,3*($C$6-1)+4)) -> 0 | M144: 1000
F145: 244 | G145: =IF($B$8="Property Boundary", VLOOKUP($F145,P_All!$A$5:$J$505,3*($C$6-1)+2), VLOOKUP($F145,P_All!$L$5:$U$505,3*($C$6-1)+2)) -> 36.651 | H145: =IF($B$8="Property Boundary", VLOOKUP($F145,P_All!$A$5:$J$505,3*($C$6-1)+3), VLOOKUP($F145,P_All!$L$5:$U$505,3*($C$6-1)+3)) -> 53.887 | I145: =IF($B$8="Property Boundary", VLOOKUP($F145,P_All!$A$5:$J$505,3*($C$6-1)+4), VLOOKUP($F145,P_All!$L$5:$U$505,3*($C$6-1)+4)) -> 85.332 | J145: =IF($B$8="Property Boundary", VLOOKUP($F145,NA_All!$A$5:$J$505,3*($C$6-1)+2), VLOOKUP($F145,NA_All!$L$5:$U$505,3*($C$6-1)+2)) -> 0 | K145: =IF($B$8="Property Boundary", VLOOKUP($F145,NA_All!$A$5:$J$505,3*($C$6-1)+3), VLOOKUP($F145,NA_All!$L$5:$U$505,3*($C$6-1)+3)) -> 0 | L145: =IF($B$8="Property Boundary", VLOOKUP($F145,NA_All!$A$5:$J$505,3*($C$6-1)+4), VLOOKUP($F145,NA_All!$L$5:$U$505,3*($C$6-1)+4)) -> 0 | M145: 1000
F146: 246 | G146: =IF($B$8="Property Boundary", VLOOKUP($F146,P_All!$A$5:$J$505,3*($C$6-1)+2), VLOOKUP($F146,P_All!$L$5:$U$505,3*($C$6-1)+2)) -> 36.495 | H146: =IF($B$8="Property Boundary", VLOOKUP($F146,P_All!$A$5:$J$505,3*($C$6-1)+3), VLOOKUP($F146,P_All!$L$5:$U$505,3*($C$6-1)+3)) -> 53.411 | I146: =IF($B$8="Property Boundary", VLOOKUP($F146,P_All!$A$5:$J$505,3*($C$6-1)+4), VLOOKUP($F146,P_All!$L$5:$U$505,3*($C$6-1)+4)) -> 84.798 | J146: =IF($B$8="Property Boundary", VLOOKUP($F146,NA_All!$A$5:$J$505,3*($C$6-1)+2), VLOOKUP($F146,NA_All!$L$5:$U$505,3*($C$6-1)+2)) -> 0 | K146: =IF($B$8="Property Boundary", VLOOKUP($F146,NA_All!$A$5:$J$505,3*($C$6-1)+3), VLOOKUP($F146,NA_All!$L$5:$U$505,3*($C$6-1)+3)) -> 0 | L146: =IF($B$8="Property Boundary", VLOOKUP($F146,NA_All!$A$5:$J$505,3*($C$6-1)+4), VLOOKUP($F146,NA_All!$L$5:$U$505,3*($C$6-1)+4)) -> 0 | M146: 1000
F147: 248 | G147: =IF($B$8="Property Boundary", VLOOKUP($F147,P_All!$A$5:$J$505,3*($C$6-1)+2), VLOOKUP($F147,P_All!$L$5:$U$505,3*($C$6-1)+2)) -> 36.413 | H147: =IF($B$8="Property Boundary", VLOOKUP($F147,P_All!$A$5:$J$505,3*($C$6-1)+3), VLOOKUP($F147,P_All!$L$5:$U$505,3*($C$6-1)+3)) -> 52.868 | I147: =IF($B$8="Property Boundary", VLOOKUP($F147,P_All!$A$5:$J$505,3*($C$6-1)+4), VLOOKUP($F147,P_All!$L$5:$U$505,3*($C$6-1)+4)) -> 84.267 | J147: =IF($B$8="Property Boundary", VLOOKUP($F147,NA_All!$A$5:$J$505,3*($C$6-1)+2), VLOOKUP($F147,NA_All!$L$5:$U$505,3*($C$6-1)+2)) -> 0 | K147: =IF($B$8="Property Boundary", VLOOKUP($F147,NA_All!$A$5:$J$505,3*($C$6-1)+3), VLOOKUP($F147,NA_All!$L$5:$U$505,3*($C$6-1)+3)) -> 0 | L147: =IF($B$8="Property Boundary", VLOOKUP($F147,NA_All!$A$5:$J$505,3*($C$6-1)+4), VLOOKUP($F147,NA_All!$L$5:$U$505,3*($C$6-1)+4)) -> 0 | M147: 1000
F148: 250 | G148: =IF($B$8="Property Boundary", VLOOKUP($F148,P_All!$A$5:$J$505,3*($C$6-1)+2), VLOOKUP($F148,P_All!$L$5:$U$505,3*($C$6-1)+2)) -> 36.293 | H148: =IF($B$8="Property Boundary", VLOOKUP($F148,P_All!$A$5:$J$505,3*($C$6-1)+3), VLOOKUP($F148,P_All!$L$5:$U$505,3*($C$6-1)+3)) -> 52.43 | I148: =IF($B$8="Property Boundary", VLOOKUP($F148,P_All!$A$5:$J$505,3*($C$6-1)+4), VLOOKUP($F148,P_All!$L$5:$U$505,3*($C$6-1)+4)) -> 83.739 | J148: =IF($B$8="Property Boundary", VLOOKUP($F148,NA_All!$A$5:$J$505,3*($C$6-1)+2), VLOOKUP($F148,NA_All!$L$5:$U$505,3*($C$6-1)+2)) -> 0 | K148: =IF($B$8="Property Boundary", VLOOKUP($F148,NA_All!$A$5:$J$505,3*($C$6-1)+3), VLOOKUP($F148,NA_All!$L$5:$U$505,3*($C$6-1)+3)) -> 0 | L148: =IF($B$8="Property Boundary", VLOOKUP($F148,NA_All!$A$5:$J$505,3*($C$6-1)+4), VLOOKUP($F148,NA_All!$L$5:$U$505,3*($C$6-1)+4)) -> 0 | M148: 1000
F149: 252 | G149: =IF($B$8="Property Boundary", VLOOKUP($F149,P_All!$A$5:$J$505,3*($C$6-1)+2), VLOOKUP($F149,P_All!$L$5:$U$505,3*($C$6-1)+2)) -> 36.191 | H149: =IF($B$8="Property Boundary", VLOOKUP($F149,P_All!$A$5:$J$505,3*($C$6-1)+3), VLOOKUP($F149,P_All!$L$5:$U$505,3*($C$6-1)+3)) -> 51.958 | I149: =IF($B$8="Property Boundary", VLOOKUP($F149,P_All!$A$5:$J$505,3*($C$6-1)+4), VLOOKUP($F149,P_All!$L$5:$U$505,3*($C$6-1)+4)) -> 83.212 | J149: =IF($B$8="Property Boundary", VLOOKUP($F149,NA_All!$A$5:$J$505,3*($C$6-1)+2), VLOOKUP($F149,NA_All!$L$5:$U$505,3*($C$6-1)+2)) -> 0 | K149: =IF($B$8="Property Boundary", VLOOKUP($F149,NA_All!$A$5:$J$505,3*($C$6-1)+3), VLOOKUP($F149,NA_All!$L$5:$U$505,3*($C$6-1)+3)) -> 0 | L149: =IF($B$8="Property Boundary", VLOOKUP($F149,NA_All!$A$5:$J$505,3*($C$6-1)+4), VLOOKUP($F149,NA_All!$L$5:$U$505,3*($C$6-1)+4)) -> 0 | M149: 1000
F150: 254 | G150: =IF($B$8="Property Boundary", VLOOKUP($F150,P_All!$A$5:$J$505,3*($C$6-1)+2), VLOOKUP($F150,P_All!$L$5:$U$505,3*($C$6-1)+2)) -> 36.091 | H150: =IF($B$8="Property Boundary", VLOOKUP($F150,P_All!$A$5:$J$505,3*($C$6-1)+3), VLOOKUP($F150,P_All!$L$5:$U$505,3*($C$6-1)+3)) -> 51.446 | I150: =IF($B$8="Property Boundary", VLOOKUP($F150,P_All!$A$5:$J$505,3*($C$6-1)+4), VLOOKUP($F150,P_All!$L$5:$U$505,3*($C$6-1)+4)) -> 82.688 | J150: =IF($B$8="Property Boundary", VLOOKUP($F150,NA_All!$A$5:$J$505,3*($C$6-1)+2), VLOOKUP($F150,NA_All!$L$5:$U$505,3*($C$6-1)+2)) -> 0 | K150: =IF($B$8="Property Boundary", VLOOKUP($F150,NA_All!$A$5:$J$505,3*($C$6-1)+3), VLOOKUP($F150,NA_All!$L$5:$U$505,3*($C$6-1)+3)) -> 0 | L150: =IF($B$8="Property Boundary", VLOOKUP($F150,NA_All!$A$5:$J$505,3*($C$6-1)+4), VLOOKUP($F150,NA_All!$L$5:$U$505,3*($C$6-1)+4)) -> 0 | M150: 1000
F151: 256 | G151: =IF($B$8="Property Boundary", VLOOKUP($F151,P_All!$A$5:$J$505,3*($C$6-1)+2), VLOOKUP($F151,P_All!$L$5:$U$505,3*($C$6-1)+2)) -> 36.035 | H151: =IF($B$8="Property Boundary", VLOOKUP($F151,P_All!$A$5:$J$505,3*($C$6-1)+3), VLOOKUP($F151,P_All!$L$5:$U$505,3*($C$6-1)+3)) -> 51.033 | I151: =IF($B$8="Property Boundary", VLOOKUP($F151,P_All!$A$5:$J$505,3*($C$6-1)+4), VLOOKUP($F151,P_All!$L$5:$U$505,3*($C$6-1)+4)) -> 82.166 | J151: =IF($B$8="Property Boundary", VLOOKUP($F151,NA_All!$A$5:$J$505,3*($C$6-1)+2), VLOOKUP($F151,NA_All!$L$5:$U$505,3*($C$6-1)+2)) -> 0 | K151: =IF($B$8="Property Boundary", VLOOKUP($F151,NA_All!$A$5:$J$505,3*($C$6-1)+3), VLOOKUP($F151,NA_All!$L$5:$U$505,3*($C$6-1)+3)) -> 0 | L151: =IF($B$8="Property Boundary", VLOOKUP($F151,NA_All!$A$5:$J$505,3*($C$6-1)+4), VLOOKUP($F151,NA_All!$L$5:$U$505,3*($C$6-1)+4)) -> 0 | M151: 1000
F152: 258 | G152: =IF($B$8="Property Boundary", VLOOKUP($F152,P_All!$A$5:$J$505,3*($C$6-1)+2), VLOOKUP($F152,P_All!$L$5:$U$505,3*($C$6-1)+2)) -> 35.996 | H152: =IF($B$8="Property Boundary", VLOOKUP($F152,P_All!$A$5:$J$505,3*($C$6-1)+3), VLOOKUP($F152,P_All!$L$5:$U$505,3*($C$6-1)+3)) -> 50.662 | I152: =IF($B$8="Property Boundary", VLOOKUP($F152,P_All!$A$5:$J$505,3*($C$6-1)+4), VLOOKUP($F152,P_All!$L$5:$U$505,3*($C$6-1)+4)) -> 81.645 | J152: =IF($B$8="Property Boundary", VLOOKUP($F152,NA_All!$A$5:$J$505,3*($C$6-1)+2), VLOOKUP($F152,NA_All!$L$5:$U$505,3*($C$6-1)+2)) -> 0 | K152: =IF($B$8="Property Boundary", VLOOKUP($F152,NA_All!$A$5:$J$505,3*($C$6-1)+3), VLOOKUP($F152,NA_All!$L$5:$U$505,3*($C$6-1)+3)) -> 0 | L152: =IF($B$8="Property Boundary", VLOOKUP($F152,NA_All!$A$5:$J$505,3*($C$6-1)+4), VLOOKUP($F152,NA_All!$L$5:$U$505,3*($C$6-1)+4)) -> 0 | M152: =VLOOKUP($B$4,$A$23:$C$49,2) -> 1000 | N152: =VLOOKUP($B$4,$A$23:$C$49,3) -> 
F153: 260 | G153: =IF($B$8="Property Boundary", VLOOKUP($F153,P_All!$A$5:$J$505,3*($C$6-1)+2), VLOOKUP($F153,P_All!$L$5:$U$505,3*($C$6-1)+2)) -> 35.97 | H153: =IF($B$8="Property Boundary", VLOOKUP($F153,P_All!$A$5:$J$505,3*($C$6-1)+3), VLOOKUP($F153,P_All!$L$5:$U$505,3*($C$6-1)+3)) -> 50.193 | I153: =IF($B$8="Property Boundary", VLOOKUP($F153,P_All!$A$5:$J$505,3*($C$6-1)+4), VLOOKUP($F153,P_All!$L$5:$U$505,3*($C$6-1)+4)) -> 81.126 | J153: =IF($B$8="Property Boundary", VLOOKUP($F153,NA_All!$A$5:$J$505,3*($C$6-1)+2), VLOOKUP($F153,NA_All!$L$5:$U$505,3*($C$6-1)+2)) -> 0 | K153: =IF($B$8="Property Boundary", VLOOKUP($F153,NA_All!$A$5:$J$505,3*($C$6-1)+3), VLOOKUP($F153,NA_All!$L$5:$U$505,3*($C$6-1)+3)) -> 0 | L153: =IF($B$8="Property Boundary", VLOOKUP($F153,NA_All!$A$5:$J$505,3*($C$6-1)+4), VLOOKUP($F153,NA_All!$L$5:$U$505,3*($C$6-1)+4)) -> 0 | M153: 1000
F154: 262 | G154: =IF($B$8="Property Boundary", VLOOKUP($F154,P_All!$A$5:$J$505,3*($C$6-1)+2), VLOOKUP($F154,P_All!$L$5:$U$505,3*($C$6-1)+2)) -> 35.984 | H154: =IF($B$8="Property Boundary", VLOOKUP($F154,P_All!$A$5:$J$505,3*($C$6-1)+3), VLOOKUP($F154,P_All!$L$5:$U$505,3*($C$6-1)+3)) -> 49.833 | I154: =IF($B$8="Property Boundary", VLOOKUP($F154,P_All!$A$5:$J$505,3*($C$6-1)+4), VLOOKUP($F154,P_All!$L$5:$U$505,3*($C$6-1)+4)) -> 80.609 | J154: =IF($B$8="Property Boundary", VLOOKUP($F154,NA_All!$A$5:$J$505,3*($C$6-1)+2), VLOOKUP($F154,NA_All!$L$5:$U$505,3*($C$6-1)+2)) -> 0 | K154: =IF($B$8="Property Boundary", VLOOKUP($F154,NA_All!$A$5:$J$505,3*($C$6-1)+3), VLOOKUP($F154,NA_All!$L$5:$U$505,3*($C$6-1)+3)) -> 0 | L154: =IF($B$8="Property Boundary", VLOOKUP($F154,NA_All!$A$5:$J$505,3*($C$6-1)+4), VLOOKUP($F154,NA_All!$L$5:$U$505,3*($C$6-1)+4)) -> 0 | M154: 1000
F155: 264 | G155: =IF($B$8="Property Boundary", VLOOKUP($F155,P_All!$A$5:$J$505,3*($C$6-1)+2), VLOOKUP($F155,P_All!$L$5:$U$505,3*($C$6-1)+2)) -> 35.937 | H155: =IF($B$8="Property Boundary", VLOOKUP($F155,P_All!$A$5:$J$505,3*($C$6-1)+3), VLOOKUP($F155,P_All!$L$5:$U$505,3*($C$6-1)+3)) -> 49.499 | I155: =IF($B$8="Property Boundary", VLOOKUP($F155,P_All!$A$5:$J$505,3*($C$6-1)+4), VLOOKUP($F155,P_All!$L$5:$U$505,3*($C$6-1)+4)) -> 80.145 | J155: =IF($B$8="Property Boundary", VLOOKUP($F155,NA_All!$A$5:$J$505,3*($C$6-1)+2), VLOOKUP($F155,NA_All!$L$5:$U$505,3*($C$6-1)+2)) -> 0 | K155: =IF($B$8="Property Boundary", VLOOKUP($F155,NA_All!$A$5:$J$505,3*($C$6-1)+3), VLOOKUP($F155,NA_All!$L$5:$U$505,3*($C$6-1)+3)) -> 0 | L155: =IF($B$8="Property Boundary", VLOOKUP($F155,NA_All!$A$5:$J$505,3*($C$6-1)+4), VLOOKUP($F155,NA_All!$L$5:$U$505,3*($C$6-1)+4)) -> 0 | M155: 1000
F156: 266 | G156: =IF($B$8="Property Boundary", VLOOKUP($F156,P_All!$A$5:$J$505,3*($C$6-1)+2), VLOOKUP($F156,P_All!$L$5:$U$505,3*($C$6-1)+2)) -> 35.907 | H156: =IF($B$8="Property Boundary", VLOOKUP($F156,P_All!$A$5:$J$505,3*($C$6-1)+3), VLOOKUP($F156,P_All!$L$5:$U$505,3*($C$6-1)+3)) -> 49.149 | I156: =IF($B$8="Property Boundary", VLOOKUP($F156,P_All!$A$5:$J$505,3*($C$6-1)+4), VLOOKUP($F156,P_All!$L$5:$U$505,3*($C$6-1)+4)) -> 79.714 | J156: =IF($B$8="Property Boundary", VLOOKUP($F156,NA_All!$A$5:$J$505,3*($C$6-1)+2), VLOOKUP($F156,NA_All!$L$5:$U$505,3*($C$6-1)+2)) -> 0 | K156: =IF($B$8="Property Boundary", VLOOKUP($F156,NA_All!$A$5:$J$505,3*($C$6-1)+3), VLOOKUP($F156,NA_All!$L$5:$U$505,3*($C$6-1)+3)) -> 0 | L156: =IF($B$8="Property Boundary", VLOOKUP($F156,NA_All!$A$5:$J$505,3*($C$6-1)+4), VLOOKUP($F156,NA_All!$L$5:$U$505,3*($C$6-1)+4)) -> 0 | M156: 1000
F157: 268 | G157: =IF($B$8="Property Boundary", VLOOKUP($F157,P_All!$A$5:$J$505,3*($C$6-1)+2), VLOOKUP($F157,P_All!$L$5:$U$505,3*($C$6-1)+2)) -> 35.834 | H157: =IF($B$8="Property Boundary", VLOOKUP($F157,P_All!$A$5:$J$505,3*($C$6-1)+3), VLOOKUP($F157,P_All!$L$5:$U$505,3*($C$6-1)+3)) -> 48.788 | I157: =IF($B$8="Property Boundary", VLOOKUP($F157,P_All!$A$5:$J$505,3*($C$6-1)+4), VLOOKUP($F157,P_All!$L$5:$U$505,3*($C$6-1)+4)) -> 79.243 | J157: =IF($B$8="Property Boundary", VLOOKUP($F157,NA_All!$A$5:$J$505,3*($C$6-1)+2), VLOOKUP($F157,NA_All!$L$5:$U$505,3*($C$6-1)+2)) -> 0 | K157: =IF($B$8="Property Boundary", VLOOKUP($F157,NA_All!$A$5:$J$505,3*($C$6-1)+3), VLOOKUP($F157,NA_All!$L$5:$U$505,3*($C$6-1)+3)) -> 0 | L157: =IF($B$8="Property Boundary", VLOOKUP($F157,NA_All!$A$5:$J$505,3*($C$6-1)+4), VLOOKUP($F157,NA_All!$L$5:$U$505,3*($C$6-1)+4)) -> 0 | M157: 1000
F158: 270 | G158: =IF($B$8="Property Boundary", VLOOKUP($F158,P_All!$A$5:$J$505,3*($C$6-1)+2), VLOOKUP($F158,P_All!$L$5:$U$505,3*($C$6-1)+2)) -> 35.708 | H158: =IF($B$8="Property Boundary", VLOOKUP($F158,P_All!$A$5:$J$505,3*($C$6-1)+3), VLOOKUP($F158,P_All!$L$5:$U$505,3*($C$6-1)+3)) -> 48.451 | I158: =IF($B$8="Property Boundary", VLOOKUP($F158,P_All!$A$5:$J$505,3*($C$6-1)+4), VLOOKUP($F158,P_All!$L$5:$U$505,3*($C$6-1)+4)) -> 78.77 | J158: =IF($B$8="Property Boundary", VLOOKUP($F158,NA_All!$A$5:$J$505,3*($C$6-1)+2), VLOOKUP($F158,NA_All!$L$5:$U$505,3*($C$6-1)+2)) -> 0 | K158: =IF($B$8="Property Boundary", VLOOKUP($F158,NA_All!$A$5:$J$505,3*($C$6-1)+3), VLOOKUP($F158,NA_All!$L$5:$U$505,3*($C$6-1)+3)) -> 0 | L158: =IF($B$8="Property Boundary", VLOOKUP($F158,NA_All!$A$5:$J$505,3*($C$6-1)+4), VLOOKUP($F158,NA_All!$L$5:$U$505,3*($C$6-1)+4)) -> 0 | M158: 1000
F159: 272 | G159: =IF($B$8="Property Boundary", VLOOKUP($F159,P_All!$A$5:$J$505,3*($C$6-1)+2), VLOOKUP($F159,P_All!$L$5:$U$505,3*($C$6-1)+2)) -> 35.632 | H159: =IF($B$8="Property Boundary", VLOOKUP($F159,P_All!$A$5:$J$505,3*($C$6-1)+3), VLOOKUP($F159,P_All!$L$5:$U$505,3*($C$6-1)+3)) -> 48.115 | I159: =IF($B$8="Property Boundary", VLOOKUP($F159,P_All!$A$5:$J$505,3*($C$6-1)+4), VLOOKUP($F159,P_All!$L$5:$U$505,3*($C$6-1)+4)) -> 78.299 | J159: =IF($B$8="Property Boundary", VLOOKUP($F159,NA_All!$A$5:$J$505,3*($C$6-1)+2), VLOOKUP($F159,NA_All!$L$5:$U$505,3*($C$6-1)+2)) -> 0 | K159: =IF($B$8="Property Boundary", VLOOKUP($F159,NA_All!$A$5:$J$505,3*($C$6-1)+3), VLOOKUP($F159,NA_All!$L$5:$U$505,3*($C$6-1)+3)) -> 0 | L159: =IF($B$8="Property Boundary", VLOOKUP($F159,NA_All!$A$5:$J$505,3*($C$6-1)+4), VLOOKUP($F159,NA_All!$L$5:$U$505,3*($C$6-1)+4)) -> 0 | M159: 1000
F160: 274 | G160: =IF($B$8="Property Boundary", VLOOKUP($F160,P_All!$A$5:$J$505,3*($C$6-1)+2), VLOOKUP($F160,P_All!$L$5:$U$505,3*($C$6-1)+2)) -> 35.558 | H160: =IF($B$8="Property Boundary", VLOOKUP($F160,P_All!$A$5:$J$505,3*($C$6-1)+3), VLOOKUP($F160,P_All!$L$5:$U$505,3*($C$6-1)+3)) -> 47.925 | I160: =IF($B$8="Property Boundary", VLOOKUP($F160,P_All!$A$5:$J$505,3*($C$6-1)+4), VLOOKUP($F160,P_All!$L$5:$U$505,3*($C$6-1)+4)) -> 77.83 | J160: =IF($B$8="Property Boundary", VLOOKUP($F160,NA_All!$A$5:$J$505,3*($C$6-1)+2), VLOOKUP($F160,NA_All!$L$5:$U$505,3*($C$6-1)+2)) -> 0 | K160: =IF($B$8="Property Boundary", VLOOKUP($F160,NA_All!$A$5:$J$505,3*($C$6-1)+3), VLOOKUP($F160,NA_All!$L$5:$U$505,3*($C$6-1)+3)) -> 0 | L160: =IF($B$8="Property Boundary", VLOOKUP($F160,NA_All!$A$5:$J$505,3*($C$6-1)+4), VLOOKUP($F160,NA_All!$L$5:$U$505,3*($C$6-1)+4)) -> 0 | M160: 1000
F161: 276 | G161: =IF($B$8="Property Boundary", VLOOKUP($F161,P_All!$A$5:$J$505,3*($C$6-1)+2), VLOOKUP($F161,P_All!$L$5:$U$505,3*($C$6-1)+2)) -> 35.555 | H161: =IF($B$8="Property Boundary", VLOOKUP($F161,P_All!$A$5:$J$505,3*($C$6-1)+3), VLOOKUP($F161,P_All!$L$5:$U$505,3*($C$6-1)+3)) -> 47.703 | I161: =IF($B$8="Property Boundary", VLOOKUP($F161,P_All!$A$5:$J$505,3*($C$6-1)+4), VLOOKUP($F161,P_All!$L$5:$U$505,3*($C$6-1)+4)) -> 77.362 | J161: =IF($B$8="Property Boundary", VLOOKUP($F161,NA_All!$A$5:$J$505,3*($C$6-1)+2), VLOOKUP($F161,NA_All!$L$5:$U$505,3*($C$6-1)+2)) -> 0 | K161: =IF($B$8="Property Boundary", VLOOKUP($F161,NA_All!$A$5:$J$505,3*($C$6-1)+3), VLOOKUP($F161,NA_All!$L$5:$U$505,3*($C$6-1)+3)) -> 0 | L161: =IF($B$8="Property Boundary", VLOOKUP($F161,NA_All!$A$5:$J$505,3*($C$6-1)+4), VLOOKUP($F161,NA_All!$L$5:$U$505,3*($C$6-1)+4)) -> 0 | M161: 1000
F162: 278 | G162: =IF($B$8="Property Boundary", VLOOKUP($F162,P_All!$A$5:$J$505,3*($C$6-1)+2), VLOOKUP($F162,P_All!$L$5:$U$505,3*($C$6-1)+2)) -> 35.515 | H162: =IF($B$8="Property Boundary", VLOOKUP($F162,P_All!$A$5:$J$505,3*($C$6-1)+3), VLOOKUP($F162,P_All!$L$5:$U$505,3*($C$6-1)+3)) -> 47.395 | I162: =IF($B$8="Property Boundary", VLOOKUP($F162,P_All!$A$5:$J$505,3*($C$6-1)+4), VLOOKUP($F162,P_All!$L$5:$U$505,3*($C$6-1)+4)) -> 76.896 | J162: =IF($B$8="Property Boundary", VLOOKUP($F162,NA_All!$A$5:$J$505,3*($C$6-1)+2), VLOOKUP($F162,NA_All!$L$5:$U$505,3*($C$6-1)+2)) -> 0 | K162: =IF($B$8="Property Boundary", VLOOKUP($F162,NA_All!$A$5:$J$505,3*($C$6-1)+3), VLOOKUP($F162,NA_All!$L$5:$U$505,3*($C$6-1)+3)) -> 0 | L162: =IF($B$8="Property Boundary", VLOOKUP($F162,NA_All!$A$5:$J$505,3*($C$6-1)+4), VLOOKUP($F162,NA_All!$L$5:$U$505,3*($C$6-1)+4)) -> 0 | M162: 1000
F163: 280 | G163: =IF($B$8="Property Boundary", VLOOKUP($F163,P_All!$A$5:$J$505,3*($C$6-1)+2), VLOOKUP($F163,P_All!$L$5:$U$505,3*($C$6-1)+2)) -> 35.421 | H163: =IF($B$8="Property Boundary", VLOOKUP($F163,P_All!$A$5:$J$505,3*($C$6-1)+3), VLOOKUP($F163,P_All!$L$5:$U$505,3*($C$6-1)+3)) -> 47.042 | I163: =IF($B$8="Property Boundary", VLOOKUP($F163,P_All!$A$5:$J$505,3*($C$6-1)+4), VLOOKUP($F163,P_All!$L$5:$U$505,3*($C$6-1)+4)) -> 76.416 | J163: =IF($B$8="Property Boundary", VLOOKUP($F163,NA_All!$A$5:$J$505,3*($C$6-1)+2), VLOOKUP($F163,NA_All!$L$5:$U$505,3*($C$6-1)+2)) -> 0 | K163: =IF($B$8="Property Boundary", VLOOKUP($F163,NA_All!$A$5:$J$505,3*($C$6-1)+3), VLOOKUP($F163,NA_All!$L$5:$U$505,3*($C$6-1)+3)) -> 0 | L163: =IF($B$8="Property Boundary", VLOOKUP($F163,NA_All!$A$5:$J$505,3*($C$6-1)+4), VLOOKUP($F163,NA_All!$L$5:$U$505,3*($C$6-1)+4)) -> 0 | M163: 1000
F164: 282 | G164: =IF($B$8="Property Boundary", VLOOKUP($F164,P_All!$A$5:$J$505,3*($C$6-1)+2), VLOOKUP($F164,P_All!$L$5:$U$505,3*($C$6-1)+2)) -> 35.362 | H164: =IF($B$8="Property Boundary", VLOOKUP($F164,P_All!$A$5:$J$505,3*($C$6-1)+3), VLOOKUP($F164,P_All!$L$5:$U$505,3*($C$6-1)+3)) -> 46.79 | I164: =IF($B$8="Property Boundary", VLOOKUP($F164,P_All!$A$5:$J$505,3*($C$6-1)+4), VLOOKUP($F164,P_All!$L$5:$U$505,3*($C$6-1)+4)) -> 75.897 | J164: =IF($B$8="Property Boundary", VLOOKUP($F164,NA_All!$A$5:$J$505,3*($C$6-1)+2), VLOOKUP($F164,NA_All!$L$5:$U$505,3*($C$6-1)+2)) -> 0 | K164: =IF($B$8="Property Boundary", VLOOKUP($F164,NA_All!$A$5:$J$505,3*($C$6-1)+3), VLOOKUP($F164,NA_All!$L$5:$U$505,3*($C$6-1)+3)) -> 0 | L164: =IF($B$8="Property Boundary", VLOOKUP($F164,NA_All!$A$5:$J$505,3*($C$6-1)+4), VLOOKUP($F164,NA_All!$L$5:$U$505,3*($C$6-1)+4)) -> 0 | M164: 1000
F165: 284 | G165: =IF($B$8="Property Boundary", VLOOKUP($F165,P_All!$A$5:$J$505,3*($C$6-1)+2), VLOOKUP($F165,P_All!$L$5:$U$505,3*($C$6-1)+2)) -> 35.304 | H165: =IF($B$8="Property Boundary", VLOOKUP($F165,P_All!$A$5:$J$505,3*($C$6-1)+3), VLOOKUP($F165,P_All!$L$5:$U$505,3*($C$6-1)+3)) -> 46.629 | I165: =IF($B$8="Property Boundary", VLOOKUP($F165,P_All!$A$5:$J$505,3*($C$6-1)+4), VLOOKUP($F165,P_All!$L$5:$U$505,3*($C$6-1)+4)) -> 75.378 | J165: =IF($B$8="Property Boundary", VLOOKUP($F165,NA_All!$A$5:$J$505,3*($C$6-1)+2), VLOOKUP($F165,NA_All!$L$5:$U$505,3*($C$6-1)+2)) -> 0 | K165: =IF($B$8="Property Boundary", VLOOKUP($F165,NA_All!$A$5:$J$505,3*($C$6-1)+3), VLOOKUP($F165,NA_All!$L$5:$U$505,3*($C$6-1)+3)) -> 0 | L165: =IF($B$8="Property Boundary", VLOOKUP($F165,NA_All!$A$5:$J$505,3*($C$6-1)+4), VLOOKUP($F165,NA_All!$L$5:$U$505,3*($C$6-1)+4)) -> 0 | M165: 1000
F166: 286 | G166: =IF($B$8="Property Boundary", VLOOKUP($F166,P_All!$A$5:$J$505,3*($C$6-1)+2), VLOOKUP($F166,P_All!$L$5:$U$505,3*($C$6-1)+2)) -> 35.261 | H166: =IF($B$8="Property Boundary", VLOOKUP($F166,P_All!$A$5:$J$505,3*($C$6-1)+3), VLOOKUP($F166,P_All!$L$5:$U$505,3*($C$6-1)+3)) -> 46.32 | I166: =IF($B$8="Property Boundary", VLOOKUP($F166,P_All!$A$5:$J$505,3*($C$6-1)+4), VLOOKUP($F166,P_All!$L$5:$U$505,3*($C$6-1)+4)) -> 74.86 | J166: =IF($B$8="Property Boundary", VLOOKUP($F166,NA_All!$A$5:$J$505,3*($C$6-1)+2), VLOOKUP($F166,NA_All!$L$5:$U$505,3*($C$6-1)+2)) -> 0 | K166: =IF($B$8="Property Boundary", VLOOKUP($F166,NA_All!$A$5:$J$505,3*($C$6-1)+3), VLOOKUP($F166,NA_All!$L$5:$U$505,3*($C$6-1)+3)) -> 0 | L166: =IF($B$8="Property Boundary", VLOOKUP($F166,NA_All!$A$5:$J$505,3*($C$6-1)+4), VLOOKUP($F166,NA_All!$L$5:$U$505,3*($C$6-1)+4)) -> 0 | M166: 1000
F167: 288 | G167: =IF($B$8="Property Boundary", VLOOKUP($F167,P_All!$A$5:$J$505,3*($C$6-1)+2), VLOOKUP($F167,P_All!$L$5:$U$505,3*($C$6-1)+2)) -> 35.205 | H167: =IF($B$8="Property Boundary", VLOOKUP($F167,P_All!$A$5:$J$505,3*($C$6-1)+3), VLOOKUP($F167,P_All!$L$5:$U$505,3*($C$6-1)+3)) -> 46.016 | I167: =IF($B$8="Property Boundary", VLOOKUP($F167,P_All!$A$5:$J$505,3*($C$6-1)+4), VLOOKUP($F167,P_All!$L$5:$U$505,3*($C$6-1)+4)) -> 74.386 | J167: =IF($B$8="Property Boundary", VLOOKUP($F167,NA_All!$A$5:$J$505,3*($C$6-1)+2), VLOOKUP($F167,NA_All!$L$5:$U$505,3*($C$6-1)+2)) -> 0 | K167: =IF($B$8="Property Boundary", VLOOKUP($F167,NA_All!$A$5:$J$505,3*($C$6-1)+3), VLOOKUP($F167,NA_All!$L$5:$U$505,3*($C$6-1)+3)) -> 0 | L167: =IF($B$8="Property Boundary", VLOOKUP($F167,NA_All!$A$5:$J$505,3*($C$6-1)+4), VLOOKUP($F167,NA_All!$L$5:$U$505,3*($C$6-1)+4)) -> 0 | M167: 1000
F168: 290 | G168: =IF($B$8="Property Boundary", VLOOKUP($F168,P_All!$A$5:$J$505,3*($C$6-1)+2), VLOOKUP($F168,P_All!$L$5:$U$505,3*($C$6-1)+2)) -> 35.073 | H168: =IF($B$8="Property Boundary", VLOOKUP($F168,P_All!$A$5:$J$505,3*($C$6-1)+3), VLOOKUP($F168,P_All!$L$5:$U$505,3*($C$6-1)+3)) -> 45.707 | I168: =IF($B$8="Property Boundary", VLOOKUP($F168,P_All!$A$5:$J$505,3*($C$6-1)+4), VLOOKUP($F168,P_All!$L$5:$U$505,3*($C$6-1)+4)) -> 73.92 | J168: =IF($B$8="Property Boundary", VLOOKUP($F168,NA_All!$A$5:$J$505,3*($C$6-1)+2), VLOOKUP($F168,NA_All!$L$5:$U$505,3*($C$6-1)+2)) -> 0 | K168: =IF($B$8="Property Boundary", VLOOKUP($F168,NA_All!$A$5:$J$505,3*($C$6-1)+3), VLOOKUP($F168,NA_All!$L$5:$U$505,3*($C$6-1)+3)) -> 0 | L168: =IF($B$8="Property Boundary", VLOOKUP($F168,NA_All!$A$5:$J$505,3*($C$6-1)+4), VLOOKUP($F168,NA_All!$L$5:$U$505,3*($C$6-1)+4)) -> 0 | M168: 1000
F169: 292 | G169: =IF($B$8="Property Boundary", VLOOKUP($F169,P_All!$A$5:$J$505,3*($C$6-1)+2), VLOOKUP($F169,P_All!$L$5:$U$505,3*($C$6-1)+2)) -> 34.988 | H169: =IF($B$8="Property Boundary", VLOOKUP($F169,P_All!$A$5:$J$505,3*($C$6-1)+3), VLOOKUP($F169,P_All!$L$5:$U$505,3*($C$6-1)+3)) -> 45.427 | I169: =IF($B$8="Property Boundary", VLOOKUP($F169,P_All!$A$5:$J$505,3*($C$6-1)+4), VLOOKUP($F169,P_All!$L$5:$U$505,3*($C$6-1)+4)) -> 73.464 | J169: =IF($B$8="Property Boundary", VLOOKUP($F169,NA_All!$A$5:$J$505,3*($C$6-1)+2), VLOOKUP($F169,NA_All!$L$5:$U$505,3*($C$6-1)+2)) -> 0 | K169: =IF($B$8="Property Boundary", VLOOKUP($F169,NA_All!$A$5:$J$505,3*($C$6-1)+3), VLOOKUP($F169,NA_All!$L$5:$U$505,3*($C$6-1)+3)) -> 0 | L169: =IF($B$8="Property Boundary", VLOOKUP($F169,NA_All!$A$5:$J$505,3*($C$6-1)+4), VLOOKUP($F169,NA_All!$L$5:$U$505,3*($C$6-1)+4)) -> 0 | M169: 1000
F170: 294 | G170: =IF($B$8="Property Boundary", VLOOKUP($F170,P_All!$A$5:$J$505,3*($C$6-1)+2), VLOOKUP($F170,P_All!$L$5:$U$505,3*($C$6-1)+2)) -> 34.903 | H170: =IF($B$8="Property Boundary", VLOOKUP($F170,P_All!$A$5:$J$505,3*($C$6-1)+3), VLOOKUP($F170,P_All!$L$5:$U$505,3*($C$6-1)+3)) -> 45.143 | I170: =IF($B$8="Property Boundary", VLOOKUP($F170,P_All!$A$5:$J$505,3*($C$6-1)+4), VLOOKUP($F170,P_All!$L$5:$U$505,3*($C$6-1)+4)) -> 73.003 | J170: =IF($B$8="Property Boundary", VLOOKUP($F170,NA_All!$A$5:$J$505,3*($C$6-1)+2), VLOOKUP($F170,NA_All!$L$5:$U$505,3*($C$6-1)+2)) -> 0 | K170: =IF($B$8="Property Boundary", VLOOKUP($F170,NA_All!$A$5:$J$505,3*($C$6-1)+3), VLOOKUP($F170,NA_All!$L$5:$U$505,3*($C$6-1)+3)) -> 0 | L170: =IF($B$8="Property Boundary", VLOOKUP($F170,NA_All!$A$5:$J$505,3*($C$6-1)+4), VLOOKUP($F170,NA_All!$L$5:$U$505,3*($C$6-1)+4)) -> 0 | M170: 1000
F171: 296 | G171: =IF($B$8="Property Boundary", VLOOKUP($F171,P_All!$A$5:$J$505,3*($C$6-1)+2), VLOOKUP($F171,P_All!$L$5:$U$505,3*($C$6-1)+2)) -> 34.858 | H171: =IF($B$8="Property Boundary", VLOOKUP($F171,P_All!$A$5:$J$505,3*($C$6-1)+3), VLOOKUP($F171,P_All!$L$5:$U$505,3*($C$6-1)+3)) -> 44.991 | I171: =IF($B$8="Property Boundary", VLOOKUP($F171,P_All!$A$5:$J$505,3*($C$6-1)+4), VLOOKUP($F171,P_All!$L$5:$U$505,3*($C$6-1)+4)) -> 72.544 | J171: =IF($B$8="Property Boundary", VLOOKUP($F171,NA_All!$A$5:$J$505,3*($C$6-1)+2), VLOOKUP($F171,NA_All!$L$5:$U$505,3*($C$6-1)+2)) -> 0 | K171: =IF($B$8="Property Boundary", VLOOKUP($F171,NA_All!$A$5:$J$505,3*($C$6-1)+3), VLOOKUP($F171,NA_All!$L$5:$U$505,3*($C$6-1)+3)) -> 0 | L171: =IF($B$8="Property Boundary", VLOOKUP($F171,NA_All!$A$5:$J$505,3*($C$6-1)+4), VLOOKUP($F171,NA_All!$L$5:$U$505,3*($C$6-1)+4)) -> 0 | M171: 1000
F172: 298 | G172: =IF($B$8="Property Boundary", VLOOKUP($F172,P_All!$A$5:$J$505,3*($C$6-1)+2), VLOOKUP($F172,P_All!$L$5:$U$505,3*($C$6-1)+2)) -> 34.818 | H172: =IF($B$8="Property Boundary", VLOOKUP($F172,P_All!$A$5:$J$505,3*($C$6-1)+3), VLOOKUP($F172,P_All!$L$5:$U$505,3*($C$6-1)+3)) -> 44.722 | I172: =IF($B$8="Property Boundary", VLOOKUP($F172,P_All!$A$5:$J$505,3*($C$6-1)+4), VLOOKUP($F172,P_All!$L$5:$U$505,3*($C$6-1)+4)) -> 72.003 | J172: =IF($B$8="Property Boundary", VLOOKUP($F172,NA_All!$A$5:$J$505,3*($C$6-1)+2), VLOOKUP($F172,NA_All!$L$5:$U$505,3*($C$6-1)+2)) -> 0 | K172: =IF($B$8="Property Boundary", VLOOKUP($F172,NA_All!$A$5:$J$505,3*($C$6-1)+3), VLOOKUP($F172,NA_All!$L$5:$U$505,3*($C$6-1)+3)) -> 0 | L172: =IF($B$8="Property Boundary", VLOOKUP($F172,NA_All!$A$5:$J$505,3*($C$6-1)+4), VLOOKUP($F172,NA_All!$L$5:$U$505,3*($C$6-1)+4)) -> 0 | M172: 1000
F173: 300 | G173: =IF($B$8="Property Boundary", VLOOKUP($F173,P_All!$A$5:$J$505,3*($C$6-1)+2), VLOOKUP($F173,P_All!$L$5:$U$505,3*($C$6-1)+2)) -> 34.708 | H173: =IF($B$8="Property Boundary", VLOOKUP($F173,P_All!$A$5:$J$505,3*($C$6-1)+3), VLOOKUP($F173,P_All!$L$5:$U$505,3*($C$6-1)+3)) -> 44.408 | I173: =IF($B$8="Property Boundary", VLOOKUP($F173,P_All!$A$5:$J$505,3*($C$6-1)+4), VLOOKUP($F173,P_All!$L$5:$U$505,3*($C$6-1)+4)) -> 71.361 | J173: =IF($B$8="Property Boundary", VLOOKUP($F173,NA_All!$A$5:$J$505,3*($C$6-1)+2), VLOOKUP($F173,NA_All!$L$5:$U$505,3*($C$6-1)+2)) -> 0 | K173: =IF($B$8="Property Boundary", VLOOKUP($F173,NA_All!$A$5:$J$505,3*($C$6-1)+3), VLOOKUP($F173,NA_All!$L$5:$U$505,3*($C$6-1)+3)) -> 0 | L173: =IF($B$8="Property Boundary", VLOOKUP($F173,NA_All!$A$5:$J$505,3*($C$6-1)+4), VLOOKUP($F173,NA_All!$L$5:$U$505,3*($C$6-1)+4)) -> 0 | M173: 1000
F174: 302 | G174: =IF($B$8="Property Boundary", VLOOKUP($F174,P_All!$A$5:$J$505,3*($C$6-1)+2), VLOOKUP($F174,P_All!$L$5:$U$505,3*($C$6-1)+2)) -> 34.659 | H174: =IF($B$8="Property Boundary", VLOOKUP($F174,P_All!$A$5:$J$505,3*($C$6-1)+3), VLOOKUP($F174,P_All!$L$5:$U$505,3*($C$6-1)+3)) -> 44.181 | I174: =IF($B$8="Property Boundary", VLOOKUP($F174,P_All!$A$5:$J$505,3*($C$6-1)+4), VLOOKUP($F174,P_All!$L$5:$U$505,3*($C$6-1)+4)) -> 70.721 | J174: =IF($B$8="Property Boundary", VLOOKUP($F174,NA_All!$A$5:$J$505,3*($C$6-1)+2), VLOOKUP($F174,NA_All!$L$5:$U$505,3*($C$6-1)+2)) -> 0 | K174: =IF($B$8="Property Boundary", VLOOKUP($F174,NA_All!$A$5:$J$505,3*($C$6-1)+3), VLOOKUP($F174,NA_All!$L$5:$U$505,3*($C$6-1)+3)) -> 0 | L174: =IF($B$8="Property Boundary", VLOOKUP($F174,NA_All!$A$5:$J$505,3*($C$6-1)+4), VLOOKUP($F174,NA_All!$L$5:$U$505,3*($C$6-1)+4)) -> 0 | M174: 1000
F175: 304 | G175: =IF($B$8="Property Boundary", VLOOKUP($F175,P_All!$A$5:$J$505,3*($C$6-1)+2), VLOOKUP($F175,P_All!$L$5:$U$505,3*($C$6-1)+2)) -> 34.65 | H175: =IF($B$8="Property Boundary", VLOOKUP($F175,P_All!$A$5:$J$505,3*($C$6-1)+3), VLOOKUP($F175,P_All!$L$5:$U$505,3*($C$6-1)+3)) -> 43.962 | I175: =IF($B$8="Property Boundary", VLOOKUP($F175,P_All!$A$5:$J$505,3*($C$6-1)+4), VLOOKUP($F175,P_All!$L$5:$U$505,3*($C$6-1)+4)) -> 70.176 | J175: =IF($B$8="Property Boundary", VLOOKUP($F175,NA_All!$A$5:$J$505,3*($C$6-1)+2), VLOOKUP($F175,NA_All!$L$5:$U$505,3*($C$6-1)+2)) -> 0 | K175: =IF($B$8="Property Boundary", VLOOKUP($F175,NA_All!$A$5:$J$505,3*($C$6-1)+3), VLOOKUP($F175,NA_All!$L$5:$U$505,3*($C$6-1)+3)) -> 0 | L175: =IF($B$8="Property Boundary", VLOOKUP($F175,NA_All!$A$5:$J$505,3*($C$6-1)+4), VLOOKUP($F175,NA_All!$L$5:$U$505,3*($C$6-1)+4)) -> 0 | M175: 1000
F176: 306 | G176: =IF($B$8="Property Boundary", VLOOKUP($F176,P_All!$A$5:$J$505,3*($C$6-1)+2), VLOOKUP($F176,P_All!$L$5:$U$505,3*($C$6-1)+2)) -> 34.644 | H176: =IF($B$8="Property Boundary", VLOOKUP($F176,P_All!$A$5:$J$505,3*($C$6-1)+3), VLOOKUP($F176,P_All!$L$5:$U$505,3*($C$6-1)+3)) -> 43.807 | I176: =IF($B$8="Property Boundary", VLOOKUP($F176,P_All!$A$5:$J$505,3*($C$6-1)+4), VLOOKUP($F176,P_All!$L$5:$U$505,3*($C$6-1)+4)) -> 69.57 | J176: =IF($B$8="Property Boundary", VLOOKUP($F176,NA_All!$A$5:$J$505,3*($C$6-1)+2), VLOOKUP($F176,NA_All!$L$5:$U$505,3*($C$6-1)+2)) -> 0 | K176: =IF($B$8="Property Boundary", VLOOKUP($F176,NA_All!$A$5:$J$505,3*($C$6-1)+3), VLOOKUP($F176,NA_All!$L$5:$U$505,3*($C$6-1)+3)) -> 0 | L176: =IF($B$8="Property Boundary", VLOOKUP($F176,NA_All!$A$5:$J$505,3*($C$6-1)+4), VLOOKUP($F176,NA_All!$L$5:$U$505,3*($C$6-1)+4)) -> 0 | M176: 1000
F177: 308 | G177: =IF($B$8="Property Boundary", VLOOKUP($F177,P_All!$A$5:$J$505,3*($C$6-1)+2), VLOOKUP($F177,P_All!$L$5:$U$505,3*($C$6-1)+2)) -> 34.616 | H177: =IF($B$8="Property Boundary", VLOOKUP($F177,P_All!$A$5:$J$505,3*($C$6-1)+3), VLOOKUP($F177,P_All!$L$5:$U$505,3*($C$6-1)+3)) -> 43.684 | I177: =IF($B$8="Property Boundary", VLOOKUP($F177,P_All!$A$5:$J$505,3*($C$6-1)+4), VLOOKUP($F177,P_All!$L$5:$U$505,3*($C$6-1)+4)) -> 68.941 | J177: =IF($B$8="Property Boundary", VLOOKUP($F177,NA_All!$A$5:$J$505,3*($C$6-1)+2), VLOOKUP($F177,NA_All!$L$5:$U$505,3*($C$6-1)+2)) -> 0 | K177: =IF($B$8="Property Boundary", VLOOKUP($F177,NA_All!$A$5:$J$505,3*($C$6-1)+3), VLOOKUP($F177,NA_All!$L$5:$U$505,3*($C$6-1)+3)) -> 0 | L177: =IF($B$8="Property Boundary", VLOOKUP($F177,NA_All!$A$5:$J$505,3*($C$6-1)+4), VLOOKUP($F177,NA_All!$L$5:$U$505,3*($C$6-1)+4)) -> 0 | M177: 1000
F178: 310 | G178: =IF($B$8="Property Boundary", VLOOKUP($F178,P_All!$A$5:$J$505,3*($C$6-1)+2), VLOOKUP($F178,P_All!$L$5:$U$505,3*($C$6-1)+2)) -> 34.495 | H178: =IF($B$8="Property Boundary", VLOOKUP($F178,P_All!$A$5:$J$505,3*($C$6-1)+3), VLOOKUP($F178,P_All!$L$5:$U$505,3*($C$6-1)+3)) -> 43.424 | I178: =IF($B$8="Property Boundary", VLOOKUP($F178,P_All!$A$5:$J$505,3*($C$6-1)+4), VLOOKUP($F178,P_All!$L$5:$U$505,3*($C$6-1)+4)) -> 68.333 | J178: =IF($B$8="Property Boundary", VLOOKUP($F178,NA_All!$A$5:$J$505,3*($C$6-1)+2), VLOOKUP($F178,NA_All!$L$5:$U$505,3*($C$6-1)+2)) -> 0 | K178: =IF($B$8="Property Boundary", VLOOKUP($F178,NA_All!$A$5:$J$505,3*($C$6-1)+3), VLOOKUP($F178,NA_All!$L$5:$U$505,3*($C$6-1)+3)) -> 0 | L178: =IF($B$8="Property Boundary", VLOOKUP($F178,NA_All!$A$5:$J$505,3*($C$6-1)+4), VLOOKUP($F178,NA_All!$L$5:$U$505,3*($C$6-1)+4)) -> 0 | M178: 1000
F179: 312 | G179: =IF($B$8="Property Boundary", VLOOKUP($F179,P_All!$A$5:$J$505,3*($C$6-1)+2), VLOOKUP($F179,P_All!$L$5:$U$505,3*($C$6-1)+2)) -> 34.429 | H179: =IF($B$8="Property Boundary", VLOOKUP($F179,P_All!$A$5:$J$505,3*($C$6-1)+3), VLOOKUP($F179,P_All!$L$5:$U$505,3*($C$6-1)+3)) -> 43.323 | I179: =IF($B$8="Property Boundary", VLOOKUP($F179,P_All!$A$5:$J$505,3*($C$6-1)+4), VLOOKUP($F179,P_All!$L$5:$U$505,3*($C$6-1)+4)) -> 67.773 | J179: =IF($B$8="Property Boundary", VLOOKUP($F179,NA_All!$A$5:$J$505,3*($C$6-1)+2), VLOOKUP($F179,NA_All!$L$5:$U$505,3*($C$6-1)+2)) -> 0 | K179: =IF($B$8="Property Boundary", VLOOKUP($F179,NA_All!$A$5:$J$505,3*($C$6-1)+3), VLOOKUP($F179,NA_All!$L$5:$U$505,3*($C$6-1)+3)) -> 0 | L179: =IF($B$8="Property Boundary", VLOOKUP($F179,NA_All!$A$5:$J$505,3*($C$6-1)+4), VLOOKUP($F179,NA_All!$L$5:$U$505,3*($C$6-1)+4)) -> 0 | M179: 1000
F180: 314 | G180: =IF($B$8="Property Boundary", VLOOKUP($F180,P_All!$A$5:$J$505,3*($C$6-1)+2), VLOOKUP($F180,P_All!$L$5:$U$505,3*($C$6-1)+2)) -> 34.388 | H180: =IF($B$8="Property Boundary", VLOOKUP($F180,P_All!$A$5:$J$505,3*($C$6-1)+3), VLOOKUP($F180,P_All!$L$5:$U$505,3*($C$6-1)+3)) -> 43.236 | I180: =IF($B$8="Property Boundary", VLOOKUP($F180,P_All!$A$5:$J$505,3*($C$6-1)+4), VLOOKUP($F180,P_All!$L$5:$U$505,3*($C$6-1)+4)) -> 67.147 | J180: =IF($B$8="Property Boundary", VLOOKUP($F180,NA_All!$A$5:$J$505,3*($C$6-1)+2), VLOOKUP($F180,NA_All!$L$5:$U$505,3*($C$6-1)+2)) -> 0 | K180: =IF($B$8="Property Boundary", VLOOKUP($F180,NA_All!$A$5:$J$505,3*($C$6-1)+3), VLOOKUP($F180,NA_All!$L$5:$U$505,3*($C$6-1)+3)) -> 0 | L180: =IF($B$8="Property Boundary", VLOOKUP($F180,NA_All!$A$5:$J$505,3*($C$6-1)+4), VLOOKUP($F180,NA_All!$L$5:$U$505,3*($C$6-1)+4)) -> 0 | M180: 1000
F181: 316 | G181: =IF($B$8="Property Boundary", VLOOKUP($F181,P_All!$A$5:$J$505,3*($C$6-1)+2), VLOOKUP($F181,P_All!$L$5:$U$505,3*($C$6-1)+2)) -> 34.371 | H181: =IF($B$8="Property Boundary", VLOOKUP($F181,P_All!$A$5:$J$505,3*($C$6-1)+3), VLOOKUP($F181,P_All!$L$5:$U$505,3*($C$6-1)+3)) -> 43.267 | I181: =IF($B$8="Property Boundary", VLOOKUP($F181,P_All!$A$5:$J$505,3*($C$6-1)+4), VLOOKUP($F181,P_All!$L$5:$U$505,3*($C$6-1)+4)) -> 66.477 | J181: =IF($B$8="Property Boundary", VLOOKUP($F181,NA_All!$A$5:$J$505,3*($C$6-1)+2), VLOOKUP($F181,NA_All!$L$5:$U$505,3*($C$6-1)+2)) -> 0 | K181: =IF($B$8="Property Boundary", VLOOKUP($F181,NA_All!$A$5:$J$505,3*($C$6-1)+3), VLOOKUP($F181,NA_All!$L$5:$U$505,3*($C$6-1)+3)) -> 0 | L181: =IF($B$8="Property Boundary", VLOOKUP($F181,NA_All!$A$5:$J$505,3*($C$6-1)+4), VLOOKUP($F181,NA_All!$L$5:$U$505,3*($C$6-1)+4)) -> 0 | M181: 1000
F182: 318 | G182: =IF($B$8="Property Boundary", VLOOKUP($F182,P_All!$A$5:$J$505,3*($C$6-1)+2), VLOOKUP($F182,P_All!$L$5:$U$505,3*($C$6-1)+2)) -> 34.342 | H182: =IF($B$8="Property Boundary", VLOOKUP($F182,P_All!$A$5:$J$505,3*($C$6-1)+3), VLOOKUP($F182,P_All!$L$5:$U$505,3*($C$6-1)+3)) -> 43.229 | I182: =IF($B$8="Property Boundary", VLOOKUP($F182,P_All!$A$5:$J$505,3*($C$6-1)+4), VLOOKUP($F182,P_All!$L$5:$U$505,3*($C$6-1)+4)) -> 65.889 | J182: =IF($B$8="Property Boundary", VLOOKUP($F182,NA_All!$A$5:$J$505,3*($C$6-1)+2), VLOOKUP($F182,NA_All!$L$5:$U$505,3*($C$6-1)+2)) -> 0 | K182: =IF($B$8="Property Boundary", VLOOKUP($F182,NA_All!$A$5:$J$505,3*($C$6-1)+3), VLOOKUP($F182,NA_All!$L$5:$U$505,3*($C$6-1)+3)) -> 0 | L182: =IF($B$8="Property Boundary", VLOOKUP($F182,NA_All!$A$5:$J$505,3*($C$6-1)+4), VLOOKUP($F182,NA_All!$L$5:$U$505,3*($C$6-1)+4)) -> 0 | M182: 1000
F183: 320 | G183: =IF($B$8="Property Boundary", VLOOKUP($F183,P_All!$A$5:$J$505,3*($C$6-1)+2), VLOOKUP($F183,P_All!$L$5:$U$505,3*($C$6-1)+2)) -> 34.281 | H183: =IF($B$8="Property Boundary", VLOOKUP($F183,P_All!$A$5:$J$505,3*($C$6-1)+3), VLOOKUP($F183,P_All!$L$5:$U$505,3*($C$6-1)+3)) -> 43.126 | I183: =IF($B$8="Property Boundary", VLOOKUP($F183,P_All!$A$5:$J$505,3*($C$6-1)+4), VLOOKUP($F183,P_All!$L$5:$U$505,3*($C$6-1)+4)) -> 65.392 | J183: =IF($B$8="Property Boundary", VLOOKUP($F183,NA_All!$A$5:$J$505,3*($C$6-1)+2), VLOOKUP($F183,NA_All!$L$5:$U$505,3*($C$6-1)+2)) -> 0 | K183: =IF($B$8="Property Boundary", VLOOKUP($F183,NA_All!$A$5:$J$505,3*($C$6-1)+3), VLOOKUP($F183,NA_All!$L$5:$U$505,3*($C$6-1)+3)) -> 0 | L183: =IF($B$8="Property Boundary", VLOOKUP($F183,NA_All!$A$5:$J$505,3*($C$6-1)+4), VLOOKUP($F183,NA_All!$L$5:$U$505,3*($C$6-1)+4)) -> 0 | M183: 1000
F184: 322 | G184: =IF($B$8="Property Boundary", VLOOKUP($F184,P_All!$A$5:$J$505,3*($C$6-1)+2), VLOOKUP($F184,P_All!$L$5:$U$505,3*($C$6-1)+2)) -> 34.269 | H184: =IF($B$8="Property Boundary", VLOOKUP($F184,P_All!$A$5:$J$505,3*($C$6-1)+3), VLOOKUP($F184,P_All!$L$5:$U$505,3*($C$6-1)+3)) -> 43.006 | I184: =IF($B$8="Property Boundary", VLOOKUP($F184,P_All!$A$5:$J$505,3*($C$6-1)+4), VLOOKUP($F184,P_All!$L$5:$U$505,3*($C$6-1)+4)) -> 64.896 | J184: =IF($B$8="Property Boundary", VLOOKUP($F184,NA_All!$A$5:$J$505,3*($C$6-1)+2), VLOOKUP($F184,NA_All!$L$5:$U$505,3*($C$6-1)+2)) -> 0 | K184: =IF($B$8="Property Boundary", VLOOKUP($F184,NA_All!$A$5:$J$505,3*($C$6-1)+3), VLOOKUP($F184,NA_All!$L$5:$U$505,3*($C$6-1)+3)) -> 0 | L184: =IF($B$8="Property Boundary", VLOOKUP($F184,NA_All!$A$5:$J$505,3*($C$6-1)+4), VLOOKUP($F184,NA_All!$L$5:$U$505,3*($C$6-1)+4)) -> 0 | M184: 1000
F185: 324 | G185: =IF($B$8="Property Boundary", VLOOKUP($F185,P_All!$A$5:$J$505,3*($C$6-1)+2), VLOOKUP($F185,P_All!$L$5:$U$505,3*($C$6-1)+2)) -> 34.259 | H185: =IF($B$8="Property Boundary", VLOOKUP($F185,P_All!$A$5:$J$505,3*($C$6-1)+3), VLOOKUP($F185,P_All!$L$5:$U$505,3*($C$6-1)+3)) -> 42.913 | I185: =IF($B$8="Property Boundary", VLOOKUP($F185,P_All!$A$5:$J$505,3*($C$6-1)+4), VLOOKUP($F185,P_All!$L$5:$U$505,3*($C$6-1)+4)) -> 64.401 | J185: =IF($B$8="Property Boundary", VLOOKUP($F185,NA_All!$A$5:$J$505,3*($C$6-1)+2), VLOOKUP($F185,NA_All!$L$5:$U$505,3*($C$6-1)+2)) -> 0 | K185: =IF($B$8="Property Boundary", VLOOKUP($F185,NA_All!$A$5:$J$505,3*($C$6-1)+3), VLOOKUP($F185,NA_All!$L$5:$U$505,3*($C$6-1)+3)) -> 0 | L185: =IF($B$8="Property Boundary", VLOOKUP($F185,NA_All!$A$5:$J$505,3*($C$6-1)+4), VLOOKUP($F185,NA_All!$L$5:$U$505,3*($C$6-1)+4)) -> 0 | M185: 1000
F186: 326 | G186: =IF($B$8="Property Boundary", VLOOKUP($F186,P_All!$A$5:$J$505,3*($C$6-1)+2), VLOOKUP($F186,P_All!$L$5:$U$505,3*($C$6-1)+2)) -> 34.235 | H186: =IF($B$8="Property Boundary", VLOOKUP($F186,P_All!$A$5:$J$505,3*($C$6-1)+3), VLOOKUP($F186,P_All!$L$5:$U$505,3*($C$6-1)+3)) -> 42.804 | I186: =IF($B$8="Property Boundary", VLOOKUP($F186,P_All!$A$5:$J$505,3*($C$6-1)+4), VLOOKUP($F186,P_All!$L$5:$U$505,3*($C$6-1)+4)) -> 63.893 | J186: =IF($B$8="Property Boundary", VLOOKUP($F186,NA_All!$A$5:$J$505,3*($C$6-1)+2), VLOOKUP($F186,NA_All!$L$5:$U$505,3*($C$6-1)+2)) -> 0 | K186: =IF($B$8="Property Boundary", VLOOKUP($F186,NA_All!$A$5:$J$505,3*($C$6-1)+3), VLOOKUP($F186,NA_All!$L$5:$U$505,3*($C$6-1)+3)) -> 0 | L186: =IF($B$8="Property Boundary", VLOOKUP($F186,NA_All!$A$5:$J$505,3*($C$6-1)+4), VLOOKUP($F186,NA_All!$L$5:$U$505,3*($C$6-1)+4)) -> 0 | M186: 1000
F187: 328 | G187: =IF($B$8="Property Boundary", VLOOKUP($F187,P_All!$A$5:$J$505,3*($C$6-1)+2), VLOOKUP($F187,P_All!$L$5:$U$505,3*($C$6-1)+2)) -> 34.192 | H187: =IF($B$8="Property Boundary", VLOOKUP($F187,P_All!$A$5:$J$505,3*($C$6-1)+3), VLOOKUP($F187,P_All!$L$5:$U$505,3*($C$6-1)+3)) -> 42.712 | I187: =IF($B$8="Property Boundary", VLOOKUP($F187,P_All!$A$5:$J$505,3*($C$6-1)+4), VLOOKUP($F187,P_All!$L$5:$U$505,3*($C$6-1)+4)) -> 63.412 | J187: =IF($B$8="Property Boundary", VLOOKUP($F187,NA_All!$A$5:$J$505,3*($C$6-1)+2), VLOOKUP($F187,NA_All!$L$5:$U$505,3*($C$6-1)+2)) -> 0 | K187: =IF($B$8="Property Boundary", VLOOKUP($F187,NA_All!$A$5:$J$505,3*($C$6-1)+3), VLOOKUP($F187,NA_All!$L$5:$U$505,3*($C$6-1)+3)) -> 0 | L187: =IF($B$8="Property Boundary", VLOOKUP($F187,NA_All!$A$5:$J$505,3*($C$6-1)+4), VLOOKUP($F187,NA_All!$L$5:$U$505,3*($C$6-1)+4)) -> 0 | M187: 1000
F188: 330 | G188: =IF($B$8="Property Boundary", VLOOKUP($F188,P_All!$A$5:$J$505,3*($C$6-1)+2), VLOOKUP($F188,P_All!$L$5:$U$505,3*($C$6-1)+2)) -> 34.17 | H188: =IF($B$8="Property Boundary", VLOOKUP($F188,P_All!$A$5:$J$505,3*($C$6-1)+3), VLOOKUP($F188,P_All!$L$5:$U$505,3*($C$6-1)+3)) -> 42.626 | I188: =IF($B$8="Property Boundary", VLOOKUP($F188,P_All!$A$5:$J$505,3*($C$6-1)+4), VLOOKUP($F188,P_All!$L$5:$U$505,3*($C$6-1)+4)) -> 62.962 | J188: =IF($B$8="Property Boundary", VLOOKUP($F188,NA_All!$A$5:$J$505,3*($C$6-1)+2), VLOOKUP($F188,NA_All!$L$5:$U$505,3*($C$6-1)+2)) -> 0 | K188: =IF($B$8="Property Boundary", VLOOKUP($F188,NA_All!$A$5:$J$505,3*($C$6-1)+3), VLOOKUP($F188,NA_All!$L$5:$U$505,3*($C$6-1)+3)) -> 0 | L188: =IF($B$8="Property Boundary", VLOOKUP($F188,NA_All!$A$5:$J$505,3*($C$6-1)+4), VLOOKUP($F188,NA_All!$L$5:$U$505,3*($C$6-1)+4)) -> 0 | M188: 1000
F189: 332 | G189: =IF($B$8="Property Boundary", VLOOKUP($F189,P_All!$A$5:$J$505,3*($C$6-1)+2), VLOOKUP($F189,P_All!$L$5:$U$505,3*($C$6-1)+2)) -> 34.1 | H189: =IF($B$8="Property Boundary", VLOOKUP($F189,P_All!$A$5:$J$505,3*($C$6-1)+3), VLOOKUP($F189,P_All!$L$5:$U$505,3*($C$6-1)+3)) -> 42.584 | I189: =IF($B$8="Property Boundary", VLOOKUP($F189,P_All!$A$5:$J$505,3*($C$6-1)+4), VLOOKUP($F189,P_All!$L$5:$U$505,3*($C$6-1)+4)) -> 62.529 | J189: =IF($B$8="Property Boundary", VLOOKUP($F189,NA_All!$A$5:$J$505,3*($C$6-1)+2), VLOOKUP($F189,NA_All!$L$5:$U$505,3*($C$6-1)+2)) -> 0 | K189: =IF($B$8="Property Boundary", VLOOKUP($F189,NA_All!$A$5:$J$505,3*($C$6-1)+3), VLOOKUP($F189,NA_All!$L$5:$U$505,3*($C$6-1)+3)) -> 0 | L189: =IF($B$8="Property Boundary", VLOOKUP($F189,NA_All!$A$5:$J$505,3*($C$6-1)+4), VLOOKUP($F189,NA_All!$L$5:$U$505,3*($C$6-1)+4)) -> 0 | M189: 1000
F190: 334 | G190: =IF($B$8="Property Boundary", VLOOKUP($F190,P_All!$A$5:$J$505,3*($C$6-1)+2), VLOOKUP($F190,P_All!$L$5:$U$505,3*($C$6-1)+2)) -> 34.054 | H190: =IF($B$8="Property Boundary", VLOOKUP($F190,P_All!$A$5:$J$505,3*($C$6-1)+3), VLOOKUP($F190,P_All!$L$5:$U$505,3*($C$6-1)+3)) -> 42.447 | I190: =IF($B$8="Property Boundary", VLOOKUP($F190,P_All!$A$5:$J$505,3*($C$6-1)+4), VLOOKUP($F190,P_All!$L$5:$U$505,3*($C$6-1)+4)) -> 62.095 | J190: =IF($B$8="Property Boundary", VLOOKUP($F190,NA_All!$A$5:$J$505,3*($C$6-1)+2), VLOOKUP($F190,NA_All!$L$5:$U$505,3*($C$6-1)+2)) -> 0 | K190: =IF($B$8="Property Boundary", VLOOKUP($F190,NA_All!$A$5:$J$505,3*($C$6-1)+3), VLOOKUP($F190,NA_All!$L$5:$U$505,3*($C$6-1)+3)) -> 0 | L190: =IF($B$8="Property Boundary", VLOOKUP($F190,NA_All!$A$5:$J$505,3*($C$6-1)+4), VLOOKUP($F190,NA_All!$L$5:$U$505,3*($C$6-1)+4)) -> 0 | M190: 1000
F191: 336 | G191: =IF($B$8="Property Boundary", VLOOKUP($F191,P_All!$A$5:$J$505,3*($C$6-1)+2), VLOOKUP($F191,P_All!$L$5:$U$505,3*($C$6-1)+2)) -> 34.02 | H191: =IF($B$8="Property Boundary", VLOOKUP($F191,P_All!$A$5:$J$505,3*($C$6-1)+3), VLOOKUP($F191,P_All!$L$5:$U$505,3*($C$6-1)+3)) -> 42.291 | I191: =IF($B$8="Property Boundary", VLOOKUP($F191,P_All!$A$5:$J$505,3*($C$6-1)+4), VLOOKUP($F191,P_All!$L$5:$U$505,3*($C$6-1)+4)) -> 61.638 | J191: =IF($B$8="Property Boundary", VLOOKUP($F191,NA_All!$A$5:$J$505,3*($C$6-1)+2), VLOOKUP($F191,NA_All!$L$5:$U$505,3*($C$6-1)+2)) -> 0 | K191: =IF($B$8="Property Boundary", VLOOKUP($F191,NA_All!$A$5:$J$505,3*($C$6-1)+3), VLOOKUP($F191,NA_All!$L$5:$U$505,3*($C$6-1)+3)) -> 0 | L191: =IF($B$8="Property Boundary", VLOOKUP($F191,NA_All!$A$5:$J$505,3*($C$6-1)+4), VLOOKUP($F191,NA_All!$L$5:$U$505,3*($C$6-1)+4)) -> 0 | M191: 1000
F192: 338 | G192: =IF($B$8="Property Boundary", VLOOKUP($F192,P_All!$A$5:$J$505,3*($C$6-1)+2), VLOOKUP($F192,P_All!$L$5:$U$505,3*($C$6-1)+2)) -> 33.98 | H192: =IF($B$8="Property Boundary", VLOOKUP($F192,P_All!$A$5:$J$505,3*($C$6-1)+3), VLOOKUP($F192,P_All!$L$5:$U$505,3*($C$6-1)+3)) -> 42.071 | I192: =IF($B$8="Property Boundary", VLOOKUP($F192,P_All!$A$5:$J$505,3*($C$6-1)+4), VLOOKUP($F192,P_All!$L$5:$U$505,3*($C$6-1)+4)) -> 61.222 | J192: =IF($B$8="Property Boundary", VLOOKUP($F192,NA_All!$A$5:$J$505,3*($C$6-1)+2), VLOOKUP($F192,NA_All!$L$5:$U$505,3*($C$6-1)+2)) -> 0 | K192: =IF($B$8="Property Boundary", VLOOKUP($F192,NA_All!$A$5:$J$505,3*($C$6-1)+3), VLOOKUP($F192,NA_All!$L$5:$U$505,3*($C$6-1)+3)) -> 0 | L192: =IF($B$8="Property Boundary", VLOOKUP($F192,NA_All!$A$5:$J$505,3*($C$6-1)+4), VLOOKUP($F192,NA_All!$L$5:$U$505,3*($C$6-1)+4)) -> 0 | M192: 1000
F193: 340 | G193: =IF($B$8="Property Boundary", VLOOKUP($F193,P_All!$A$5:$J$505,3*($C$6-1)+2), VLOOKUP($F193,P_All!$L$5:$U$505,3*($C$6-1)+2)) -> 33.982 | H193: =IF($B$8="Property Boundary", VLOOKUP($F193,P_All!$A$5:$J$505,3*($C$6-1)+3), VLOOKUP($F193,P_All!$L$5:$U$505,3*($C$6-1)+3)) -> 41.839 | I193: =IF($B$8="Property Boundary", VLOOKUP($F193,P_All!$A$5:$J$505,3*($C$6-1)+4), VLOOKUP($F193,P_All!$L$5:$U$505,3*($C$6-1)+4)) -> 60.711 | J193: =IF($B$8="Property Boundary", VLOOKUP($F193,NA_All!$A$5:$J$505,3*($C$6-1)+2), VLOOKUP($F193,NA_All!$L$5:$U$505,3*($C$6-1)+2)) -> 0 | K193: =IF($B$8="Property Boundary", VLOOKUP($F193,NA_All!$A$5:$J$505,3*($C$6-1)+3), VLOOKUP($F193,NA_All!$L$5:$U$505,3*($C$6-1)+3)) -> 0 | L193: =IF($B$8="Property Boundary", VLOOKUP($F193,NA_All!$A$5:$J$505,3*($C$6-1)+4), VLOOKUP($F193,NA_All!$L$5:$U$505,3*($C$6-1)+4)) -> 0 | M193: 1000
F194: 342 | G194: =IF($B$8="Property Boundary", VLOOKUP($F194,P_All!$A$5:$J$505,3*($C$6-1)+2), VLOOKUP($F194,P_All!$L$5:$U$505,3*($C$6-1)+2)) -> 33.984 | H194: =IF($B$8="Property Boundary", VLOOKUP($F194,P_All!$A$5:$J$505,3*($C$6-1)+3), VLOOKUP($F194,P_All!$L$5:$U$505,3*($C$6-1)+3)) -> 41.839 | I194: =IF($B$8="Property Boundary", VLOOKUP($F194,P_All!$A$5:$J$505,3*($C$6-1)+4), VLOOKUP($F194,P_All!$L$5:$U$505,3*($C$6-1)+4)) -> 60.204 | J194: =IF($B$8="Property Boundary", VLOOKUP($F194,NA_All!$A$5:$J$505,3*($C$6-1)+2), VLOOKUP($F194,NA_All!$L$5:$U$505,3*($C$6-1)+2)) -> 0 | K194: =IF($B$8="Property Boundary", VLOOKUP($F194,NA_All!$A$5:$J$505,3*($C$6-1)+3), VLOOKUP($F194,NA_All!$L$5:$U$505,3*($C$6-1)+3)) -> 0 | L194: =IF($B$8="Property Boundary", VLOOKUP($F194,NA_All!$A$5:$J$505,3*($C$6-1)+4), VLOOKUP($F194,NA_All!$L$5:$U$505,3*($C$6-1)+4)) -> 0 | M194: 1000
F195: 344 | G195: =IF($B$8="Property Boundary", VLOOKUP($F195,P_All!$A$5:$J$505,3*($C$6-1)+2), VLOOKUP($F195,P_All!$L$5:$U$505,3*($C$6-1)+2)) -> 33.993 | H195: =IF($B$8="Property Boundary", VLOOKUP($F195,P_All!$A$5:$J$505,3*($C$6-1)+3), VLOOKUP($F195,P_All!$L$5:$U$505,3*($C$6-1)+3)) -> 41.718 | I195: =IF($B$8="Property Boundary", VLOOKUP($F195,P_All!$A$5:$J$505,3*($C$6-1)+4), VLOOKUP($F195,P_All!$L$5:$U$505,3*($C$6-1)+4)) -> 59.703 | J195: =IF($B$8="Property Boundary", VLOOKUP($F195,NA_All!$A$5:$J$505,3*($C$6-1)+2), VLOOKUP($F195,NA_All!$L$5:$U$505,3*($C$6-1)+2)) -> 0 | K195: =IF($B$8="Property Boundary", VLOOKUP($F195,NA_All!$A$5:$J$505,3*($C$6-1)+3), VLOOKUP($F195,NA_All!$L$5:$U$505,3*($C$6-1)+3)) -> 0 | L195: =IF($B$8="Property Boundary", VLOOKUP($F195,NA_All!$A$5:$J$505,3*($C$6-1)+4), VLOOKUP($F195,NA_All!$L$5:$U$505,3*($C$6-1)+4)) -> 0 | M195: 1000
F196: 346 | G196: =IF($B$8="Property Boundary", VLOOKUP($F196,P_All!$A$5:$J$505,3*($C$6-1)+2), VLOOKUP($F196,P_All!$L$5:$U$505,3*($C$6-1)+2)) -> 33.997 | H196: =IF($B$8="Property Boundary", VLOOKUP($F196,P_All!$A$5:$J$505,3*($C$6-1)+3), VLOOKUP($F196,P_All!$L$5:$U$505,3*($C$6-1)+3)) -> 41.62 | I196: =IF($B$8="Property Boundary", VLOOKUP($F196,P_All!$A$5:$J$505,3*($C$6-1)+4), VLOOKUP($F196,P_All!$L$5:$U$505,3*($C$6-1)+4)) -> 59.208 | J196: =IF($B$8="Property Boundary", VLOOKUP($F196,NA_All!$A$5:$J$505,3*($C$6-1)+2), VLOOKUP($F196,NA_All!$L$5:$U$505,3*($C$6-1)+2)) -> 0 | K196: =IF($B$8="Property Boundary", VLOOKUP($F196,NA_All!$A$5:$J$505,3*($C$6-1)+3), VLOOKUP($F196,NA_All!$L$5:$U$505,3*($C$6-1)+3)) -> 0 | L196: =IF($B$8="Property Boundary", VLOOKUP($F196,NA_All!$A$5:$J$505,3*($C$6-1)+4), VLOOKUP($F196,NA_All!$L$5:$U$505,3*($C$6-1)+4)) -> 0 | M196: 1000
F197: 348 | G197: =IF($B$8="Property Boundary", VLOOKUP($F197,P_All!$A$5:$J$505,3*($C$6-1)+2), VLOOKUP($F197,P_All!$L$5:$U$505,3*($C$6-1)+2)) -> 33.99 | H197: =IF($B$8="Property Boundary", VLOOKUP($F197,P_All!$A$5:$J$505,3*($C$6-1)+3), VLOOKUP($F197,P_All!$L$5:$U$505,3*($C$6-1)+3)) -> 41.605 | I197: =IF($B$8="Property Boundary", VLOOKUP($F197,P_All!$A$5:$J$505,3*($C$6-1)+4), VLOOKUP($F197,P_All!$L$5:$U$505,3*($C$6-1)+4)) -> 58.72 | J197: =IF($B$8="Property Boundary", VLOOKUP($F197,NA_All!$A$5:$J$505,3*($C$6-1)+2), VLOOKUP($F197,NA_All!$L$5:$U$505,3*($C$6-1)+2)) -> 0 | K197: =IF($B$8="Property Boundary", VLOOKUP($F197,NA_All!$A$5:$J$505,3*($C$6-1)+3), VLOOKUP($F197,NA_All!$L$5:$U$505,3*($C$6-1)+3)) -> 0 | L197: =IF($B$8="Property Boundary", VLOOKUP($F197,NA_All!$A$5:$J$505,3*($C$6-1)+4), VLOOKUP($F197,NA_All!$L$5:$U$505,3*($C$6-1)+4)) -> 0 | M197: 1000
F198: 350 | G198: =IF($B$8="Property Boundary", VLOOKUP($F198,P_All!$A$5:$J$505,3*($C$6-1)+2), VLOOKUP($F198,P_All!$L$5:$U$505,3*($C$6-1)+2)) -> 33.977 | H198: =IF($B$8="Property Boundary", VLOOKUP($F198,P_All!$A$5:$J$505,3*($C$6-1)+3), VLOOKUP($F198,P_All!$L$5:$U$505,3*($C$6-1)+3)) -> 41.449 | I198: =IF($B$8="Property Boundary", VLOOKUP($F198,P_All!$A$5:$J$505,3*($C$6-1)+4), VLOOKUP($F198,P_All!$L$5:$U$505,3*($C$6-1)+4)) -> 58.338 | J198: =IF($B$8="Property Boundary", VLOOKUP($F198,NA_All!$A$5:$J$505,3*($C$6-1)+2), VLOOKUP($F198,NA_All!$L$5:$U$505,3*($C$6-1)+2)) -> 0 | K198: =IF($B$8="Property Boundary", VLOOKUP($F198,NA_All!$A$5:$J$505,3*($C$6-1)+3), VLOOKUP($F198,NA_All!$L$5:$U$505,3*($C$6-1)+3)) -> 0 | L198: =IF($B$8="Property Boundary", VLOOKUP($F198,NA_All!$A$5:$J$505,3*($C$6-1)+4), VLOOKUP($F198,NA_All!$L$5:$U$505,3*($C$6-1)+4)) -> 0 | M198: 1000
F199: 352 | G199: =IF($B$8="Property Boundary", VLOOKUP($F199,P_All!$A$5:$J$505,3*($C$6-1)+2), VLOOKUP($F199,P_All!$L$5:$U$505,3*($C$6-1)+2)) -> 33.942 | H199: =IF($B$8="Property Boundary", VLOOKUP($F199,P_All!$A$5:$J$505,3*($C$6-1)+3), VLOOKUP($F199,P_All!$L$5:$U$505,3*($C$6-1)+3)) -> 41.36 | I199: =IF($B$8="Property Boundary", VLOOKUP($F199,P_All!$A$5:$J$505,3*($C$6-1)+4), VLOOKUP($F199,P_All!$L$5:$U$505,3*($C$6-1)+4)) -> 58.129 | J199: =IF($B$8="Property Boundary", VLOOKUP($F199,NA_All!$A$5:$J$505,3*($C$6-1)+2), VLOOKUP($F199,NA_All!$L$5:$U$505,3*($C$6-1)+2)) -> 0 | K199: =IF($B$8="Property Boundary", VLOOKUP($F199,NA_All!$A$5:$J$505,3*($C$6-1)+3), VLOOKUP($F199,NA_All!$L$5:$U$505,3*($C$6-1)+3)) -> 0 | L199: =IF($B$8="Property Boundary", VLOOKUP($F199,NA_All!$A$5:$J$505,3*($C$6-1)+4), VLOOKUP($F199,NA_All!$L$5:$U$505,3*($C$6-1)+4)) -> 0 | M199: 1000
F200: 354 | G200: =IF($B$8="Property Boundary", VLOOKUP($F200,P_All!$A$5:$J$505,3*($C$6-1)+2), VLOOKUP($F200,P_All!$L$5:$U$505,3*($C$6-1)+2)) -> 33.902 | H200: =IF($B$8="Property Boundary", VLOOKUP($F200,P_All!$A$5:$J$505,3*($C$6-1)+3), VLOOKUP($F200,P_All!$L$5:$U$505,3*($C$6-1)+3)) -> 41.3 | I200: =IF($B$8="Property Boundary", VLOOKUP($F200,P_All!$A$5:$J$505,3*($C$6-1)+4), VLOOKUP($F200,P_All!$L$5:$U$505,3*($C$6-1)+4)) -> 57.995 | J200: =IF($B$8="Property Boundary", VLOOKUP($F200,NA_All!$A$5:$J$505,3*($C$6-1)+2), VLOOKUP($F200,NA_All!$L$5:$U$505,3*($C$6-1)+2)) -> 0 | K200: =IF($B$8="Property Boundary", VLOOKUP($F200,NA_All!$A$5:$J$505,3*($C$6-1)+3), VLOOKUP($F200,NA_All!$L$5:$U$505,3*($C$6-1)+3)) -> 0 | L200: =IF($B$8="Property Boundary", VLOOKUP($F200,NA_All!$A$5:$J$505,3*($C$6-1)+4), VLOOKUP($F200,NA_All!$L$5:$U$505,3*($C$6-1)+4)) -> 0 | M200: 1000
F201: 356 | G201: =IF($B$8="Property Boundary", VLOOKUP($F201,P_All!$A$5:$J$505,3*($C$6-1)+2), VLOOKUP($F201,P_All!$L$5:$U$505,3*($C$6-1)+2)) -> 33.847 | H201: =IF($B$8="Property Boundary", VLOOKUP($F201,P_All!$A$5:$J$505,3*($C$6-1)+3), VLOOKUP($F201,P_All!$L$5:$U$505,3*($C$6-1)+3)) -> 41.245 | I201: =IF($B$8="Property Boundary", VLOOKUP($F201,P_All!$A$5:$J$505,3*($C$6-1)+4), VLOOKUP($F201,P_All!$L$5:$U$505,3*($C$6-1)+4)) -> 57.818 | J201: =IF($B$8="Property Boundary", VLOOKUP($F201,NA_All!$A$5:$J$505,3*($C$6-1)+2), VLOOKUP($F201,NA_All!$L$5:$U$505,3*($C$6-1)+2)) -> 0 | K201: =IF($B$8="Property Boundary", VLOOKUP($F201,NA_All!$A$5:$J$505,3*($C$6-1)+3), VLOOKUP($F201,NA_All!$L$5:$U$505,3*($C$6-1)+3)) -> 0 | L201: =IF($B$8="Property Boundary", VLOOKUP($F201,NA_All!$A$5:$J$505,3*($C$6-1)+4), VLOOKUP($F201,NA_All!$L$5:$U$505,3*($C$6-1)+4)) -> 0 | M201: 1000
F202: 358 | G202: =IF($B$8="Property Boundary", VLOOKUP($F202,P_All!$A$5:$J$505,3*($C$6-1)+2), VLOOKUP($F202,P_All!$L$5:$U$505,3*($C$6-1)+2)) -> 33.829 | H202: =IF($B$8="Property Boundary", VLOOKUP($F202,P_All!$A$5:$J$505,3*($C$6-1)+3), VLOOKUP($F202,P_All!$L$5:$U$505,3*($C$6-1)+3)) -> 41.136 | I202: =IF($B$8="Property Boundary", VLOOKUP($F202,P_All!$A$5:$J$505,3*($C$6-1)+4), VLOOKUP($F202,P_All!$L$5:$U$505,3*($C$6-1)+4)) -> 57.539 | J202: =IF($B$8="Property Boundary", VLOOKUP($F202,NA_All!$A$5:$J$505,3*($C$6-1)+2), VLOOKUP($F202,NA_All!$L$5:$U$505,3*($C$6-1)+2)) -> 0 | K202: =IF($B$8="Property Boundary", VLOOKUP($F202,NA_All!$A$5:$J$505,3*($C$6-1)+3), VLOOKUP($F202,NA_All!$L$5:$U$505,3*($C$6-1)+3)) -> 0 | L202: =IF($B$8="Property Boundary", VLOOKUP($F202,NA_All!$A$5:$J$505,3*($C$6-1)+4), VLOOKUP($F202,NA_All!$L$5:$U$505,3*($C$6-1)+4)) -> 0 | M202: 1000
F203: 360 | G203: =IF($B$8="Property Boundary", VLOOKUP($F203,P_All!$A$5:$J$505,3*($C$6-1)+2), VLOOKUP($F203,P_All!$L$5:$U$505,3*($C$6-1)+2)) -> 33.79 | H203: =IF($B$8="Property Boundary", VLOOKUP($F203,P_All!$A$5:$J$505,3*($C$6-1)+3), VLOOKUP($F203,P_All!$L$5:$U$505,3*($C$6-1)+3)) -> 41.066 | I203: =IF($B$8="Property Boundary", VLOOKUP($F203,P_All!$A$5:$J$505,3*($C$6-1)+4), VLOOKUP($F203,P_All!$L$5:$U$505,3*($C$6-1)+4)) -> 57.256 | J203: =IF($B$8="Property Boundary", VLOOKUP($F203,NA_All!$A$5:$J$505,3*($C$6-1)+2), VLOOKUP($F203,NA_All!$L$5:$U$505,3*($C$6-1)+2)) -> 0 | K203: =IF($B$8="Property Boundary", VLOOKUP($F203,NA_All!$A$5:$J$505,3*($C$6-1)+3), VLOOKUP($F203,NA_All!$L$5:$U$505,3*($C$6-1)+3)) -> 0 | L203: =IF($B$8="Property Boundary", VLOOKUP($F203,NA_All!$A$5:$J$505,3*($C$6-1)+4), VLOOKUP($F203,NA_All!$L$5:$U$505,3*($C$6-1)+4)) -> 0 | M203: 1000
F204: 362 | G204: =IF($B$8="Property Boundary", VLOOKUP($F204,P_All!$A$5:$J$505,3*($C$6-1)+2), VLOOKUP($F204,P_All!$L$5:$U$505,3*($C$6-1)+2)) -> 33.792 | H204: =IF($B$8="Property Boundary", VLOOKUP($F204,P_All!$A$5:$J$505,3*($C$6-1)+3), VLOOKUP($F204,P_All!$L$5:$U$505,3*($C$6-1)+3)) -> 40.933 | I204: =IF($B$8="Property Boundary", VLOOKUP($F204,P_All!$A$5:$J$505,3*($C$6-1)+4), VLOOKUP($F204,P_All!$L$5:$U$505,3*($C$6-1)+4)) -> 56.851 | J204: =IF($B$8="Property Boundary", VLOOKUP($F204,NA_All!$A$5:$J$505,3*($C$6-1)+2), VLOOKUP($F204,NA_All!$L$5:$U$505,3*($C$6-1)+2)) -> 0 | K204: =IF($B$8="Property Boundary", VLOOKUP($F204,NA_All!$A$5:$J$505,3*($C$6-1)+3), VLOOKUP($F204,NA_All!$L$5:$U$505,3*($C$6-1)+3)) -> 0 | L204: =IF($B$8="Property Boundary", VLOOKUP($F204,NA_All!$A$5:$J$505,3*($C$6-1)+4), VLOOKUP($F204,NA_All!$L$5:$U$505,3*($C$6-1)+4)) -> 0 | M204: 1000
F205: 364 | G205: =IF($B$8="Property Boundary", VLOOKUP($F205,P_All!$A$5:$J$505,3*($C$6-1)+2), VLOOKUP($F205,P_All!$L$5:$U$505,3*($C$6-1)+2)) -> 33.795 | H205: =IF($B$8="Property Boundary", VLOOKUP($F205,P_All!$A$5:$J$505,3*($C$6-1)+3), VLOOKUP($F205,P_All!$L$5:$U$505,3*($C$6-1)+3)) -> 40.79 | I205: =IF($B$8="Property Boundary", VLOOKUP($F205,P_All!$A$5:$J$505,3*($C$6-1)+4), VLOOKUP($F205,P_All!$L$5:$U$505,3*($C$6-1)+4)) -> 56.423 | J205: =IF($B$8="Property Boundary", VLOOKUP($F205,NA_All!$A$5:$J$505,3*($C$6-1)+2), VLOOKUP($F205,NA_All!$L$5:$U$505,3*($C$6-1)+2)) -> 0 | K205: =IF($B$8="Property Boundary", VLOOKUP($F205,NA_All!$A$5:$J$505,3*($C$6-1)+3), VLOOKUP($F205,NA_All!$L$5:$U$505,3*($C$6-1)+3)) -> 0 | L205: =IF($B$8="Property Boundary", VLOOKUP($F205,NA_All!$A$5:$J$505,3*($C$6-1)+4), VLOOKUP($F205,NA_All!$L$5:$U$505,3*($C$6-1)+4)) -> 0 | M205: 1000
F206: 366 | G206: =IF($B$8="Property Boundary", VLOOKUP($F206,P_All!$A$5:$J$505,3*($C$6-1)+2), VLOOKUP($F206,P_All!$L$5:$U$505,3*($C$6-1)+2)) -> 33.787 | H206: =IF($B$8="Property Boundary", VLOOKUP($F206,P_All!$A$5:$J$505,3*($C$6-1)+3), VLOOKUP($F206,P_All!$L$5:$U$505,3*($C$6-1)+3)) -> 40.735 | I206: =IF($B$8="Property Boundary", VLOOKUP($F206,P_All!$A$5:$J$505,3*($C$6-1)+4), VLOOKUP($F206,P_All!$L$5:$U$505,3*($C$6-1)+4)) -> 55.998 | J206: =IF($B$8="Property Boundary", VLOOKUP($F206,NA_All!$A$5:$J$505,3*($C$6-1)+2), VLOOKUP($F206,NA_All!$L$5:$U$505,3*($C$6-1)+2)) -> 0 | K206: =IF($B$8="Property Boundary", VLOOKUP($F206,NA_All!$A$5:$J$505,3*($C$6-1)+3), VLOOKUP($F206,NA_All!$L$5:$U$505,3*($C$6-1)+3)) -> 0 | L206: =IF($B$8="Property Boundary", VLOOKUP($F206,NA_All!$A$5:$J$505,3*($C$6-1)+4), VLOOKUP($F206,NA_All!$L$5:$U$505,3*($C$6-1)+4)) -> 0 | M206: 1000
F207: 368 | G207: =IF($B$8="Property Boundary", VLOOKUP($F207,P_All!$A$5:$J$505,3*($C$6-1)+2), VLOOKUP($F207,P_All!$L$5:$U$505,3*($C$6-1)+2)) -> 33.769 | H207: =IF($B$8="Property Boundary", VLOOKUP($F207,P_All!$A$5:$J$505,3*($C$6-1)+3), VLOOKUP($F207,P_All!$L$5:$U$505,3*($C$6-1)+3)) -> 40.666 | I207: =IF($B$8="Property Boundary", VLOOKUP($F207,P_All!$A$5:$J$505,3*($C$6-1)+4), VLOOKUP($F207,P_All!$L$5:$U$505,3*($C$6-1)+4)) -> 55.578 | J207: =IF($B$8="Property Boundary", VLOOKUP($F207,NA_All!$A$5:$J$505,3*($C$6-1)+2), VLOOKUP($F207,NA_All!$L$5:$U$505,3*($C$6-1)+2)) -> 0 | K207: =IF($B$8="Property Boundary", VLOOKUP($F207,NA_All!$A$5:$J$505,3*($C$6-1)+3), VLOOKUP($F207,NA_All!$L$5:$U$505,3*($C$6-1)+3)) -> 0 | L207: =IF($B$8="Property Boundary", VLOOKUP($F207,NA_All!$A$5:$J$505,3*($C$6-1)+4), VLOOKUP($F207,NA_All!$L$5:$U$505,3*($C$6-1)+4)) -> 0 | M207: 1000
F208: 370 | G208: =IF($B$8="Property Boundary", VLOOKUP($F208,P_All!$A$5:$J$505,3*($C$6-1)+2), VLOOKUP($F208,P_All!$L$5:$U$505,3*($C$6-1)+2)) -> 33.764 | H208: =IF($B$8="Property Boundary", VLOOKUP($F208,P_All!$A$5:$J$505,3*($C$6-1)+3), VLOOKUP($F208,P_All!$L$5:$U$505,3*($C$6-1)+3)) -> 40.643 | I208: =IF($B$8="Property Boundary", VLOOKUP($F208,P_All!$A$5:$J$505,3*($C$6-1)+4), VLOOKUP($F208,P_All!$L$5:$U$505,3*($C$6-1)+4)) -> 55.315 | J208: =IF($B$8="Property Boundary", VLOOKUP($F208,NA_All!$A$5:$J$505,3*($C$6-1)+2), VLOOKUP($F208,NA_All!$L$5:$U$505,3*($C$6-1)+2)) -> 0 | K208: =IF($B$8="Property Boundary", VLOOKUP($F208,NA_All!$A$5:$J$505,3*($C$6-1)+3), VLOOKUP($F208,NA_All!$L$5:$U$505,3*($C$6-1)+3)) -> 0 | L208: =IF($B$8="Property Boundary", VLOOKUP($F208,NA_All!$A$5:$J$505,3*($C$6-1)+4), VLOOKUP($F208,NA_All!$L$5:$U$505,3*($C$6-1)+4)) -> 0 | M208: 1000
F209: 372 | G209: =IF($B$8="Property Boundary", VLOOKUP($F209,P_All!$A$5:$J$505,3*($C$6-1)+2), VLOOKUP($F209,P_All!$L$5:$U$505,3*($C$6-1)+2)) -> 33.751 | H209: =IF($B$8="Property Boundary", VLOOKUP($F209,P_All!$A$5:$J$505,3*($C$6-1)+3), VLOOKUP($F209,P_All!$L$5:$U$505,3*($C$6-1)+3)) -> 40.626 | I209: =IF($B$8="Property Boundary", VLOOKUP($F209,P_All!$A$5:$J$505,3*($C$6-1)+4), VLOOKUP($F209,P_All!$L$5:$U$505,3*($C$6-1)+4)) -> 55.103 | J209: =IF($B$8="Property Boundary", VLOOKUP($F209,NA_All!$A$5:$J$505,3*($C$6-1)+2), VLOOKUP($F209,NA_All!$L$5:$U$505,3*($C$6-1)+2)) -> 0 | K209: =IF($B$8="Property Boundary", VLOOKUP($F209,NA_All!$A$5:$J$505,3*($C$6-1)+3), VLOOKUP($F209,NA_All!$L$5:$U$505,3*($C$6-1)+3)) -> 0 | L209: =IF($B$8="Property Boundary", VLOOKUP($F209,NA_All!$A$5:$J$505,3*($C$6-1)+4), VLOOKUP($F209,NA_All!$L$5:$U$505,3*($C$6-1)+4)) -> 0 | M209: 1000
F210: 374 | G210: =IF($B$8="Property Boundary", VLOOKUP($F210,P_All!$A$5:$J$505,3*($C$6-1)+2), VLOOKUP($F210,P_All!$L$5:$U$505,3*($C$6-1)+2)) -> 33.737 | H210: =IF($B$8="Property Boundary", VLOOKUP($F210,P_All!$A$5:$J$505,3*($C$6-1)+3), VLOOKUP($F210,P_All!$L$5:$U$505,3*($C$6-1)+3)) -> 40.64 | I210: =IF($B$8="Property Boundary", VLOOKUP($F210,P_All!$A$5:$J$505,3*($C$6-1)+4), VLOOKUP($F210,P_All!$L$5:$U$505,3*($C$6-1)+4)) -> 54.788 | J210: =IF($B$8="Property Boundary", VLOOKUP($F210,NA_All!$A$5:$J$505,3*($C$6-1)+2), VLOOKUP($F210,NA_All!$L$5:$U$505,3*($C$6-1)+2)) -> 0 | K210: =IF($B$8="Property Boundary", VLOOKUP($F210,NA_All!$A$5:$J$505,3*($C$6-1)+3), VLOOKUP($F210,NA_All!$L$5:$U$505,3*($C$6-1)+3)) -> 0 | L210: =IF($B$8="Property Boundary", VLOOKUP($F210,NA_All!$A$5:$J$505,3*($C$6-1)+4), VLOOKUP($F210,NA_All!$L$5:$U$505,3*($C$6-1)+4)) -> 0 | M210: 1000
... 62 more rows

Sheet P_All
A1: Values shown for constituent selected on PlotControl tab | L1: Values shown for constituent selected on PlotControl tab
B2: Project, North | E2: Project, NorthWest | H2: Project, West | M2: Project, North | P2: Project, NorthWest | S2: Project, West
B3: Annual Results at Prop. Bdry | E3: Annual Results at Prop. Bdry | H3: Annual Results at Prop. Bdry | M3: Annual Results at Discharge | P3: Annual Results at Discharge | S3: Annual Results at Discharge
A4: Time | B4: P10 | C4: P50 | D4: P90 | E4: P10 | F4: P50 | G4: P90 | H4: P10 | I4: P50 | J4: P90 | L4: Time | M4: P10 | N4: P50 | O4: P90 | P4: P10 | Q4: P50 | R4: P90 | S4: P10 | T4: P50 | U4: P90
A5: 0 | B5: =MAX(OFFSET(P_N_Prop!$C$10,12*$A5,4*(PlotControl!$C$4-1),12,1)) -> 162.57 | C5: =MAX(OFFSET(P_N_Prop!$D$10,12*$A5,4*(PlotControl!$C$4-1),12,1)) -> 211.35 | D5: =MAX(OFFSET(P_N_Prop!$E$10,12*$A5,4*(PlotControl!$C$4-1),12,1)) -> 247.61 | E5: =MAX(OFFSET(P_NW_Prop!$C$10,12*$A5,4*(PlotControl!$C$4-1),12,1)) -> 257.56 | F5: =MAX(OFFSET(P_NW_Prop!$D$10,12*$A5,4*(PlotControl!$C$4-1),12,1)) -> 324.12 | G5: =MAX(OFFSET(P_NW_Prop!$E$10,12*$A5,4*(PlotControl!$C$4-1),12,1)) -> 383.19 | H5: =MAX(OFFSET(P_W_Prop!$C$10,12*$A5,4*(PlotControl!$C$4-1),12,1)) -> 200.6 | I5: =MAX(OFFSET(P_W_Prop!$D$10,12*$A5,4*(PlotControl!$C$4-1),12,1)) -> 272.52 | J5: =MAX(OFFSET(P_W_Prop!$E$10,12*$A5,4*(PlotControl!$C$4-1),12,1)) -> 339.02 | L5: 0 | M5: =MAX(OFFSET(P_N_Out!$C$10,12*$A5,4*(PlotControl!$C$4-1),12,1)) -> 99.429 | N5: =MAX(OFFSET(P_N_Out!$D$10,12*$A5,4*(PlotControl!$C$4-1),12,1)) -> 143.44 | O5: =MAX(OFFSET(P_N_Out!$E$10,12*$A5,4*(PlotControl!$C$4-1),12,1)) -> 188.23 | P5: =MAX(OFFSET(P_NW_Out!$C$10,12*$A5,4*(PlotControl!$C$4-1),12,1)) -> 151.07 | Q5: =MAX(OFFSET(P_NW_Out!$D$10,12*$A5,4*(PlotControl!$C$4-1),12,1)) -> 211.73 | R5: =MAX(OFFSET(P_NW_Out!$E$10,12*$A5,4*(PlotControl!$C$4-1),12,1)) -> 285.19 | S5: =MAX(OFFSET(P_W_Out!$C$10,12*$A5,4*(PlotControl!$C$4-1),12,1)) -> 147.32 | T5: =MAX(OFFSET(P_W_Out!$D$10,12*$A5,4*(PlotControl!$C$4-1),12,1)) -> 211.59 | U5: =MAX(OFFSET(P_W_Out!$E$10,12*$A5,4*(PlotControl!$C$4-1),12,1)) -> 281.63
A6: 1 | B6: =MAX(OFFSET(P_N_Prop!$C$10,12*$A6,4*(PlotControl!$C$4-1),12,1)) -> 161.77 | C6: =MAX(OFFSET(P_N_Prop!$D$10,12*$A6,4*(PlotControl!$C$4-1),12,1)) -> 210.42 | D6: =MAX(OFFSET(P_N_Prop!$E$10,12*$A6,4*(PlotControl!$C$4-1),12,1)) -> 246.39 | E6: =MAX(OFFSET(P_NW_Prop!$C$10,12*$A6,4*(PlotControl!$C$4-1),12,1)) -> 256.57 | F6: =MAX(OFFSET(P_NW_Prop!$D$10,12*$A6,4*(PlotControl!$C$4-1),12,1)) -> 322.39 | G6: =MAX(OFFSET(P_NW_Prop!$E$10,12*$A6,4*(PlotControl!$C$4-1),12,1)) -> 381.5 | H6: =MAX(OFFSET(P_W_Prop!$C$10,12*$A6,4*(PlotControl!$C$4-1),12,1)) -> 199.94 | I6: =MAX(OFFSET(P_W_Prop!$D$10,12*$A6,4*(PlotControl!$C$4-1),12,1)) -> 271.15 | J6: =MAX(OFFSET(P_W_Prop!$E$10,12*$A6,4*(PlotControl!$C$4-1),12,1)) -> 337.9 | L6: 1 | M6: =MAX(OFFSET(P_N_Out!$C$10,12*$A6,4*(PlotControl!$C$4-1),12,1)) -> 99.204 | N6: =MAX(OFFSET(P_N_Out!$D$10,12*$A6,4*(PlotControl!$C$4-1),12,1)) -> 143.08 | O6: =MAX(OFFSET(P_N_Out!$E$10,12*$A6,4*(PlotControl!$C$4-1),12,1)) -> 187.58 | P6: =MAX(OFFSET(P_NW_Out!$C$10,12*$A6,4*(PlotControl!$C$4-1),12,1)) -> 150.78 | Q6: =MAX(OFFSET(P_NW_Out!$D$10,12*$A6,4*(PlotControl!$C$4-1),12,1)) -> 210.9 | R6: =MAX(OFFSET(P_NW_Out!$E$10,12*$A6,4*(PlotControl!$C$4-1),12,1)) -> 284.22 | S6: =MAX(OFFSET(P_W_Out!$C$10,12*$A6,4*(PlotControl!$C$4-1),12,1)) -> 146.67 | T6: =MAX(OFFSET(P_W_Out!$D$10,12*$A6,4*(PlotControl!$C$4-1),12,1)) -> 210.67 | U6: =MAX(OFFSET(P_W_Out!$E$10,12*$A6,4*(PlotControl!$C$4-1),12,1)) -> 280.87
A7: 2 | B7: =MAX(OFFSET(P_N_Prop!$C$10,12*$A7,4*(PlotControl!$C$4-1),12,1)) -> 160.98 | C7: =MAX(OFFSET(P_N_Prop!$D$10,12*$A7,4*(PlotControl!$C$4-1),12,1)) -> 209.24 | D7: =MAX(OFFSET(P_N_Prop!$E$10,12*$A7,4*(PlotControl!$C$4-1),12,1)) -> 245.41 | E7: =MAX(OFFSET(P_NW_Prop!$C$10,12*$A7,4*(PlotControl!$C$4-1),12,1)) -> 255.24 | F7: =MAX(OFFSET(P_NW_Prop!$D$10,12*$A7,4*(PlotControl!$C$4-1),12,1)) -> 320.6 | G7: =MAX(OFFSET(P_NW_Prop!$E$10,12*$A7,4*(PlotControl!$C$4-1),12,1)) -> 379.87 | H7: =MAX(OFFSET(P_W_Prop!$C$10,12*$A7,4*(PlotControl!$C$4-1),12,1)) -> 199.13 | I7: =MAX(OFFSET(P_W_Prop!$D$10,12*$A7,4*(PlotControl!$C$4-1),12,1)) -> 269.95 | J7: =MAX(OFFSET(P_W_Prop!$E$10,12*$A7,4*(PlotControl!$C$4-1),12,1)) -> 336.62 | L7: 2 | M7: =MAX(OFFSET(P_N_Out!$C$10,12*$A7,4*(PlotControl!$C$4-1),12,1)) -> 98.977 | N7: =MAX(OFFSET(P_N_Out!$D$10,12*$A7,4*(PlotControl!$C$4-1),12,1)) -> 142.71 | O7: =MAX(OFFSET(P_N_Out!$E$10,12*$A7,4*(PlotControl!$C$4-1),12,1)) -> 186.93 | P7: =MAX(OFFSET(P_NW_Out!$C$10,12*$A7,4*(PlotControl!$C$4-1),12,1)) -> 150.43 | Q7: =MAX(OFFSET(P_NW_Out!$D$10,12*$A7,4*(PlotControl!$C$4-1),12,1)) -> 210.15 | R7: =MAX(OFFSET(P_NW_Out!$E$10,12*$A7,4*(PlotControl!$C$4-1),12,1)) -> 283.34 | S7: =MAX(OFFSET(P_W_Out!$C$10,12*$A7,4*(PlotControl!$C$4-1),12,1)) -> 145.96 | T7: =MAX(OFFSET(P_W_Out!$D$10,12*$A7,4*(PlotControl!$C$4-1),12,1)) -> 209.75 | U7: =MAX(OFFSET(P_W_Out!$E$10,12*$A7,4*(PlotControl!$C$4-1),12,1)) -> 280.1
A8: 3 | B8: =MAX(OFFSET(P_N_Prop!$C$10,12*$A8,4*(PlotControl!$C$4-1),12,1)) -> 160.18 | C8: =MAX(OFFSET(P_N_Prop!$D$10,12*$A8,4*(PlotControl!$C$4-1),12,1)) -> 208 | D8: =MAX(OFFSET(P_N_Prop!$E$10,12*$A8,4*(PlotControl!$C$4-1),12,1)) -> 244.39 | E8: =MAX(OFFSET(P_NW_Prop!$C$10,12*$A8,4*(PlotControl!$C$4-1),12,1)) -> 253.89 | F8: =MAX(OFFSET(P_NW_Prop!$D$10,12*$A8,4*(PlotControl!$C$4-1),12,1)) -> 318.67 | G8: =MAX(OFFSET(P_NW_Prop!$E$10,12*$A8,4*(PlotControl!$C$4-1),12,1)) -> 378.3 | H8: =MAX(OFFSET(P_W_Prop!$C$10,12*$A8,4*(PlotControl!$C$4-1),12,1)) -> 198.2 | I8: =MAX(OFFSET(P_W_Prop!$D$10,12*$A8,4*(PlotControl!$C$4-1),12,1)) -> 268.91 | J8: =MAX(OFFSET(P_W_Prop!$E$10,12*$A8,4*(PlotControl!$C$4-1),12,1)) -> 335.26 | L8: 3 | M8: =MAX(OFFSET(P_N_Out!$C$10,12*$A8,4*(PlotControl!$C$4-1),12,1)) -> 98.749 | N8: =MAX(OFFSET(P_N_Out!$D$10,12*$A8,4*(PlotControl!$C$4-1),12,1)) -> 142.33 | O8: =MAX(OFFSET(P_N_Out!$E$10,12*$A8,4*(PlotControl!$C$4-1),12,1)) -> 186.34 | P8: =MAX(OFFSET(P_NW_Out!$C$10,12*$A8,4*(PlotControl!$C$4-1),12,1)) -> 150.05 | Q8: =MAX(OFFSET(P_NW_Out!$D$10,12*$A8,4*(PlotControl!$C$4-1),12,1)) -> 209.59 | R8: =MAX(OFFSET(P_NW_Out!$E$10,12*$A8,4*(PlotControl!$C$4-1),12,1)) -> 282.55 | S8: =MAX(OFFSET(P_W_Out!$C$10,12*$A8,4*(PlotControl!$C$4-1),12,1)) -> 145.26 | T8: =MAX(OFFSET(P_W_Out!$D$10,12*$A8,4*(PlotControl!$C$4-1),12,1)) -> 208.9 | U8: =MAX(OFFSET(P_W_Out!$E$10,12*$A8,4*(PlotControl!$C$4-1),12,1)) -> 279.13
A9: 4 | B9: =MAX(OFFSET(P_N_Prop!$C$10,12*$A9,4*(PlotControl!$C$4-1),12,1)) -> 159.43 | C9: =MAX(OFFSET(P_N_Prop!$D$10,12*$A9,4*(PlotControl!$C$4-1),12,1)) -> 206.87 | D9: =MAX(OFFSET(P_N_Prop!$E$10,12*$A9,4*(PlotControl!$C$4-1),12,1)) -> 243.38 | E9: =MAX(OFFSET(P_NW_Prop!$C$10,12*$A9,4*(PlotControl!$C$4-1),12,1)) -> 252.53 | F9: =MAX(OFFSET(P_NW_Prop!$D$10,12*$A9,4*(PlotControl!$C$4-1),12,1)) -> 316.93 | G9: =MAX(OFFSET(P_NW_Prop!$E$10,12*$A9,4*(PlotControl!$C$4-1),12,1)) -> 376.38 | H9: =MAX(OFFSET(P_W_Prop!$C$10,12*$A9,4*(PlotControl!$C$4-1),12,1)) -> 197.27 | I9: =MAX(OFFSET(P_W_Prop!$D$10,12*$A9,4*(PlotControl!$C$4-1),12,1)) -> 267.75 | J9: =MAX(OFFSET(P_W_Prop!$E$10,12*$A9,4*(PlotControl!$C$4-1),12,1)) -> 334.18 | L9: 4 | M9: =MAX(OFFSET(P_N_Out!$C$10,12*$A9,4*(PlotControl!$C$4-1),12,1)) -> 98.519 | N9: =MAX(OFFSET(P_N_Out!$D$10,12*$A9,4*(PlotControl!$C$4-1),12,1)) -> 141.9 | O9: =MAX(OFFSET(P_N_Out!$E$10,12*$A9,4*(PlotControl!$C$4-1),12,1)) -> 185.94 | P9: =MAX(OFFSET(P_NW_Out!$C$10,12*$A9,4*(PlotControl!$C$4-1),12,1)) -> 149.66 | Q9: =MAX(OFFSET(P_NW_Out!$D$10,12*$A9,4*(PlotControl!$C$4-1),12,1)) -> 208.96 | R9: =MAX(OFFSET(P_NW_Out!$E$10,12*$A9,4*(PlotControl!$C$4-1),12,1)) -> 281.75 | S9: =MAX(OFFSET(P_W_Out!$C$10,12*$A9,4*(PlotControl!$C$4-1),12,1)) -> 144.55 | T9: =MAX(OFFSET(P_W_Out!$D$10,12*$A9,4*(PlotControl!$C$4-1),12,1)) -> 208.18 | U9: =MAX(OFFSET(P_W_Out!$E$10,12*$A9,4*(PlotControl!$C$4-1),12,1)) -> 278.02
A10: 5 | B10: =MAX(OFFSET(P_N_Prop!$C$10,12*$A10,4*(PlotControl!$C$4-1),12,1)) -> 158.75 | C10: =MAX(OFFSET(P_N_Prop!$D$10,12*$A10,4*(PlotControl!$C$4-1),12,1)) -> 205.67 | D10: =MAX(OFFSET(P_N_Prop!$E$10,12*$A10,4*(PlotControl!$C$4-1),12,1)) -> 242.37 | E10: =MAX(OFFSET(P_NW_Prop!$C$10,12*$A10,4*(PlotControl!$C$4-1),12,1)) -> 251.18 | F10: =MAX(OFFSET(P_NW_Prop!$D$10,12*$A10,4*(PlotControl!$C$4-1),12,1)) -> 314.91 | G10: =MAX(OFFSET(P_NW_Prop!$E$10,12*$A10,4*(PlotControl!$C$4-1),12,1)) -> 374.6 | H10: =MAX(OFFSET(P_W_Prop!$C$10,12*$A10,4*(PlotControl!$C$4-1),12,1)) -> 196.33 | I10: =MAX(OFFSET(P_W_Prop!$D$10,12*$A10,4*(PlotControl!$C$4-1),12,1)) -> 266.54 | J10: =MAX(OFFSET(P_W_Prop!$E$10,12*$A10,4*(PlotControl!$C$4-1),12,1)) -> 332.63 | L10: 5 | M10: =MAX(OFFSET(P_N_Out!$C$10,12*$A10,4*(PlotControl!$C$4-1),12,1)) -> 98.288 | N10: =MAX(OFFSET(P_N_Out!$D$10,12*$A10,4*(PlotControl!$C$4-1),12,1)) -> 141.47 | O10: =MAX(OFFSET(P_N_Out!$E$10,12*$A10,4*(PlotControl!$C$4-1),12,1)) -> 185.48 | P10: =MAX(OFFSET(P_NW_Out!$C$10,12*$A10,4*(PlotControl!$C$4-1),12,1)) -> 149.26 | Q10: =MAX(OFFSET(P_NW_Out!$D$10,12*$A10,4*(PlotControl!$C$4-1),12,1)) -> 208.23 | R10: =MAX(OFFSET(P_NW_Out!$E$10,12*$A10,4*(PlotControl!$C$4-1),12,1)) -> 281.06 | S10: =MAX(OFFSET(P_W_Out!$C$10,12*$A10,4*(PlotControl!$C$4-1),12,1)) -> 143.86 | T10: =MAX(OFFSET(P_W_Out!$D$10,12*$A10,4*(PlotControl!$C$4-1),12,1)) -> 207.32 | U10: =MAX(OFFSET(P_W_Out!$E$10,12*$A10,4*(PlotControl!$C$4-1),12,1)) -> 277.33
A11: 6 | B11: =MAX(OFFSET(P_N_Prop!$C$10,12*$A11,4*(PlotControl!$C$4-1),12,1)) -> 158.05 | C11: =MAX(OFFSET(P_N_Prop!$D$10,12*$A11,4*(PlotControl!$C$4-1),12,1)) -> 204.59 | D11: =MAX(OFFSET(P_N_Prop!$E$10,12*$A11,4*(PlotControl!$C$4-1),12,1)) -> 241.12 | E11: =MAX(OFFSET(P_NW_Prop!$C$10,12*$A11,4*(PlotControl!$C$4-1),12,1)) -> 249.83 | F11: =MAX(OFFSET(P_NW_Prop!$D$10,12*$A11,4*(PlotControl!$C$4-1),12,1)) -> 313.15 | G11: =MAX(OFFSET(P_NW_Prop!$E$10,12*$A11,4*(PlotControl!$C$4-1),12,1)) -> 372.56 | H11: =MAX(OFFSET(P_W_Prop!$C$10,12*$A11,4*(PlotControl!$C$4-1),12,1)) -> 195.4 | I11: =MAX(OFFSET(P_W_Prop!$D$10,12*$A11,4*(PlotControl!$C$4-1),12,1)) -> 265.49 | J11: =MAX(OFFSET(P_W_Prop!$E$10,12*$A11,4*(PlotControl!$C$4-1),12,1)) -> 330.87 | L11: 6 | M11: =MAX(OFFSET(P_N_Out!$C$10,12*$A11,4*(PlotControl!$C$4-1),12,1)) -> 98.055 | N11: =MAX(OFFSET(P_N_Out!$D$10,12*$A11,4*(PlotControl!$C$4-1),12,1)) -> 140.97 | O11: =MAX(OFFSET(P_N_Out!$E$10,12*$A11,4*(PlotControl!$C$4-1),12,1)) -> 184.94 | P11: =MAX(OFFSET(P_NW_Out!$C$10,12*$A11,4*(PlotControl!$C$4-1),12,1)) -> 148.87 | Q11: =MAX(OFFSET(P_NW_Out!$D$10,12*$A11,4*(PlotControl!$C$4-1),12,1)) -> 207.54 | R11: =MAX(OFFSET(P_NW_Out!$E$10,12*$A11,4*(PlotControl!$C$4-1),12,1)) -> 280.23 | S11: =MAX(OFFSET(P_W_Out!$C$10,12*$A11,4*(PlotControl!$C$4-1),12,1)) -> 143.35 | T11: =MAX(OFFSET(P_W_Out!$D$10,12*$A11,4*(PlotControl!$C$4-1),12,1)) -> 206.64 | U11: =MAX(OFFSET(P_W_Out!$E$10,12*$A11,4*(PlotControl!$C$4-1),12,1)) -> 276.65
A12: 7 | B12: =MAX(OFFSET(P_N_Prop!$C$10,12*$A12,4*(PlotControl!$C$4-1),12,1)) -> 157.18 | C12: =MAX(OFFSET(P_N_Prop!$D$10,12*$A12,4*(PlotControl!$C$4-1),12,1)) -> 203.65 | D12: =MAX(OFFSET(P_N_Prop!$E$10,12*$A12,4*(PlotControl!$C$4-1),12,1)) -> 239.99 | E12: =MAX(OFFSET(P_NW_Prop!$C$10,12*$A12,4*(PlotControl!$C$4-1),12,1)) -> 248.77 | F12: =MAX(OFFSET(P_NW_Prop!$D$10,12*$A12,4*(PlotControl!$C$4-1),12,1)) -> 311.27 | G12: =MAX(OFFSET(P_NW_Prop!$E$10,12*$A12,4*(PlotControl!$C$4-1),12,1)) -> 370.7 | H12: =MAX(OFFSET(P_W_Prop!$C$10,12*$A12,4*(PlotControl!$C$4-1),12,1)) -> 194.57 | I12: =MAX(OFFSET(P_W_Prop!$D$10,12*$A12,4*(PlotControl!$C$4-1),12,1)) -> 264.14 | J12: =MAX(OFFSET(P_W_Prop!$E$10,12*$A12,4*(PlotControl!$C$4-1),12,1)) -> 329.52 | L12: 7 | M12: =MAX(OFFSET(P_N_Out!$C$10,12*$A12,4*(PlotControl!$C$4-1),12,1)) -> 97.821 | N12: =MAX(OFFSET(P_N_Out!$D$10,12*$A12,4*(PlotControl!$C$4-1),12,1)) -> 140.5 | O12: =MAX(OFFSET(P_N_Out!$E$10,12*$A12,4*(PlotControl!$C$4-1),12,1)) -> 184.4 | P12: =MAX(OFFSET(P_NW_Out!$C$10,12*$A12,4*(PlotControl!$C$4-1),12,1)) -> 148.47 | Q12: =MAX(OFFSET(P_NW_Out!$D$10,12*$A12,4*(PlotControl!$C$4-1),12,1)) -> 206.76 | R12: =MAX(OFFSET(P_NW_Out!$E$10,12*$A12,4*(PlotControl!$C$4-1),12,1)) -> 279.41 | S12: =MAX(OFFSET(P_W_Out!$C$10,12*$A12,4*(PlotControl!$C$4-1),12,1)) -> 142.83 | T12: =MAX(OFFSET(P_W_Out!$D$10,12*$A12,4*(PlotControl!$C$4-1),12,1)) -> 205.98 | U12: =MAX(OFFSET(P_W_Out!$E$10,12*$A12,4*(PlotControl!$C$4-1),12,1)) -> 275.42
A13: 8 | B13: =MAX(OFFSET(P_N_Prop!$C$10,12*$A13,4*(PlotControl!$C$4-1),12,1)) -> 156.32 | C13: =MAX(OFFSET(P_N_Prop!$D$10,12*$A13,4*(PlotControl!$C$4-1),12,1)) -> 202.78 | D13: =MAX(OFFSET(P_N_Prop!$E$10,12*$A13,4*(PlotControl!$C$4-1),12,1)) -> 239.06 | E13: =MAX(OFFSET(P_NW_Prop!$C$10,12*$A13,4*(PlotControl!$C$4-1),12,1)) -> 247.35 | F13: =MAX(OFFSET(P_NW_Prop!$D$10,12*$A13,4*(PlotControl!$C$4-1),12,1)) -> 309.24 | G13: =MAX(OFFSET(P_NW_Prop!$E$10,12*$A13,4*(PlotControl!$C$4-1),12,1)) -> 368.89 | H13: =MAX(OFFSET(P_W_Prop!$C$10,12*$A13,4*(PlotControl!$C$4-1),12,1)) -> 193.81 | I13: =MAX(OFFSET(P_W_Prop!$D$10,12*$A13,4*(PlotControl!$C$4-1),12,1)) -> 262.68 | J13: =MAX(OFFSET(P_W_Prop!$E$10,12*$A13,4*(PlotControl!$C$4-1),12,1)) -> 328.22 | L13: 8 | M13: =MAX(OFFSET(P_N_Out!$C$10,12*$A13,4*(PlotControl!$C$4-1),12,1)) -> 97.586 | N13: =MAX(OFFSET(P_N_Out!$D$10,12*$A13,4*(PlotControl!$C$4-1),12,1)) -> 140.04 | O13: =MAX(OFFSET(P_N_Out!$E$10,12*$A13,4*(PlotControl!$C$4-1),12,1)) -> 183.86 | P13: =MAX(OFFSET(P_NW_Out!$C$10,12*$A13,4*(PlotControl!$C$4-1),12,1)) -> 148.07 | Q13: =MAX(OFFSET(P_NW_Out!$D$10,12*$A13,4*(PlotControl!$C$4-1),12,1)) -> 206 | R13: =MAX(OFFSET(P_NW_Out!$E$10,12*$A13,4*(PlotControl!$C$4-1),12,1)) -> 278.52 | S13: =MAX(OFFSET(P_W_Out!$C$10,12*$A13,4*(PlotControl!$C$4-1),12,1)) -> 142.32 | T13: =MAX(OFFSET(P_W_Out!$D$10,12*$A13,4*(PlotControl!$C$4-1),12,1)) -> 205.32 | U13: =MAX(OFFSET(P_W_Out!$E$10,12*$A13,4*(PlotControl!$C$4-1),12,1)) -> 274.1
A14: 9 | B14: =MAX(OFFSET(P_N_Prop!$C$10,12*$A14,4*(PlotControl!$C$4-1),12,1)) -> 155.45 | C14: =MAX(OFFSET(P_N_Prop!$D$10,12*$A14,4*(PlotControl!$C$4-1),12,1)) -> 201.79 | D14: =MAX(OFFSET(P_N_Prop!$E$10,12*$A14,4*(PlotControl!$C$4-1),12,1)) -> 237.87 | E14: =MAX(OFFSET(P_NW_Prop!$C$10,12*$A14,4*(PlotControl!$C$4-1),12,1)) -> 245.92 | F14: =MAX(OFFSET(P_NW_Prop!$D$10,12*$A14,4*(PlotControl!$C$4-1),12,1)) -> 307.48 | G14: =MAX(OFFSET(P_NW_Prop!$E$10,12*$A14,4*(PlotControl!$C$4-1),12,1)) -> 367.29 | H14: =MAX(OFFSET(P_W_Prop!$C$10,12*$A14,4*(PlotControl!$C$4-1),12,1)) -> 193.05 | I14: =MAX(OFFSET(P_W_Prop!$D$10,12*$A14,4*(PlotControl!$C$4-1),12,1)) -> 261.37 | J14: =MAX(OFFSET(P_W_Prop!$E$10,12*$A14,4*(PlotControl!$C$4-1),12,1)) -> 326.96 | L14: 9 | M14: =MAX(OFFSET(P_N_Out!$C$10,12*$A14,4*(PlotControl!$C$4-1),12,1)) -> 97.349 | N14: =MAX(OFFSET(P_N_Out!$D$10,12*$A14,4*(PlotControl!$C$4-1),12,1)) -> 139.55 | O14: =MAX(OFFSET(P_N_Out!$E$10,12*$A14,4*(PlotControl!$C$4-1),12,1)) -> 183.32 | P14: =MAX(OFFSET(P_NW_Out!$C$10,12*$A14,4*(PlotControl!$C$4-1),12,1)) -> 147.67 | Q14: =MAX(OFFSET(P_NW_Out!$D$10,12*$A14,4*(PlotControl!$C$4-1),12,1)) -> 205.34 | R14: =MAX(OFFSET(P_NW_Out!$E$10,12*$A14,4*(PlotControl!$C$4-1),12,1)) -> 277.25 | S14: =MAX(OFFSET(P_W_Out!$C$10,12*$A14,4*(PlotControl!$C$4-1),12,1)) -> 141.69 | T14: =MAX(OFFSET(P_W_Out!$D$10,12*$A14,4*(PlotControl!$C$4-1),12,1)) -> 204.55 | U14: =MAX(OFFSET(P_W_Out!$E$10,12*$A14,4*(PlotControl!$C$4-1),12,1)) -> 272.95
A15: 10 | B15: =MAX(OFFSET(P_N_Prop!$C$10,12*$A15,4*(PlotControl!$C$4-1),12,1)) -> 154.59 | C15: =MAX(OFFSET(P_N_Prop!$D$10,12*$A15,4*(PlotControl!$C$4-1),12,1)) -> 200.76 | D15: =MAX(OFFSET(P_N_Prop!$E$10,12*$A15,4*(PlotControl!$C$4-1),12,1)) -> 237.14 | E15: =MAX(OFFSET(P_NW_Prop!$C$10,12*$A15,4*(PlotControl!$C$4-1),12,1)) -> 244.58 | F15: =MAX(OFFSET(P_NW_Prop!$D$10,12*$A15,4*(PlotControl!$C$4-1),12,1)) -> 305.7 | G15: =MAX(OFFSET(P_NW_Prop!$E$10,12*$A15,4*(PlotControl!$C$4-1),12,1)) -> 365.28 | H15: =MAX(OFFSET(P_W_Prop!$C$10,12*$A15,4*(PlotControl!$C$4-1),12,1)) -> 192.28 | I15: =MAX(OFFSET(P_W_Prop!$D$10,12*$A15,4*(PlotControl!$C$4-1),12,1)) -> 260.32 | J15: =MAX(OFFSET(P_W_Prop!$E$10,12*$A15,4*(PlotControl!$C$4-1),12,1)) -> 325.7 | L15: 10 | M15: =MAX(OFFSET(P_N_Out!$C$10,12*$A15,4*(PlotControl!$C$4-1),12,1)) -> 97.111 | N15: =MAX(OFFSET(P_N_Out!$D$10,12*$A15,4*(PlotControl!$C$4-1),12,1)) -> 139.09 | O15: =MAX(OFFSET(P_N_Out!$E$10,12*$A15,4*(PlotControl!$C$4-1),12,1)) -> 182.78 | P15: =MAX(OFFSET(P_NW_Out!$C$10,12*$A15,4*(PlotControl!$C$4-1),12,1)) -> 147.27 | Q15: =MAX(OFFSET(P_NW_Out!$D$10,12*$A15,4*(PlotControl!$C$4-1),12,1)) -> 204.67 | R15: =MAX(OFFSET(P_NW_Out!$E$10,12*$A15,4*(PlotControl!$C$4-1),12,1)) -> 276.17 | S15: =MAX(OFFSET(P_W_Out!$C$10,12*$A15,4*(PlotControl!$C$4-1),12,1)) -> 141.04 | T15: =MAX(OFFSET(P_W_Out!$D$10,12*$A15,4*(PlotControl!$C$4-1),12,1)) -> 203.49 | U15: =MAX(OFFSET(P_W_Out!$E$10,12*$A15,4*(PlotControl!$C$4-1),12,1)) -> 272.03
A16: 11 | B16: =MAX(OFFSET(P_N_Prop!$C$10,12*$A16,4*(PlotControl!$C$4-1),12,1)) -> 153.56 | C16: =MAX(OFFSET(P_N_Prop!$D$10,12*$A16,4*(PlotControl!$C$4-1),12,1)) -> 199.52 | D16: =MAX(OFFSET(P_N_Prop!$E$10,12*$A16,4*(PlotControl!$C$4-1),12,1)) -> 236.48 | E16: =MAX(OFFSET(P_NW_Prop!$C$10,12*$A16,4*(PlotControl!$C$4-1),12,1)) -> 243.56 | F16: =MAX(OFFSET(P_NW_Prop!$D$10,12*$A16,4*(PlotControl!$C$4-1),12,1)) -> 303.84 | G16: =MAX(OFFSET(P_NW_Prop!$E$10,12*$A16,4*(PlotControl!$C$4-1),12,1)) -> 364 | H16: =MAX(OFFSET(P_W_Prop!$C$10,12*$A16,4*(PlotControl!$C$4-1),12,1)) -> 191.51 | I16: =MAX(OFFSET(P_W_Prop!$D$10,12*$A16,4*(PlotControl!$C$4-1),12,1)) -> 259.02 | J16: =MAX(OFFSET(P_W_Prop!$E$10,12*$A16,4*(PlotControl!$C$4-1),12,1)) -> 324.57 | L16: 11 | M16: =MAX(OFFSET(P_N_Out!$C$10,12*$A16,4*(PlotControl!$C$4-1),12,1)) -> 96.871 | N16: =MAX(OFFSET(P_N_Out!$D$10,12*$A16,4*(PlotControl!$C$4-1),12,1)) -> 138.63 | O16: =MAX(OFFSET(P_N_Out!$E$10,12*$A16,4*(PlotControl!$C$4-1),12,1)) -> 182.24 | P16: =MAX(OFFSET(P_NW_Out!$C$10,12*$A16,4*(PlotControl!$C$4-1),12,1)) -> 146.86 | Q16: =MAX(OFFSET(P_NW_Out!$D$10,12*$A16,4*(PlotControl!$C$4-1),12,1)) -> 203.91 | R16: =MAX(OFFSET(P_NW_Out!$E$10,12*$A16,4*(PlotControl!$C$4-1),12,1)) -> 275.31 | S16: =MAX(OFFSET(P_W_Out!$C$10,12*$A16,4*(PlotControl!$C$4-1),12,1)) -> 140.39 | T16: =MAX(OFFSET(P_W_Out!$D$10,12*$A16,4*(PlotControl!$C$4-1),12,1)) -> 202.78 | U16: =MAX(OFFSET(P_W_Out!$E$10,12*$A16,4*(PlotControl!$C$4-1),12,1)) -> 271.31
A17: 12 | B17: =MAX(OFFSET(P_N_Prop!$C$10,12*$A17,4*(PlotControl!$C$4-1),12,1)) -> 152.67 | C17: =MAX(OFFSET(P_N_Prop!$D$10,12*$A17,4*(PlotControl!$C$4-1),12,1)) -> 198.13 | D17: =MAX(OFFSET(P_N_Prop!$E$10,12*$A17,4*(PlotControl!$C$4-1),12,1)) -> 235.55 | E17: =MAX(OFFSET(P_NW_Prop!$C$10,12*$A17,4*(PlotControl!$C$4-1),12,1)) -> 242.16 | F17: =MAX(OFFSET(P_NW_Prop!$D$10,12*$A17,4*(PlotControl!$C$4-1),12,1)) -> 302.35 | G17: =MAX(OFFSET(P_NW_Prop!$E$10,12*$A17,4*(PlotControl!$C$4-1),12,1)) -> 361.57 | H17: =MAX(OFFSET(P_W_Prop!$C$10,12*$A17,4*(PlotControl!$C$4-1),12,1)) -> 190.46 | I17: =MAX(OFFSET(P_W_Prop!$D$10,12*$A17,4*(PlotControl!$C$4-1),12,1)) -> 257.54 | J17: =MAX(OFFSET(P_W_Prop!$E$10,12*$A17,4*(PlotControl!$C$4-1),12,1)) -> 323.52 | L17: 12 | M17: =MAX(OFFSET(P_N_Out!$C$10,12*$A17,4*(PlotControl!$C$4-1),12,1)) -> 96.63 | N17: =MAX(OFFSET(P_N_Out!$D$10,12*$A17,4*(PlotControl!$C$4-1),12,1)) -> 138.16 | O17: =MAX(OFFSET(P_N_Out!$E$10,12*$A17,4*(PlotControl!$C$4-1),12,1)) -> 181.71 | P17: =MAX(OFFSET(P_NW_Out!$C$10,12*$A17,4*(PlotControl!$C$4-1),12,1)) -> 146.45 | Q17: =MAX(OFFSET(P_NW_Out!$D$10,12*$A17,4*(PlotControl!$C$4-1),12,1)) -> 203.18 | R17: =MAX(OFFSET(P_NW_Out!$E$10,12*$A17,4*(PlotControl!$C$4-1),12,1)) -> 274.45 | S17: =MAX(OFFSET(P_W_Out!$C$10,12*$A17,4*(PlotControl!$C$4-1),12,1)) -> 139.75 | T17: =MAX(OFFSET(P_W_Out!$D$10,12*$A17,4*(PlotControl!$C$4-1),12,1)) -> 201.98 | U17: =MAX(OFFSET(P_W_Out!$E$10,12*$A17,4*(PlotControl!$C$4-1),12,1)) -> 270.59
A18: 13 | B18: =MAX(OFFSET(P_N_Prop!$C$10,12*$A18,4*(PlotControl!$C$4-1),12,1)) -> 151.86 | C18: =MAX(OFFSET(P_N_Prop!$D$10,12*$A18,4*(PlotControl!$C$4-1),12,1)) -> 197.05 | D18: =MAX(OFFSET(P_N_Prop!$E$10,12*$A18,4*(PlotControl!$C$4-1),12,1)) -> 234.43 | E18: =MAX(OFFSET(P_NW_Prop!$C$10,12*$A18,4*(PlotControl!$C$4-1),12,1)) -> 240.75 | F18: =MAX(OFFSET(P_NW_Prop!$D$10,12*$A18,4*(PlotControl!$C$4-1),12,1)) -> 300.83 | G18: =MAX(OFFSET(P_NW_Prop!$E$10,12*$A18,4*(PlotControl!$C$4-1),12,1)) -> 359.19 | H18: =MAX(OFFSET(P_W_Prop!$C$10,12*$A18,4*(PlotControl!$C$4-1),12,1)) -> 189.51 | I18: =MAX(OFFSET(P_W_Prop!$D$10,12*$A18,4*(PlotControl!$C$4-1),12,1)) -> 256.29 | J18: =MAX(OFFSET(P_W_Prop!$E$10,12*$A18,4*(PlotControl!$C$4-1),12,1)) -> 322.26 | L18: 13 | M18: =MAX(OFFSET(P_N_Out!$C$10,12*$A18,4*(PlotControl!$C$4-1),12,1)) -> 96.408 | N18: =MAX(OFFSET(P_N_Out!$D$10,12*$A18,4*(PlotControl!$C$4-1),12,1)) -> 137.76 | O18: =MAX(OFFSET(P_N_Out!$E$10,12*$A18,4*(PlotControl!$C$4-1),12,1)) -> 181.11 | P18: =MAX(OFFSET(P_NW_Out!$C$10,12*$A18,4*(PlotControl!$C$4-1),12,1)) -> 146.04 | Q18: =MAX(OFFSET(P_NW_Out!$D$10,12*$A18,4*(PlotControl!$C$4-1),12,1)) -> 202.44 | R18: =MAX(OFFSET(P_NW_Out!$E$10,12*$A18,4*(PlotControl!$C$4-1),12,1)) -> 273.56 | S18: =MAX(OFFSET(P_W_Out!$C$10,12*$A18,4*(PlotControl!$C$4-1),12,1)) -> 139.09 | T18: =MAX(OFFSET(P_W_Out!$D$10,12*$A18,4*(PlotControl!$C$4-1),12,1)) -> 201.3 | U18: =MAX(OFFSET(P_W_Out!$E$10,12*$A18,4*(PlotControl!$C$4-1),12,1)) -> 269.83
A19: 14 | B19: =MAX(OFFSET(P_N_Prop!$C$10,12*$A19,4*(PlotControl!$C$4-1),12,1)) -> 151.13 | C19: =MAX(OFFSET(P_N_Prop!$D$10,12*$A19,4*(PlotControl!$C$4-1),12,1)) -> 195.77 | D19: =MAX(OFFSET(P_N_Prop!$E$10,12*$A19,4*(PlotControl!$C$4-1),12,1)) -> 233.63 | E19: =MAX(OFFSET(P_NW_Prop!$C$10,12*$A19,4*(PlotControl!$C$4-1),12,1)) -> 239.28 | F19: =MAX(OFFSET(P_NW_Prop!$D$10,12*$A19,4*(PlotControl!$C$4-1),12,1)) -> 299.4 | G19: =MAX(OFFSET(P_NW_Prop!$E$10,12*$A19,4*(PlotControl!$C$4-1),12,1)) -> 357.7 | H19: =MAX(OFFSET(P_W_Prop!$C$10,12*$A19,4*(PlotControl!$C$4-1),12,1)) -> 188.57 | I19: =MAX(OFFSET(P_W_Prop!$D$10,12*$A19,4*(PlotControl!$C$4-1),12,1)) -> 255.17 | J19: =MAX(OFFSET(P_W_Prop!$E$10,12*$A19,4*(PlotControl!$C$4-1),12,1)) -> 320.92 | L19: 14 | M19: =MAX(OFFSET(P_N_Out!$C$10,12*$A19,4*(PlotControl!$C$4-1),12,1)) -> 96.207 | N19: =MAX(OFFSET(P_N_Out!$D$10,12*$A19,4*(PlotControl!$C$4-1),12,1)) -> 137.33 | O19: =MAX(OFFSET(P_N_Out!$E$10,12*$A19,4*(PlotControl!$C$4-1),12,1)) -> 180.38 | P19: =MAX(OFFSET(P_NW_Out!$C$10,12*$A19,4*(PlotControl!$C$4-1),12,1)) -> 145.63 | Q19: =MAX(OFFSET(P_NW_Out!$D$10,12*$A19,4*(PlotControl!$C$4-1),12,1)) -> 201.59 | R19: =MAX(OFFSET(P_NW_Out!$E$10,12*$A19,4*(PlotControl!$C$4-1),12,1)) -> 272.47 | S19: =MAX(OFFSET(P_W_Out!$C$10,12*$A19,4*(PlotControl!$C$4-1),12,1)) -> 138.4 | T19: =MAX(OFFSET(P_W_Out!$D$10,12*$A19,4*(PlotControl!$C$4-1),12,1)) -> 200.61 | U19: =MAX(OFFSET(P_W_Out!$E$10,12*$A19,4*(PlotControl!$C$4-1),12,1)) -> 268.98
A20: 15 | B20: =MAX(OFFSET(P_N_Prop!$C$10,12*$A20,4*(PlotControl!$C$4-1),12,1)) -> 150.53 | C20: =MAX(OFFSET(P_N_Prop!$D$10,12*$A20,4*(PlotControl!$C$4-1),12,1)) -> 194.69 | D20: =MAX(OFFSET(P_N_Prop!$E$10,12*$A20,4*(PlotControl!$C$4-1),12,1)) -> 232.83 | E20: =MAX(OFFSET(P_NW_Prop!$C$10,12*$A20,4*(PlotControl!$C$4-1),12,1)) -> 237.61 | F20: =MAX(OFFSET(P_NW_Prop!$D$10,12*$A20,4*(PlotControl!$C$4-1),12,1)) -> 297.88 | G20: =MAX(OFFSET(P_NW_Prop!$E$10,12*$A20,4*(PlotControl!$C$4-1),12,1)) -> 355.92 | H20: =MAX(OFFSET(P_W_Prop!$C$10,12*$A20,4*(PlotControl!$C$4-1),12,1)) -> 187.63 | I20: =MAX(OFFSET(P_W_Prop!$D$10,12*$A20,4*(PlotControl!$C$4-1),12,1)) -> 253.83 | J20: =MAX(OFFSET(P_W_Prop!$E$10,12*$A20,4*(PlotControl!$C$4-1),12,1)) -> 319.66 | L20: 15 | M20: =MAX(OFFSET(P_N_Out!$C$10,12*$A20,4*(PlotControl!$C$4-1),12,1)) -> 96.004 | N20: =MAX(OFFSET(P_N_Out!$D$10,12*$A20,4*(PlotControl!$C$4-1),12,1)) -> 136.87 | O20: =MAX(OFFSET(P_N_Out!$E$10,12*$A20,4*(PlotControl!$C$4-1),12,1)) -> 179.66 | P20: =MAX(OFFSET(P_NW_Out!$C$10,12*$A20,4*(PlotControl!$C$4-1),12,1)) -> 145.21 | Q20: =MAX(OFFSET(P_NW_Out!$D$10,12*$A20,4*(PlotControl!$C$4-1),12,1)) -> 200.81 | R20: =MAX(OFFSET(P_NW_Out!$E$10,12*$A20,4*(PlotControl!$C$4-1),12,1)) -> 271.38 | S20: =MAX(OFFSET(P_W_Out!$C$10,12*$A20,4*(PlotControl!$C$4-1),12,1)) -> 137.7 | T20: =MAX(OFFSET(P_W_Out!$D$10,12*$A20,4*(PlotControl!$C$4-1),12,1)) -> 199.85 | U20: =MAX(OFFSET(P_W_Out!$E$10,12*$A20,4*(PlotControl!$C$4-1),12,1)) -> 268.24
A21: 16 | B21: =MAX(OFFSET(P_N_Prop!$C$10,12*$A21,4*(PlotControl!$C$4-1),12,1)) -> 150.03 | C21: =MAX(OFFSET(P_N_Prop!$D$10,12*$A21,4*(PlotControl!$C$4-1),12,1)) -> 193.5 | D21: =MAX(OFFSET(P_N_Prop!$E$10,12*$A21,4*(PlotControl!$C$4-1),12,1)) -> 231.83 | E21: =MAX(OFFSET(P_NW_Prop!$C$10,12*$A21,4*(PlotControl!$C$4-1),12,1)) -> 236.18 | F21: =MAX(OFFSET(P_NW_Prop!$D$10,12*$A21,4*(PlotControl!$C$4-1),12,1)) -> 296.41 | G21: =MAX(OFFSET(P_NW_Prop!$E$10,12*$A21,4*(PlotControl!$C$4-1),12,1)) -> 354.52 | H21: =MAX(OFFSET(P_W_Prop!$C$10,12*$A21,4*(PlotControl!$C$4-1),12,1)) -> 186.76 | I21: =MAX(OFFSET(P_W_Prop!$D$10,12*$A21,4*(PlotControl!$C$4-1),12,1)) -> 252.68 | J21: =MAX(OFFSET(P_W_Prop!$E$10,12*$A21,4*(PlotControl!$C$4-1),12,1)) -> 318.46 | L21: 16 | M21: =MAX(OFFSET(P_N_Out!$C$10,12*$A21,4*(PlotControl!$C$4-1),12,1)) -> 95.801 | N21: =MAX(OFFSET(P_N_Out!$D$10,12*$A21,4*(PlotControl!$C$4-1),12,1)) -> 136.48 | O21: =MAX(OFFSET(P_N_Out!$E$10,12*$A21,4*(PlotControl!$C$4-1),12,1)) -> 178.93 | P21: =MAX(OFFSET(P_NW_Out!$C$10,12*$A21,4*(PlotControl!$C$4-1),12,1)) -> 144.87 | Q21: =MAX(OFFSET(P_NW_Out!$D$10,12*$A21,4*(PlotControl!$C$4-1),12,1)) -> 200.16 | R21: =MAX(OFFSET(P_NW_Out!$E$10,12*$A21,4*(PlotControl!$C$4-1),12,1)) -> 270.29 | S21: =MAX(OFFSET(P_W_Out!$C$10,12*$A21,4*(PlotControl!$C$4-1),12,1)) -> 137.2 | T21: =MAX(OFFSET(P_W_Out!$D$10,12*$A21,4*(PlotControl!$C$4-1),12,1)) -> 199.11 | U21: =MAX(OFFSET(P_W_Out!$E$10,12*$A21,4*(PlotControl!$C$4-1),12,1)) -> 267.55
A22: 17 | B22: =MAX(OFFSET(P_N_Prop!$C$10,12*$A22,4*(PlotControl!$C$4-1),12,1)) -> 149.44 | C22: =MAX(OFFSET(P_N_Prop!$D$10,12*$A22,4*(PlotControl!$C$4-1),12,1)) -> 192.43 | D22: =MAX(OFFSET(P_N_Prop!$E$10,12*$A22,4*(PlotControl!$C$4-1),12,1)) -> 230.63 | E22: =MAX(OFFSET(P_NW_Prop!$C$10,12*$A22,4*(PlotControl!$C$4-1),12,1)) -> 234.65 | F22: =MAX(OFFSET(P_NW_Prop!$D$10,12*$A22,4*(PlotControl!$C$4-1),12,1)) -> 295.01 | G22: =MAX(OFFSET(P_NW_Prop!$E$10,12*$A22,4*(PlotControl!$C$4-1),12,1)) -> 352.51 | H22: =MAX(OFFSET(P_W_Prop!$C$10,12*$A22,4*(PlotControl!$C$4-1),12,1)) -> 186.05 | I22: =MAX(OFFSET(P_W_Prop!$D$10,12*$A22,4*(PlotControl!$C$4-1),12,1)) -> 251.68 | J22: =MAX(OFFSET(P_W_Prop!$E$10,12*$A22,4*(PlotControl!$C$4-1),12,1)) -> 317.28 | L22: 17 | M22: =MAX(OFFSET(P_N_Out!$C$10,12*$A22,4*(PlotControl!$C$4-1),12,1)) -> 95.596 | N22: =MAX(OFFSET(P_N_Out!$D$10,12*$A22,4*(PlotControl!$C$4-1),12,1)) -> 136.12 | O22: =MAX(OFFSET(P_N_Out!$E$10,12*$A22,4*(PlotControl!$C$4-1),12,1)) -> 178.24 | P22: =MAX(OFFSET(P_NW_Out!$C$10,12*$A22,4*(PlotControl!$C$4-1),12,1)) -> 144.54 | Q22: =MAX(OFFSET(P_NW_Out!$D$10,12*$A22,4*(PlotControl!$C$4-1),12,1)) -> 199.48 | R22: =MAX(OFFSET(P_NW_Out!$E$10,12*$A22,4*(PlotControl!$C$4-1),12,1)) -> 269.3 | S22: =MAX(OFFSET(P_W_Out!$C$10,12*$A22,4*(PlotControl!$C$4-1),12,1)) -> 136.72 | T22: =MAX(OFFSET(P_W_Out!$D$10,12*$A22,4*(PlotControl!$C$4-1),12,1)) -> 198.12 | U22: =MAX(OFFSET(P_W_Out!$E$10,12*$A22,4*(PlotControl!$C$4-1),12,1)) -> 266.74
A23: 18 | B23: =MAX(OFFSET(P_N_Prop!$C$10,12*$A23,4*(PlotControl!$C$4-1),12,1)) -> 148.68 | C23: =MAX(OFFSET(P_N_Prop!$D$10,12*$A23,4*(PlotControl!$C$4-1),12,1)) -> 191.37 | D23: =MAX(OFFSET(P_N_Prop!$E$10,12*$A23,4*(PlotControl!$C$4-1),12,1)) -> 229.64 | E23: =MAX(OFFSET(P_NW_Prop!$C$10,12*$A23,4*(PlotControl!$C$4-1),12,1)) -> 232.99 | F23: =MAX(OFFSET(P_NW_Prop!$D$10,12*$A23,4*(PlotControl!$C$4-1),12,1)) -> 293.5 | G23: =MAX(OFFSET(P_NW_Prop!$E$10,12*$A23,4*(PlotControl!$C$4-1),12,1)) -> 350.83 | H23: =MAX(OFFSET(P_W_Prop!$C$10,12*$A23,4*(PlotControl!$C$4-1),12,1)) -> 185.35 | I23: =MAX(OFFSET(P_W_Prop!$D$10,12*$A23,4*(PlotControl!$C$4-1),12,1)) -> 250.69 | J23: =MAX(OFFSET(P_W_Prop!$E$10,12*$A23,4*(PlotControl!$C$4-1),12,1)) -> 315.97 | L23: 18 | M23: =MAX(OFFSET(P_N_Out!$C$10,12*$A23,4*(PlotControl!$C$4-1),12,1)) -> 95.326 | N23: =MAX(OFFSET(P_N_Out!$D$10,12*$A23,4*(PlotControl!$C$4-1),12,1)) -> 135.74 | O23: =MAX(OFFSET(P_N_Out!$E$10,12*$A23,4*(PlotControl!$C$4-1),12,1)) -> 177.75 | P23: =MAX(OFFSET(P_NW_Out!$C$10,12*$A23,4*(PlotControl!$C$4-1),12,1)) -> 144.08 | Q23: =MAX(OFFSET(P_NW_Out!$D$10,12*$A23,4*(PlotControl!$C$4-1),12,1)) -> 198.78 | R23: =MAX(OFFSET(P_NW_Out!$E$10,12*$A23,4*(PlotControl!$C$4-1),12,1)) -> 268.33 | S23: =MAX(OFFSET(P_W_Out!$C$10,12*$A23,4*(PlotControl!$C$4-1),12,1)) -> 136.17 | T23: =MAX(OFFSET(P_W_Out!$D$10,12*$A23,4*(PlotControl!$C$4-1),12,1)) -> 197.42 | U23: =MAX(OFFSET(P_W_Out!$E$10,12*$A23,4*(PlotControl!$C$4-1),12,1)) -> 265.73
A24: 19 | B24: =MAX(OFFSET(P_N_Prop!$C$10,12*$A24,4*(PlotControl!$C$4-1),12,1)) -> 147.78 | C24: =MAX(OFFSET(P_N_Prop!$D$10,12*$A24,4*(PlotControl!$C$4-1),12,1)) -> 190.45 | D24: =MAX(OFFSET(P_N_Prop!$E$10,12*$A24,4*(PlotControl!$C$4-1),12,1)) -> 228.58 | E24: =MAX(OFFSET(P_NW_Prop!$C$10,12*$A24,4*(PlotControl!$C$4-1),12,1)) -> 231.31 | F24: =MAX(OFFSET(P_NW_Prop!$D$10,12*$A24,4*(PlotControl!$C$4-1),12,1)) -> 291.86 | G24: =MAX(OFFSET(P_NW_Prop!$E$10,12*$A24,4*(PlotControl!$C$4-1),12,1)) -> 348.96 | H24: =MAX(OFFSET(P_W_Prop!$C$10,12*$A24,4*(PlotControl!$C$4-1),12,1)) -> 184.64 | I24: =MAX(OFFSET(P_W_Prop!$D$10,12*$A24,4*(PlotControl!$C$4-1),12,1)) -> 249.42 | J24: =MAX(OFFSET(P_W_Prop!$E$10,12*$A24,4*(PlotControl!$C$4-1),12,1)) -> 314.82 | L24: 19 | M24: =MAX(OFFSET(P_N_Out!$C$10,12*$A24,4*(PlotControl!$C$4-1),12,1)) -> 95.051 | N24: =MAX(OFFSET(P_N_Out!$D$10,12*$A24,4*(PlotControl!$C$4-1),12,1)) -> 135.32 | O24: =MAX(OFFSET(P_N_Out!$E$10,12*$A24,4*(PlotControl!$C$4-1),12,1)) -> 177.25 | P24: =MAX(OFFSET(P_NW_Out!$C$10,12*$A24,4*(PlotControl!$C$4-1),12,1)) -> 143.62 | Q24: =MAX(OFFSET(P_NW_Out!$D$10,12*$A24,4*(PlotControl!$C$4-1),12,1)) -> 197.85 | R24: =MAX(OFFSET(P_NW_Out!$E$10,12*$A24,4*(PlotControl!$C$4-1),12,1)) -> 267.37 | S24: =MAX(OFFSET(P_W_Out!$C$10,12*$A24,4*(PlotControl!$C$4-1),12,1)) -> 135.61 | T24: =MAX(OFFSET(P_W_Out!$D$10,12*$A24,4*(PlotControl!$C$4-1),12,1)) -> 196.65 | U24: =MAX(OFFSET(P_W_Out!$E$10,12*$A24,4*(PlotControl!$C$4-1),12,1)) -> 264.87
A25: 20 | B25: =MAX(OFFSET(P_N_Prop!$C$10,12*$A25,4*(PlotControl!$C$4-1),12,1)) -> 147.06 | C25: =MAX(OFFSET(P_N_Prop!$D$10,12*$A25,4*(PlotControl!$C$4-1),12,1)) -> 189.39 | D25: =MAX(OFFSET(P_N_Prop!$E$10,12*$A25,4*(PlotControl!$C$4-1),12,1)) -> 227.47 | E25: =MAX(OFFSET(P_NW_Prop!$C$10,12*$A25,4*(PlotControl!$C$4-1),12,1)) -> 229.41 | F25: =MAX(OFFSET(P_NW_Prop!$D$10,12*$A25,4*(PlotControl!$C$4-1),12,1)) -> 290.13 | G25: =MAX(OFFSET(P_NW_Prop!$E$10,12*$A25,4*(PlotControl!$C$4-1),12,1)) -> 347.55 | H25: =MAX(OFFSET(P_W_Prop!$C$10,12*$A25,4*(PlotControl!$C$4-1),12,1)) -> 183.93 | I25: =MAX(OFFSET(P_W_Prop!$D$10,12*$A25,4*(PlotControl!$C$4-1),12,1)) -> 248.71 | J25: =MAX(OFFSET(P_W_Prop!$E$10,12*$A25,4*(PlotControl!$C$4-1),12,1)) -> 313.68 | L25: 20 | M25: =MAX(OFFSET(P_N_Out!$C$10,12*$A25,4*(PlotControl!$C$4-1),12,1)) -> 94.775 | N25: =MAX(OFFSET(P_N_Out!$D$10,12*$A25,4*(PlotControl!$C$4-1),12,1)) -> 134.91 | O25: =MAX(OFFSET(P_N_Out!$E$10,12*$A25,4*(PlotControl!$C$4-1),12,1)) -> 176.76 | P25: =MAX(OFFSET(P_NW_Out!$C$10,12*$A25,4*(PlotControl!$C$4-1),12,1)) -> 143.16 | Q25: =MAX(OFFSET(P_NW_Out!$D$10,12*$A25,4*(PlotControl!$C$4-1),12,1)) -> 196.97 | R25: =MAX(OFFSET(P_NW_Out!$E$10,12*$A25,4*(PlotControl!$C$4-1),12,1)) -> 266.4 | S25: =MAX(OFFSET(P_W_Out!$C$10,12*$A25,4*(PlotControl!$C$4-1),12,1)) -> 135.06 | T25: =MAX(OFFSET(P_W_Out!$D$10,12*$A25,4*(PlotControl!$C$4-1),12,1)) -> 195.97 | U25: =MAX(OFFSET(P_W_Out!$E$10,12*$A25,4*(PlotControl!$C$4-1),12,1)) -> 264.21
A26: 21 | B26: =MAX(OFFSET(P_N_Prop!$C$10,12*$A26,4*(PlotControl!$C$4-1),12,1)) -> 146.23 | C26: =MAX(OFFSET(P_N_Prop!$D$10,12*$A26,4*(PlotControl!$C$4-1),12,1)) -> 188.46 | D26: =MAX(OFFSET(P_N_Prop!$E$10,12*$A26,4*(PlotControl!$C$4-1),12,1)) -> 226.07 | E26: =MAX(OFFSET(P_NW_Prop!$C$10,12*$A26,4*(PlotControl!$C$4-1),12,1)) -> 227.79 | F26: =MAX(OFFSET(P_NW_Prop!$D$10,12*$A26,4*(PlotControl!$C$4-1),12,1)) -> 288.53 | G26: =MAX(OFFSET(P_NW_Prop!$E$10,12*$A26,4*(PlotControl!$C$4-1),12,1)) -> 346.22 | H26: =MAX(OFFSET(P_W_Prop!$C$10,12*$A26,4*(PlotControl!$C$4-1),12,1)) -> 183.22 | I26: =MAX(OFFSET(P_W_Prop!$D$10,12*$A26,4*(PlotControl!$C$4-1),12,1)) -> 247.8 | J26: =MAX(OFFSET(P_W_Prop!$E$10,12*$A26,4*(PlotControl!$C$4-1),12,1)) -> 312.53 | L26: 21 | M26: =MAX(OFFSET(P_N_Out!$C$10,12*$A26,4*(PlotControl!$C$4-1),12,1)) -> 94.496 | N26: =MAX(OFFSET(P_N_Out!$D$10,12*$A26,4*(PlotControl!$C$4-1),12,1)) -> 134.4 | O26: =MAX(OFFSET(P_N_Out!$E$10,12*$A26,4*(PlotControl!$C$4-1),12,1)) -> 176.2 | P26: =MAX(OFFSET(P_NW_Out!$C$10,12*$A26,4*(PlotControl!$C$4-1),12,1)) -> 142.7 | Q26: =MAX(OFFSET(P_NW_Out!$D$10,12*$A26,4*(PlotControl!$C$4-1),12,1)) -> 196.2 | R26: =MAX(OFFSET(P_NW_Out!$E$10,12*$A26,4*(PlotControl!$C$4-1),12,1)) -> 265.44 | S26: =MAX(OFFSET(P_W_Out!$C$10,12*$A26,4*(PlotControl!$C$4-1),12,1)) -> 134.51 | T26: =MAX(OFFSET(P_W_Out!$D$10,12*$A26,4*(PlotControl!$C$4-1),12,1)) -> 195.29 | U26: =MAX(OFFSET(P_W_Out!$E$10,12*$A26,4*(PlotControl!$C$4-1),12,1)) -> 263.42
A27: 22 | B27: =MAX(OFFSET(P_N_Prop!$C$10,12*$A27,4*(PlotControl!$C$4-1),12,1)) -> 145.41 | C27: =MAX(OFFSET(P_N_Prop!$D$10,12*$A27,4*(PlotControl!$C$4-1),12,1)) -> 187.32 | D27: =MAX(OFFSET(P_N_Prop!$E$10,12*$A27,4*(PlotControl!$C$4-1),12,1)) -> 224.85 | E27: =MAX(OFFSET(P_NW_Prop!$C$10,12*$A27,4*(PlotControl!$C$4-1),12,1)) -> 226.13 | F27: =MAX(OFFSET(P_NW_Prop!$D$10,12*$A27,4*(PlotControl!$C$4-1),12,1)) -> 287.1 | G27: =MAX(OFFSET(P_NW_Prop!$E$10,12*$A27,4*(PlotControl!$C$4-1),12,1)) -> 345.06 | H27: =MAX(OFFSET(P_W_Prop!$C$10,12*$A27,4*(PlotControl!$C$4-1),12,1)) -> 182.51 | I27: =MAX(OFFSET(P_W_Prop!$D$10,12*$A27,4*(PlotControl!$C$4-1),12,1)) -> 246.35 | J27: =MAX(OFFSET(P_W_Prop!$E$10,12*$A27,4*(PlotControl!$C$4-1),12,1)) -> 311.32 | L27: 22 | M27: =MAX(OFFSET(P_N_Out!$C$10,12*$A27,4*(PlotControl!$C$4-1),12,1)) -> 94.217 | N27: =MAX(OFFSET(P_N_Out!$D$10,12*$A27,4*(PlotControl!$C$4-1),12,1)) -> 133.86 | O27: =MAX(OFFSET(P_N_Out!$E$10,12*$A27,4*(PlotControl!$C$4-1),12,1)) -> 175.49 | P27: =MAX(OFFSET(P_NW_Out!$C$10,12*$A27,4*(PlotControl!$C$4-1),12,1)) -> 142.23 | Q27: =MAX(OFFSET(P_NW_Out!$D$10,12*$A27,4*(PlotControl!$C$4-1),12,1)) -> 195.42 | R27: =MAX(OFFSET(P_NW_Out!$E$10,12*$A27,4*(PlotControl!$C$4-1),12,1)) -> 264.56 | S27: =MAX(OFFSET(P_W_Out!$C$10,12*$A27,4*(PlotControl!$C$4-1),12,1)) -> 134.03 | T27: =MAX(OFFSET(P_W_Out!$D$10,12*$A27,4*(PlotControl!$C$4-1),12,1)) -> 194.6 | U27: =MAX(OFFSET(P_W_Out!$E$10,12*$A27,4*(PlotControl!$C$4-1),12,1)) -> 262.59
A28: 23 | B28: =MAX(OFFSET(P_N_Prop!$C$10,12*$A28,4*(PlotControl!$C$4-1),12,1)) -> 144.68 | C28: =MAX(OFFSET(P_N_Prop!$D$10,12*$A28,4*(PlotControl!$C$4-1),12,1)) -> 186.53 | D28: =MAX(OFFSET(P_N_Prop!$E$10,12*$A28,4*(PlotControl!$C$4-1),12,1)) -> 223.88 | E28: =MAX(OFFSET(P_NW_Prop!$C$10,12*$A28,4*(PlotControl!$C$4-1),12,1)) -> 224.39 | F28: =MAX(OFFSET(P_NW_Prop!$D$10,12*$A28,4*(PlotControl!$C$4-1),12,1)) -> 285.57 | G28: =MAX(OFFSET(P_NW_Prop!$E$10,12*$A28,4*(PlotControl!$C$4-1),12,1)) -> 343.66 | H28: =MAX(OFFSET(P_W_Prop!$C$10,12*$A28,4*(PlotControl!$C$4-1),12,1)) -> 181.79 | I28: =MAX(OFFSET(P_W_Prop!$D$10,12*$A28,4*(PlotControl!$C$4-1),12,1)) -> 244.89 | J28: =MAX(OFFSET(P_W_Prop!$E$10,12*$A28,4*(PlotControl!$C$4-1),12,1)) -> 310.03 | L28: 23 | M28: =MAX(OFFSET(P_N_Out!$C$10,12*$A28,4*(PlotControl!$C$4-1),12,1)) -> 93.935 | N28: =MAX(OFFSET(P_N_Out!$D$10,12*$A28,4*(PlotControl!$C$4-1),12,1)) -> 133.33 | O28: =MAX(OFFSET(P_N_Out!$E$10,12*$A28,4*(PlotControl!$C$4-1),12,1)) -> 175.03 | P28: =MAX(OFFSET(P_NW_Out!$C$10,12*$A28,4*(PlotControl!$C$4-1),12,1)) -> 141.77 | Q28: =MAX(OFFSET(P_NW_Out!$D$10,12*$A28,4*(PlotControl!$C$4-1),12,1)) -> 194.8 | R28: =MAX(OFFSET(P_NW_Out!$E$10,12*$A28,4*(PlotControl!$C$4-1),12,1)) -> 263.62 | S28: =MAX(OFFSET(P_W_Out!$C$10,12*$A28,4*(PlotControl!$C$4-1),12,1)) -> 133.7 | T28: =MAX(OFFSET(P_W_Out!$D$10,12*$A28,4*(PlotControl!$C$4-1),12,1)) -> 193.6 | U28: =MAX(OFFSET(P_W_Out!$E$10,12*$A28,4*(PlotControl!$C$4-1),12,1)) -> 261.69
A29: 24 | B29: =MAX(OFFSET(P_N_Prop!$C$10,12*$A29,4*(PlotControl!$C$4-1),12,1)) -> 143.96 | C29: =MAX(OFFSET(P_N_Prop!$D$10,12*$A29,4*(PlotControl!$C$4-1),12,1)) -> 185.84 | D29: =MAX(OFFSET(P_N_Prop!$E$10,12*$A29,4*(PlotControl!$C$4-1),12,1)) -> 223.03 | E29: =MAX(OFFSET(P_NW_Prop!$C$10,12*$A29,4*(PlotControl!$C$4-1),12,1)) -> 222.78 | F29: =MAX(OFFSET(P_NW_Prop!$D$10,12*$A29,4*(PlotControl!$C$4-1),12,1)) -> 284.05 | G29: =MAX(OFFSET(P_NW_Prop!$E$10,12*$A29,4*(PlotControl!$C$4-1),12,1)) -> 342.18 | H29: =MAX(OFFSET(P_W_Prop!$C$10,12*$A29,4*(PlotControl!$C$4-1),12,1)) -> 181 | I29: =MAX(OFFSET(P_W_Prop!$D$10,12*$A29,4*(PlotControl!$C$4-1),12,1)) -> 243.68 | J29: =MAX(OFFSET(P_W_Prop!$E$10,12*$A29,4*(PlotControl!$C$4-1),12,1)) -> 308.75 | L29: 24 | M29: =MAX(OFFSET(P_N_Out!$C$10,12*$A29,4*(PlotControl!$C$4-1),12,1)) -> 93.697 | N29: =MAX(OFFSET(P_N_Out!$D$10,12*$A29,4*(PlotControl!$C$4-1),12,1)) -> 132.84 | O29: =MAX(OFFSET(P_N_Out!$E$10,12*$A29,4*(PlotControl!$C$4-1),12,1)) -> 174.65 | P29: =MAX(OFFSET(P_NW_Out!$C$10,12*$A29,4*(PlotControl!$C$4-1),12,1)) -> 141.15 | Q29: =MAX(OFFSET(P_NW_Out!$D$10,12*$A29,4*(PlotControl!$C$4-1),12,1)) -> 194.11 | R29: =MAX(OFFSET(P_NW_Out!$E$10,12*$A29,4*(PlotControl!$C$4-1),12,1)) -> 262.55 | S29: =MAX(OFFSET(P_W_Out!$C$10,12*$A29,4*(PlotControl!$C$4-1),12,1)) -> 133.36 | T29: =MAX(OFFSET(P_W_Out!$D$10,12*$A29,4*(PlotControl!$C$4-1),12,1)) -> 192.89 | U29: =MAX(OFFSET(P_W_Out!$E$10,12*$A29,4*(PlotControl!$C$4-1),12,1)) -> 260.71
A30: 25 | B30: =MAX(OFFSET(P_N_Prop!$C$10,12*$A30,4*(PlotControl!$C$4-1),12,1)) -> 143.29 | C30: =MAX(OFFSET(P_N_Prop!$D$10,12*$A30,4*(PlotControl!$C$4-1),12,1)) -> 184.92 | D30: =MAX(OFFSET(P_N_Prop!$E$10,12*$A30,4*(PlotControl!$C$4-1),12,1)) -> 222.17 | E30: =MAX(OFFSET(P_NW_Prop!$C$10,12*$A30,4*(PlotControl!$C$4-1),12,1)) -> 221.48 | F30: =MAX(OFFSET(P_NW_Prop!$D$10,12*$A30,4*(PlotControl!$C$4-1),12,1)) -> 282.7 | G30: =MAX(OFFSET(P_NW_Prop!$E$10,12*$A30,4*(PlotControl!$C$4-1),12,1)) -> 340.6 | H30: =MAX(OFFSET(P_W_Prop!$C$10,12*$A30,4*(PlotControl!$C$4-1),12,1)) -> 180.2 | I30: =MAX(OFFSET(P_W_Prop!$D$10,12*$A30,4*(PlotControl!$C$4-1),12,1)) -> 242.79 | J30: =MAX(OFFSET(P_W_Prop!$E$10,12*$A30,4*(PlotControl!$C$4-1),12,1)) -> 307.48 | L30: 25 | M30: =MAX(OFFSET(P_N_Out!$C$10,12*$A30,4*(PlotControl!$C$4-1),12,1)) -> 93.511 | N30: =MAX(OFFSET(P_N_Out!$D$10,12*$A30,4*(PlotControl!$C$4-1),12,1)) -> 132.34 | O30: =MAX(OFFSET(P_N_Out!$E$10,12*$A30,4*(PlotControl!$C$4-1),12,1)) -> 174.3 | P30: =MAX(OFFSET(P_NW_Out!$C$10,12*$A30,4*(PlotControl!$C$4-1),12,1)) -> 140.64 | Q30: =MAX(OFFSET(P_NW_Out!$D$10,12*$A30,4*(PlotControl!$C$4-1),12,1)) -> 193.36 | R30: =MAX(OFFSET(P_NW_Out!$E$10,12*$A30,4*(PlotControl!$C$4-1),12,1)) -> 261.64 | S30: =MAX(OFFSET(P_W_Out!$C$10,12*$A30,4*(PlotControl!$C$4-1),12,1)) -> 132.87 | T30: =MAX(OFFSET(P_W_Out!$D$10,12*$A30,4*(PlotControl!$C$4-1),12,1)) -> 192.1 | U30: =MAX(OFFSET(P_W_Out!$E$10,12*$A30,4*(PlotControl!$C$4-1),12,1)) -> 259.8
A31: 26 | B31: =MAX(OFFSET(P_N_Prop!$C$10,12*$A31,4*(PlotControl!$C$4-1),12,1)) -> 142.65 | C31: =MAX(OFFSET(P_N_Prop!$D$10,12*$A31,4*(PlotControl!$C$4-1),12,1)) -> 183.84 | D31: =MAX(OFFSET(P_N_Prop!$E$10,12*$A31,4*(PlotControl!$C$4-1),12,1)) -> 221.3 | E31: =MAX(OFFSET(P_NW_Prop!$C$10,12*$A31,4*(PlotControl!$C$4-1),12,1)) -> 219.85 | F31: =MAX(OFFSET(P_NW_Prop!$D$10,12*$A31,4*(PlotControl!$C$4-1),12,1)) -> 281.16 | G31: =MAX(OFFSET(P_NW_Prop!$E$10,12*$A31,4*(PlotControl!$C$4-1),12,1)) -> 339.03 | H31: =MAX(OFFSET(P_W_Prop!$C$10,12*$A31,4*(PlotControl!$C$4-1),12,1)) -> 179.4 | I31: =MAX(OFFSET(P_W_Prop!$D$10,12*$A31,4*(PlotControl!$C$4-1),12,1)) -> 241.95 | J31: =MAX(OFFSET(P_W_Prop!$E$10,12*$A31,4*(PlotControl!$C$4-1),12,1)) -> 306.21 | L31: 26 | M31: =MAX(OFFSET(P_N_Out!$C$10,12*$A31,4*(PlotControl!$C$4-1),12,1)) -> 93.324 | N31: =MAX(OFFSET(P_N_Out!$D$10,12*$A31,4*(PlotControl!$C$4-1),12,1)) -> 131.73 | O31: =MAX(OFFSET(P_N_Out!$E$10,12*$A31,4*(PlotControl!$C$4-1),12,1)) -> 173.96 | P31: =MAX(OFFSET(P_NW_Out!$C$10,12*$A31,4*(PlotControl!$C$4-1),12,1)) -> 140.18 | Q31: =MAX(OFFSET(P_NW_Out!$D$10,12*$A31,4*(PlotControl!$C$4-1),12,1)) -> 192.56 | R31: =MAX(OFFSET(P_NW_Out!$E$10,12*$A31,4*(PlotControl!$C$4-1),12,1)) -> 260.92 | S31: =MAX(OFFSET(P_W_Out!$C$10,12*$A31,4*(PlotControl!$C$4-1),12,1)) -> 132.39 | T31: =MAX(OFFSET(P_W_Out!$D$10,12*$A31,4*(PlotControl!$C$4-1),12,1)) -> 191.4 | U31: =MAX(OFFSET(P_W_Out!$E$10,12*$A31,4*(PlotControl!$C$4-1),12,1)) -> 258.9
A32: 27 | B32: =MAX(OFFSET(P_N_Prop!$C$10,12*$A32,4*(PlotControl!$C$4-1),12,1)) -> 141.86 | C32: =MAX(OFFSET(P_N_Prop!$D$10,12*$A32,4*(PlotControl!$C$4-1),12,1)) -> 182.9 | D32: =MAX(OFFSET(P_N_Prop!$E$10,12*$A32,4*(PlotControl!$C$4-1),12,1)) -> 220.28 | E32: =MAX(OFFSET(P_NW_Prop!$C$10,12*$A32,4*(PlotControl!$C$4-1),12,1)) -> 218.23 | F32: =MAX(OFFSET(P_NW_Prop!$D$10,12*$A32,4*(PlotControl!$C$4-1),12,1)) -> 279.56 | G32: =MAX(OFFSET(P_NW_Prop!$E$10,12*$A32,4*(PlotControl!$C$4-1),12,1)) -> 337.49 | H32: =MAX(OFFSET(P_W_Prop!$C$10,12*$A32,4*(PlotControl!$C$4-1),12,1)) -> 178.47 | I32: =MAX(OFFSET(P_W_Prop!$D$10,12*$A32,4*(PlotControl!$C$4-1),12,1)) -> 241.09 | J32: =MAX(OFFSET(P_W_Prop!$E$10,12*$A32,4*(PlotControl!$C$4-1),12,1)) -> 304.94 | L32: 27 | M32: =MAX(OFFSET(P_N_Out!$C$10,12*$A32,4*(PlotControl!$C$4-1),12,1)) -> 93.068 | N32: =MAX(OFFSET(P_N_Out!$D$10,12*$A32,4*(PlotControl!$C$4-1),12,1)) -> 131.42 | O32: =MAX(OFFSET(P_N_Out!$E$10,12*$A32,4*(PlotControl!$C$4-1),12,1)) -> 173.62 | P32: =MAX(OFFSET(P_NW_Out!$C$10,12*$A32,4*(PlotControl!$C$4-1),12,1)) -> 139.72 | Q32: =MAX(OFFSET(P_NW_Out!$D$10,12*$A32,4*(PlotControl!$C$4-1),12,1)) -> 191.87 | R32: =MAX(OFFSET(P_NW_Out!$E$10,12*$A32,4*(PlotControl!$C$4-1),12,1)) -> 260.16 | S32: =MAX(OFFSET(P_W_Out!$C$10,12*$A32,4*(PlotControl!$C$4-1),12,1)) -> 131.84 | T32: =MAX(OFFSET(P_W_Out!$D$10,12*$A32,4*(PlotControl!$C$4-1),12,1)) -> 190.99 | U32: =MAX(OFFSET(P_W_Out!$E$10,12*$A32,4*(PlotControl!$C$4-1),12,1)) -> 258
A33: 28 | B33: =MAX(OFFSET(P_N_Prop!$C$10,12*$A33,4*(PlotControl!$C$4-1),12,1)) -> 141 | C33: =MAX(OFFSET(P_N_Prop!$D$10,12*$A33,4*(PlotControl!$C$4-1),12,1)) -> 181.94 | D33: =MAX(OFFSET(P_N_Prop!$E$10,12*$A33,4*(PlotControl!$C$4-1),12,1)) -> 219.44 | E33: =MAX(OFFSET(P_NW_Prop!$C$10,12*$A33,4*(PlotControl!$C$4-1),12,1)) -> 216.83 | F33: =MAX(OFFSET(P_NW_Prop!$D$10,12*$A33,4*(PlotControl!$C$4-1),12,1)) -> 278.02 | G33: =MAX(OFFSET(P_NW_Prop!$E$10,12*$A33,4*(PlotControl!$C$4-1),12,1)) -> 335.93 | H33: =MAX(OFFSET(P_W_Prop!$C$10,12*$A33,4*(PlotControl!$C$4-1),12,1)) -> 177.65 | I33: =MAX(OFFSET(P_W_Prop!$D$10,12*$A33,4*(PlotControl!$C$4-1),12,1)) -> 240.06 | J33: =MAX(OFFSET(P_W_Prop!$E$10,12*$A33,4*(PlotControl!$C$4-1),12,1)) -> 303.67 | L33: 28 | M33: =MAX(OFFSET(P_N_Out!$C$10,12*$A33,4*(PlotControl!$C$4-1),12,1)) -> 92.806 | N33: =MAX(OFFSET(P_N_Out!$D$10,12*$A33,4*(PlotControl!$C$4-1),12,1)) -> 130.94 | O33: =MAX(OFFSET(P_N_Out!$E$10,12*$A33,4*(PlotControl!$C$4-1),12,1)) -> 173.06 | P33: =MAX(OFFSET(P_NW_Out!$C$10,12*$A33,4*(PlotControl!$C$4-1),12,1)) -> 139.26 | Q33: =MAX(OFFSET(P_NW_Out!$D$10,12*$A33,4*(PlotControl!$C$4-1),12,1)) -> 191.31 | R33: =MAX(OFFSET(P_NW_Out!$E$10,12*$A33,4*(PlotControl!$C$4-1),12,1)) -> 258.8 | S33: =MAX(OFFSET(P_W_Out!$C$10,12*$A33,4*(PlotControl!$C$4-1),12,1)) -> 131.29 | T33: =MAX(OFFSET(P_W_Out!$D$10,12*$A33,4*(PlotControl!$C$4-1),12,1)) -> 190.46 | U33: =MAX(OFFSET(P_W_Out!$E$10,12*$A33,4*(PlotControl!$C$4-1),12,1)) -> 257.1
A34: 29 | B34: =MAX(OFFSET(P_N_Prop!$C$10,12*$A34,4*(PlotControl!$C$4-1),12,1)) -> 140.29 | C34: =MAX(OFFSET(P_N_Prop!$D$10,12*$A34,4*(PlotControl!$C$4-1),12,1)) -> 181.03 | D34: =MAX(OFFSET(P_N_Prop!$E$10,12*$A34,4*(PlotControl!$C$4-1),12,1)) -> 218.54 | E34: =MAX(OFFSET(P_NW_Prop!$C$10,12*$A34,4*(PlotControl!$C$4-1),12,1)) -> 215.54 | F34: =MAX(OFFSET(P_NW_Prop!$D$10,12*$A34,4*(PlotControl!$C$4-1),12,1)) -> 276.34 | G34: =MAX(OFFSET(P_NW_Prop!$E$10,12*$A34,4*(PlotControl!$C$4-1),12,1)) -> 334.32 | H34: =MAX(OFFSET(P_W_Prop!$C$10,12*$A34,4*(PlotControl!$C$4-1),12,1)) -> 176.9 | I34: =MAX(OFFSET(P_W_Prop!$D$10,12*$A34,4*(PlotControl!$C$4-1),12,1)) -> 238.84 | J34: =MAX(OFFSET(P_W_Prop!$E$10,12*$A34,4*(PlotControl!$C$4-1),12,1)) -> 302.4 | L34: 29 | M34: =MAX(OFFSET(P_N_Out!$C$10,12*$A34,4*(PlotControl!$C$4-1),12,1)) -> 92.543 | N34: =MAX(OFFSET(P_N_Out!$D$10,12*$A34,4*(PlotControl!$C$4-1),12,1)) -> 130.33 | O34: =MAX(OFFSET(P_N_Out!$E$10,12*$A34,4*(PlotControl!$C$4-1),12,1)) -> 172.44 | P34: =MAX(OFFSET(P_NW_Out!$C$10,12*$A34,4*(PlotControl!$C$4-1),12,1)) -> 138.79 | Q34: =MAX(OFFSET(P_NW_Out!$D$10,12*$A34,4*(PlotControl!$C$4-1),12,1)) -> 190.8 | R34: =MAX(OFFSET(P_NW_Out!$E$10,12*$A34,4*(PlotControl!$C$4-1),12,1)) -> 257.23 | S34: =MAX(OFFSET(P_W_Out!$C$10,12*$A34,4*(PlotControl!$C$4-1),12,1)) -> 130.88 | T34: =MAX(OFFSET(P_W_Out!$D$10,12*$A34,4*(PlotControl!$C$4-1),12,1)) -> 189.76 | U34: =MAX(OFFSET(P_W_Out!$E$10,12*$A34,4*(PlotControl!$C$4-1),12,1)) -> 256.2
A35: 30 | B35: =MAX(OFFSET(P_N_Prop!$C$10,12*$A35,4*(PlotControl!$C$4-1),12,1)) -> 139.4 | C35: =MAX(OFFSET(P_N_Prop!$D$10,12*$A35,4*(PlotControl!$C$4-1),12,1)) -> 180.14 | D35: =MAX(OFFSET(P_N_Prop!$E$10,12*$A35,4*(PlotControl!$C$4-1),12,1)) -> 217.56 | E35: =MAX(OFFSET(P_NW_Prop!$C$10,12*$A35,4*(PlotControl!$C$4-1),12,1)) -> 214.24 | F35: =MAX(OFFSET(P_NW_Prop!$D$10,12*$A35,4*(PlotControl!$C$4-1),12,1)) -> 274.78 | G35: =MAX(OFFSET(P_NW_Prop!$E$10,12*$A35,4*(PlotControl!$C$4-1),12,1)) -> 332.73 | H35: =MAX(OFFSET(P_W_Prop!$C$10,12*$A35,4*(PlotControl!$C$4-1),12,1)) -> 176.2 | I35: =MAX(OFFSET(P_W_Prop!$D$10,12*$A35,4*(PlotControl!$C$4-1),12,1)) -> 237.52 | J35: =MAX(OFFSET(P_W_Prop!$E$10,12*$A35,4*(PlotControl!$C$4-1),12,1)) -> 301.13 | L35: 30 | M35: =MAX(OFFSET(P_N_Out!$C$10,12*$A35,4*(PlotControl!$C$4-1),12,1)) -> 92.348 | N35: =MAX(OFFSET(P_N_Out!$D$10,12*$A35,4*(PlotControl!$C$4-1),12,1)) -> 129.73 | O35: =MAX(OFFSET(P_N_Out!$E$10,12*$A35,4*(PlotControl!$C$4-1),12,1)) -> 171.81 | P35: =MAX(OFFSET(P_NW_Out!$C$10,12*$A35,4*(PlotControl!$C$4-1),12,1)) -> 138.33 | Q35: =MAX(OFFSET(P_NW_Out!$D$10,12*$A35,4*(PlotControl!$C$4-1),12,1)) -> 190.21 | R35: =MAX(OFFSET(P_NW_Out!$E$10,12*$A35,4*(PlotControl!$C$4-1),12,1)) -> 256.05 | S35: =MAX(OFFSET(P_W_Out!$C$10,12*$A35,4*(PlotControl!$C$4-1),12,1)) -> 130.39 | T35: =MAX(OFFSET(P_W_Out!$D$10,12*$A35,4*(PlotControl!$C$4-1),12,1)) -> 188.77 | U35: =MAX(OFFSET(P_W_Out!$E$10,12*$A35,4*(PlotControl!$C$4-1),12,1)) -> 255.32
A36: 31 | B36: =MAX(OFFSET(P_N_Prop!$C$10,12*$A36,4*(PlotControl!$C$4-1),12,1)) -> 138.5 | C36: =MAX(OFFSET(P_N_Prop!$D$10,12*$A36,4*(PlotControl!$C$4-1),12,1)) -> 179.21 | D36: =MAX(OFFSET(P_N_Prop!$E$10,12*$A36,4*(PlotControl!$C$4-1),12,1)) -> 216.79 | E36: =MAX(OFFSET(P_NW_Prop!$C$10,12*$A36,4*(PlotControl!$C$4-1),12,1)) -> 212.8 | F36: =MAX(OFFSET(P_NW_Prop!$D$10,12*$A36,4*(PlotControl!$C$4-1),12,1)) -> 273.23 | G36: =MAX(OFFSET(P_NW_Prop!$E$10,12*$A36,4*(PlotControl!$C$4-1),12,1)) -> 331.07 | H36: =MAX(OFFSET(P_W_Prop!$C$10,12*$A36,4*(PlotControl!$C$4-1),12,1)) -> 175.45 | I36: =MAX(OFFSET(P_W_Prop!$D$10,12*$A36,4*(PlotControl!$C$4-1),12,1)) -> 236.36 | J36: =MAX(OFFSET(P_W_Prop!$E$10,12*$A36,4*(PlotControl!$C$4-1),12,1)) -> 299.86 | L36: 31 | M36: =MAX(OFFSET(P_N_Out!$C$10,12*$A36,4*(PlotControl!$C$4-1),12,1)) -> 92.155 | N36: =MAX(OFFSET(P_N_Out!$D$10,12*$A36,4*(PlotControl!$C$4-1),12,1)) -> 129.13 | O36: =MAX(OFFSET(P_N_Out!$E$10,12*$A36,4*(PlotControl!$C$4-1),12,1)) -> 171.23 | P36: =MAX(OFFSET(P_NW_Out!$C$10,12*$A36,4*(PlotControl!$C$4-1),12,1)) -> 137.86 | Q36: =MAX(OFFSET(P_NW_Out!$D$10,12*$A36,4*(PlotControl!$C$4-1),12,1)) -> 189.51 | R36: =MAX(OFFSET(P_NW_Out!$E$10,12*$A36,4*(PlotControl!$C$4-1),12,1)) -> 255.02 | S36: =MAX(OFFSET(P_W_Out!$C$10,12*$A36,4*(PlotControl!$C$4-1),12,1)) -> 129.86 | T36: =MAX(OFFSET(P_W_Out!$D$10,12*$A36,4*(PlotControl!$C$4-1),12,1)) -> 187.67 | U36: =MAX(OFFSET(P_W_Out!$E$10,12*$A36,4*(PlotControl!$C$4-1),12,1)) -> 254.62
A37: 32 | B37: =MAX(OFFSET(P_N_Prop!$C$10,12*$A37,4*(PlotControl!$C$4-1),12,1)) -> 137.61 | C37: =MAX(OFFSET(P_N_Prop!$D$10,12*$A37,4*(PlotControl!$C$4-1),12,1)) -> 178.39 | D37: =MAX(OFFSET(P_N_Prop!$E$10,12*$A37,4*(PlotControl!$C$4-1),12,1)) -> 216.03 | E37: =MAX(OFFSET(P_NW_Prop!$C$10,12*$A37,4*(PlotControl!$C$4-1),12,1)) -> 211.04 | F37: =MAX(OFFSET(P_NW_Prop!$D$10,12*$A37,4*(PlotControl!$C$4-1),12,1)) -> 271.59 | G37: =MAX(OFFSET(P_NW_Prop!$E$10,12*$A37,4*(PlotControl!$C$4-1),12,1)) -> 329.53 | H37: =MAX(OFFSET(P_W_Prop!$C$10,12*$A37,4*(PlotControl!$C$4-1),12,1)) -> 174.43 | I37: =MAX(OFFSET(P_W_Prop!$D$10,12*$A37,4*(PlotControl!$C$4-1),12,1)) -> 234.9 | J37: =MAX(OFFSET(P_W_Prop!$E$10,12*$A37,4*(PlotControl!$C$4-1),12,1)) -> 298.63 | L37: 32 | M37: =MAX(OFFSET(P_N_Out!$C$10,12*$A37,4*(PlotControl!$C$4-1),12,1)) -> 91.961 | N37: =MAX(OFFSET(P_N_Out!$D$10,12*$A37,4*(PlotControl!$C$4-1),12,1)) -> 128.6 | O37: =MAX(OFFSET(P_N_Out!$E$10,12*$A37,4*(PlotControl!$C$4-1),12,1)) -> 170.81 | P37: =MAX(OFFSET(P_NW_Out!$C$10,12*$A37,4*(PlotControl!$C$4-1),12,1)) -> 137.39 | Q37: =MAX(OFFSET(P_NW_Out!$D$10,12*$A37,4*(PlotControl!$C$4-1),12,1)) -> 188.91 | R37: =MAX(OFFSET(P_NW_Out!$E$10,12*$A37,4*(PlotControl!$C$4-1),12,1)) -> 254.11 | S37: =MAX(OFFSET(P_W_Out!$C$10,12*$A37,4*(PlotControl!$C$4-1),12,1)) -> 129.31 | T37: =MAX(OFFSET(P_W_Out!$D$10,12*$A37,4*(PlotControl!$C$4-1),12,1)) -> 186.78 | U37: =MAX(OFFSET(P_W_Out!$E$10,12*$A37,4*(PlotControl!$C$4-1),12,1)) -> 253.92
A38: 33 | B38: =MAX(OFFSET(P_N_Prop!$C$10,12*$A38,4*(PlotControl!$C$4-1),12,1)) -> 136.72 | C38: =MAX(OFFSET(P_N_Prop!$D$10,12*$A38,4*(PlotControl!$C$4-1),12,1)) -> 177.31 | D38: =MAX(OFFSET(P_N_Prop!$E$10,12*$A38,4*(PlotControl!$C$4-1),12,1)) -> 215.17 | E38: =MAX(OFFSET(P_NW_Prop!$C$10,12*$A38,4*(PlotControl!$C$4-1),12,1)) -> 209.56 | F38: =MAX(OFFSET(P_NW_Prop!$D$10,12*$A38,4*(PlotControl!$C$4-1),12,1)) -> 270.22 | G38: =MAX(OFFSET(P_NW_Prop!$E$10,12*$A38,4*(PlotControl!$C$4-1),12,1)) -> 328.2 | H38: =MAX(OFFSET(P_W_Prop!$C$10,12*$A38,4*(PlotControl!$C$4-1),12,1)) -> 173.35 | I38: =MAX(OFFSET(P_W_Prop!$D$10,12*$A38,4*(PlotControl!$C$4-1),12,1)) -> 233.35 | J38: =MAX(OFFSET(P_W_Prop!$E$10,12*$A38,4*(PlotControl!$C$4-1),12,1)) -> 297.38 | L38: 33 | M38: =MAX(OFFSET(P_N_Out!$C$10,12*$A38,4*(PlotControl!$C$4-1),12,1)) -> 91.766 | N38: =MAX(OFFSET(P_N_Out!$D$10,12*$A38,4*(PlotControl!$C$4-1),12,1)) -> 128.26 | O38: =MAX(OFFSET(P_N_Out!$E$10,12*$A38,4*(PlotControl!$C$4-1),12,1)) -> 170.38 | P38: =MAX(OFFSET(P_NW_Out!$C$10,12*$A38,4*(PlotControl!$C$4-1),12,1)) -> 136.79 | Q38: =MAX(OFFSET(P_NW_Out!$D$10,12*$A38,4*(PlotControl!$C$4-1),12,1)) -> 188.17 | R38: =MAX(OFFSET(P_NW_Out!$E$10,12*$A38,4*(PlotControl!$C$4-1),12,1)) -> 253.24 | S38: =MAX(OFFSET(P_W_Out!$C$10,12*$A38,4*(PlotControl!$C$4-1),12,1)) -> 128.76 | T38: =MAX(OFFSET(P_W_Out!$D$10,12*$A38,4*(PlotControl!$C$4-1),12,1)) -> 185.72 | U38: =MAX(OFFSET(P_W_Out!$E$10,12*$A38,4*(PlotControl!$C$4-1),12,1)) -> 253.22
A39: 34 | B39: =MAX(OFFSET(P_N_Prop!$C$10,12*$A39,4*(PlotControl!$C$4-1),12,1)) -> 135.87 | C39: =MAX(OFFSET(P_N_Prop!$D$10,12*$A39,4*(PlotControl!$C$4-1),12,1)) -> 176.19 | D39: =MAX(OFFSET(P_N_Prop!$E$10,12*$A39,4*(PlotControl!$C$4-1),12,1)) -> 214.35 | E39: =MAX(OFFSET(P_NW_Prop!$C$10,12*$A39,4*(PlotControl!$C$4-1),12,1)) -> 208.11 | F39: =MAX(OFFSET(P_NW_Prop!$D$10,12*$A39,4*(PlotControl!$C$4-1),12,1)) -> 268.88 | G39: =MAX(OFFSET(P_NW_Prop!$E$10,12*$A39,4*(PlotControl!$C$4-1),12,1)) -> 326.97 | H39: =MAX(OFFSET(P_W_Prop!$C$10,12*$A39,4*(PlotControl!$C$4-1),12,1)) -> 172.28 | I39: =MAX(OFFSET(P_W_Prop!$D$10,12*$A39,4*(PlotControl!$C$4-1),12,1)) -> 231.78 | J39: =MAX(OFFSET(P_W_Prop!$E$10,12*$A39,4*(PlotControl!$C$4-1),12,1)) -> 296.22 | L39: 34 | M39: =MAX(OFFSET(P_N_Out!$C$10,12*$A39,4*(PlotControl!$C$4-1),12,1)) -> 91.571 | N39: =MAX(OFFSET(P_N_Out!$D$10,12*$A39,4*(PlotControl!$C$4-1),12,1)) -> 127.74 | O39: =MAX(OFFSET(P_N_Out!$E$10,12*$A39,4*(PlotControl!$C$4-1),12,1)) -> 169.96 | P39: =MAX(OFFSET(P_NW_Out!$C$10,12*$A39,4*(PlotControl!$C$4-1),12,1)) -> 136.24 | Q39: =MAX(OFFSET(P_NW_Out!$D$10,12*$A39,4*(PlotControl!$C$4-1),12,1)) -> 187.63 | R39: =MAX(OFFSET(P_NW_Out!$E$10,12*$A39,4*(PlotControl!$C$4-1),12,1)) -> 252.5 | S39: =MAX(OFFSET(P_W_Out!$C$10,12*$A39,4*(PlotControl!$C$4-1),12,1)) -> 128.22 | T39: =MAX(OFFSET(P_W_Out!$D$10,12*$A39,4*(PlotControl!$C$4-1),12,1)) -> 185.03 | U39: =MAX(OFFSET(P_W_Out!$E$10,12*$A39,4*(PlotControl!$C$4-1),12,1)) -> 252.52
A40: 35 | B40: =MAX(OFFSET(P_N_Prop!$C$10,12*$A40,4*(PlotControl!$C$4-1),12,1)) -> 135.01 | C40: =MAX(OFFSET(P_N_Prop!$D$10,12*$A40,4*(PlotControl!$C$4-1),12,1)) -> 175.27 | D40: =MAX(OFFSET(P_N_Prop!$E$10,12*$A40,4*(PlotControl!$C$4-1),12,1)) -> 213.56 | E40: =MAX(OFFSET(P_NW_Prop!$C$10,12*$A40,4*(PlotControl!$C$4-1),12,1)) -> 206.63 | F40: =MAX(OFFSET(P_NW_Prop!$D$10,12*$A40,4*(PlotControl!$C$4-1),12,1)) -> 267.53 | G40: =MAX(OFFSET(P_NW_Prop!$E$10,12*$A40,4*(PlotControl!$C$4-1),12,1)) -> 325.54 | H40: =MAX(OFFSET(P_W_Prop!$C$10,12*$A40,4*(PlotControl!$C$4-1),12,1)) -> 171.05 | I40: =MAX(OFFSET(P_W_Prop!$D$10,12*$A40,4*(PlotControl!$C$4-1),12,1)) -> 230.32 | J40: =MAX(OFFSET(P_W_Prop!$E$10,12*$A40,4*(PlotControl!$C$4-1),12,1)) -> 295.09 | L40: 35 | M40: =MAX(OFFSET(P_N_Out!$C$10,12*$A40,4*(PlotControl!$C$4-1),12,1)) -> 91.374 | N40: =MAX(OFFSET(P_N_Out!$D$10,12*$A40,4*(PlotControl!$C$4-1),12,1)) -> 127.25 | O40: =MAX(OFFSET(P_N_Out!$E$10,12*$A40,4*(PlotControl!$C$4-1),12,1)) -> 169.54 | P40: =MAX(OFFSET(P_NW_Out!$C$10,12*$A40,4*(PlotControl!$C$4-1),12,1)) -> 135.75 | Q40: =MAX(OFFSET(P_NW_Out!$D$10,12*$A40,4*(PlotControl!$C$4-1),12,1)) -> 187.09 | R40: =MAX(OFFSET(P_NW_Out!$E$10,12*$A40,4*(PlotControl!$C$4-1),12,1)) -> 251.39 | S40: =MAX(OFFSET(P_W_Out!$C$10,12*$A40,4*(PlotControl!$C$4-1),12,1)) -> 127.67 | T40: =MAX(OFFSET(P_W_Out!$D$10,12*$A40,4*(PlotControl!$C$4-1),12,1)) -> 184.36 | U40: =MAX(OFFSET(P_W_Out!$E$10,12*$A40,4*(PlotControl!$C$4-1),12,1)) -> 251.82
A41: 36 | B41: =MAX(OFFSET(P_N_Prop!$C$10,12*$A41,4*(PlotControl!$C$4-1),12,1)) -> 134.32 | C41: =MAX(OFFSET(P_N_Prop!$D$10,12*$A41,4*(PlotControl!$C$4-1),12,1)) -> 174.41 | D41: =MAX(OFFSET(P_N_Prop!$E$10,12*$A41,4*(PlotControl!$C$4-1),12,1)) -> 212.73 | E41: =MAX(OFFSET(P_NW_Prop!$C$10,12*$A41,4*(PlotControl!$C$4-1),12,1)) -> 204.86 | F41: =MAX(OFFSET(P_NW_Prop!$D$10,12*$A41,4*(PlotControl!$C$4-1),12,1)) -> 266.04 | G41: =MAX(OFFSET(P_NW_Prop!$E$10,12*$A41,4*(PlotControl!$C$4-1),12,1)) -> 323.74 | H41: =MAX(OFFSET(P_W_Prop!$C$10,12*$A41,4*(PlotControl!$C$4-1),12,1)) -> 169.98 | I41: =MAX(OFFSET(P_W_Prop!$D$10,12*$A41,4*(PlotControl!$C$4-1),12,1)) -> 228.96 | J41: =MAX(OFFSET(P_W_Prop!$E$10,12*$A41,4*(PlotControl!$C$4-1),12,1)) -> 293.96 | L41: 36 | M41: =MAX(OFFSET(P_N_Out!$C$10,12*$A41,4*(PlotControl!$C$4-1),12,1)) -> 91.177 | N41: =MAX(OFFSET(P_N_Out!$D$10,12*$A41,4*(PlotControl!$C$4-1),12,1)) -> 126.81 | O41: =MAX(OFFSET(P_N_Out!$E$10,12*$A41,4*(PlotControl!$C$4-1),12,1)) -> 169.1 | P41: =MAX(OFFSET(P_NW_Out!$C$10,12*$A41,4*(PlotControl!$C$4-1),12,1)) -> 135.26 | Q41: =MAX(OFFSET(P_NW_Out!$D$10,12*$A41,4*(PlotControl!$C$4-1),12,1)) -> 186.54 | R41: =MAX(OFFSET(P_NW_Out!$E$10,12*$A41,4*(PlotControl!$C$4-1),12,1)) -> 250.65 | S41: =MAX(OFFSET(P_W_Out!$C$10,12*$A41,4*(PlotControl!$C$4-1),12,1)) -> 127.14 | T41: =MAX(OFFSET(P_W_Out!$D$10,12*$A41,4*(PlotControl!$C$4-1),12,1)) -> 183.54 | U41: =MAX(OFFSET(P_W_Out!$E$10,12*$A41,4*(PlotControl!$C$4-1),12,1)) -> 250.97
A42: 37 | B42: =MAX(OFFSET(P_N_Prop!$C$10,12*$A42,4*(PlotControl!$C$4-1),12,1)) -> 133.66 | C42: =MAX(OFFSET(P_N_Prop!$D$10,12*$A42,4*(PlotControl!$C$4-1),12,1)) -> 173.52 | D42: =MAX(OFFSET(P_N_Prop!$E$10,12*$A42,4*(PlotControl!$C$4-1),12,1)) -> 211.96 | E42: =MAX(OFFSET(P_NW_Prop!$C$10,12*$A42,4*(PlotControl!$C$4-1),12,1)) -> 203.36 | F42: =MAX(OFFSET(P_NW_Prop!$D$10,12*$A42,4*(PlotControl!$C$4-1),12,1)) -> 264.57 | G42: =MAX(OFFSET(P_NW_Prop!$E$10,12*$A42,4*(PlotControl!$C$4-1),12,1)) -> 322.1 | H42: =MAX(OFFSET(P_W_Prop!$C$10,12*$A42,4*(PlotControl!$C$4-1),12,1)) -> 168.96 | I42: =MAX(OFFSET(P_W_Prop!$D$10,12*$A42,4*(PlotControl!$C$4-1),12,1)) -> 227.77 | J42: =MAX(OFFSET(P_W_Prop!$E$10,12*$A42,4*(PlotControl!$C$4-1),12,1)) -> 292.84 | L42: 37 | M42: =MAX(OFFSET(P_N_Out!$C$10,12*$A42,4*(PlotControl!$C$4-1),12,1)) -> 90.976 | N42: =MAX(OFFSET(P_N_Out!$D$10,12*$A42,4*(PlotControl!$C$4-1),12,1)) -> 126.37 | O42: =MAX(OFFSET(P_N_Out!$E$10,12*$A42,4*(PlotControl!$C$4-1),12,1)) -> 168.42 | P42: =MAX(OFFSET(P_NW_Out!$C$10,12*$A42,4*(PlotControl!$C$4-1),12,1)) -> 134.69 | Q42: =MAX(OFFSET(P_NW_Out!$D$10,12*$A42,4*(PlotControl!$C$4-1),12,1)) -> 186 | R42: =MAX(OFFSET(P_NW_Out!$E$10,12*$A42,4*(PlotControl!$C$4-1),12,1)) -> 249.92 | S42: =MAX(OFFSET(P_W_Out!$C$10,12*$A42,4*(PlotControl!$C$4-1),12,1)) -> 126.6 | T42: =MAX(OFFSET(P_W_Out!$D$10,12*$A42,4*(PlotControl!$C$4-1),12,1)) -> 182.5 | U42: =MAX(OFFSET(P_W_Out!$E$10,12*$A42,4*(PlotControl!$C$4-1),12,1)) -> 250.09
A43: 38 | B43: =MAX(OFFSET(P_N_Prop!$C$10,12*$A43,4*(PlotControl!$C$4-1),12,1)) -> 133 | C43: =MAX(OFFSET(P_N_Prop!$D$10,12*$A43,4*(PlotControl!$C$4-1),12,1)) -> 172.78 | D43: =MAX(OFFSET(P_N_Prop!$E$10,12*$A43,4*(PlotControl!$C$4-1),12,1)) -> 211.07 | E43: =MAX(OFFSET(P_NW_Prop!$C$10,12*$A43,4*(PlotControl!$C$4-1),12,1)) -> 201.61 | F43: =MAX(OFFSET(P_NW_Prop!$D$10,12*$A43,4*(PlotControl!$C$4-1),12,1)) -> 262.84 | G43: =MAX(OFFSET(P_NW_Prop!$E$10,12*$A43,4*(PlotControl!$C$4-1),12,1)) -> 320.34 | H43: =MAX(OFFSET(P_W_Prop!$C$10,12*$A43,4*(PlotControl!$C$4-1),12,1)) -> 167.95 | I43: =MAX(OFFSET(P_W_Prop!$D$10,12*$A43,4*(PlotControl!$C$4-1),12,1)) -> 226.58 | J43: =MAX(OFFSET(P_W_Prop!$E$10,12*$A43,4*(PlotControl!$C$4-1),12,1)) -> 291.71 | L43: 38 | M43: =MAX(OFFSET(P_N_Out!$C$10,12*$A43,4*(PlotControl!$C$4-1),12,1)) -> 90.705 | N43: =MAX(OFFSET(P_N_Out!$D$10,12*$A43,4*(PlotControl!$C$4-1),12,1)) -> 125.93 | O43: =MAX(OFFSET(P_N_Out!$E$10,12*$A43,4*(PlotControl!$C$4-1),12,1)) -> 167.75 | P43: =MAX(OFFSET(P_NW_Out!$C$10,12*$A43,4*(PlotControl!$C$4-1),12,1)) -> 134.05 | Q43: =MAX(OFFSET(P_NW_Out!$D$10,12*$A43,4*(PlotControl!$C$4-1),12,1)) -> 185.37 | R43: =MAX(OFFSET(P_NW_Out!$E$10,12*$A43,4*(PlotControl!$C$4-1),12,1)) -> 249.03 | S43: =MAX(OFFSET(P_W_Out!$C$10,12*$A43,4*(PlotControl!$C$4-1),12,1)) -> 126.07 | T43: =MAX(OFFSET(P_W_Out!$D$10,12*$A43,4*(PlotControl!$C$4-1),12,1)) -> 181.61 | U43: =MAX(OFFSET(P_W_Out!$E$10,12*$A43,4*(PlotControl!$C$4-1),12,1)) -> 249.07
A44: 39 | B44: =MAX(OFFSET(P_N_Prop!$C$10,12*$A44,4*(PlotControl!$C$4-1),12,1)) -> 132.34 | C44: =MAX(OFFSET(P_N_Prop!$D$10,12*$A44,4*(PlotControl!$C$4-1),12,1)) -> 171.98 | D44: =MAX(OFFSET(P_N_Prop!$E$10,12*$A44,4*(PlotControl!$C$4-1),12,1)) -> 210.15 | E44: =MAX(OFFSET(P_NW_Prop!$C$10,12*$A44,4*(PlotControl!$C$4-1),12,1)) -> 199.91 | F44: =MAX(OFFSET(P_NW_Prop!$D$10,12*$A44,4*(PlotControl!$C$4-1),12,1)) -> 261.05 | G44: =MAX(OFFSET(P_NW_Prop!$E$10,12*$A44,4*(PlotControl!$C$4-1),12,1)) -> 318.7 | H44: =MAX(OFFSET(P_W_Prop!$C$10,12*$A44,4*(PlotControl!$C$4-1),12,1)) -> 166.94 | I44: =MAX(OFFSET(P_W_Prop!$D$10,12*$A44,4*(PlotControl!$C$4-1),12,1)) -> 225.23 | J44: =MAX(OFFSET(P_W_Prop!$E$10,12*$A44,4*(PlotControl!$C$4-1),12,1)) -> 290.59 | L44: 39 | M44: =MAX(OFFSET(P_N_Out!$C$10,12*$A44,4*(PlotControl!$C$4-1),12,1)) -> 90.433 | N44: =MAX(OFFSET(P_N_Out!$D$10,12*$A44,4*(PlotControl!$C$4-1),12,1)) -> 125.42 | O44: =MAX(OFFSET(P_N_Out!$E$10,12*$A44,4*(PlotControl!$C$4-1),12,1)) -> 167.07 | P44: =MAX(OFFSET(P_NW_Out!$C$10,12*$A44,4*(PlotControl!$C$4-1),12,1)) -> 133.41 | Q44: =MAX(OFFSET(P_NW_Out!$D$10,12*$A44,4*(PlotControl!$C$4-1),12,1)) -> 184.78 | R44: =MAX(OFFSET(P_NW_Out!$E$10,12*$A44,4*(PlotControl!$C$4-1),12,1)) -> 247.91 | S44: =MAX(OFFSET(P_W_Out!$C$10,12*$A44,4*(PlotControl!$C$4-1),12,1)) -> 125.55 | T44: =MAX(OFFSET(P_W_Out!$D$10,12*$A44,4*(PlotControl!$C$4-1),12,1)) -> 180.47 | U44: =MAX(OFFSET(P_W_Out!$E$10,12*$A44,4*(PlotControl!$C$4-1),12,1)) -> 247.99
A45: 40 | B45: =MAX(OFFSET(P_N_Prop!$C$10,12*$A45,4*(PlotControl!$C$4-1),12,1)) -> 131.43 | C45: =MAX(OFFSET(P_N_Prop!$D$10,12*$A45,4*(PlotControl!$C$4-1),12,1)) -> 171.01 | D45: =MAX(OFFSET(P_N_Prop!$E$10,12*$A45,4*(PlotControl!$C$4-1),12,1)) -> 209.23 | E45: =MAX(OFFSET(P_NW_Prop!$C$10,12*$A45,4*(PlotControl!$C$4-1),12,1)) -> 198.25 | F45: =MAX(OFFSET(P_NW_Prop!$D$10,12*$A45,4*(PlotControl!$C$4-1),12,1)) -> 259.49 | G45: =MAX(OFFSET(P_NW_Prop!$E$10,12*$A45,4*(PlotControl!$C$4-1),12,1)) -> 317.09 | H45: =MAX(OFFSET(P_W_Prop!$C$10,12*$A45,4*(PlotControl!$C$4-1),12,1)) -> 165.98 | I45: =MAX(OFFSET(P_W_Prop!$D$10,12*$A45,4*(PlotControl!$C$4-1),12,1)) -> 224.22 | J45: =MAX(OFFSET(P_W_Prop!$E$10,12*$A45,4*(PlotControl!$C$4-1),12,1)) -> 289.57 | L45: 40 | M45: =MAX(OFFSET(P_N_Out!$C$10,12*$A45,4*(PlotControl!$C$4-1),12,1)) -> 90.199 | N45: =MAX(OFFSET(P_N_Out!$D$10,12*$A45,4*(PlotControl!$C$4-1),12,1)) -> 124.87 | O45: =MAX(OFFSET(P_N_Out!$E$10,12*$A45,4*(PlotControl!$C$4-1),12,1)) -> 166.46 | P45: =MAX(OFFSET(P_NW_Out!$C$10,12*$A45,4*(PlotControl!$C$4-1),12,1)) -> 132.84 | Q45: =MAX(OFFSET(P_NW_Out!$D$10,12*$A45,4*(PlotControl!$C$4-1),12,1)) -> 184.12 | R45: =MAX(OFFSET(P_NW_Out!$E$10,12*$A45,4*(PlotControl!$C$4-1),12,1)) -> 246.93 | S45: =MAX(OFFSET(P_W_Out!$C$10,12*$A45,4*(PlotControl!$C$4-1),12,1)) -> 124.86 | T45: =MAX(OFFSET(P_W_Out!$D$10,12*$A45,4*(PlotControl!$C$4-1),12,1)) -> 179.53 | U45: =MAX(OFFSET(P_W_Out!$E$10,12*$A45,4*(PlotControl!$C$4-1),12,1)) -> 247
A46: 41 | B46: =MAX(OFFSET(P_N_Prop!$C$10,12*$A46,4*(PlotControl!$C$4-1),12,1)) -> 130.5 | C46: =MAX(OFFSET(P_N_Prop!$D$10,12*$A46,4*(PlotControl!$C$4-1),12,1)) -> 169.96 | D46: =MAX(OFFSET(P_N_Prop!$E$10,12*$A46,4*(PlotControl!$C$4-1),12,1)) -> 208.37 | E46: =MAX(OFFSET(P_NW_Prop!$C$10,12*$A46,4*(PlotControl!$C$4-1),12,1)) -> 196.74 | F46: =MAX(OFFSET(P_NW_Prop!$D$10,12*$A46,4*(PlotControl!$C$4-1),12,1)) -> 257.83 | G46: =MAX(OFFSET(P_NW_Prop!$E$10,12*$A46,4*(PlotControl!$C$4-1),12,1)) -> 315.48 | H46: =MAX(OFFSET(P_W_Prop!$C$10,12*$A46,4*(PlotControl!$C$4-1),12,1)) -> 165.2 | I46: =MAX(OFFSET(P_W_Prop!$D$10,12*$A46,4*(PlotControl!$C$4-1),12,1)) -> 223.43 | J46: =MAX(OFFSET(P_W_Prop!$E$10,12*$A46,4*(PlotControl!$C$4-1),12,1)) -> 288.56 | L46: 41 | M46: =MAX(OFFSET(P_N_Out!$C$10,12*$A46,4*(PlotControl!$C$4-1),12,1)) -> 89.965 | N46: =MAX(OFFSET(P_N_Out!$D$10,12*$A46,4*(PlotControl!$C$4-1),12,1)) -> 124.4 | O46: =MAX(OFFSET(P_N_Out!$E$10,12*$A46,4*(PlotControl!$C$4-1),12,1)) -> 166.02 | P46: =MAX(OFFSET(P_NW_Out!$C$10,12*$A46,4*(PlotControl!$C$4-1),12,1)) -> 132.35 | Q46: =MAX(OFFSET(P_NW_Out!$D$10,12*$A46,4*(PlotControl!$C$4-1),12,1)) -> 183.43 | R46: =MAX(OFFSET(P_NW_Out!$E$10,12*$A46,4*(PlotControl!$C$4-1),12,1)) -> 246.13 | S46: =MAX(OFFSET(P_W_Out!$C$10,12*$A46,4*(PlotControl!$C$4-1),12,1)) -> 124.22 | T46: =MAX(OFFSET(P_W_Out!$D$10,12*$A46,4*(PlotControl!$C$4-1),12,1)) -> 178.42 | U46: =MAX(OFFSET(P_W_Out!$E$10,12*$A46,4*(PlotControl!$C$4-1),12,1)) -> 246.23
A47: 42 | B47: =MAX(OFFSET(P_N_Prop!$C$10,12*$A47,4*(PlotControl!$C$4-1),12,1)) -> 129.52 | C47: =MAX(OFFSET(P_N_Prop!$D$10,12*$A47,4*(PlotControl!$C$4-1),12,1)) -> 169.06 | D47: =MAX(OFFSET(P_N_Prop!$E$10,12*$A47,4*(PlotControl!$C$4-1),12,1)) -> 207.63 | E47: =MAX(OFFSET(P_NW_Prop!$C$10,12*$A47,4*(PlotControl!$C$4-1),12,1)) -> 195.24 | F47: =MAX(OFFSET(P_NW_Prop!$D$10,12*$A47,4*(PlotControl!$C$4-1),12,1)) -> 256.05 | G47: =MAX(OFFSET(P_NW_Prop!$E$10,12*$A47,4*(PlotControl!$C$4-1),12,1)) -> 313.97 | H47: =MAX(OFFSET(P_W_Prop!$C$10,12*$A47,4*(PlotControl!$C$4-1),12,1)) -> 164.5 | I47: =MAX(OFFSET(P_W_Prop!$D$10,12*$A47,4*(PlotControl!$C$4-1),12,1)) -> 222.55 | J47: =MAX(OFFSET(P_W_Prop!$E$10,12*$A47,4*(PlotControl!$C$4-1),12,1)) -> 287.55 | L47: 42 | M47: =MAX(OFFSET(P_N_Out!$C$10,12*$A47,4*(PlotControl!$C$4-1),12,1)) -> 89.731 | N47: =MAX(OFFSET(P_N_Out!$D$10,12*$A47,4*(PlotControl!$C$4-1),12,1)) -> 123.98 | O47: =MAX(OFFSET(P_N_Out!$E$10,12*$A47,4*(PlotControl!$C$4-1),12,1)) -> 165.41 | P47: =MAX(OFFSET(P_NW_Out!$C$10,12*$A47,4*(PlotControl!$C$4-1),12,1)) -> 131.71 | Q47: =MAX(OFFSET(P_NW_Out!$D$10,12*$A47,4*(PlotControl!$C$4-1),12,1)) -> 182.72 | R47: =MAX(OFFSET(P_NW_Out!$E$10,12*$A47,4*(PlotControl!$C$4-1),12,1)) -> 245.1 | S47: =MAX(OFFSET(P_W_Out!$C$10,12*$A47,4*(PlotControl!$C$4-1),12,1)) -> 123.69 | T47: =MAX(OFFSET(P_W_Out!$D$10,12*$A47,4*(PlotControl!$C$4-1),12,1)) -> 177.62 | U47: =MAX(OFFSET(P_W_Out!$E$10,12*$A47,4*(PlotControl!$C$4-1),12,1)) -> 245.47
A48: 43 | B48: =MAX(OFFSET(P_N_Prop!$C$10,12*$A48,4*(PlotControl!$C$4-1),12,1)) -> 128.66 | C48: =MAX(OFFSET(P_N_Prop!$D$10,12*$A48,4*(PlotControl!$C$4-1),12,1)) -> 168.18 | D48: =MAX(OFFSET(P_N_Prop!$E$10,12*$A48,4*(PlotControl!$C$4-1),12,1)) -> 206.89 | E48: =MAX(OFFSET(P_NW_Prop!$C$10,12*$A48,4*(PlotControl!$C$4-1),12,1)) -> 193.75 | F48: =MAX(OFFSET(P_NW_Prop!$D$10,12*$A48,4*(PlotControl!$C$4-1),12,1)) -> 254.53 | G48: =MAX(OFFSET(P_NW_Prop!$E$10,12*$A48,4*(PlotControl!$C$4-1),12,1)) -> 312.59 | H48: =MAX(OFFSET(P_W_Prop!$C$10,12*$A48,4*(PlotControl!$C$4-1),12,1)) -> 163.83 | I48: =MAX(OFFSET(P_W_Prop!$D$10,12*$A48,4*(PlotControl!$C$4-1),12,1)) -> 221.16 | J48: =MAX(OFFSET(P_W_Prop!$E$10,12*$A48,4*(PlotControl!$C$4-1),12,1)) -> 286.51 | L48: 43 | M48: =MAX(OFFSET(P_N_Out!$C$10,12*$A48,4*(PlotControl!$C$4-1),12,1)) -> 89.495 | N48: =MAX(OFFSET(P_N_Out!$D$10,12*$A48,4*(PlotControl!$C$4-1),12,1)) -> 123.69 | O48: =MAX(OFFSET(P_N_Out!$E$10,12*$A48,4*(PlotControl!$C$4-1),12,1)) -> 164.8 | P48: =MAX(OFFSET(P_NW_Out!$C$10,12*$A48,4*(PlotControl!$C$4-1),12,1)) -> 130.94 | Q48: =MAX(OFFSET(P_NW_Out!$D$10,12*$A48,4*(PlotControl!$C$4-1),12,1)) -> 181.99 | R48: =MAX(OFFSET(P_NW_Out!$E$10,12*$A48,4*(PlotControl!$C$4-1),12,1)) -> 244.08 | S48: =MAX(OFFSET(P_W_Out!$C$10,12*$A48,4*(PlotControl!$C$4-1),12,1)) -> 123.18 | T48: =MAX(OFFSET(P_W_Out!$D$10,12*$A48,4*(PlotControl!$C$4-1),12,1)) -> 176.83 | U48: =MAX(OFFSET(P_W_Out!$E$10,12*$A48,4*(PlotControl!$C$4-1),12,1)) -> 244.7
A49: 44 | B49: =MAX(OFFSET(P_N_Prop!$C$10,12*$A49,4*(PlotControl!$C$4-1),12,1)) -> 127.91 | C49: =MAX(OFFSET(P_N_Prop!$D$10,12*$A49,4*(PlotControl!$C$4-1),12,1)) -> 167.01 | D49: =MAX(OFFSET(P_N_Prop!$E$10,12*$A49,4*(PlotControl!$C$4-1),12,1)) -> 206.14 | E49: =MAX(OFFSET(P_NW_Prop!$C$10,12*$A49,4*(PlotControl!$C$4-1),12,1)) -> 192.55 | F49: =MAX(OFFSET(P_NW_Prop!$D$10,12*$A49,4*(PlotControl!$C$4-1),12,1)) -> 253.18 | G49: =MAX(OFFSET(P_NW_Prop!$E$10,12*$A49,4*(PlotControl!$C$4-1),12,1)) -> 311.21 | H49: =MAX(OFFSET(P_W_Prop!$C$10,12*$A49,4*(PlotControl!$C$4-1),12,1)) -> 163.02 | I49: =MAX(OFFSET(P_W_Prop!$D$10,12*$A49,4*(PlotControl!$C$4-1),12,1)) -> 219.5 | J49: =MAX(OFFSET(P_W_Prop!$E$10,12*$A49,4*(PlotControl!$C$4-1),12,1)) -> 285.19 | L49: 44 | M49: =MAX(OFFSET(P_N_Out!$C$10,12*$A49,4*(PlotControl!$C$4-1),12,1)) -> 89.244 | N49: =MAX(OFFSET(P_N_Out!$D$10,12*$A49,4*(PlotControl!$C$4-1),12,1)) -> 123.41 | O49: =MAX(OFFSET(P_N_Out!$E$10,12*$A49,4*(PlotControl!$C$4-1),12,1)) -> 164.19 | P49: =MAX(OFFSET(P_NW_Out!$C$10,12*$A49,4*(PlotControl!$C$4-1),12,1)) -> 130.22 | Q49: =MAX(OFFSET(P_NW_Out!$D$10,12*$A49,4*(PlotControl!$C$4-1),12,1)) -> 181.2 | R49: =MAX(OFFSET(P_NW_Out!$E$10,12*$A49,4*(PlotControl!$C$4-1),12,1)) -> 243.06 | S49: =MAX(OFFSET(P_W_Out!$C$10,12*$A49,4*(PlotControl!$C$4-1),12,1)) -> 122.79 | T49: =MAX(OFFSET(P_W_Out!$D$10,12*$A49,4*(PlotControl!$C$4-1),12,1)) -> 176.05 | U49: =MAX(OFFSET(P_W_Out!$E$10,12*$A49,4*(PlotControl!$C$4-1),12,1)) -> 243.93
A50: 45 | B50: =MAX(OFFSET(P_N_Prop!$C$10,12*$A50,4*(PlotControl!$C$4-1),12,1)) -> 127.2 | C50: =MAX(OFFSET(P_N_Prop!$D$10,12*$A50,4*(PlotControl!$C$4-1),12,1)) -> 165.81 | D50: =MAX(OFFSET(P_N_Prop!$E$10,12*$A50,4*(PlotControl!$C$4-1),12,1)) -> 205.4 | E50: =MAX(OFFSET(P_NW_Prop!$C$10,12*$A50,4*(PlotControl!$C$4-1),12,1)) -> 191.4 | F50: =MAX(OFFSET(P_NW_Prop!$D$10,12*$A50,4*(PlotControl!$C$4-1),12,1)) -> 251.64 | G50: =MAX(OFFSET(P_NW_Prop!$E$10,12*$A50,4*(PlotControl!$C$4-1),12,1)) -> 310.18 | H50: =MAX(OFFSET(P_W_Prop!$C$10,12*$A50,4*(PlotControl!$C$4-1),12,1)) -> 162.1 | I50: =MAX(OFFSET(P_W_Prop!$D$10,12*$A50,4*(PlotControl!$C$4-1),12,1)) -> 217.63 | J50: =MAX(OFFSET(P_W_Prop!$E$10,12*$A50,4*(PlotControl!$C$4-1),12,1)) -> 283.87 | L50: 45 | M50: =MAX(OFFSET(P_N_Out!$C$10,12*$A50,4*(PlotControl!$C$4-1),12,1)) -> 88.965 | N50: =MAX(OFFSET(P_N_Out!$D$10,12*$A50,4*(PlotControl!$C$4-1),12,1)) -> 122.97 | O50: =MAX(OFFSET(P_N_Out!$E$10,12*$A50,4*(PlotControl!$C$4-1),12,1)) -> 163.46 | P50: =MAX(OFFSET(P_NW_Out!$C$10,12*$A50,4*(PlotControl!$C$4-1),12,1)) -> 129.55 | Q50: =MAX(OFFSET(P_NW_Out!$D$10,12*$A50,4*(PlotControl!$C$4-1),12,1)) -> 180.54 | R50: =MAX(OFFSET(P_NW_Out!$E$10,12*$A50,4*(PlotControl!$C$4-1),12,1)) -> 242.34 | S50: =MAX(OFFSET(P_W_Out!$C$10,12*$A50,4*(PlotControl!$C$4-1),12,1)) -> 122.19 | T50: =MAX(OFFSET(P_W_Out!$D$10,12*$A50,4*(PlotControl!$C$4-1),12,1)) -> 175.14 | U50: =MAX(OFFSET(P_W_Out!$E$10,12*$A50,4*(PlotControl!$C$4-1),12,1)) -> 243.13
A51: 46 | B51: =MAX(OFFSET(P_N_Prop!$C$10,12*$A51,4*(PlotControl!$C$4-1),12,1)) -> 126.4 | C51: =MAX(OFFSET(P_N_Prop!$D$10,12*$A51,4*(PlotControl!$C$4-1),12,1)) -> 164.85 | D51: =MAX(OFFSET(P_N_Prop!$E$10,12*$A51,4*(PlotControl!$C$4-1),12,1)) -> 204.59 | E51: =MAX(OFFSET(P_NW_Prop!$C$10,12*$A51,4*(PlotControl!$C$4-1),12,1)) -> 189.98 | F51: =MAX(OFFSET(P_NW_Prop!$D$10,12*$A51,4*(PlotControl!$C$4-1),12,1)) -> 250.02 | G51: =MAX(OFFSET(P_NW_Prop!$E$10,12*$A51,4*(PlotControl!$C$4-1),12,1)) -> 309.2 | H51: =MAX(OFFSET(P_W_Prop!$C$10,12*$A51,4*(PlotControl!$C$4-1),12,1)) -> 161.36 | I51: =MAX(OFFSET(P_W_Prop!$D$10,12*$A51,4*(PlotControl!$C$4-1),12,1)) -> 216.57 | J51: =MAX(OFFSET(P_W_Prop!$E$10,12*$A51,4*(PlotControl!$C$4-1),12,1)) -> 282.66 | L51: 46 | M51: =MAX(OFFSET(P_N_Out!$C$10,12*$A51,4*(PlotControl!$C$4-1),12,1)) -> 88.682 | N51: =MAX(OFFSET(P_N_Out!$D$10,12*$A51,4*(PlotControl!$C$4-1),12,1)) -> 122.34 | O51: =MAX(OFFSET(P_N_Out!$E$10,12*$A51,4*(PlotControl!$C$4-1),12,1)) -> 162.77 | P51: =MAX(OFFSET(P_NW_Out!$C$10,12*$A51,4*(PlotControl!$C$4-1),12,1)) -> 128.9 | Q51: =MAX(OFFSET(P_NW_Out!$D$10,12*$A51,4*(PlotControl!$C$4-1),12,1)) -> 179.74 | R51: =MAX(OFFSET(P_NW_Out!$E$10,12*$A51,4*(PlotControl!$C$4-1),12,1)) -> 241.62 | S51: =MAX(OFFSET(P_W_Out!$C$10,12*$A51,4*(PlotControl!$C$4-1),12,1)) -> 121.55 | T51: =MAX(OFFSET(P_W_Out!$D$10,12*$A51,4*(PlotControl!$C$4-1),12,1)) -> 174.34 | U51: =MAX(OFFSET(P_W_Out!$E$10,12*$A51,4*(PlotControl!$C$4-1),12,1)) -> 242.26
A52: 47 | B52: =MAX(OFFSET(P_N_Prop!$C$10,12*$A52,4*(PlotControl!$C$4-1),12,1)) -> 125.5 | C52: =MAX(OFFSET(P_N_Prop!$D$10,12*$A52,4*(PlotControl!$C$4-1),12,1)) -> 163.91 | D52: =MAX(OFFSET(P_N_Prop!$E$10,12*$A52,4*(PlotControl!$C$4-1),12,1)) -> 203.78 | E52: =MAX(OFFSET(P_NW_Prop!$C$10,12*$A52,4*(PlotControl!$C$4-1),12,1)) -> 188.43 | F52: =MAX(OFFSET(P_NW_Prop!$D$10,12*$A52,4*(PlotControl!$C$4-1),12,1)) -> 248.57 | G52: =MAX(OFFSET(P_NW_Prop!$E$10,12*$A52,4*(PlotControl!$C$4-1),12,1)) -> 307.91 | H52: =MAX(OFFSET(P_W_Prop!$C$10,12*$A52,4*(PlotControl!$C$4-1),12,1)) -> 160.66 | I52: =MAX(OFFSET(P_W_Prop!$D$10,12*$A52,4*(PlotControl!$C$4-1),12,1)) -> 215.63 | J52: =MAX(OFFSET(P_W_Prop!$E$10,12*$A52,4*(PlotControl!$C$4-1),12,1)) -> 281.59 | L52: 47 | M52: =MAX(OFFSET(P_N_Out!$C$10,12*$A52,4*(PlotControl!$C$4-1),12,1)) -> 88.397 | N52: =MAX(OFFSET(P_N_Out!$D$10,12*$A52,4*(PlotControl!$C$4-1),12,1)) -> 121.92 | O52: =MAX(OFFSET(P_N_Out!$E$10,12*$A52,4*(PlotControl!$C$4-1),12,1)) -> 162.07 | P52: =MAX(OFFSET(P_NW_Out!$C$10,12*$A52,4*(PlotControl!$C$4-1),12,1)) -> 128.25 | Q52: =MAX(OFFSET(P_NW_Out!$D$10,12*$A52,4*(PlotControl!$C$4-1),12,1)) -> 178.97 | R52: =MAX(OFFSET(P_NW_Out!$E$10,12*$A52,4*(PlotControl!$C$4-1),12,1)) -> 240.91 | S52: =MAX(OFFSET(P_W_Out!$C$10,12*$A52,4*(PlotControl!$C$4-1),12,1)) -> 120.92 | T52: =MAX(OFFSET(P_W_Out!$D$10,12*$A52,4*(PlotControl!$C$4-1),12,1)) -> 173.58 | U52: =MAX(OFFSET(P_W_Out!$E$10,12*$A52,4*(PlotControl!$C$4-1),12,1)) -> 241.4
A53: 48 | B53: =MAX(OFFSET(P_N_Prop!$C$10,12*$A53,4*(PlotControl!$C$4-1),12,1)) -> 124.54 | C53: =MAX(OFFSET(P_N_Prop!$D$10,12*$A53,4*(PlotControl!$C$4-1),12,1)) -> 162.69 | D53: =MAX(OFFSET(P_N_Prop!$E$10,12*$A53,4*(PlotControl!$C$4-1),12,1)) -> 203.01 | E53: =MAX(OFFSET(P_NW_Prop!$C$10,12*$A53,4*(PlotControl!$C$4-1),12,1)) -> 186.83 | F53: =MAX(OFFSET(P_NW_Prop!$D$10,12*$A53,4*(PlotControl!$C$4-1),12,1)) -> 247.28 | G53: =MAX(OFFSET(P_NW_Prop!$E$10,12*$A53,4*(PlotControl!$C$4-1),12,1)) -> 306.52 | H53: =MAX(OFFSET(P_W_Prop!$C$10,12*$A53,4*(PlotControl!$C$4-1),12,1)) -> 159.87 | I53: =MAX(OFFSET(P_W_Prop!$D$10,12*$A53,4*(PlotControl!$C$4-1),12,1)) -> 214.71 | J53: =MAX(OFFSET(P_W_Prop!$E$10,12*$A53,4*(PlotControl!$C$4-1),12,1)) -> 280.52 | L53: 48 | M53: =MAX(OFFSET(P_N_Out!$C$10,12*$A53,4*(PlotControl!$C$4-1),12,1)) -> 88.112 | N53: =MAX(OFFSET(P_N_Out!$D$10,12*$A53,4*(PlotControl!$C$4-1),12,1)) -> 121.5 | O53: =MAX(OFFSET(P_N_Out!$E$10,12*$A53,4*(PlotControl!$C$4-1),12,1)) -> 161.38 | P53: =MAX(OFFSET(P_NW_Out!$C$10,12*$A53,4*(PlotControl!$C$4-1),12,1)) -> 127.7 | Q53: =MAX(OFFSET(P_NW_Out!$D$10,12*$A53,4*(PlotControl!$C$4-1),12,1)) -> 178.3 | R53: =MAX(OFFSET(P_NW_Out!$E$10,12*$A53,4*(PlotControl!$C$4-1),12,1)) -> 240.19 | S53: =MAX(OFFSET(P_W_Out!$C$10,12*$A53,4*(PlotControl!$C$4-1),12,1)) -> 120.28 | T53: =MAX(OFFSET(P_W_Out!$D$10,12*$A53,4*(PlotControl!$C$4-1),12,1)) -> 172.91 | U53: =MAX(OFFSET(P_W_Out!$E$10,12*$A53,4*(PlotControl!$C$4-1),12,1)) -> 240.54
A54: 49 | B54: =MAX(OFFSET(P_N_Prop!$C$10,12*$A54,4*(PlotControl!$C$4-1),12,1)) -> 123.62 | C54: =MAX(OFFSET(P_N_Prop!$D$10,12*$A54,4*(PlotControl!$C$4-1),12,1)) -> 161.8 | D54: =MAX(OFFSET(P_N_Prop!$E$10,12*$A54,4*(PlotControl!$C$4-1),12,1)) -> 202.18 | E54: =MAX(OFFSET(P_NW_Prop!$C$10,12*$A54,4*(PlotControl!$C$4-1),12,1)) -> 185.26 | F54: =MAX(OFFSET(P_NW_Prop!$D$10,12*$A54,4*(PlotControl!$C$4-1),12,1)) -> 245.91 | G54: =MAX(OFFSET(P_NW_Prop!$E$10,12*$A54,4*(PlotControl!$C$4-1),12,1)) -> 305.06 | H54: =MAX(OFFSET(P_W_Prop!$C$10,12*$A54,4*(PlotControl!$C$4-1),12,1)) -> 159.06 | I54: =MAX(OFFSET(P_W_Prop!$D$10,12*$A54,4*(PlotControl!$C$4-1),12,1)) -> 213.79 | J54: =MAX(OFFSET(P_W_Prop!$E$10,12*$A54,4*(PlotControl!$C$4-1),12,1)) -> 279.45 | L54: 49 | M54: =MAX(OFFSET(P_N_Out!$C$10,12*$A54,4*(PlotControl!$C$4-1),12,1)) -> 87.816 | N54: =MAX(OFFSET(P_N_Out!$D$10,12*$A54,4*(PlotControl!$C$4-1),12,1)) -> 121.06 | O54: =MAX(OFFSET(P_N_Out!$E$10,12*$A54,4*(PlotControl!$C$4-1),12,1)) -> 160.84 | P54: =MAX(OFFSET(P_NW_Out!$C$10,12*$A54,4*(PlotControl!$C$4-1),12,1)) -> 127.22 | Q54: =MAX(OFFSET(P_NW_Out!$D$10,12*$A54,4*(PlotControl!$C$4-1),12,1)) -> 177.74 | R54: =MAX(OFFSET(P_NW_Out!$E$10,12*$A54,4*(PlotControl!$C$4-1),12,1)) -> 239.51 | S54: =MAX(OFFSET(P_W_Out!$C$10,12*$A54,4*(PlotControl!$C$4-1),12,1)) -> 119.68 | T54: =MAX(OFFSET(P_W_Out!$D$10,12*$A54,4*(PlotControl!$C$4-1),12,1)) -> 172.24 | U54: =MAX(OFFSET(P_W_Out!$E$10,12*$A54,4*(PlotControl!$C$4-1),12,1)) -> 239.68
A55: 50 | B55: =MAX(OFFSET(P_N_Prop!$C$10,12*$A55,4*(PlotControl!$C$4-1),12,1)) -> 122.97 | C55: =MAX(OFFSET(P_N_Prop!$D$10,12*$A55,4*(PlotControl!$C$4-1),12,1)) -> 160.84 | D55: =MAX(OFFSET(P_N_Prop!$E$10,12*$A55,4*(PlotControl!$C$4-1),12,1)) -> 201.38 | E55: =MAX(OFFSET(P_NW_Prop!$C$10,12*$A55,4*(PlotControl!$C$4-1),12,1)) -> 183.93 | F55: =MAX(OFFSET(P_NW_Prop!$D$10,12*$A55,4*(PlotControl!$C$4-1),12,1)) -> 244.2 | G55: =MAX(OFFSET(P_NW_Prop!$E$10,12*$A55,4*(PlotControl!$C$4-1),12,1)) -> 303.54 | H55: =MAX(OFFSET(P_W_Prop!$C$10,12*$A55,4*(PlotControl!$C$4-1),12,1)) -> 158.24 | I55: =MAX(OFFSET(P_W_Prop!$D$10,12*$A55,4*(PlotControl!$C$4-1),12,1)) -> 212.87 | J55: =MAX(OFFSET(P_W_Prop!$E$10,12*$A55,4*(PlotControl!$C$4-1),12,1)) -> 278.22 | L55: 50 | M55: =MAX(OFFSET(P_N_Out!$C$10,12*$A55,4*(PlotControl!$C$4-1),12,1)) -> 87.428 | N55: =MAX(OFFSET(P_N_Out!$D$10,12*$A55,4*(PlotControl!$C$4-1),12,1)) -> 120.71 | O55: =MAX(OFFSET(P_N_Out!$E$10,12*$A55,4*(PlotControl!$C$4-1),12,1)) -> 160.38 | P55: =MAX(OFFSET(P_NW_Out!$C$10,12*$A55,4*(PlotControl!$C$4-1),12,1)) -> 126.74 | Q55: =MAX(OFFSET(P_NW_Out!$D$10,12*$A55,4*(PlotControl!$C$4-1),12,1)) -> 177.18 | R55: =MAX(OFFSET(P_NW_Out!$E$10,12*$A55,4*(PlotControl!$C$4-1),12,1)) -> 238.94 | S55: =MAX(OFFSET(P_W_Out!$C$10,12*$A55,4*(PlotControl!$C$4-1),12,1)) -> 119.13 | T55: =MAX(OFFSET(P_W_Out!$D$10,12*$A55,4*(PlotControl!$C$4-1),12,1)) -> 171.49 | U55: =MAX(OFFSET(P_W_Out!$E$10,12*$A55,4*(PlotControl!$C$4-1),12,1)) -> 238.85
A56: 51 | B56: =MAX(OFFSET(P_N_Prop!$C$10,12*$A56,4*(PlotControl!$C$4-1),12,1)) -> 122.3 | C56: =MAX(OFFSET(P_N_Prop!$D$10,12*$A56,4*(PlotControl!$C$4-1),12,1)) -> 159.98 | D56: =MAX(OFFSET(P_N_Prop!$E$10,12*$A56,4*(PlotControl!$C$4-1),12,1)) -> 200.59 | E56: =MAX(OFFSET(P_NW_Prop!$C$10,12*$A56,4*(PlotControl!$C$4-1),12,1)) -> 182.85 | F56: =MAX(OFFSET(P_NW_Prop!$D$10,12*$A56,4*(PlotControl!$C$4-1),12,1)) -> 242.55 | G56: =MAX(OFFSET(P_NW_Prop!$E$10,12*$A56,4*(PlotControl!$C$4-1),12,1)) -> 302.03 | H56: =MAX(OFFSET(P_W_Prop!$C$10,12*$A56,4*(PlotControl!$C$4-1),12,1)) -> 157.44 | I56: =MAX(OFFSET(P_W_Prop!$D$10,12*$A56,4*(PlotControl!$C$4-1),12,1)) -> 211.95 | J56: =MAX(OFFSET(P_W_Prop!$E$10,12*$A56,4*(PlotControl!$C$4-1),12,1)) -> 277.16 | L56: 51 | M56: =MAX(OFFSET(P_N_Out!$C$10,12*$A56,4*(PlotControl!$C$4-1),12,1)) -> 87.039 | N56: =MAX(OFFSET(P_N_Out!$D$10,12*$A56,4*(PlotControl!$C$4-1),12,1)) -> 120.37 | O56: =MAX(OFFSET(P_N_Out!$E$10,12*$A56,4*(PlotControl!$C$4-1),12,1)) -> 159.92 | P56: =MAX(OFFSET(P_NW_Out!$C$10,12*$A56,4*(PlotControl!$C$4-1),12,1)) -> 126.39 | Q56: =MAX(OFFSET(P_NW_Out!$D$10,12*$A56,4*(PlotControl!$C$4-1),12,1)) -> 176.62 | R56: =MAX(OFFSET(P_NW_Out!$E$10,12*$A56,4*(PlotControl!$C$4-1),12,1)) -> 238.36 | S56: =MAX(OFFSET(P_W_Out!$C$10,12*$A56,4*(PlotControl!$C$4-1),12,1)) -> 118.66 | T56: =MAX(OFFSET(P_W_Out!$D$10,12*$A56,4*(PlotControl!$C$4-1),12,1)) -> 170.68 | U56: =MAX(OFFSET(P_W_Out!$E$10,12*$A56,4*(PlotControl!$C$4-1),12,1)) -> 238.02
A57: 52 | B57: =MAX(OFFSET(P_N_Prop!$C$10,12*$A57,4*(PlotControl!$C$4-1),12,1)) -> 121.5 | C57: =MAX(OFFSET(P_N_Prop!$D$10,12*$A57,4*(PlotControl!$C$4-1),12,1)) -> 159.16 | D57: =MAX(OFFSET(P_N_Prop!$E$10,12*$A57,4*(PlotControl!$C$4-1),12,1)) -> 199.79 | E57: =MAX(OFFSET(P_NW_Prop!$C$10,12*$A57,4*(PlotControl!$C$4-1),12,1)) -> 181.7 | F57: =MAX(OFFSET(P_NW_Prop!$D$10,12*$A57,4*(PlotControl!$C$4-1),12,1)) -> 241.13 | G57: =MAX(OFFSET(P_NW_Prop!$E$10,12*$A57,4*(PlotControl!$C$4-1),12,1)) -> 300.59 | H57: =MAX(OFFSET(P_W_Prop!$C$10,12*$A57,4*(PlotControl!$C$4-1),12,1)) -> 156.75 | I57: =MAX(OFFSET(P_W_Prop!$D$10,12*$A57,4*(PlotControl!$C$4-1),12,1)) -> 211.04 | J57: =MAX(OFFSET(P_W_Prop!$E$10,12*$A57,4*(PlotControl!$C$4-1),12,1)) -> 276.1 | L57: 52 | M57: =MAX(OFFSET(P_N_Out!$C$10,12*$A57,4*(PlotControl!$C$4-1),12,1)) -> 86.65 | N57: =MAX(OFFSET(P_N_Out!$D$10,12*$A57,4*(PlotControl!$C$4-1),12,1)) -> 120.01 | O57: =MAX(OFFSET(P_N_Out!$E$10,12*$A57,4*(PlotControl!$C$4-1),12,1)) -> 159.47 | P57: =MAX(OFFSET(P_NW_Out!$C$10,12*$A57,4*(PlotControl!$C$4-1),12,1)) -> 126.05 | Q57: =MAX(OFFSET(P_NW_Out!$D$10,12*$A57,4*(PlotControl!$C$4-1),12,1)) -> 176.03 | R57: =MAX(OFFSET(P_NW_Out!$E$10,12*$A57,4*(PlotControl!$C$4-1),12,1)) -> 237.64 | S57: =MAX(OFFSET(P_W_Out!$C$10,12*$A57,4*(PlotControl!$C$4-1),12,1)) -> 118.18 | T57: =MAX(OFFSET(P_W_Out!$D$10,12*$A57,4*(PlotControl!$C$4-1),12,1)) -> 169.86 | U57: =MAX(OFFSET(P_W_Out!$E$10,12*$A57,4*(PlotControl!$C$4-1),12,1)) -> 237.2
A58: 53 | B58: =MAX(OFFSET(P_N_Prop!$C$10,12*$A58,4*(PlotControl!$C$4-1),12,1)) -> 120.66 | C58: =MAX(OFFSET(P_N_Prop!$D$10,12*$A58,4*(PlotControl!$C$4-1),12,1)) -> 158.28 | D58: =MAX(OFFSET(P_N_Prop!$E$10,12*$A58,4*(PlotControl!$C$4-1),12,1)) -> 199 | E58: =MAX(OFFSET(P_NW_Prop!$C$10,12*$A58,4*(PlotControl!$C$4-1),12,1)) -> 180.44 | F58: =MAX(OFFSET(P_NW_Prop!$D$10,12*$A58,4*(PlotControl!$C$4-1),12,1)) -> 239.62 | G58: =MAX(OFFSET(P_NW_Prop!$E$10,12*$A58,4*(PlotControl!$C$4-1),12,1)) -> 299.4 | H58: =MAX(OFFSET(P_W_Prop!$C$10,12*$A58,4*(PlotControl!$C$4-1),12,1)) -> 155.76 | I58: =MAX(OFFSET(P_W_Prop!$D$10,12*$A58,4*(PlotControl!$C$4-1),12,1)) -> 210.17 | J58: =MAX(OFFSET(P_W_Prop!$E$10,12*$A58,4*(PlotControl!$C$4-1),12,1)) -> 274.79 | L58: 53 | M58: =MAX(OFFSET(P_N_Out!$C$10,12*$A58,4*(PlotControl!$C$4-1),12,1)) -> 86.261 | N58: =MAX(OFFSET(P_N_Out!$D$10,12*$A58,4*(PlotControl!$C$4-1),12,1)) -> 119.63 | O58: =MAX(OFFSET(P_N_Out!$E$10,12*$A58,4*(PlotControl!$C$4-1),12,1)) -> 159.01 | P58: =MAX(OFFSET(P_NW_Out!$C$10,12*$A58,4*(PlotControl!$C$4-1),12,1)) -> 125.59 | Q58: =MAX(OFFSET(P_NW_Out!$D$10,12*$A58,4*(PlotControl!$C$4-1),12,1)) -> 175.41 | R58: =MAX(OFFSET(P_NW_Out!$E$10,12*$A58,4*(PlotControl!$C$4-1),12,1)) -> 236.85 | S58: =MAX(OFFSET(P_W_Out!$C$10,12*$A58,4*(PlotControl!$C$4-1),12,1)) -> 117.71 | T58: =MAX(OFFSET(P_W_Out!$D$10,12*$A58,4*(PlotControl!$C$4-1),12,1)) -> 168.94 | U58: =MAX(OFFSET(P_W_Out!$E$10,12*$A58,4*(PlotControl!$C$4-1),12,1)) -> 236.38
A59: 54 | B59: =MAX(OFFSET(P_N_Prop!$C$10,12*$A59,4*(PlotControl!$C$4-1),12,1)) -> 119.95 | C59: =MAX(OFFSET(P_N_Prop!$D$10,12*$A59,4*(PlotControl!$C$4-1),12,1)) -> 157.41 | D59: =MAX(OFFSET(P_N_Prop!$E$10,12*$A59,4*(PlotControl!$C$4-1),12,1)) -> 198.21 | E59: =MAX(OFFSET(P_NW_Prop!$C$10,12*$A59,4*(PlotControl!$C$4-1),12,1)) -> 179.02 | F59: =MAX(OFFSET(P_NW_Prop!$D$10,12*$A59,4*(PlotControl!$C$4-1),12,1)) -> 238.13 | G59: =MAX(OFFSET(P_NW_Prop!$E$10,12*$A59,4*(PlotControl!$C$4-1),12,1)) -> 298.23 | H59: =MAX(OFFSET(P_W_Prop!$C$10,12*$A59,4*(PlotControl!$C$4-1),12,1)) -> 154.84 | I59: =MAX(OFFSET(P_W_Prop!$D$10,12*$A59,4*(PlotControl!$C$4-1),12,1)) -> 209 | J59: =MAX(OFFSET(P_W_Prop!$E$10,12*$A59,4*(PlotControl!$C$4-1),12,1)) -> 273.33 | L59: 54 | M59: =MAX(OFFSET(P_N_Out!$C$10,12*$A59,4*(PlotControl!$C$4-1),12,1)) -> 85.883 | N59: =MAX(OFFSET(P_N_Out!$D$10,12*$A59,4*(PlotControl!$C$4-1),12,1)) -> 119.29 | O59: =MAX(OFFSET(P_N_Out!$E$10,12*$A59,4*(PlotControl!$C$4-1),12,1)) -> 158.55 | P59: =MAX(OFFSET(P_NW_Out!$C$10,12*$A59,4*(PlotControl!$C$4-1),12,1)) -> 125.05 | Q59: =MAX(OFFSET(P_NW_Out!$D$10,12*$A59,4*(PlotControl!$C$4-1),12,1)) -> 174.59 | R59: =MAX(OFFSET(P_NW_Out!$E$10,12*$A59,4*(PlotControl!$C$4-1),12,1)) -> 236 | S59: =MAX(OFFSET(P_W_Out!$C$10,12*$A59,4*(PlotControl!$C$4-1),12,1)) -> 117.15 | T59: =MAX(OFFSET(P_W_Out!$D$10,12*$A59,4*(PlotControl!$C$4-1),12,1)) -> 167.99 | U59: =MAX(OFFSET(P_W_Out!$E$10,12*$A59,4*(PlotControl!$C$4-1),12,1)) -> 235.59
A60: 55 | B60: =MAX(OFFSET(P_N_Prop!$C$10,12*$A60,4*(PlotControl!$C$4-1),12,1)) -> 119.19 | C60: =MAX(OFFSET(P_N_Prop!$D$10,12*$A60,4*(PlotControl!$C$4-1),12,1)) -> 156.55 | D60: =MAX(OFFSET(P_N_Prop!$E$10,12*$A60,4*(PlotControl!$C$4-1),12,1)) -> 197.43 | E60: =MAX(OFFSET(P_NW_Prop!$C$10,12*$A60,4*(PlotControl!$C$4-1),12,1)) -> 177.61 | F60: =MAX(OFFSET(P_NW_Prop!$D$10,12*$A60,4*(PlotControl!$C$4-1),12,1)) -> 236.5 | G60: =MAX(OFFSET(P_NW_Prop!$E$10,12*$A60,4*(PlotControl!$C$4-1),12,1)) -> 297.05 | H60: =MAX(OFFSET(P_W_Prop!$C$10,12*$A60,4*(PlotControl!$C$4-1),12,1)) -> 153.94 | I60: =MAX(OFFSET(P_W_Prop!$D$10,12*$A60,4*(PlotControl!$C$4-1),12,1)) -> 207.58 | J60: =MAX(OFFSET(P_W_Prop!$E$10,12*$A60,4*(PlotControl!$C$4-1),12,1)) -> 271.88 | L60: 55 | M60: =MAX(OFFSET(P_N_Out!$C$10,12*$A60,4*(PlotControl!$C$4-1),12,1)) -> 85.596 | N60: =MAX(OFFSET(P_N_Out!$D$10,12*$A60,4*(PlotControl!$C$4-1),12,1)) -> 118.81 | O60: =MAX(OFFSET(P_N_Out!$E$10,12*$A60,4*(PlotControl!$C$4-1),12,1)) -> 158.09 | P60: =MAX(OFFSET(P_NW_Out!$C$10,12*$A60,4*(PlotControl!$C$4-1),12,1)) -> 124.58 | Q60: =MAX(OFFSET(P_NW_Out!$D$10,12*$A60,4*(PlotControl!$C$4-1),12,1)) -> 173.74 | R60: =MAX(OFFSET(P_NW_Out!$E$10,12*$A60,4*(PlotControl!$C$4-1),12,1)) -> 235.16 | S60: =MAX(OFFSET(P_W_Out!$C$10,12*$A60,4*(PlotControl!$C$4-1),12,1)) -> 116.53 | T60: =MAX(OFFSET(P_W_Out!$D$10,12*$A60,4*(PlotControl!$C$4-1),12,1)) -> 167.5 | U60: =MAX(OFFSET(P_W_Out!$E$10,12*$A60,4*(PlotControl!$C$4-1),12,1)) -> 234.86
A61: 56 | B61: =MAX(OFFSET(P_N_Prop!$C$10,12*$A61,4*(PlotControl!$C$4-1),12,1)) -> 118.38 | C61: =MAX(OFFSET(P_N_Prop!$D$10,12*$A61,4*(PlotControl!$C$4-1),12,1)) -> 155.69 | D61: =MAX(OFFSET(P_N_Prop!$E$10,12*$A61,4*(PlotControl!$C$4-1),12,1)) -> 196.65 | E61: =MAX(OFFSET(P_NW_Prop!$C$10,12*$A61,4*(PlotControl!$C$4-1),12,1)) -> 176.21 | F61: =MAX(OFFSET(P_NW_Prop!$D$10,12*$A61,4*(PlotControl!$C$4-1),12,1)) -> 234.84 | G61: =MAX(OFFSET(P_NW_Prop!$E$10,12*$A61,4*(PlotControl!$C$4-1),12,1)) -> 295.88 | H61: =MAX(OFFSET(P_W_Prop!$C$10,12*$A61,4*(PlotControl!$C$4-1),12,1)) -> 153.03 | I61: =MAX(OFFSET(P_W_Prop!$D$10,12*$A61,4*(PlotControl!$C$4-1),12,1)) -> 206.4 | J61: =MAX(OFFSET(P_W_Prop!$E$10,12*$A61,4*(PlotControl!$C$4-1),12,1)) -> 270.71 | L61: 56 | M61: =MAX(OFFSET(P_N_Out!$C$10,12*$A61,4*(PlotControl!$C$4-1),12,1)) -> 85.322 | N61: =MAX(OFFSET(P_N_Out!$D$10,12*$A61,4*(PlotControl!$C$4-1),12,1)) -> 118.38 | O61: =MAX(OFFSET(P_N_Out!$E$10,12*$A61,4*(PlotControl!$C$4-1),12,1)) -> 157.5 | P61: =MAX(OFFSET(P_NW_Out!$C$10,12*$A61,4*(PlotControl!$C$4-1),12,1)) -> 124.11 | Q61: =MAX(OFFSET(P_NW_Out!$D$10,12*$A61,4*(PlotControl!$C$4-1),12,1)) -> 173.16 | R61: =MAX(OFFSET(P_NW_Out!$E$10,12*$A61,4*(PlotControl!$C$4-1),12,1)) -> 234.31 | S61: =MAX(OFFSET(P_W_Out!$C$10,12*$A61,4*(PlotControl!$C$4-1),12,1)) -> 115.91 | T61: =MAX(OFFSET(P_W_Out!$D$10,12*$A61,4*(PlotControl!$C$4-1),12,1)) -> 167.04 | U61: =MAX(OFFSET(P_W_Out!$E$10,12*$A61,4*(PlotControl!$C$4-1),12,1)) -> 234.12
A62: 57 | B62: =MAX(OFFSET(P_N_Prop!$C$10,12*$A62,4*(PlotControl!$C$4-1),12,1)) -> 117.63 | C62: =MAX(OFFSET(P_N_Prop!$D$10,12*$A62,4*(PlotControl!$C$4-1),12,1)) -> 154.87 | D62: =MAX(OFFSET(P_N_Prop!$E$10,12*$A62,4*(PlotControl!$C$4-1),12,1)) -> 195.87 | E62: =MAX(OFFSET(P_NW_Prop!$C$10,12*$A62,4*(PlotControl!$C$4-1),12,1)) -> 174.91 | F62: =MAX(OFFSET(P_NW_Prop!$D$10,12*$A62,4*(PlotControl!$C$4-1),12,1)) -> 233.31 | G62: =MAX(OFFSET(P_NW_Prop!$E$10,12*$A62,4*(PlotControl!$C$4-1),12,1)) -> 294.71 | H62: =MAX(OFFSET(P_W_Prop!$C$10,12*$A62,4*(PlotControl!$C$4-1),12,1)) -> 152.12 | I62: =MAX(OFFSET(P_W_Prop!$D$10,12*$A62,4*(PlotControl!$C$4-1),12,1)) -> 205.33 | J62: =MAX(OFFSET(P_W_Prop!$E$10,12*$A62,4*(PlotControl!$C$4-1),12,1)) -> 269.74 | L62: 57 | M62: =MAX(OFFSET(P_N_Out!$C$10,12*$A62,4*(PlotControl!$C$4-1),12,1)) -> 85.093 | N62: =MAX(OFFSET(P_N_Out!$D$10,12*$A62,4*(PlotControl!$C$4-1),12,1)) -> 117.99 | O62: =MAX(OFFSET(P_N_Out!$E$10,12*$A62,4*(PlotControl!$C$4-1),12,1)) -> 156.89 | P62: =MAX(OFFSET(P_NW_Out!$C$10,12*$A62,4*(PlotControl!$C$4-1),12,1)) -> 123.63 | Q62: =MAX(OFFSET(P_NW_Out!$D$10,12*$A62,4*(PlotControl!$C$4-1),12,1)) -> 172.63 | R62: =MAX(OFFSET(P_NW_Out!$E$10,12*$A62,4*(PlotControl!$C$4-1),12,1)) -> 233.47 | S62: =MAX(OFFSET(P_W_Out!$C$10,12*$A62,4*(PlotControl!$C$4-1),12,1)) -> 115.29 | T62: =MAX(OFFSET(P_W_Out!$D$10,12*$A62,4*(PlotControl!$C$4-1),12,1)) -> 166.5 | U62: =MAX(OFFSET(P_W_Out!$E$10,12*$A62,4*(PlotControl!$C$4-1),12,1)) -> 233.28
A63: 58 | B63: =MAX(OFFSET(P_N_Prop!$C$10,12*$A63,4*(PlotControl!$C$4-1),12,1)) -> 116.9 | C63: =MAX(OFFSET(P_N_Prop!$D$10,12*$A63,4*(PlotControl!$C$4-1),12,1)) -> 154.13 | D63: =MAX(OFFSET(P_N_Prop!$E$10,12*$A63,4*(PlotControl!$C$4-1),12,1)) -> 195.06 | E63: =MAX(OFFSET(P_NW_Prop!$C$10,12*$A63,4*(PlotControl!$C$4-1),12,1)) -> 173.57 | F63: =MAX(OFFSET(P_NW_Prop!$D$10,12*$A63,4*(PlotControl!$C$4-1),12,1)) -> 231.63 | G63: =MAX(OFFSET(P_NW_Prop!$E$10,12*$A63,4*(PlotControl!$C$4-1),12,1)) -> 293.47 | H63: =MAX(OFFSET(P_W_Prop!$C$10,12*$A63,4*(PlotControl!$C$4-1),12,1)) -> 151.06 | I63: =MAX(OFFSET(P_W_Prop!$D$10,12*$A63,4*(PlotControl!$C$4-1),12,1)) -> 204.23 | J63: =MAX(OFFSET(P_W_Prop!$E$10,12*$A63,4*(PlotControl!$C$4-1),12,1)) -> 268.77 | L63: 58 | M63: =MAX(OFFSET(P_N_Out!$C$10,12*$A63,4*(PlotControl!$C$4-1),12,1)) -> 84.862 | N63: =MAX(OFFSET(P_N_Out!$D$10,12*$A63,4*(PlotControl!$C$4-1),12,1)) -> 117.52 | O63: =MAX(OFFSET(P_N_Out!$E$10,12*$A63,4*(PlotControl!$C$4-1),12,1)) -> 156.29 | P63: =MAX(OFFSET(P_NW_Out!$C$10,12*$A63,4*(PlotControl!$C$4-1),12,1)) -> 123.07 | Q63: =MAX(OFFSET(P_NW_Out!$D$10,12*$A63,4*(PlotControl!$C$4-1),12,1)) -> 172.02 | R63: =MAX(OFFSET(P_NW_Out!$E$10,12*$A63,4*(PlotControl!$C$4-1),12,1)) -> 232.69 | S63: =MAX(OFFSET(P_W_Out!$C$10,12*$A63,4*(PlotControl!$C$4-1),12,1)) -> 114.68 | T63: =MAX(OFFSET(P_W_Out!$D$10,12*$A63,4*(PlotControl!$C$4-1),12,1)) -> 165.48 | U63: =MAX(OFFSET(P_W_Out!$E$10,12*$A63,4*(PlotControl!$C$4-1),12,1)) -> 232.33
A64: 59 | B64: =MAX(OFFSET(P_N_Prop!$C$10,12*$A64,4*(PlotControl!$C$4-1),12,1)) -> 116.12 | C64: =MAX(OFFSET(P_N_Prop!$D$10,12*$A64,4*(PlotControl!$C$4-1),12,1)) -> 153.43 | D64: =MAX(OFFSET(P_N_Prop!$E$10,12*$A64,4*(PlotControl!$C$4-1),12,1)) -> 194.17 | E64: =MAX(OFFSET(P_NW_Prop!$C$10,12*$A64,4*(PlotControl!$C$4-1),12,1)) -> 172.06 | F64: =MAX(OFFSET(P_NW_Prop!$D$10,12*$A64,4*(PlotControl!$C$4-1),12,1)) -> 230.16 | G64: =MAX(OFFSET(P_NW_Prop!$E$10,12*$A64,4*(PlotControl!$C$4-1),12,1)) -> 292.05 | H64: =MAX(OFFSET(P_W_Prop!$C$10,12*$A64,4*(PlotControl!$C$4-1),12,1)) -> 149.99 | I64: =MAX(OFFSET(P_W_Prop!$D$10,12*$A64,4*(PlotControl!$C$4-1),12,1)) -> 203.21 | J64: =MAX(OFFSET(P_W_Prop!$E$10,12*$A64,4*(PlotControl!$C$4-1),12,1)) -> 267.78 | L64: 59 | M64: =MAX(OFFSET(P_N_Out!$C$10,12*$A64,4*(PlotControl!$C$4-1),12,1)) -> 84.593 | N64: =MAX(OFFSET(P_N_Out!$D$10,12*$A64,4*(PlotControl!$C$4-1),12,1)) -> 117.11 | O64: =MAX(OFFSET(P_N_Out!$E$10,12*$A64,4*(PlotControl!$C$4-1),12,1)) -> 155.81 | P64: =MAX(OFFSET(P_NW_Out!$C$10,12*$A64,4*(PlotControl!$C$4-1),12,1)) -> 122.43 | Q64: =MAX(OFFSET(P_NW_Out!$D$10,12*$A64,4*(PlotControl!$C$4-1),12,1)) -> 171.43 | R64: =MAX(OFFSET(P_NW_Out!$E$10,12*$A64,4*(PlotControl!$C$4-1),12,1)) -> 231.88 | S64: =MAX(OFFSET(P_W_Out!$C$10,12*$A64,4*(PlotControl!$C$4-1),12,1)) -> 114.19 | T64: =MAX(OFFSET(P_W_Out!$D$10,12*$A64,4*(PlotControl!$C$4-1),12,1)) -> 164.58 | U64: =MAX(OFFSET(P_W_Out!$E$10,12*$A64,4*(PlotControl!$C$4-1),12,1)) -> 231.62
A65: 60 | B65: =MAX(OFFSET(P_N_Prop!$C$10,12*$A65,4*(PlotControl!$C$4-1),12,1)) -> 115.45 | C65: =MAX(OFFSET(P_N_Prop!$D$10,12*$A65,4*(PlotControl!$C$4-1),12,1)) -> 152.73 | D65: =MAX(OFFSET(P_N_Prop!$E$10,12*$A65,4*(PlotControl!$C$4-1),12,1)) -> 193.26 | E65: =MAX(OFFSET(P_NW_Prop!$C$10,12*$A65,4*(PlotControl!$C$4-1),12,1)) -> 170.52 | F65: =MAX(OFFSET(P_NW_Prop!$D$10,12*$A65,4*(PlotControl!$C$4-1),12,1)) -> 228.78 | G65: =MAX(OFFSET(P_NW_Prop!$E$10,12*$A65,4*(PlotControl!$C$4-1),12,1)) -> 290.63 | H65: =MAX(OFFSET(P_W_Prop!$C$10,12*$A65,4*(PlotControl!$C$4-1),12,1)) -> 148.9 | I65: =MAX(OFFSET(P_W_Prop!$D$10,12*$A65,4*(PlotControl!$C$4-1),12,1)) -> 202.3 | J65: =MAX(OFFSET(P_W_Prop!$E$10,12*$A65,4*(PlotControl!$C$4-1),12,1)) -> 266.72 | L65: 60 | M65: =MAX(OFFSET(P_N_Out!$C$10,12*$A65,4*(PlotControl!$C$4-1),12,1)) -> 84.248 | N65: =MAX(OFFSET(P_N_Out!$D$10,12*$A65,4*(PlotControl!$C$4-1),12,1)) -> 116.77 | O65: =MAX(OFFSET(P_N_Out!$E$10,12*$A65,4*(PlotControl!$C$4-1),12,1)) -> 155.36 | P65: =MAX(OFFSET(P_NW_Out!$C$10,12*$A65,4*(PlotControl!$C$4-1),12,1)) -> 121.73 | Q65: =MAX(OFFSET(P_NW_Out!$D$10,12*$A65,4*(PlotControl!$C$4-1),12,1)) -> 170.64 | R65: =MAX(OFFSET(P_NW_Out!$E$10,12*$A65,4*(PlotControl!$C$4-1),12,1)) -> 231 | S65: =MAX(OFFSET(P_W_Out!$C$10,12*$A65,4*(PlotControl!$C$4-1),12,1)) -> 113.74 | T65: =MAX(OFFSET(P_W_Out!$D$10,12*$A65,4*(PlotControl!$C$4-1),12,1)) -> 164.18 | U65: =MAX(OFFSET(P_W_Out!$E$10,12*$A65,4*(PlotControl!$C$4-1),12,1)) -> 230.91
A66: 61 | B66: =MAX(OFFSET(P_N_Prop!$C$10,12*$A66,4*(PlotControl!$C$4-1),12,1)) -> 114.52 | C66: =MAX(OFFSET(P_N_Prop!$D$10,12*$A66,4*(PlotControl!$C$4-1),12,1)) -> 151.87 | D66: =MAX(OFFSET(P_N_Prop!$E$10,12*$A66,4*(PlotControl!$C$4-1),12,1)) -> 192.34 | E66: =MAX(OFFSET(P_NW_Prop!$C$10,12*$A66,4*(PlotControl!$C$4-1),12,1)) -> 168.85 | F66: =MAX(OFFSET(P_NW_Prop!$D$10,12*$A66,4*(PlotControl!$C$4-1),12,1)) -> 227.41 | G66: =MAX(OFFSET(P_NW_Prop!$E$10,12*$A66,4*(PlotControl!$C$4-1),12,1)) -> 289.15 | H66: =MAX(OFFSET(P_W_Prop!$C$10,12*$A66,4*(PlotControl!$C$4-1),12,1)) -> 148.15 | I66: =MAX(OFFSET(P_W_Prop!$D$10,12*$A66,4*(PlotControl!$C$4-1),12,1)) -> 201.35 | J66: =MAX(OFFSET(P_W_Prop!$E$10,12*$A66,4*(PlotControl!$C$4-1),12,1)) -> 265.83 | L66: 61 | M66: =MAX(OFFSET(P_N_Out!$C$10,12*$A66,4*(PlotControl!$C$4-1),12,1)) -> 83.903 | N66: =MAX(OFFSET(P_N_Out!$D$10,12*$A66,4*(PlotControl!$C$4-1),12,1)) -> 116.42 | O66: =MAX(OFFSET(P_N_Out!$E$10,12*$A66,4*(PlotControl!$C$4-1),12,1)) -> 154.8 | P66: =MAX(OFFSET(P_NW_Out!$C$10,12*$A66,4*(PlotControl!$C$4-1),12,1)) -> 121.04 | Q66: =MAX(OFFSET(P_NW_Out!$D$10,12*$A66,4*(PlotControl!$C$4-1),12,1)) -> 169.97 | R66: =MAX(OFFSET(P_NW_Out!$E$10,12*$A66,4*(PlotControl!$C$4-1),12,1)) -> 230.13 | S66: =MAX(OFFSET(P_W_Out!$C$10,12*$A66,4*(PlotControl!$C$4-1),12,1)) -> 113.32 | T66: =MAX(OFFSET(P_W_Out!$D$10,12*$A66,4*(PlotControl!$C$4-1),12,1)) -> 163.8 | U66: =MAX(OFFSET(P_W_Out!$E$10,12*$A66,4*(PlotControl!$C$4-1),12,1)) -> 230.2
A67: 62 | B67: =MAX(OFFSET(P_N_Prop!$C$10,12*$A67,4*(PlotControl!$C$4-1),12,1)) -> 113.58 | C67: =MAX(OFFSET(P_N_Prop!$D$10,12*$A67,4*(PlotControl!$C$4-1),12,1)) -> 150.96 | D67: =MAX(OFFSET(P_N_Prop!$E$10,12*$A67,4*(PlotControl!$C$4-1),12,1)) -> 191.45 | E67: =MAX(OFFSET(P_NW_Prop!$C$10,12*$A67,4*(PlotControl!$C$4-1),12,1)) -> 167.23 | F67: =MAX(OFFSET(P_NW_Prop!$D$10,12*$A67,4*(PlotControl!$C$4-1),12,1)) -> 226.04 | G67: =MAX(OFFSET(P_NW_Prop!$E$10,12*$A67,4*(PlotControl!$C$4-1),12,1)) -> 287.63 | H67: =MAX(OFFSET(P_W_Prop!$C$10,12*$A67,4*(PlotControl!$C$4-1),12,1)) -> 147.41 | I67: =MAX(OFFSET(P_W_Prop!$D$10,12*$A67,4*(PlotControl!$C$4-1),12,1)) -> 200.28 | J67: =MAX(OFFSET(P_W_Prop!$E$10,12*$A67,4*(PlotControl!$C$4-1),12,1)) -> 264.94 | L67: 62 | M67: =MAX(OFFSET(P_N_Out!$C$10,12*$A67,4*(PlotControl!$C$4-1),12,1)) -> 83.56 | N67: =MAX(OFFSET(P_N_Out!$D$10,12*$A67,4*(PlotControl!$C$4-1),12,1)) -> 116 | O67: =MAX(OFFSET(P_N_Out!$E$10,12*$A67,4*(PlotControl!$C$4-1),12,1)) -> 154.24 | P67: =MAX(OFFSET(P_NW_Out!$C$10,12*$A67,4*(PlotControl!$C$4-1),12,1)) -> 120.34 | Q67: =MAX(OFFSET(P_NW_Out!$D$10,12*$A67,4*(PlotControl!$C$4-1),12,1)) -> 169.22 | R67: =MAX(OFFSET(P_NW_Out!$E$10,12*$A67,4*(PlotControl!$C$4-1),12,1)) -> 229.26 | S67: =MAX(OFFSET(P_W_Out!$C$10,12*$A67,4*(PlotControl!$C$4-1),12,1)) -> 112.96 | T67: =MAX(OFFSET(P_W_Out!$D$10,12*$A67,4*(PlotControl!$C$4-1),12,1)) -> 163.22 | U67: =MAX(OFFSET(P_W_Out!$E$10,12*$A67,4*(PlotControl!$C$4-1),12,1)) -> 229.46
A68: 63 | B68: =MAX(OFFSET(P_N_Prop!$C$10,12*$A68,4*(PlotControl!$C$4-1),12,1)) -> 112.73 | C68: =MAX(OFFSET(P_N_Prop!$D$10,12*$A68,4*(PlotControl!$C$4-1),12,1)) -> 150.08 | D68: =MAX(OFFSET(P_N_Prop!$E$10,12*$A68,4*(PlotControl!$C$4-1),12,1)) -> 190.66 | E68: =MAX(OFFSET(P_NW_Prop!$C$10,12*$A68,4*(PlotControl!$C$4-1),12,1)) -> 166.04 | F68: =MAX(OFFSET(P_NW_Prop!$D$10,12*$A68,4*(PlotControl!$C$4-1),12,1)) -> 224.39 | G68: =MAX(OFFSET(P_NW_Prop!$E$10,12*$A68,4*(PlotControl!$C$4-1),12,1)) -> 286.12 | H68: =MAX(OFFSET(P_W_Prop!$C$10,12*$A68,4*(PlotControl!$C$4-1),12,1)) -> 146.42 | I68: =MAX(OFFSET(P_W_Prop!$D$10,12*$A68,4*(PlotControl!$C$4-1),12,1)) -> 199.19 | J68: =MAX(OFFSET(P_W_Prop!$E$10,12*$A68,4*(PlotControl!$C$4-1),12,1)) -> 264.06 | L68: 63 | M68: =MAX(OFFSET(P_N_Out!$C$10,12*$A68,4*(PlotControl!$C$4-1),12,1)) -> 83.267 | N68: =MAX(OFFSET(P_N_Out!$D$10,12*$A68,4*(PlotControl!$C$4-1),12,1)) -> 115.65 | O68: =MAX(OFFSET(P_N_Out!$E$10,12*$A68,4*(PlotControl!$C$4-1),12,1)) -> 153.73 | P68: =MAX(OFFSET(P_NW_Out!$C$10,12*$A68,4*(PlotControl!$C$4-1),12,1)) -> 119.77 | Q68: =MAX(OFFSET(P_NW_Out!$D$10,12*$A68,4*(PlotControl!$C$4-1),12,1)) -> 168.46 | R68: =MAX(OFFSET(P_NW_Out!$E$10,12*$A68,4*(PlotControl!$C$4-1),12,1)) -> 228.39 | S68: =MAX(OFFSET(P_W_Out!$C$10,12*$A68,4*(PlotControl!$C$4-1),12,1)) -> 112.6 | T68: =MAX(OFFSET(P_W_Out!$D$10,12*$A68,4*(PlotControl!$C$4-1),12,1)) -> 162.65 | U68: =MAX(OFFSET(P_W_Out!$E$10,12*$A68,4*(PlotControl!$C$4-1),12,1)) -> 228.53
A69: 64 | B69: =MAX(OFFSET(P_N_Prop!$C$10,12*$A69,4*(PlotControl!$C$4-1),12,1)) -> 111.92 | C69: =MAX(OFFSET(P_N_Prop!$D$10,12*$A69,4*(PlotControl!$C$4-1),12,1)) -> 149.29 | D69: =MAX(OFFSET(P_N_Prop!$E$10,12*$A69,4*(PlotControl!$C$4-1),12,1)) -> 189.78 | E69: =MAX(OFFSET(P_NW_Prop!$C$10,12*$A69,4*(PlotControl!$C$4-1),12,1)) -> 164.86 | F69: =MAX(OFFSET(P_NW_Prop!$D$10,12*$A69,4*(PlotControl!$C$4-1),12,1)) -> 222.92 | G69: =MAX(OFFSET(P_NW_Prop!$E$10,12*$A69,4*(PlotControl!$C$4-1),12,1)) -> 284.62 | H69: =MAX(OFFSET(P_W_Prop!$C$10,12*$A69,4*(PlotControl!$C$4-1),12,1)) -> 145.51 | I69: =MAX(OFFSET(P_W_Prop!$D$10,12*$A69,4*(PlotControl!$C$4-1),12,1)) -> 198.1 | J69: =MAX(OFFSET(P_W_Prop!$E$10,12*$A69,4*(PlotControl!$C$4-1),12,1)) -> 263.17 | L69: 64 | M69: =MAX(OFFSET(P_N_Out!$C$10,12*$A69,4*(PlotControl!$C$4-1),12,1)) -> 82.977 | N69: =MAX(OFFSET(P_N_Out!$D$10,12*$A69,4*(PlotControl!$C$4-1),12,1)) -> 115.18 | O69: =MAX(OFFSET(P_N_Out!$E$10,12*$A69,4*(PlotControl!$C$4-1),12,1)) -> 153.33 | P69: =MAX(OFFSET(P_NW_Out!$C$10,12*$A69,4*(PlotControl!$C$4-1),12,1)) -> 119.21 | Q69: =MAX(OFFSET(P_NW_Out!$D$10,12*$A69,4*(PlotControl!$C$4-1),12,1)) -> 167.75 | R69: =MAX(OFFSET(P_NW_Out!$E$10,12*$A69,4*(PlotControl!$C$4-1),12,1)) -> 227.52 | S69: =MAX(OFFSET(P_W_Out!$C$10,12*$A69,4*(PlotControl!$C$4-1),12,1)) -> 112.17 | T69: =MAX(OFFSET(P_W_Out!$D$10,12*$A69,4*(PlotControl!$C$4-1),12,1)) -> 161.93 | U69: =MAX(OFFSET(P_W_Out!$E$10,12*$A69,4*(PlotControl!$C$4-1),12,1)) -> 227.6
A70: 65 | B70: =MAX(OFFSET(P_N_Prop!$C$10,12*$A70,4*(PlotControl!$C$4-1),12,1)) -> 111.1 | C70: =MAX(OFFSET(P_N_Prop!$D$10,12*$A70,4*(PlotControl!$C$4-1),12,1)) -> 148.39 | D70: =MAX(OFFSET(P_N_Prop!$E$10,12*$A70,4*(PlotControl!$C$4-1),12,1)) -> 188.82 | E70: =MAX(OFFSET(P_NW_Prop!$C$10,12*$A70,4*(PlotControl!$C$4-1),12,1)) -> 163.48 | F70: =MAX(OFFSET(P_NW_Prop!$D$10,12*$A70,4*(PlotControl!$C$4-1),12,1)) -> 221.7 | G70: =MAX(OFFSET(P_NW_Prop!$E$10,12*$A70,4*(PlotControl!$C$4-1),12,1)) -> 283.12 | H70: =MAX(OFFSET(P_W_Prop!$C$10,12*$A70,4*(PlotControl!$C$4-1),12,1)) -> 144.69 | I70: =MAX(OFFSET(P_W_Prop!$D$10,12*$A70,4*(PlotControl!$C$4-1),12,1)) -> 197.02 | J70: =MAX(OFFSET(P_W_Prop!$E$10,12*$A70,4*(PlotControl!$C$4-1),12,1)) -> 262.29 | L70: 65 | M70: =MAX(OFFSET(P_N_Out!$C$10,12*$A70,4*(PlotControl!$C$4-1),12,1)) -> 82.771 | N70: =MAX(OFFSET(P_N_Out!$D$10,12*$A70,4*(PlotControl!$C$4-1),12,1)) -> 114.7 | O70: =MAX(OFFSET(P_N_Out!$E$10,12*$A70,4*(PlotControl!$C$4-1),12,1)) -> 152.93 | P70: =MAX(OFFSET(P_NW_Out!$C$10,12*$A70,4*(PlotControl!$C$4-1),12,1)) -> 118.65 | Q70: =MAX(OFFSET(P_NW_Out!$D$10,12*$A70,4*(PlotControl!$C$4-1),12,1)) -> 167.1 | R70: =MAX(OFFSET(P_NW_Out!$E$10,12*$A70,4*(PlotControl!$C$4-1),12,1)) -> 226.77 | S70: =MAX(OFFSET(P_W_Out!$C$10,12*$A70,4*(PlotControl!$C$4-1),12,1)) -> 111.54 | T70: =MAX(OFFSET(P_W_Out!$D$10,12*$A70,4*(PlotControl!$C$4-1),12,1)) -> 161.17 | U70: =MAX(OFFSET(P_W_Out!$E$10,12*$A70,4*(PlotControl!$C$4-1),12,1)) -> 226.68
A71: 66 | B71: =MAX(OFFSET(P_N_Prop!$C$10,12*$A71,4*(PlotControl!$C$4-1),12,1)) -> 110.29 | C71: =MAX(OFFSET(P_N_Prop!$D$10,12*$A71,4*(PlotControl!$C$4-1),12,1)) -> 147.62 | D71: =MAX(OFFSET(P_N_Prop!$E$10,12*$A71,4*(PlotControl!$C$4-1),12,1)) -> 187.87 | E71: =MAX(OFFSET(P_NW_Prop!$C$10,12*$A71,4*(PlotControl!$C$4-1),12,1)) -> 162.23 | F71: =MAX(OFFSET(P_NW_Prop!$D$10,12*$A71,4*(PlotControl!$C$4-1),12,1)) -> 220.49 | G71: =MAX(OFFSET(P_NW_Prop!$E$10,12*$A71,4*(PlotControl!$C$4-1),12,1)) -> 281.63 | H71: =MAX(OFFSET(P_W_Prop!$C$10,12*$A71,4*(PlotControl!$C$4-1),12,1)) -> 143.87 | I71: =MAX(OFFSET(P_W_Prop!$D$10,12*$A71,4*(PlotControl!$C$4-1),12,1)) -> 196.11 | J71: =MAX(OFFSET(P_W_Prop!$E$10,12*$A71,4*(PlotControl!$C$4-1),12,1)) -> 261.34 | L71: 66 | M71: =MAX(OFFSET(P_N_Out!$C$10,12*$A71,4*(PlotControl!$C$4-1),12,1)) -> 82.566 | N71: =MAX(OFFSET(P_N_Out!$D$10,12*$A71,4*(PlotControl!$C$4-1),12,1)) -> 114.21 | O71: =MAX(OFFSET(P_N_Out!$E$10,12*$A71,4*(PlotControl!$C$4-1),12,1)) -> 152.52 | P71: =MAX(OFFSET(P_NW_Out!$C$10,12*$A71,4*(PlotControl!$C$4-1),12,1)) -> 117.81 | Q71: =MAX(OFFSET(P_NW_Out!$D$10,12*$A71,4*(PlotControl!$C$4-1),12,1)) -> 166.56 | R71: =MAX(OFFSET(P_NW_Out!$E$10,12*$A71,4*(PlotControl!$C$4-1),12,1)) -> 226.02 | S71: =MAX(OFFSET(P_W_Out!$C$10,12*$A71,4*(PlotControl!$C$4-1),12,1)) -> 110.91 | T71: =MAX(OFFSET(P_W_Out!$D$10,12*$A71,4*(PlotControl!$C$4-1),12,1)) -> 160.53 | U71: =MAX(OFFSET(P_W_Out!$E$10,12*$A71,4*(PlotControl!$C$4-1),12,1)) -> 225.79
A72: 67 | B72: =MAX(OFFSET(P_N_Prop!$C$10,12*$A72,4*(PlotControl!$C$4-1),12,1)) -> 109.48 | C72: =MAX(OFFSET(P_N_Prop!$D$10,12*$A72,4*(PlotControl!$C$4-1),12,1)) -> 146.87 | D72: =MAX(OFFSET(P_N_Prop!$E$10,12*$A72,4*(PlotControl!$C$4-1),12,1)) -> 186.92 | E72: =MAX(OFFSET(P_NW_Prop!$C$10,12*$A72,4*(PlotControl!$C$4-1),12,1)) -> 160.84 | F72: =MAX(OFFSET(P_NW_Prop!$D$10,12*$A72,4*(PlotControl!$C$4-1),12,1)) -> 219.24 | G72: =MAX(OFFSET(P_NW_Prop!$E$10,12*$A72,4*(PlotControl!$C$4-1),12,1)) -> 280.14 | H72: =MAX(OFFSET(P_W_Prop!$C$10,12*$A72,4*(PlotControl!$C$4-1),12,1)) -> 143.05 | I72: =MAX(OFFSET(P_W_Prop!$D$10,12*$A72,4*(PlotControl!$C$4-1),12,1)) -> 195.23 | J72: =MAX(OFFSET(P_W_Prop!$E$10,12*$A72,4*(PlotControl!$C$4-1),12,1)) -> 260.34 | L72: 67 | M72: =MAX(OFFSET(P_N_Out!$C$10,12*$A72,4*(PlotControl!$C$4-1),12,1)) -> 82.359 | N72: =MAX(OFFSET(P_N_Out!$D$10,12*$A72,4*(PlotControl!$C$4-1),12,1)) -> 113.79 | O72: =MAX(OFFSET(P_N_Out!$E$10,12*$A72,4*(PlotControl!$C$4-1),12,1)) -> 152.12 | P72: =MAX(OFFSET(P_NW_Out!$C$10,12*$A72,4*(PlotControl!$C$4-1),12,1)) -> 116.98 | Q72: =MAX(OFFSET(P_NW_Out!$D$10,12*$A72,4*(PlotControl!$C$4-1),12,1)) -> 166.02 | R72: =MAX(OFFSET(P_NW_Out!$E$10,12*$A72,4*(PlotControl!$C$4-1),12,1)) -> 225.27 | S72: =MAX(OFFSET(P_W_Out!$C$10,12*$A72,4*(PlotControl!$C$4-1),12,1)) -> 110.37 | T72: =MAX(OFFSET(P_W_Out!$D$10,12*$A72,4*(PlotControl!$C$4-1),12,1)) -> 159.79 | U72: =MAX(OFFSET(P_W_Out!$E$10,12*$A72,4*(PlotControl!$C$4-1),12,1)) -> 224.83
A73: 68 | B73: =MAX(OFFSET(P_N_Prop!$C$10,12*$A73,4*(PlotControl!$C$4-1),12,1)) -> 108.77 | C73: =MAX(OFFSET(P_N_Prop!$D$10,12*$A73,4*(PlotControl!$C$4-1),12,1)) -> 145.88 | D73: =MAX(OFFSET(P_N_Prop!$E$10,12*$A73,4*(PlotControl!$C$4-1),12,1)) -> 186.05 | E73: =MAX(OFFSET(P_NW_Prop!$C$10,12*$A73,4*(PlotControl!$C$4-1),12,1)) -> 159.37 | F73: =MAX(OFFSET(P_NW_Prop!$D$10,12*$A73,4*(PlotControl!$C$4-1),12,1)) -> 217.63 | G73: =MAX(OFFSET(P_NW_Prop!$E$10,12*$A73,4*(PlotControl!$C$4-1),12,1)) -> 278.67 | H73: =MAX(OFFSET(P_W_Prop!$C$10,12*$A73,4*(PlotControl!$C$4-1),12,1)) -> 142.23 | I73: =MAX(OFFSET(P_W_Prop!$D$10,12*$A73,4*(PlotControl!$C$4-1),12,1)) -> 194.47 | J73: =MAX(OFFSET(P_W_Prop!$E$10,12*$A73,4*(PlotControl!$C$4-1),12,1)) -> 259.34 | L73: 68 | M73: =MAX(OFFSET(P_N_Out!$C$10,12*$A73,4*(PlotControl!$C$4-1),12,1)) -> 82.126 | N73: =MAX(OFFSET(P_N_Out!$D$10,12*$A73,4*(PlotControl!$C$4-1),12,1)) -> 113.34 | O73: =MAX(OFFSET(P_N_Out!$E$10,12*$A73,4*(PlotControl!$C$4-1),12,1)) -> 151.72 | P73: =MAX(OFFSET(P_NW_Out!$C$10,12*$A73,4*(PlotControl!$C$4-1),12,1)) -> 116.32 | Q73: =MAX(OFFSET(P_NW_Out!$D$10,12*$A73,4*(PlotControl!$C$4-1),12,1)) -> 165.41 | R73: =MAX(OFFSET(P_NW_Out!$E$10,12*$A73,4*(PlotControl!$C$4-1),12,1)) -> 224.46 | S73: =MAX(OFFSET(P_W_Out!$C$10,12*$A73,4*(PlotControl!$C$4-1),12,1)) -> 109.82 | T73: =MAX(OFFSET(P_W_Out!$D$10,12*$A73,4*(PlotControl!$C$4-1),12,1)) -> 159.04 | U73: =MAX(OFFSET(P_W_Out!$E$10,12*$A73,4*(PlotControl!$C$4-1),12,1)) -> 223.95
A74: 69 | B74: =MAX(OFFSET(P_N_Prop!$C$10,12*$A74,4*(PlotControl!$C$4-1),12,1)) -> 107.89 | C74: =MAX(OFFSET(P_N_Prop!$D$10,12*$A74,4*(PlotControl!$C$4-1),12,1)) -> 144.86 | D74: =MAX(OFFSET(P_N_Prop!$E$10,12*$A74,4*(PlotControl!$C$4-1),12,1)) -> 185.25 | E74: =MAX(OFFSET(P_NW_Prop!$C$10,12*$A74,4*(PlotControl!$C$4-1),12,1)) -> 157.93 | F74: =MAX(OFFSET(P_NW_Prop!$D$10,12*$A74,4*(PlotControl!$C$4-1),12,1)) -> 216.03 | G74: =MAX(OFFSET(P_NW_Prop!$E$10,12*$A74,4*(PlotControl!$C$4-1),12,1)) -> 277.19 | H74: =MAX(OFFSET(P_W_Prop!$C$10,12*$A74,4*(PlotControl!$C$4-1),12,1)) -> 141.38 | I74: =MAX(OFFSET(P_W_Prop!$D$10,12*$A74,4*(PlotControl!$C$4-1),12,1)) -> 193.68 | J74: =MAX(OFFSET(P_W_Prop!$E$10,12*$A74,4*(PlotControl!$C$4-1),12,1)) -> 258.33 | L74: 69 | M74: =MAX(OFFSET(P_N_Out!$C$10,12*$A74,4*(PlotControl!$C$4-1),12,1)) -> 81.802 | N74: =MAX(OFFSET(P_N_Out!$D$10,12*$A74,4*(PlotControl!$C$4-1),12,1)) -> 112.9 | O74: =MAX(OFFSET(P_N_Out!$E$10,12*$A74,4*(PlotControl!$C$4-1),12,1)) -> 151.24 | P74: =MAX(OFFSET(P_NW_Out!$C$10,12*$A74,4*(PlotControl!$C$4-1),12,1)) -> 115.86 | Q74: =MAX(OFFSET(P_NW_Out!$D$10,12*$A74,4*(PlotControl!$C$4-1),12,1)) -> 164.81 | R74: =MAX(OFFSET(P_NW_Out!$E$10,12*$A74,4*(PlotControl!$C$4-1),12,1)) -> 223.63 | S74: =MAX(OFFSET(P_W_Out!$C$10,12*$A74,4*(PlotControl!$C$4-1),12,1)) -> 109.14 | T74: =MAX(OFFSET(P_W_Out!$D$10,12*$A74,4*(PlotControl!$C$4-1),12,1)) -> 158.29 | U74: =MAX(OFFSET(P_W_Out!$E$10,12*$A74,4*(PlotControl!$C$4-1),12,1)) -> 223.2
A75: 70 | B75: =MAX(OFFSET(P_N_Prop!$C$10,12*$A75,4*(PlotControl!$C$4-1),12,1)) -> 107.12 | C75: =MAX(OFFSET(P_N_Prop!$D$10,12*$A75,4*(PlotControl!$C$4-1),12,1)) -> 143.92 | D75: =MAX(OFFSET(P_N_Prop!$E$10,12*$A75,4*(PlotControl!$C$4-1),12,1)) -> 184.45 | E75: =MAX(OFFSET(P_NW_Prop!$C$10,12*$A75,4*(PlotControl!$C$4-1),12,1)) -> 156.73 | F75: =MAX(OFFSET(P_NW_Prop!$D$10,12*$A75,4*(PlotControl!$C$4-1),12,1)) -> 214.45 | G75: =MAX(OFFSET(P_NW_Prop!$E$10,12*$A75,4*(PlotControl!$C$4-1),12,1)) -> 275.73 | H75: =MAX(OFFSET(P_W_Prop!$C$10,12*$A75,4*(PlotControl!$C$4-1),12,1)) -> 140.35 | I75: =MAX(OFFSET(P_W_Prop!$D$10,12*$A75,4*(PlotControl!$C$4-1),12,1)) -> 192.76 | J75: =MAX(OFFSET(P_W_Prop!$E$10,12*$A75,4*(PlotControl!$C$4-1),12,1)) -> 257.44 | L75: 70 | M75: =MAX(OFFSET(P_N_Out!$C$10,12*$A75,4*(PlotControl!$C$4-1),12,1)) -> 81.473 | N75: =MAX(OFFSET(P_N_Out!$D$10,12*$A75,4*(PlotControl!$C$4-1),12,1)) -> 112.52 | O75: =MAX(OFFSET(P_N_Out!$E$10,12*$A75,4*(PlotControl!$C$4-1),12,1)) -> 150.74 | P75: =MAX(OFFSET(P_NW_Out!$C$10,12*$A75,4*(PlotControl!$C$4-1),12,1)) -> 115.32 | Q75: =MAX(OFFSET(P_NW_Out!$D$10,12*$A75,4*(PlotControl!$C$4-1),12,1)) -> 164.22 | R75: =MAX(OFFSET(P_NW_Out!$E$10,12*$A75,4*(PlotControl!$C$4-1),12,1)) -> 222.79 | S75: =MAX(OFFSET(P_W_Out!$C$10,12*$A75,4*(PlotControl!$C$4-1),12,1)) -> 108.46 | T75: =MAX(OFFSET(P_W_Out!$D$10,12*$A75,4*(PlotControl!$C$4-1),12,1)) -> 157.55 | U75: =MAX(OFFSET(P_W_Out!$E$10,12*$A75,4*(PlotControl!$C$4-1),12,1)) -> 222.52
A76: 71 | B76: =MAX(OFFSET(P_N_Prop!$C$10,12*$A76,4*(PlotControl!$C$4-1),12,1)) -> 106.39 | C76: =MAX(OFFSET(P_N_Prop!$D$10,12*$A76,4*(PlotControl!$C$4-1),12,1)) -> 142.98 | D76: =MAX(OFFSET(P_N_Prop!$E$10,12*$A76,4*(PlotControl!$C$4-1),12,1)) -> 183.69 | E76: =MAX(OFFSET(P_NW_Prop!$C$10,12*$A76,4*(PlotControl!$C$4-1),12,1)) -> 155.4 | F76: =MAX(OFFSET(P_NW_Prop!$D$10,12*$A76,4*(PlotControl!$C$4-1),12,1)) -> 213.14 | G76: =MAX(OFFSET(P_NW_Prop!$E$10,12*$A76,4*(PlotControl!$C$4-1),12,1)) -> 274.46 | H76: =MAX(OFFSET(P_W_Prop!$C$10,12*$A76,4*(PlotControl!$C$4-1),12,1)) -> 139.15 | I76: =MAX(OFFSET(P_W_Prop!$D$10,12*$A76,4*(PlotControl!$C$4-1),12,1)) -> 191.89 | J76: =MAX(OFFSET(P_W_Prop!$E$10,12*$A76,4*(PlotControl!$C$4-1),12,1)) -> 256.6 | L76: 71 | M76: =MAX(OFFSET(P_N_Out!$C$10,12*$A76,4*(PlotControl!$C$4-1),12,1)) -> 81.108 | N76: =MAX(OFFSET(P_N_Out!$D$10,12*$A76,4*(PlotControl!$C$4-1),12,1)) -> 112.16 | O76: =MAX(OFFSET(P_N_Out!$E$10,12*$A76,4*(PlotControl!$C$4-1),12,1)) -> 150.24 | P76: =MAX(OFFSET(P_NW_Out!$C$10,12*$A76,4*(PlotControl!$C$4-1),12,1)) -> 114.73 | Q76: =MAX(OFFSET(P_NW_Out!$D$10,12*$A76,4*(PlotControl!$C$4-1),12,1)) -> 163.6 | R76: =MAX(OFFSET(P_NW_Out!$E$10,12*$A76,4*(PlotControl!$C$4-1),12,1)) -> 222.03 | S76: =MAX(OFFSET(P_W_Out!$C$10,12*$A76,4*(PlotControl!$C$4-1),12,1)) -> 107.79 | T76: =MAX(OFFSET(P_W_Out!$D$10,12*$A76,4*(PlotControl!$C$4-1),12,1)) -> 156.89 | U76: =MAX(OFFSET(P_W_Out!$E$10,12*$A76,4*(PlotControl!$C$4-1),12,1)) -> 221.91
A77: 72 | B77: =MAX(OFFSET(P_N_Prop!$C$10,12*$A77,4*(PlotControl!$C$4-1),12,1)) -> 105.55 | C77: =MAX(OFFSET(P_N_Prop!$D$10,12*$A77,4*(PlotControl!$C$4-1),12,1)) -> 142.23 | D77: =MAX(OFFSET(P_N_Prop!$E$10,12*$A77,4*(PlotControl!$C$4-1),12,1)) -> 183.01 | E77: =MAX(OFFSET(P_NW_Prop!$C$10,12*$A77,4*(PlotControl!$C$4-1),12,1)) -> 153.92 | F77: =MAX(OFFSET(P_NW_Prop!$D$10,12*$A77,4*(PlotControl!$C$4-1),12,1)) -> 211.94 | G77: =MAX(OFFSET(P_NW_Prop!$E$10,12*$A77,4*(PlotControl!$C$4-1),12,1)) -> 273.08 | H77: =MAX(OFFSET(P_W_Prop!$C$10,12*$A77,4*(PlotControl!$C$4-1),12,1)) -> 137.82 | I77: =MAX(OFFSET(P_W_Prop!$D$10,12*$A77,4*(PlotControl!$C$4-1),12,1)) -> 190.96 | J77: =MAX(OFFSET(P_W_Prop!$E$10,12*$A77,4*(PlotControl!$C$4-1),12,1)) -> 255.67 | L77: 72 | M77: =MAX(OFFSET(P_N_Out!$C$10,12*$A77,4*(PlotControl!$C$4-1),12,1)) -> 80.744 | N77: =MAX(OFFSET(P_N_Out!$D$10,12*$A77,4*(PlotControl!$C$4-1),12,1)) -> 111.78 | O77: =MAX(OFFSET(P_N_Out!$E$10,12*$A77,4*(PlotControl!$C$4-1),12,1)) -> 149.78 | P77: =MAX(OFFSET(P_NW_Out!$C$10,12*$A77,4*(PlotControl!$C$4-1),12,1)) -> 114.16 | Q77: =MAX(OFFSET(P_NW_Out!$D$10,12*$A77,4*(PlotControl!$C$4-1),12,1)) -> 162.87 | R77: =MAX(OFFSET(P_NW_Out!$E$10,12*$A77,4*(PlotControl!$C$4-1),12,1)) -> 221.34 | S77: =MAX(OFFSET(P_W_Out!$C$10,12*$A77,4*(PlotControl!$C$4-1),12,1)) -> 107.15 | T77: =MAX(OFFSET(P_W_Out!$D$10,12*$A77,4*(PlotControl!$C$4-1),12,1)) -> 155.97 | U77: =MAX(OFFSET(P_W_Out!$E$10,12*$A77,4*(PlotControl!$C$4-1),12,1)) -> 221.13
A78: 73 | B78: =MAX(OFFSET(P_N_Prop!$C$10,12*$A78,4*(PlotControl!$C$4-1),12,1)) -> 104.73 | C78: =MAX(OFFSET(P_N_Prop!$D$10,12*$A78,4*(PlotControl!$C$4-1),12,1)) -> 141.52 | D78: =MAX(OFFSET(P_N_Prop!$E$10,12*$A78,4*(PlotControl!$C$4-1),12,1)) -> 182.33 | E78: =MAX(OFFSET(P_NW_Prop!$C$10,12*$A78,4*(PlotControl!$C$4-1),12,1)) -> 152.56 | F78: =MAX(OFFSET(P_NW_Prop!$D$10,12*$A78,4*(PlotControl!$C$4-1),12,1)) -> 210.74 | G78: =MAX(OFFSET(P_NW_Prop!$E$10,12*$A78,4*(PlotControl!$C$4-1),12,1)) -> 271.66 | H78: =MAX(OFFSET(P_W_Prop!$C$10,12*$A78,4*(PlotControl!$C$4-1),12,1)) -> 136.81 | I78: =MAX(OFFSET(P_W_Prop!$D$10,12*$A78,4*(PlotControl!$C$4-1),12,1)) -> 190.01 | J78: =MAX(OFFSET(P_W_Prop!$E$10,12*$A78,4*(PlotControl!$C$4-1),12,1)) -> 254.56 | L78: 73 | M78: =MAX(OFFSET(P_N_Out!$C$10,12*$A78,4*(PlotControl!$C$4-1),12,1)) -> 80.379 | N78: =MAX(OFFSET(P_N_Out!$D$10,12*$A78,4*(PlotControl!$C$4-1),12,1)) -> 111.4 | O78: =MAX(OFFSET(P_N_Out!$E$10,12*$A78,4*(PlotControl!$C$4-1),12,1)) -> 149.35 | P78: =MAX(OFFSET(P_NW_Out!$C$10,12*$A78,4*(PlotControl!$C$4-1),12,1)) -> 113.59 | Q78: =MAX(OFFSET(P_NW_Out!$D$10,12*$A78,4*(PlotControl!$C$4-1),12,1)) -> 162.1 | R78: =MAX(OFFSET(P_NW_Out!$E$10,12*$A78,4*(PlotControl!$C$4-1),12,1)) -> 220.55 | S78: =MAX(OFFSET(P_W_Out!$C$10,12*$A78,4*(PlotControl!$C$4-1),12,1)) -> 106.71 | T78: =MAX(OFFSET(P_W_Out!$D$10,12*$A78,4*(PlotControl!$C$4-1),12,1)) -> 154.9 | U78: =MAX(OFFSET(P_W_Out!$E$10,12*$A78,4*(PlotControl!$C$4-1),12,1)) -> 220.36
A79: 74 | B79: =MAX(OFFSET(P_N_Prop!$C$10,12*$A79,4*(PlotControl!$C$4-1),12,1)) -> 103.95 | C79: =MAX(OFFSET(P_N_Prop!$D$10,12*$A79,4*(PlotControl!$C$4-1),12,1)) -> 140.57 | D79: =MAX(OFFSET(P_N_Prop!$E$10,12*$A79,4*(PlotControl!$C$4-1),12,1)) -> 181.66 | E79: =MAX(OFFSET(P_NW_Prop!$C$10,12*$A79,4*(PlotControl!$C$4-1),12,1)) -> 151.21 | F79: =MAX(OFFSET(P_NW_Prop!$D$10,12*$A79,4*(PlotControl!$C$4-1),12,1)) -> 209.71 | G79: =MAX(OFFSET(P_NW_Prop!$E$10,12*$A79,4*(PlotControl!$C$4-1),12,1)) -> 270.66 | H79: =MAX(OFFSET(P_W_Prop!$C$10,12*$A79,4*(PlotControl!$C$4-1),12,1)) -> 135.8 | I79: =MAX(OFFSET(P_W_Prop!$D$10,12*$A79,4*(PlotControl!$C$4-1),12,1)) -> 189 | J79: =MAX(OFFSET(P_W_Prop!$E$10,12*$A79,4*(PlotControl!$C$4-1),12,1)) -> 253.45 | L79: 74 | M79: =MAX(OFFSET(P_N_Out!$C$10,12*$A79,4*(PlotControl!$C$4-1),12,1)) -> 80.015 | N79: =MAX(OFFSET(P_N_Out!$D$10,12*$A79,4*(PlotControl!$C$4-1),12,1)) -> 110.98 | O79: =MAX(OFFSET(P_N_Out!$E$10,12*$A79,4*(PlotControl!$C$4-1),12,1)) -> 148.92 | P79: =MAX(OFFSET(P_NW_Out!$C$10,12*$A79,4*(PlotControl!$C$4-1),12,1)) -> 112.99 | Q79: =MAX(OFFSET(P_NW_Out!$D$10,12*$A79,4*(PlotControl!$C$4-1),12,1)) -> 161.25 | R79: =MAX(OFFSET(P_NW_Out!$E$10,12*$A79,4*(PlotControl!$C$4-1),12,1)) -> 219.75 | S79: =MAX(OFFSET(P_W_Out!$C$10,12*$A79,4*(PlotControl!$C$4-1),12,1)) -> 106.33 | T79: =MAX(OFFSET(P_W_Out!$D$10,12*$A79,4*(PlotControl!$C$4-1),12,1)) -> 154.13 | U79: =MAX(OFFSET(P_W_Out!$E$10,12*$A79,4*(PlotControl!$C$4-1),12,1)) -> 219.52
A80: 75 | B80: =MAX(OFFSET(P_N_Prop!$C$10,12*$A80,4*(PlotControl!$C$4-1),12,1)) -> 103.18 | C80: =MAX(OFFSET(P_N_Prop!$D$10,12*$A80,4*(PlotControl!$C$4-1),12,1)) -> 139.82 | D80: =MAX(OFFSET(P_N_Prop!$E$10,12*$A80,4*(PlotControl!$C$4-1),12,1)) -> 180.98 | E80: =MAX(OFFSET(P_NW_Prop!$C$10,12*$A80,4*(PlotControl!$C$4-1),12,1)) -> 149.87 | F80: =MAX(OFFSET(P_NW_Prop!$D$10,12*$A80,4*(PlotControl!$C$4-1),12,1)) -> 208.73 | G80: =MAX(OFFSET(P_NW_Prop!$E$10,12*$A80,4*(PlotControl!$C$4-1),12,1)) -> 269.73 | H80: =MAX(OFFSET(P_W_Prop!$C$10,12*$A80,4*(PlotControl!$C$4-1),12,1)) -> 134.81 | I80: =MAX(OFFSET(P_W_Prop!$D$10,12*$A80,4*(PlotControl!$C$4-1),12,1)) -> 187.91 | J80: =MAX(OFFSET(P_W_Prop!$E$10,12*$A80,4*(PlotControl!$C$4-1),12,1)) -> 252.28 | L80: 75 | M80: =MAX(OFFSET(P_N_Out!$C$10,12*$A80,4*(PlotControl!$C$4-1),12,1)) -> 79.651 | N80: =MAX(OFFSET(P_N_Out!$D$10,12*$A80,4*(PlotControl!$C$4-1),12,1)) -> 110.44 | O80: =MAX(OFFSET(P_N_Out!$E$10,12*$A80,4*(PlotControl!$C$4-1),12,1)) -> 148.5 | P80: =MAX(OFFSET(P_NW_Out!$C$10,12*$A80,4*(PlotControl!$C$4-1),12,1)) -> 112.3 | Q80: =MAX(OFFSET(P_NW_Out!$D$10,12*$A80,4*(PlotControl!$C$4-1),12,1)) -> 160.4 | R80: =MAX(OFFSET(P_NW_Out!$E$10,12*$A80,4*(PlotControl!$C$4-1),12,1)) -> 218.81 | S80: =MAX(OFFSET(P_W_Out!$C$10,12*$A80,4*(PlotControl!$C$4-1),12,1)) -> 105.94 | T80: =MAX(OFFSET(P_W_Out!$D$10,12*$A80,4*(PlotControl!$C$4-1),12,1)) -> 153.43 | U80: =MAX(OFFSET(P_W_Out!$E$10,12*$A80,4*(PlotControl!$C$4-1),12,1)) -> 218.68
A81: 76 | B81: =MAX(OFFSET(P_N_Prop!$C$10,12*$A81,4*(PlotControl!$C$4-1),12,1)) -> 102.34 | C81: =MAX(OFFSET(P_N_Prop!$D$10,12*$A81,4*(PlotControl!$C$4-1),12,1)) -> 139.15 | D81: =MAX(OFFSET(P_N_Prop!$E$10,12*$A81,4*(PlotControl!$C$4-1),12,1)) -> 180.37 | E81: =MAX(OFFSET(P_NW_Prop!$C$10,12*$A81,4*(PlotControl!$C$4-1),12,1)) -> 148.73 | F81: =MAX(OFFSET(P_NW_Prop!$D$10,12*$A81,4*(PlotControl!$C$4-1),12,1)) -> 207.59 | G81: =MAX(OFFSET(P_NW_Prop!$E$10,12*$A81,4*(PlotControl!$C$4-1),12,1)) -> 268.8 | H81: =MAX(OFFSET(P_W_Prop!$C$10,12*$A81,4*(PlotControl!$C$4-1),12,1)) -> 133.59 | I81: =MAX(OFFSET(P_W_Prop!$D$10,12*$A81,4*(PlotControl!$C$4-1),12,1)) -> 186.68 | J81: =MAX(OFFSET(P_W_Prop!$E$10,12*$A81,4*(PlotControl!$C$4-1),12,1)) -> 251.08 | L81: 76 | M81: =MAX(OFFSET(P_N_Out!$C$10,12*$A81,4*(PlotControl!$C$4-1),12,1)) -> 79.286 | N81: =MAX(OFFSET(P_N_Out!$D$10,12*$A81,4*(PlotControl!$C$4-1),12,1)) -> 110.06 | O81: =MAX(OFFSET(P_N_Out!$E$10,12*$A81,4*(PlotControl!$C$4-1),12,1)) -> 148.09 | P81: =MAX(OFFSET(P_NW_Out!$C$10,12*$A81,4*(PlotControl!$C$4-1),12,1)) -> 111.6 | Q81: =MAX(OFFSET(P_NW_Out!$D$10,12*$A81,4*(PlotControl!$C$4-1),12,1)) -> 159.59 | R81: =MAX(OFFSET(P_NW_Out!$E$10,12*$A81,4*(PlotControl!$C$4-1),12,1)) -> 217.87 | S81: =MAX(OFFSET(P_W_Out!$C$10,12*$A81,4*(PlotControl!$C$4-1),12,1)) -> 105.55 | T81: =MAX(OFFSET(P_W_Out!$D$10,12*$A81,4*(PlotControl!$C$4-1),12,1)) -> 152.78 | U81: =MAX(OFFSET(P_W_Out!$E$10,12*$A81,4*(PlotControl!$C$4-1),12,1)) -> 217.88
A82: 77 | B82: =MAX(OFFSET(P_N_Prop!$C$10,12*$A82,4*(PlotControl!$C$4-1),12,1)) -> 101.5 | C82: =MAX(OFFSET(P_N_Prop!$D$10,12*$A82,4*(PlotControl!$C$4-1),12,1)) -> 138.49 | D82: =MAX(OFFSET(P_N_Prop!$E$10,12*$A82,4*(PlotControl!$C$4-1),12,1)) -> 179.76 | E82: =MAX(OFFSET(P_NW_Prop!$C$10,12*$A82,4*(PlotControl!$C$4-1),12,1)) -> 147.61 | F82: =MAX(OFFSET(P_NW_Prop!$D$10,12*$A82,4*(PlotControl!$C$4-1),12,1)) -> 206.43 | G82: =MAX(OFFSET(P_NW_Prop!$E$10,12*$A82,4*(PlotControl!$C$4-1),12,1)) -> 267.87 | H82: =MAX(OFFSET(P_W_Prop!$C$10,12*$A82,4*(PlotControl!$C$4-1),12,1)) -> 132.39 | I82: =MAX(OFFSET(P_W_Prop!$D$10,12*$A82,4*(PlotControl!$C$4-1),12,1)) -> 185.68 | J82: =MAX(OFFSET(P_W_Prop!$E$10,12*$A82,4*(PlotControl!$C$4-1),12,1)) -> 250.15 | L82: 77 | M82: =MAX(OFFSET(P_N_Out!$C$10,12*$A82,4*(PlotControl!$C$4-1),12,1)) -> 78.965 | N82: =MAX(OFFSET(P_N_Out!$D$10,12*$A82,4*(PlotControl!$C$4-1),12,1)) -> 109.73 | O82: =MAX(OFFSET(P_N_Out!$E$10,12*$A82,4*(PlotControl!$C$4-1),12,1)) -> 147.67 | P82: =MAX(OFFSET(P_NW_Out!$C$10,12*$A82,4*(PlotControl!$C$4-1),12,1)) -> 110.9 | Q82: =MAX(OFFSET(P_NW_Out!$D$10,12*$A82,4*(PlotControl!$C$4-1),12,1)) -> 158.87 | R82: =MAX(OFFSET(P_NW_Out!$E$10,12*$A82,4*(PlotControl!$C$4-1),12,1)) -> 217.02 | S82: =MAX(OFFSET(P_W_Out!$C$10,12*$A82,4*(PlotControl!$C$4-1),12,1)) -> 105.16 | T82: =MAX(OFFSET(P_W_Out!$D$10,12*$A82,4*(PlotControl!$C$4-1),12,1)) -> 152.25 | U82: =MAX(OFFSET(P_W_Out!$E$10,12*$A82,4*(PlotControl!$C$4-1),12,1)) -> 217.09
A83: 78 | B83: =MAX(OFFSET(P_N_Prop!$C$10,12*$A83,4*(PlotControl!$C$4-1),12,1)) -> 100.68 | C83: =MAX(OFFSET(P_N_Prop!$D$10,12*$A83,4*(PlotControl!$C$4-1),12,1)) -> 137.83 | D83: =MAX(OFFSET(P_N_Prop!$E$10,12*$A83,4*(PlotControl!$C$4-1),12,1)) -> 179.04 | E83: =MAX(OFFSET(P_NW_Prop!$C$10,12*$A83,4*(PlotControl!$C$4-1),12,1)) -> 146.32 | F83: =MAX(OFFSET(P_NW_Prop!$D$10,12*$A83,4*(PlotControl!$C$4-1),12,1)) -> 205.13 | G83: =MAX(OFFSET(P_NW_Prop!$E$10,12*$A83,4*(PlotControl!$C$4-1),12,1)) -> 266.95 | H83: =MAX(OFFSET(P_W_Prop!$C$10,12*$A83,4*(PlotControl!$C$4-1),12,1)) -> 131.48 | I83: =MAX(OFFSET(P_W_Prop!$D$10,12*$A83,4*(PlotControl!$C$4-1),12,1)) -> 184.87 | J83: =MAX(OFFSET(P_W_Prop!$E$10,12*$A83,4*(PlotControl!$C$4-1),12,1)) -> 249.14 | L83: 78 | M83: =MAX(OFFSET(P_N_Out!$C$10,12*$A83,4*(PlotControl!$C$4-1),12,1)) -> 78.63 | N83: =MAX(OFFSET(P_N_Out!$D$10,12*$A83,4*(PlotControl!$C$4-1),12,1)) -> 109.23 | O83: =MAX(OFFSET(P_N_Out!$E$10,12*$A83,4*(PlotControl!$C$4-1),12,1)) -> 147.25 | P83: =MAX(OFFSET(P_NW_Out!$C$10,12*$A83,4*(PlotControl!$C$4-1),12,1)) -> 110.21 | Q83: =MAX(OFFSET(P_NW_Out!$D$10,12*$A83,4*(PlotControl!$C$4-1),12,1)) -> 158.15 | R83: =MAX(OFFSET(P_NW_Out!$E$10,12*$A83,4*(PlotControl!$C$4-1),12,1)) -> 216.2 | S83: =MAX(OFFSET(P_W_Out!$C$10,12*$A83,4*(PlotControl!$C$4-1),12,1)) -> 104.77 | T83: =MAX(OFFSET(P_W_Out!$D$10,12*$A83,4*(PlotControl!$C$4-1),12,1)) -> 151.63 | U83: =MAX(OFFSET(P_W_Out!$E$10,12*$A83,4*(PlotControl!$C$4-1),12,1)) -> 216.3
A84: 79 | B84: =MAX(OFFSET(P_N_Prop!$C$10,12*$A84,4*(PlotControl!$C$4-1),12,1)) -> 99.911 | C84: =MAX(OFFSET(P_N_Prop!$D$10,12*$A84,4*(PlotControl!$C$4-1),12,1)) -> 137.02 | D84: =MAX(OFFSET(P_N_Prop!$E$10,12*$A84,4*(PlotControl!$C$4-1),12,1)) -> 178.28 | E84: =MAX(OFFSET(P_NW_Prop!$C$10,12*$A84,4*(PlotControl!$C$4-1),12,1)) -> 145.01 | F84: =MAX(OFFSET(P_NW_Prop!$D$10,12*$A84,4*(PlotControl!$C$4-1),12,1)) -> 203.79 | G84: =MAX(OFFSET(P_NW_Prop!$E$10,12*$A84,4*(PlotControl!$C$4-1),12,1)) -> 265.99 | H84: =MAX(OFFSET(P_W_Prop!$C$10,12*$A84,4*(PlotControl!$C$4-1),12,1)) -> 130.73 | I84: =MAX(OFFSET(P_W_Prop!$D$10,12*$A84,4*(PlotControl!$C$4-1),12,1)) -> 183.97 | J84: =MAX(OFFSET(P_W_Prop!$E$10,12*$A84,4*(PlotControl!$C$4-1),12,1)) -> 248.19 | L84: 79 | M84: =MAX(OFFSET(P_N_Out!$C$10,12*$A84,4*(PlotControl!$C$4-1),12,1)) -> 78.305 | N84: =MAX(OFFSET(P_N_Out!$D$10,12*$A84,4*(PlotControl!$C$4-1),12,1)) -> 108.69 | O84: =MAX(OFFSET(P_N_Out!$E$10,12*$A84,4*(PlotControl!$C$4-1),12,1)) -> 146.84 | P84: =MAX(OFFSET(P_NW_Out!$C$10,12*$A84,4*(PlotControl!$C$4-1),12,1)) -> 109.52 | Q84: =MAX(OFFSET(P_NW_Out!$D$10,12*$A84,4*(PlotControl!$C$4-1),12,1)) -> 157.41 | R84: =MAX(OFFSET(P_NW_Out!$E$10,12*$A84,4*(PlotControl!$C$4-1),12,1)) -> 215.29 | S84: =MAX(OFFSET(P_W_Out!$C$10,12*$A84,4*(PlotControl!$C$4-1),12,1)) -> 104.31 | T84: =MAX(OFFSET(P_W_Out!$D$10,12*$A84,4*(PlotControl!$C$4-1),12,1)) -> 150.99 | U84: =MAX(OFFSET(P_W_Out!$E$10,12*$A84,4*(PlotControl!$C$4-1),12,1)) -> 215.53
A85: 80 | B85: =MAX(OFFSET(P_N_Prop!$C$10,12*$A85,4*(PlotControl!$C$4-1),12,1)) -> 99.229 | C85: =MAX(OFFSET(P_N_Prop!$D$10,12*$A85,4*(PlotControl!$C$4-1),12,1)) -> 136.2 | D85: =MAX(OFFSET(P_N_Prop!$E$10,12*$A85,4*(PlotControl!$C$4-1),12,1)) -> 177.51 | E85: =MAX(OFFSET(P_NW_Prop!$C$10,12*$A85,4*(PlotControl!$C$4-1),12,1)) -> 143.76 | F85: =MAX(OFFSET(P_NW_Prop!$D$10,12*$A85,4*(PlotControl!$C$4-1),12,1)) -> 202.49 | G85: =MAX(OFFSET(P_NW_Prop!$E$10,12*$A85,4*(PlotControl!$C$4-1),12,1)) -> 264.94 | H85: =MAX(OFFSET(P_W_Prop!$C$10,12*$A85,4*(PlotControl!$C$4-1),12,1)) -> 129.97 | I85: =MAX(OFFSET(P_W_Prop!$D$10,12*$A85,4*(PlotControl!$C$4-1),12,1)) -> 183.03 | J85: =MAX(OFFSET(P_W_Prop!$E$10,12*$A85,4*(PlotControl!$C$4-1),12,1)) -> 247.29 | L85: 80 | M85: =MAX(OFFSET(P_N_Out!$C$10,12*$A85,4*(PlotControl!$C$4-1),12,1)) -> 78.058 | N85: =MAX(OFFSET(P_N_Out!$D$10,12*$A85,4*(PlotControl!$C$4-1),12,1)) -> 108.11 | O85: =MAX(OFFSET(P_N_Out!$E$10,12*$A85,4*(PlotControl!$C$4-1),12,1)) -> 146.35 | P85: =MAX(OFFSET(P_NW_Out!$C$10,12*$A85,4*(PlotControl!$C$4-1),12,1)) -> 108.96 | Q85: =MAX(OFFSET(P_NW_Out!$D$10,12*$A85,4*(PlotControl!$C$4-1),12,1)) -> 156.7 | R85: =MAX(OFFSET(P_NW_Out!$E$10,12*$A85,4*(PlotControl!$C$4-1),12,1)) -> 214.38 | S85: =MAX(OFFSET(P_W_Out!$C$10,12*$A85,4*(PlotControl!$C$4-1),12,1)) -> 103.62 | T85: =MAX(OFFSET(P_W_Out!$D$10,12*$A85,4*(PlotControl!$C$4-1),12,1)) -> 150.36 | U85: =MAX(OFFSET(P_W_Out!$E$10,12*$A85,4*(PlotControl!$C$4-1),12,1)) -> 214.95
A86: 81 | B86: =MAX(OFFSET(P_N_Prop!$C$10,12*$A86,4*(PlotControl!$C$4-1),12,1)) -> 98.576 | C86: =MAX(OFFSET(P_N_Prop!$D$10,12*$A86,4*(PlotControl!$C$4-1),12,1)) -> 135.39 | D86: =MAX(OFFSET(P_N_Prop!$E$10,12*$A86,4*(PlotControl!$C$4-1),12,1)) -> 176.75 | E86: =MAX(OFFSET(P_NW_Prop!$C$10,12*$A86,4*(PlotControl!$C$4-1),12,1)) -> 142.52 | F86: =MAX(OFFSET(P_NW_Prop!$D$10,12*$A86,4*(PlotControl!$C$4-1),12,1)) -> 201.03 | G86: =MAX(OFFSET(P_NW_Prop!$E$10,12*$A86,4*(PlotControl!$C$4-1),12,1)) -> 263.59 | H86: =MAX(OFFSET(P_W_Prop!$C$10,12*$A86,4*(PlotControl!$C$4-1),12,1)) -> 129.01 | I86: =MAX(OFFSET(P_W_Prop!$D$10,12*$A86,4*(PlotControl!$C$4-1),12,1)) -> 182.01 | J86: =MAX(OFFSET(P_W_Prop!$E$10,12*$A86,4*(PlotControl!$C$4-1),12,1)) -> 246.38 | L86: 81 | M86: =MAX(OFFSET(P_N_Out!$C$10,12*$A86,4*(PlotControl!$C$4-1),12,1)) -> 77.638 | N86: =MAX(OFFSET(P_N_Out!$D$10,12*$A86,4*(PlotControl!$C$4-1),12,1)) -> 107.51 | O86: =MAX(OFFSET(P_N_Out!$E$10,12*$A86,4*(PlotControl!$C$4-1),12,1)) -> 145.84 | P86: =MAX(OFFSET(P_NW_Out!$C$10,12*$A86,4*(PlotControl!$C$4-1),12,1)) -> 108.49 | Q86: =MAX(OFFSET(P_NW_Out!$D$10,12*$A86,4*(PlotControl!$C$4-1),12,1)) -> 155.79 | R86: =MAX(OFFSET(P_NW_Out!$E$10,12*$A86,4*(PlotControl!$C$4-1),12,1)) -> 213.46 | S86: =MAX(OFFSET(P_W_Out!$C$10,12*$A86,4*(PlotControl!$C$4-1),12,1)) -> 102.93 | T86: =MAX(OFFSET(P_W_Out!$D$10,12*$A86,4*(PlotControl!$C$4-1),12,1)) -> 149.86 | U86: =MAX(OFFSET(P_W_Out!$E$10,12*$A86,4*(PlotControl!$C$4-1),12,1)) -> 214.37
A87: 82 | B87: =MAX(OFFSET(P_N_Prop!$C$10,12*$A87,4*(PlotControl!$C$4-1),12,1)) -> 97.906 | C87: =MAX(OFFSET(P_N_Prop!$D$10,12*$A87,4*(PlotControl!$C$4-1),12,1)) -> 134.6 | D87: =MAX(OFFSET(P_N_Prop!$E$10,12*$A87,4*(PlotControl!$C$4-1),12,1)) -> 175.99 | E87: =MAX(OFFSET(P_NW_Prop!$C$10,12*$A87,4*(PlotControl!$C$4-1),12,1)) -> 141.35 | F87: =MAX(OFFSET(P_NW_Prop!$D$10,12*$A87,4*(PlotControl!$C$4-1),12,1)) -> 199.64 | G87: =MAX(OFFSET(P_NW_Prop!$E$10,12*$A87,4*(PlotControl!$C$4-1),12,1)) -> 262.24 | H87: =MAX(OFFSET(P_W_Prop!$C$10,12*$A87,4*(PlotControl!$C$4-1),12,1)) -> 128.26 | I87: =MAX(OFFSET(P_W_Prop!$D$10,12*$A87,4*(PlotControl!$C$4-1),12,1)) -> 180.95 | J87: =MAX(OFFSET(P_W_Prop!$E$10,12*$A87,4*(PlotControl!$C$4-1),12,1)) -> 245.33 | L87: 82 | M87: =MAX(OFFSET(P_N_Out!$C$10,12*$A87,4*(PlotControl!$C$4-1),12,1)) -> 77.287 | N87: =MAX(OFFSET(P_N_Out!$D$10,12*$A87,4*(PlotControl!$C$4-1),12,1)) -> 107.07 | O87: =MAX(OFFSET(P_N_Out!$E$10,12*$A87,4*(PlotControl!$C$4-1),12,1)) -> 145.33 | P87: =MAX(OFFSET(P_NW_Out!$C$10,12*$A87,4*(PlotControl!$C$4-1),12,1)) -> 108.14 | Q87: =MAX(OFFSET(P_NW_Out!$D$10,12*$A87,4*(PlotControl!$C$4-1),12,1)) -> 155.13 | R87: =MAX(OFFSET(P_NW_Out!$E$10,12*$A87,4*(PlotControl!$C$4-1),12,1)) -> 212.55 | S87: =MAX(OFFSET(P_W_Out!$C$10,12*$A87,4*(PlotControl!$C$4-1),12,1)) -> 102.24 | T87: =MAX(OFFSET(P_W_Out!$D$10,12*$A87,4*(PlotControl!$C$4-1),12,1)) -> 149.4 | U87: =MAX(OFFSET(P_W_Out!$E$10,12*$A87,4*(PlotControl!$C$4-1),12,1)) -> 213.79
A88: 83 | B88: =MAX(OFFSET(P_N_Prop!$C$10,12*$A88,4*(PlotControl!$C$4-1),12,1)) -> 97.145 | C88: =MAX(OFFSET(P_N_Prop!$D$10,12*$A88,4*(PlotControl!$C$4-1),12,1)) -> 133.88 | D88: =MAX(OFFSET(P_N_Prop!$E$10,12*$A88,4*(PlotControl!$C$4-1),12,1)) -> 175.24 | E88: =MAX(OFFSET(P_NW_Prop!$C$10,12*$A88,4*(PlotControl!$C$4-1),12,1)) -> 140.34 | F88: =MAX(OFFSET(P_NW_Prop!$D$10,12*$A88,4*(PlotControl!$C$4-1),12,1)) -> 198.43 | G88: =MAX(OFFSET(P_NW_Prop!$E$10,12*$A88,4*(PlotControl!$C$4-1),12,1)) -> 261.15 | H88: =MAX(OFFSET(P_W_Prop!$C$10,12*$A88,4*(PlotControl!$C$4-1),12,1)) -> 127.52 | I88: =MAX(OFFSET(P_W_Prop!$D$10,12*$A88,4*(PlotControl!$C$4-1),12,1)) -> 179.94 | J88: =MAX(OFFSET(P_W_Prop!$E$10,12*$A88,4*(PlotControl!$C$4-1),12,1)) -> 244.33 | L88: 83 | M88: =MAX(OFFSET(P_N_Out!$C$10,12*$A88,4*(PlotControl!$C$4-1),12,1)) -> 76.968 | N88: =MAX(OFFSET(P_N_Out!$D$10,12*$A88,4*(PlotControl!$C$4-1),12,1)) -> 106.65 | O88: =MAX(OFFSET(P_N_Out!$E$10,12*$A88,4*(PlotControl!$C$4-1),12,1)) -> 144.83 | P88: =MAX(OFFSET(P_NW_Out!$C$10,12*$A88,4*(PlotControl!$C$4-1),12,1)) -> 107.81 | Q88: =MAX(OFFSET(P_NW_Out!$D$10,12*$A88,4*(PlotControl!$C$4-1),12,1)) -> 154.55 | R88: =MAX(OFFSET(P_NW_Out!$E$10,12*$A88,4*(PlotControl!$C$4-1),12,1)) -> 211.64 | S88: =MAX(OFFSET(P_W_Out!$C$10,12*$A88,4*(PlotControl!$C$4-1),12,1)) -> 101.56 | T88: =MAX(OFFSET(P_W_Out!$D$10,12*$A88,4*(PlotControl!$C$4-1),12,1)) -> 148.93 | U88: =MAX(OFFSET(P_W_Out!$E$10,12*$A88,4*(PlotControl!$C$4-1),12,1)) -> 213.21
A89: 84 | B89: =MAX(OFFSET(P_N_Prop!$C$10,12*$A89,4*(PlotControl!$C$4-1),12,1)) -> 96.4 | C89: =MAX(OFFSET(P_N_Prop!$D$10,12*$A89,4*(PlotControl!$C$4-1),12,1)) -> 133.17 | D89: =MAX(OFFSET(P_N_Prop!$E$10,12*$A89,4*(PlotControl!$C$4-1),12,1)) -> 174.49 | E89: =MAX(OFFSET(P_NW_Prop!$C$10,12*$A89,4*(PlotControl!$C$4-1),12,1)) -> 139.38 | F89: =MAX(OFFSET(P_NW_Prop!$D$10,12*$A89,4*(PlotControl!$C$4-1),12,1)) -> 197.17 | G89: =MAX(OFFSET(P_NW_Prop!$E$10,12*$A89,4*(PlotControl!$C$4-1),12,1)) -> 260.07 | H89: =MAX(OFFSET(P_W_Prop!$C$10,12*$A89,4*(PlotControl!$C$4-1),12,1)) -> 126.78 | I89: =MAX(OFFSET(P_W_Prop!$D$10,12*$A89,4*(PlotControl!$C$4-1),12,1)) -> 178.91 | J89: =MAX(OFFSET(P_W_Prop!$E$10,12*$A89,4*(PlotControl!$C$4-1),12,1)) -> 243.38 | L89: 84 | M89: =MAX(OFFSET(P_N_Out!$C$10,12*$A89,4*(PlotControl!$C$4-1),12,1)) -> 76.649 | N89: =MAX(OFFSET(P_N_Out!$D$10,12*$A89,4*(PlotControl!$C$4-1),12,1)) -> 106.05 | O89: =MAX(OFFSET(P_N_Out!$E$10,12*$A89,4*(PlotControl!$C$4-1),12,1)) -> 144.32 | P89: =MAX(OFFSET(P_NW_Out!$C$10,12*$A89,4*(PlotControl!$C$4-1),12,1)) -> 107.44 | Q89: =MAX(OFFSET(P_NW_Out!$D$10,12*$A89,4*(PlotControl!$C$4-1),12,1)) -> 154.03 | R89: =MAX(OFFSET(P_NW_Out!$E$10,12*$A89,4*(PlotControl!$C$4-1),12,1)) -> 210.74 | S89: =MAX(OFFSET(P_W_Out!$C$10,12*$A89,4*(PlotControl!$C$4-1),12,1)) -> 100.92 | T89: =MAX(OFFSET(P_W_Out!$D$10,12*$A89,4*(PlotControl!$C$4-1),12,1)) -> 148.23 | U89: =MAX(OFFSET(P_W_Out!$E$10,12*$A89,4*(PlotControl!$C$4-1),12,1)) -> 212.63
A90: 85 | B90: =MAX(OFFSET(P_N_Prop!$C$10,12*$A90,4*(PlotControl!$C$4-1),12,1)) -> 95.66 | C90: =MAX(OFFSET(P_N_Prop!$D$10,12*$A90,4*(PlotControl!$C$4-1),12,1)) -> 132.42 | D90: =MAX(OFFSET(P_N_Prop!$E$10,12*$A90,4*(PlotControl!$C$4-1),12,1)) -> 173.74 | E90: =MAX(OFFSET(P_NW_Prop!$C$10,12*$A90,4*(PlotControl!$C$4-1),12,1)) -> 138.53 | F90: =MAX(OFFSET(P_NW_Prop!$D$10,12*$A90,4*(PlotControl!$C$4-1),12,1)) -> 195.84 | G90: =MAX(OFFSET(P_NW_Prop!$E$10,12*$A90,4*(PlotControl!$C$4-1),12,1)) -> 258.99 | H90: =MAX(OFFSET(P_W_Prop!$C$10,12*$A90,4*(PlotControl!$C$4-1),12,1)) -> 126.17 | I90: =MAX(OFFSET(P_W_Prop!$D$10,12*$A90,4*(PlotControl!$C$4-1),12,1)) -> 177.98 | J90: =MAX(OFFSET(P_W_Prop!$E$10,12*$A90,4*(PlotControl!$C$4-1),12,1)) -> 242.43 | L90: 85 | M90: =MAX(OFFSET(P_N_Out!$C$10,12*$A90,4*(PlotControl!$C$4-1),12,1)) -> 76.312 | N90: =MAX(OFFSET(P_N_Out!$D$10,12*$A90,4*(PlotControl!$C$4-1),12,1)) -> 105.66 | O90: =MAX(OFFSET(P_N_Out!$E$10,12*$A90,4*(PlotControl!$C$4-1),12,1)) -> 143.82 | P90: =MAX(OFFSET(P_NW_Out!$C$10,12*$A90,4*(PlotControl!$C$4-1),12,1)) -> 106.89 | Q90: =MAX(OFFSET(P_NW_Out!$D$10,12*$A90,4*(PlotControl!$C$4-1),12,1)) -> 153.32 | R90: =MAX(OFFSET(P_NW_Out!$E$10,12*$A90,4*(PlotControl!$C$4-1),12,1)) -> 209.87 | S90: =MAX(OFFSET(P_W_Out!$C$10,12*$A90,4*(PlotControl!$C$4-1),12,1)) -> 100.4 | T90: =MAX(OFFSET(P_W_Out!$D$10,12*$A90,4*(PlotControl!$C$4-1),12,1)) -> 147.48 | U90: =MAX(OFFSET(P_W_Out!$E$10,12*$A90,4*(PlotControl!$C$4-1),12,1)) -> 211.98
A91: 86 | B91: =MAX(OFFSET(P_N_Prop!$C$10,12*$A91,4*(PlotControl!$C$4-1),12,1)) -> 94.912 | C91: =MAX(OFFSET(P_N_Prop!$D$10,12*$A91,4*(PlotControl!$C$4-1),12,1)) -> 131.6 | D91: =MAX(OFFSET(P_N_Prop!$E$10,12*$A91,4*(PlotControl!$C$4-1),12,1)) -> 172.99 | E91: =MAX(OFFSET(P_NW_Prop!$C$10,12*$A91,4*(PlotControl!$C$4-1),12,1)) -> 137.62 | F91: =MAX(OFFSET(P_NW_Prop!$D$10,12*$A91,4*(PlotControl!$C$4-1),12,1)) -> 194.59 | G91: =MAX(OFFSET(P_NW_Prop!$E$10,12*$A91,4*(PlotControl!$C$4-1),12,1)) -> 257.91 | H91: =MAX(OFFSET(P_W_Prop!$C$10,12*$A91,4*(PlotControl!$C$4-1),12,1)) -> 125.42 | I91: =MAX(OFFSET(P_W_Prop!$D$10,12*$A91,4*(PlotControl!$C$4-1),12,1)) -> 177.06 | J91: =MAX(OFFSET(P_W_Prop!$E$10,12*$A91,4*(PlotControl!$C$4-1),12,1)) -> 241.48 | L91: 86 | M91: =MAX(OFFSET(P_N_Out!$C$10,12*$A91,4*(PlotControl!$C$4-1),12,1)) -> 75.95 | N91: =MAX(OFFSET(P_N_Out!$D$10,12*$A91,4*(PlotControl!$C$4-1),12,1)) -> 105.15 | O91: =MAX(OFFSET(P_N_Out!$E$10,12*$A91,4*(PlotControl!$C$4-1),12,1)) -> 143.4 | P91: =MAX(OFFSET(P_NW_Out!$C$10,12*$A91,4*(PlotControl!$C$4-1),12,1)) -> 106.32 | Q91: =MAX(OFFSET(P_NW_Out!$D$10,12*$A91,4*(PlotControl!$C$4-1),12,1)) -> 152.73 | R91: =MAX(OFFSET(P_NW_Out!$E$10,12*$A91,4*(PlotControl!$C$4-1),12,1)) -> 209.13 | S91: =MAX(OFFSET(P_W_Out!$C$10,12*$A91,4*(PlotControl!$C$4-1),12,1)) -> 99.878 | T91: =MAX(OFFSET(P_W_Out!$D$10,12*$A91,4*(PlotControl!$C$4-1),12,1)) -> 146.91 | U91: =MAX(OFFSET(P_W_Out!$E$10,12*$A91,4*(PlotControl!$C$4-1),12,1)) -> 211.33
A92: 87 | B92: =MAX(OFFSET(P_N_Prop!$C$10,12*$A92,4*(PlotControl!$C$4-1),12,1)) -> 93.966 | C92: =MAX(OFFSET(P_N_Prop!$D$10,12*$A92,4*(PlotControl!$C$4-1),12,1)) -> 130.77 | D92: =MAX(OFFSET(P_N_Prop!$E$10,12*$A92,4*(PlotControl!$C$4-1),12,1)) -> 172.3 | E92: =MAX(OFFSET(P_NW_Prop!$C$10,12*$A92,4*(PlotControl!$C$4-1),12,1)) -> 136.73 | F92: =MAX(OFFSET(P_NW_Prop!$D$10,12*$A92,4*(PlotControl!$C$4-1),12,1)) -> 193.42 | G92: =MAX(OFFSET(P_NW_Prop!$E$10,12*$A92,4*(PlotControl!$C$4-1),12,1)) -> 256.83 | H92: =MAX(OFFSET(P_W_Prop!$C$10,12*$A92,4*(PlotControl!$C$4-1),12,1)) -> 124.67 | I92: =MAX(OFFSET(P_W_Prop!$D$10,12*$A92,4*(PlotControl!$C$4-1),12,1)) -> 175.91 | J92: =MAX(OFFSET(P_W_Prop!$E$10,12*$A92,4*(PlotControl!$C$4-1),12,1)) -> 240.53 | L92: 87 | M92: =MAX(OFFSET(P_N_Out!$C$10,12*$A92,4*(PlotControl!$C$4-1),12,1)) -> 75.656 | N92: =MAX(OFFSET(P_N_Out!$D$10,12*$A92,4*(PlotControl!$C$4-1),12,1)) -> 104.65 | O92: =MAX(OFFSET(P_N_Out!$E$10,12*$A92,4*(PlotControl!$C$4-1),12,1)) -> 143 | P92: =MAX(OFFSET(P_NW_Out!$C$10,12*$A92,4*(PlotControl!$C$4-1),12,1)) -> 105.59 | Q92: =MAX(OFFSET(P_NW_Out!$D$10,12*$A92,4*(PlotControl!$C$4-1),12,1)) -> 152.18 | R92: =MAX(OFFSET(P_NW_Out!$E$10,12*$A92,4*(PlotControl!$C$4-1),12,1)) -> 208.39 | S92: =MAX(OFFSET(P_W_Out!$C$10,12*$A92,4*(PlotControl!$C$4-1),12,1)) -> 99.36 | T92: =MAX(OFFSET(P_W_Out!$D$10,12*$A92,4*(PlotControl!$C$4-1),12,1)) -> 146.24 | U92: =MAX(OFFSET(P_W_Out!$E$10,12*$A92,4*(PlotControl!$C$4-1),12,1)) -> 210.68
A93: 88 | B93: =MAX(OFFSET(P_N_Prop!$C$10,12*$A93,4*(PlotControl!$C$4-1),12,1)) -> 93.346 | C93: =MAX(OFFSET(P_N_Prop!$D$10,12*$A93,4*(PlotControl!$C$4-1),12,1)) -> 130.03 | D93: =MAX(OFFSET(P_N_Prop!$E$10,12*$A93,4*(PlotControl!$C$4-1),12,1)) -> 171.69 | E93: =MAX(OFFSET(P_NW_Prop!$C$10,12*$A93,4*(PlotControl!$C$4-1),12,1)) -> 135.56 | F93: =MAX(OFFSET(P_NW_Prop!$D$10,12*$A93,4*(PlotControl!$C$4-1),12,1)) -> 192.23 | G93: =MAX(OFFSET(P_NW_Prop!$E$10,12*$A93,4*(PlotControl!$C$4-1),12,1)) -> 255.61 | H93: =MAX(OFFSET(P_W_Prop!$C$10,12*$A93,4*(PlotControl!$C$4-1),12,1)) -> 123.93 | I93: =MAX(OFFSET(P_W_Prop!$D$10,12*$A93,4*(PlotControl!$C$4-1),12,1)) -> 174.67 | J93: =MAX(OFFSET(P_W_Prop!$E$10,12*$A93,4*(PlotControl!$C$4-1),12,1)) -> 239.5 | L93: 88 | M93: =MAX(OFFSET(P_N_Out!$C$10,12*$A93,4*(PlotControl!$C$4-1),12,1)) -> 75.371 | N93: =MAX(OFFSET(P_N_Out!$D$10,12*$A93,4*(PlotControl!$C$4-1),12,1)) -> 104.28 | O93: =MAX(OFFSET(P_N_Out!$E$10,12*$A93,4*(PlotControl!$C$4-1),12,1)) -> 142.61 | P93: =MAX(OFFSET(P_NW_Out!$C$10,12*$A93,4*(PlotControl!$C$4-1),12,1)) -> 104.86 | Q93: =MAX(OFFSET(P_NW_Out!$D$10,12*$A93,4*(PlotControl!$C$4-1),12,1)) -> 151.45 | R93: =MAX(OFFSET(P_NW_Out!$E$10,12*$A93,4*(PlotControl!$C$4-1),12,1)) -> 207.66 | S93: =MAX(OFFSET(P_W_Out!$C$10,12*$A93,4*(PlotControl!$C$4-1),12,1)) -> 98.841 | T93: =MAX(OFFSET(P_W_Out!$D$10,12*$A93,4*(PlotControl!$C$4-1),12,1)) -> 145.65 | U93: =MAX(OFFSET(P_W_Out!$E$10,12*$A93,4*(PlotControl!$C$4-1),12,1)) -> 210.03
A94: 89 | B94: =MAX(OFFSET(P_N_Prop!$C$10,12*$A94,4*(PlotControl!$C$4-1),12,1)) -> 92.606 | C94: =MAX(OFFSET(P_N_Prop!$D$10,12*$A94,4*(PlotControl!$C$4-1),12,1)) -> 129.32 | D94: =MAX(OFFSET(P_N_Prop!$E$10,12*$A94,4*(PlotControl!$C$4-1),12,1)) -> 171.01 | E94: =MAX(OFFSET(P_NW_Prop!$C$10,12*$A94,4*(PlotControl!$C$4-1),12,1)) -> 134.28 | F94: =MAX(OFFSET(P_NW_Prop!$D$10,12*$A94,4*(PlotControl!$C$4-1),12,1)) -> 190.91 | G94: =MAX(OFFSET(P_NW_Prop!$E$10,12*$A94,4*(PlotControl!$C$4-1),12,1)) -> 254.33 | H94: =MAX(OFFSET(P_W_Prop!$C$10,12*$A94,4*(PlotControl!$C$4-1),12,1)) -> 123.13 | I94: =MAX(OFFSET(P_W_Prop!$D$10,12*$A94,4*(PlotControl!$C$4-1),12,1)) -> 173.49 | J94: =MAX(OFFSET(P_W_Prop!$E$10,12*$A94,4*(PlotControl!$C$4-1),12,1)) -> 238.46 | L94: 89 | M94: =MAX(OFFSET(P_N_Out!$C$10,12*$A94,4*(PlotControl!$C$4-1),12,1)) -> 75.051 | N94: =MAX(OFFSET(P_N_Out!$D$10,12*$A94,4*(PlotControl!$C$4-1),12,1)) -> 103.76 | O94: =MAX(OFFSET(P_N_Out!$E$10,12*$A94,4*(PlotControl!$C$4-1),12,1)) -> 142.22 | P94: =MAX(OFFSET(P_NW_Out!$C$10,12*$A94,4*(PlotControl!$C$4-1),12,1)) -> 104.3 | Q94: =MAX(OFFSET(P_NW_Out!$D$10,12*$A94,4*(PlotControl!$C$4-1),12,1)) -> 150.69 | R94: =MAX(OFFSET(P_NW_Out!$E$10,12*$A94,4*(PlotControl!$C$4-1),12,1)) -> 206.92 | S94: =MAX(OFFSET(P_W_Out!$C$10,12*$A94,4*(PlotControl!$C$4-1),12,1)) -> 98.359 | T94: =MAX(OFFSET(P_W_Out!$D$10,12*$A94,4*(PlotControl!$C$4-1),12,1)) -> 145.03 | U94: =MAX(OFFSET(P_W_Out!$E$10,12*$A94,4*(PlotControl!$C$4-1),12,1)) -> 209.38
